{"text_format":"1","workbook":"xlsx","n_sheets":27,"sheets":["GENERAL","OVERALL RATING","AOP Frontal ODB","AOP Side MDB ","AOP HPT","COP Dynamic ","COP Installation ","COP Vehicle ","COP CPD ","SAT-EBA","SAT-SBR","SAT-AEB CCRs","SAT-CCRm & CCRb ","SAT-LKA","SAT-LDW","SAT-Advanced ","MS-BST ","MS-ARV","MS-AHB ","MS-PED","MS-AEB CM","MS-Advanced","Rating Requirements","Database Reference","Export","Comments","ESC"],"not_rendered":{"charts":0,"images":4,"macros":1,"external_links":7,"defined_names":256,"comments":1,"pivot_tables":0},"unopened":[],"bounds":{"document_bytes":16777216,"sheet_cells":100000,"rows_first":2000,"rows_last":500,"rows_between":2000,"halvings":0,"cell_chars":16384,"cell_head_chars":4096},"cells_cut":0,"cells_raw":0,"read":"whole","date_system":"1900"}

{"sheet":"GENERAL","index":0,"n_rows":68,"n_cols":10,"rows_kept":68,"cut":false,"hidden":false,"merged":[[55,9,55,10],[37,7,38,8],[30,3,30,6],[30,7,30,8],[46,3,46,6],[47,3,47,6],[47,7,47,8],[42,3,43,6],[42,9,42,10],[41,7,41,8],[41,3,41,6],[41,9,41,10],[39,3,40,6],[39,7,40,8],[39,9,40,10],[59,7,59,8],[59,3,60,6],[59,9,59,10],[57,3,57,6],[57,7,57,8],[57,9,57,10],[37,3,38,6],[37,9,37,10],[44,3,45,6],[51,9,51,10],[42,7,42,8],[46,7,46,8],[53,3,54,6],[53,7,53,8],[53,9,53,10],[44,9,44,10],[46,9,46,10],[50,7,50,8],[50,9,50,10],[55,3,55,6],[55,7,55,8],[43,9,43,10],[45,9,45,10],[47,9,47,10],[67,7,67,8],[67,9,67,10],[61,3,62,6],[63,3,64,6],[65,3,66,6],[67,3,68,6],[61,7,61,8],[61,9,61,10],[63,7,63,8],[63,9,63,10],[65,7,65,8],[65,9,65,10],[35,1,35,2],[40,1,40,2],[35,7,35,8],[35,3,36,6],[35,9,35,10],[28,3,28,6],[28,7,28,8],[29,3,29,6],[29,7,29,8],[33,9,33,10],[32,1,33,2],[32,3,32,6],[50,1,51,2],[51,7,51,8],[50,3,50,6],[51,3,52,6],[44,7,44,8],[44,1,44,2],[8,9,8,10],[9,2,9,3],[10,2,10,3],[16,9,16,10],[23,1,24,2],[10,9,10,10],[10,7,10,8],[24,9,24,10],[17,9,18,10],[24,3,24,6],[16,7,16,8],[11,7,11,8],[17,7,17,8],[16,2,16,3],[12,2,12,3],[11,9,12,10],[32,7,32,8],[41,1,42,2],[5,1,6,10],[33,7,33,8],[13,2,13,3],[13,9,15,10],[19,9,20,10],[23,3,23,10],[25,7,25,8],[33,3,34,6],[26,9,26,10],[25,3,25,6],[25,9,25,10],[26,7,26,8],[32,9,32,10],[8,7,8,8],[11,2,11,3],[15,2,15,3],[14,2,14,3],[26,3,26,6],[27,3,27,6],[27,7,27,8],[27,9,27,10],[17,2,17,3],[26,1,26,2],[24,7,24,8]]}
[]
[]
[]
[]
[]
[null,"GENERAL"]
[]
[]
[null,"VEHICLE SPECIFICATION",null,null,null,null,null,"YEAR OF TEST",null,2026]
[null,"Make"]
[null,"Model",null,null,null,null,null,"Frontal ODB Test "]
[null,"Tested Variant",null,null,null,null,null,"Test Lab"]
[null,"Model Year"]
[null,"Vehicle Category"]
[null,"Engine Type"]
[null,"Engine Capacity"]
[null,"Kerb Mass (kg)",null,null,null,null,null,"Side Impact Test "]
[null,"Hand of Drive",null,null,null,null,null,"Test Lab"]
[]
[]
[]
[]
[]
[null,"PROTOCOLS"]
[null,null,null,"Protocol",null,null,null,"Version",null,"Application"]
[]
[null,"GENERAL",null,"ASEAN NCAP OVERALL ASSESSMENT",null,null,null,3,null,"2026-01-01"]
[null,null,null,"ASEAN NCAP FITMENT RATING SYSTEM",null,null,null,2,null,"2026-01-01"]
[null,null,null,"ASEAN NCAP VEHICLE SELECTION, SPECIFICATION, TESTING AND RETESTING",null,null,null,1]
[null,null,null,"ASEAN NCAP STAR RATING VALIDITY",null,null,null,1]
[null,null,null,"ASEAN NCAP ASSESSMENT PROTOCOL - HIGH VOLTAGE ELECTRIC VEHICLES",null,null,null,1]
[]
[null,"ADULT OCCUPANT PROTECTION "]
[null,null,null,"ASEAN NCAP ADULT OCCUPANT PROTECTION ASSESSMENT PROTOCOL",null,null,null,3,null,"2026-01-01"]
[]
[null,null,null,"ASEAN NCAP FRONTAL IMPACT TESTING PROTOCOL",null,null,null,4,null,"2026-01-01"]
[]
[null,null,null,"ASEAN NCAP SIDE IMPACT TESTING PROTOCOL",null,null,null,3,null,"2026-01-01"]
[]
[]
[]
[null,"CHILD OCCUPANT PROTECTION"]
[null,null,null,"ASEAN NCAP CHILD OCCUPANT PROTECTION ASSESSMENT PROTOCOL",null,null,null,3.1,null,"2026-01-01"]
[]
[null,null,null,"ASEAN NCAP FRONTAL IMPACT TESTING PROTOCOL",null,null,null,4,null,"2026-01-01"]
[]
[null,null,null,"ASEAN NCAP SIDE IMPACT TESTING PROTOCOL",null,null,null,3,null,"2026-01-01"]
[null,null,null,"ASEAN NCAP TEST PROTOCOL - KNEE MAPPING SLED TEST",null,null,null,1,null,"2026-01-01"]
[]
[]
[null,"SAFETY ASSIST"]
[null,null,null,"ASEAN NCAP ASSESSMENT PROTOCOL - SAFETY ASSIST ",null,null,null,3,null,"2026-01-01"]
[]
[null,null,null,"ASEAN NCAP TEST PROTOCOL – AEB CAR TO CAR",null,null,null,1,null,"2026-01-01"]
[]
[null,null,null,"ASEAN NCAP TEST PROTOCOL - LANE SUPPORT SYSTEMS",null,null,null,1,null,"2026-01-01"]
[]
[]
[]
[null,"Motorcyclist Safety",null,"ASEAN NCAP ASSESSMENT PROTOCOL – MOTORCYCLIST SAFETY",null,null,null,2,null,"2026-01-01"]
[]
[null,null,null,"ASEAN NCAP TEST PROTOCOL – BLIND SPOT DETECTION ",null,null,null,2,null,"2026-01-01"]
[]
[null,null,null,"ASEAN NCAP TEST PROTOCOL – BLIND SPOT VISUALIZATION ",null,null,null,2,null,"2026-01-01"]
[]
[null,null,null,"ASEAN NCAP TEST PROTOCOL - ADVANCE REAR VISUALIZATION",null,null,null,2,null,"2026-01-01"]
[]
[null,null,null,"ASEAN NCAP TEST PROTOCOL - AUTO HIGH BEAM / ADAPTIVE DRIVING BEAM",null,null,null,2,null,"2026-01-01"]

{"sheet":"OVERALL RATING","index":1,"n_rows":18,"n_cols":15,"rows_kept":18,"cut":false,"hidden":false,"merged":[[4,2,4,4],[4,5,4,7],[4,8,4,10],[4,1,12,1],[7,14,14,14],[4,11,4,13]]}
[]
[null,"Make",{"$f":"GENERAL!C10","v":0}]
[null,"Model",{"$f":"GENERAL!C11","v":0}]
[]
[null,null,"AOP",null,null,"COP",null,null,"SAFETY ASSIST",null,null,"MOTORCYCLIST",null,null,"2026 - 2030"]
[null,null,"Item","Point","Max","Item","Point","Max","Item","Point","Max",{"$f":"I6","v":"Item"},{"$f":"J6","v":"Point"},{"$f":"K6","v":"Max"},"ASEAN NCAP"]
[null,null,"ODB",{"$f":"'AOP Frontal ODB'!D104:G104","v":14.079000000000001},16,"Frontal",{"$f":"'COP Dynamic '!D61","v":16},16,"EBA",{"$f":"'SAT-EBA'!G5","v":6},6,"BSD/BSV",{"$f":"'MS-BST '!G5","v":8},8,"RATING"]
[null,null,"SIDE",{"$f":"'AOP Side MDB '!D56:E56","v":7},8,"Side",{"$f":"'COP Dynamic '!D62","v":6},8,"SBR",{"$f":"'SAT-SBR'!G5","v":6},6,"Rear View Technology",{"$f":"'MS-ARV'!G5","v":3},3,{"$f":"MIN(D18:M18)","v":4}]
[null,null,"HPT Evaluation",{"$f":"'AOP HPT'!$G$5","v":8},8,"Installation",{"$f":"'COP Installation '!I28","v":12},12,"AEB CCRs",{"$f":"'SAT-AEB CCRs'!G5","v":1.25},2.5,"AHB / ADB",{"$f":"'MS-AHB '!G5","v":2.9400000000000004},3]
[null,null,null,null,null,"Vehicle Based ",{"$f":"'COP Vehicle '!D28","v":2},13,"AEB CCRm & CCRb",{"$f":"'SAT-CCRm & CCRb '!G5","v":5},5,"Pedestrian Protection",{"$f":"'MS-PED'!G5","v":1},2]
[null,null,null,null,null,"CPD",{"$f":"'COP CPD '!G6","v":2.9999999999999991},5,"Lane Support - LKA",{"$f":"'SAT-LKA'!G5","v":0.75},1.5,"AEB CM",{"$f":"'MS-AEB CM'!G5","v":6},6]
[null,null,null,null,null,null,null,null,"Lane Support - LDW",{"$f":"'SAT-LDW'!G5","v":0.5},0.5,"Advanced MSTs",{"$f":"'MS-Advanced'!F2","v":2},2]
[null,null,null,null,null,null,null,null,"Advanced SATs",{"$f":"'SAT-Advanced '!F2","v":2},2]
[null,"Score",null,{"$f":"SUM(D7:D13)","v":29.079000000000001},32,null,{"$f":"SUM(G7:G13)","v":39},54,null,{"$f":"SUM(J7:J13)","v":21.5},23.5,null,{"$f":"SUM(M7:M12)","v":22.94},24]
[null,"Normalized Score",null,{"$f":"D14/E14","v":0.90871875000000002},null,null,{"$f":"G14/H14","v":0.72222222222222221},null,null,{"$f":"J14/K14","v":0.91489361702127658},null,null,{"$f":"M14/N14","v":0.95583333333333342}]
[null,"Weighting",null,0.4,null,null,0.2,null,null,0.2,null,null,0.2,null,"OVERALL SCORE"]
[null,"Weighted Score",null,{"$f":"D15*40","v":36.348750000000003},null,null,{"$f":"G15*20","v":14.444444444444445},null,null,{"$f":"J15*20","v":18.297872340425531},null,null,{"$f":"M15*20","v":19.116666666666667},null,{"$f":"D17+G17+J17+M17","v":88.207733451536654}]
[null,"Maximum Star Rating",null,{"$f":"IF(AND(D15>=0.8,D7>=12.5),5,IF(D15>=0.7,4,IF(D15>=0.6,3,IF(D15>=0.5,2,IF(D15>=0.4,1,IF(D15<0.4,0))))))","v":5},null,null,{"$f":"IF(G15>=0.75,5,IF(G15>=0.6,4,IF(G15>=0.5,3,IF(G15>=0.4,2,IF(G15>=0.3,1,IF(G15<0.3,0))))))","v":4},null,null,{"$f":"IF(J15>=0.75,5,IF(J15>=0.6,4,IF(J15>=0.4,3,IF(J15>=0.3,2,IF(J15>=0.2,1,IF(J15<0.2,0))))))","v":5},null,null,{"$f":"IF(M15>=0.55,5,IF(M15>=0.45,4,IF(M15>=0.4,3,IF(M15>=0.3,2,IF(M15>=0.2,1,IF(M15<0.2,0))))))","v":5},null,{"$f":"IF(O17>75,5,IF(O17>65,4,IF(O17>50,3,IF(O17>40,2,IF(O17>30,1,IF(O17<29.99,0))))))","v":5}]

{"sheet":"AOP Frontal ODB","index":2,"n_rows":104,"n_cols":15,"rows_kept":104,"cut":false,"hidden":false,"merged":[[1,1,2,2],[3,1,3,2],[31,1,31,2],[80,1,80,2],[11,1,13,1],[21,1,21,2],[29,1,29,2],[89,1,89,2],[91,1,91,2],[93,1,93,2],[57,1,57,2],[59,1,59,2],[99,1,99,2],[94,3,94,4],[95,3,95,4],[103,1,103,2],[101,3,101,4],[96,3,96,4],[101,1,101,2],[99,3,99,6],[97,3,97,4],[79,8,79,14],[34,8,34,9],[44,8,46,14],[27,9,28,11],[103,3,103,6],[96,5,96,6],[94,5,94,6],[95,5,95,6],[81,8,91,14],[101,5,101,6],[41,5,41,6],[59,3,59,4],[97,5,97,6],[93,8,103,14],[91,3,91,4],[91,5,91,6],[1,8,2,14],[3,12,3,14],[5,12,5,14],[70,1,70,2],[15,12,15,14],[16,12,16,14],[33,9,33,10],[59,5,59,6],[41,3,41,4],[22,12,22,14],[37,9,37,10],[41,1,41,2],[50,1,50,2],[1,3,2,4],[1,5,2,6],[31,3,31,4],[31,5,31,6],[17,12,17,14],[37,11,37,12],[39,8,42,14],[6,12,6,14],[7,12,7,14],[8,12,8,14],[36,11,36,12],[14,12,14,14],[27,12,27,14],[17,9,18,11],[22,9,23,11],[35,9,35,10],[35,11,35,12],[36,9,36,10]]}
[]
[null,"AOP Frontal ODB Test",null,"Driver",null,"Passenger",null,null,"CMM Measurement"]
[]
[null,{"$f":"GENERAL!C11","v":0},null,"Value","Points","Value","Points",null,"Location","Pre","Post","Value","Additional Notes"]
[null,"HEAD",null,null,null,null,null,null,"Steering Wheel** "]
[null,null,"Steering Wheel Airbag Present? ","Yes",null,null,null,null,"Fore/aft (x)",1794.231,1775.9179999999999,{"$f":"K6-J6","v":-18.313000000000102}]
[null,null,"Peak Resultant Acceleration - g",42.33,{"$f":"IF(D6=\"Yes\",IF(D7<80,4,\"\"),\"\")","v":4},38.47,{"$f":"IF(D6=\"Yes\",IF(F7<80,4,\"\"),\"\")","v":4},null,"Lateral (y)",337.959,341.53800000000001,{"$f":"(K7-J7)*-1","v":-3.5790000000000077}]
[null,null,"HIC15",500,{"$f":"IF(D6=\"Yes\",IF(D7<80,\"\",ROUND(Sliding_Scale(D8,500,700,4,0),Round)),\"\")","v":""},120.56,{"$f":"IF(D6=\"Yes\",IF(F7<80,\"\",ROUND(Sliding_Scale(F8,500,700,4,0),Round)),\"\")","v":""},null,"Vertical (z)",1727.6659999999999,1743.5930000000001,{"$f":"K8-J8","v":15.927000000000135}]
[null,null,"Resultant Acc. 3 msec exeedence - g",37.71,{"$f":"IF(D6=\"Yes\",IF(D7<80,\"\",ROUND(Sliding_Scale(D9,72,80,4,0),Round)),\"\")","v":""},37.6,{"$f":"IF(D6=\"Yes\",IF(F7<80,\"\",ROUND(Sliding_Scale(F9,72,80,4,0),Round)),\"\")","v":""},null,"A-Pillar ",null,null,null,"100mm below the lowest level"]
[null,null,"HIC15",null,{"$f":"IF(D6=\"No\",IF(D10<700,2,0),\"\")","v":""}]
[null,null,"Resultant Acc. 3 msec exceedence - g",null,{"$f":"IF(D6=\"No\",IF(D11<80,2,0),\"\")","v":""}]
[null,"ECE R12","Peak resultant acceleration - g",null,{"$f":"IF(MIN(E10:E11)=2,ROUND(Sliding_Scale(D12,80,120,2,0),Round),\"\")","v":""},null,{"$f":"IF(D6=\"No\",IF(F12<80,4,\"\"),\"\")","v":""}]
[null,null,"HIC15",null,{"$f":"IF(MIN(E10:E11)=2,IF(D13<=1000,2,0),\"\")","v":""},null,{"$f":"IF(D6=\"No\",IF(F12<80,\"\",ROUND(Sliding_Scale(F13,500,700,4,0),Round)),\"\")","v":""}]
[null,null,"Resultant Acc. 3 msec exceedence - g",null,{"$f":"IF(MIN(E10:E11)=2,ROUND(Sliding_Scale(D14,65,80,2,0),Round),\"\")","v":""},null,{"$f":"IF(D6=\"No\",IF(F12<80,\"\",ROUND(Sliding_Scale(F14,72,80,4,0),Round)),\"\")","v":""},null,null,null,null,null,"o"]
[null,null,"Unstable Contact on the Airbag Modifier (-1)",0,{"$f":"D15","v":0},0,{"$f":"F15","v":0},null,"Fore/aft (x)",1499.635,1504.2090000000001,{"$f":"K15-J15","v":4.5740000000000691},"of the side window aperture"]
[null,null,"Hazardous Airbag Deployment Modifier (-1)",0,{"$f":"D16","v":0},0,{"$f":"F16","v":0},null,"Lateral (y)",722.81799999999998,724.50699999999995,{"$f":"(K16-J16)*-1","v":-1.6889999999999645}]
[null,null,"Incorrect Airbag Deployment Modifier (-1)",0,{"$f":"D17","v":0},0,{"$f":"F17","v":0},null,"Vertical (z)",1723.0550000000001,1734.7,{"$f":"K17-J17","v":11.644999999999982}]
[null,null,"Steering Wheel Displacement (-1) mm",null,{"$f":"MIN(ROUND(Modifier_Sliding_Scale(D19,90,110,-1,0),Round),ROUND(Modifier_Sliding_Scale(D20,72,88,-1,0),Round),ROUND(Modifier_Sliding_Scale(ABS(D21),72,88,-1,0),Round))","v":0},null,null,null,"Accelerator Pedal**",null,null,null,"Pedal Blocking*"]
[null,null,"Fore/aft Displacement - mm",{"$f":"L6","v":-18.313000000000102},{"$f":"IF(D19>0,\"rearward\",IF(D19<0,\"forward\",\"\"))","v":"forward"},null,null,null,null,null,null,null,"After 200N","Value","Value"]
[null,null,"Vertical Displacement - mm",{"$f":"L8","v":15.927000000000135},{"$f":"IF(D20>0,\"upward\",IF(D20<0,\"downward\",\"\"))","v":"upward"},null,null,null,"Fore/aft (x)",1415.1010000000001,1447.2090000000001,{"$f":"K20-J20","v":32.107999999999947},1387.1890000000001,{"$f":"K20-M20","v":60.019999999999982},{"$f":"IF(N20<25,L20-N20,0)","v":0}]
[null,null,"Lateral Displacement - mm",{"$f":"L7","v":-3.5790000000000077},{"$f":"IF(D21>0,\"left\",IF(D21<0,\"right\",\"\"))","v":"right"},null,null,null,"Lateral (y)",487.30700000000002,478.76600000000002,{"$f":"(K21-J21)*-1","v":8.5409999999999968},484.4]
[null,"Head assessment",null,null,{"$f":"MAX(IF(D6=\"Yes\",MIN(E7:E9)+SUM(E15:E18),IF(D6=\"No\",MIN(E10:E14)+SUM(E15:E18),0)))","v":4},null,{"$f":"MAX(IF(D6=\"Yes\",MIN(G7:G9)+SUM(G15:G17),IF(D6=\"No\",MIN(G11:G14)+SUM(G15:G17),0)))","v":4},null,"Vertical (z)",1217.2270000000001,1207.5360000000001,{"$f":"K22-J22","v":-9.6910000000000309},1179.4549999999999]
[null,null,null,null,null,null,null,null,"Brake Pedal**",null,null,null,"Pedal Blocking*"]
[null,"NECK",null,null,null,null,null,null,null,null,null,null,"After 200N","Value","Value"]
[null,null,"Shear level exceeded - kN",0.45,{"$f":"ROUND(Sliding_Scale(D25,IF(D26<25,1.9-0.7*(D26/25),(IF(D26<35,1.2,IF(D26<45,1.2-0.1*(D26-35)/10,1.1)))),IF(D26<25,3.1-1.6*(D26/25),(IF(D26<35,1.5,IF(D26<45,1.5-0.4*(D26-35)/10,1.10000000000001)))),4,0),Round)","v":4},0.89,{"$f":"ROUND(Sliding_Scale(F25,IF(F26<25,1.9-0.7*(F26/25),(IF(F26<35,1.2,IF(F26<45,1.2-0.1*(F26-35)/10,1.1)))),IF(F26<25,3.1-1.6*(F26/25),(IF(F26<35,1.5,IF(F26<45,1.5-0.4*(F26-35)/10,1.10000000000001)))),4,0),Round)","v":4},null,"Fore/aft (x)",1420.9780000000001,1434.6510000000001,{"$f":"K25-J25","v":13.673000000000002},1387.1890000000001,{"$f":"K25-M25","v":47.461999999999989},{"$f":"IF(N25<25,L25-N25,0)","v":0}]
[null,null,"duration of exceedence - ms",0,null,0,null,null,"Lateral (y)",359.053,379.392,{"$f":"(K26-J26)*-1","v":-20.338999999999999},484.4]
[null,null,"Tension level exceeded - kN",1.1599999999999999,{"$f":"ROUND(Sliding_Scale(D27,IF(D28<35,2.7-0.4*(D28/35),(IF(D28<60,2.3-1.2*(D28-35)/25,1.1))),IF(D28<35,3.3-0.4*(D28/35),(IF(D28<60,2.9-1.8*(D28-35)/25,1.10000000000001))),4,0),Round)","v":4},1.44,{"$f":"ROUND(Sliding_Scale(F27,IF(F28<35,2.7-0.4*(F28/35),(IF(F28<60,2.3-1.2*(F28-35)/25,1.1))),IF(F28<35,3.3-0.4*(F28/35),(IF(F28<60,2.9-1.8*(F28-35)/25,1.10000000000001))),4,0),Round)","v":4},null,"Vertical (z)",1236.5930000000001,1206.116,{"$f":"K27-J27","v":-30.477000000000089},1179.4549999999999]
[null,null,"duration of exceedence - ms",0,null,0,null,null,"Clutch Pedal**",null,null,null,"Pedal Blocking*"]
[null,null,"Extension - Nm",8.6999999999999993,{"$f":"ROUND(Sliding_Scale(D29,42,57,4,0),Round)","v":4},7.89,{"$f":"ROUND(Sliding_Scale(F29,42,57,4,0),Round)","v":4},null,"NOT APPLICABLE",null,null,null,"After 200N","Value","Value"]
[null,"Neck assessment",null,null,{"$f":"MIN(E25,E27,E29)","v":4},null,{"$f":"MIN(G25,G27,G29)","v":4},null,"Fore/aft (x)",null,null,{"$f":"K30-J30","v":0},null,{"$f":"K30-M30","v":0},{"$f":"IF(N30<25,L30-N30,0)","v":0}]
[null,null,null,null,null,null,null,null,"Lateral (y)",null,null,{"$f":"(K31-J31)*-1","v":0}]
[null,"Head and Neck assessment",null,{"$f":"MIN(E22,E30)","v":4},null,{"$f":"MIN(G22,G30)","v":4},null,null,"Vertical (z)",null,null,{"$f":"K32-J32","v":0}]
[]
[null,"CHEST",null,null,null,null,null,null,"Test Laboratory:","JARI"]
[null,null,"Compression - mm",20.010000000000002,{"$f":"ROUND(Sliding_Scale(D35,22,42,4,0),Round)","v":4},27.16,{"$f":"ROUND(Sliding_Scale(F35,22,42,4,0),Round)","v":2.968},null,"CMM Sign Convention:"]
[null,null,"Viscous criterion - m/s",0.05,{"$f":"ROUND(Sliding_Scale(D36,0.5,1,4,0),Round)","v":4},0.5,{"$f":"ROUND(Sliding_Scale(F36,0.5,1,4,0),Round)","v":4},null,"Fore/aft (x)","Rearward +ve",null,"Forward -ve"]
[null,null,"Shoulder Belt Load - kN",5.96,{"$f":"IF(D37>6,-2,0)","v":0},6,{"$f":"IF(F37>6,-2,0)","v":0},null,"Lateral (y)","Left -ve",null,"Right +ve"]
[null,null,"Restraint System Integrity (-1)",0,{"$f":"D38","v":0},0,{"$f":"F38","v":0},null,"Vertical (z)","Up +ve",null,"Down -ve"]
[null,null,"Obvious Direct Loading of the Chest (-1) ",0,{"$f":"D39","v":0}]
[null,null,"A-Pillar Displacement (-2) mm",{"$f":"L15","v":4.5740000000000691},{"$f":"ROUND(Modifier_Sliding_Scale(D40,100,200,-2,0),Round)","v":0},null,null,null,"* A pedal is blocked when the forward movement of the intruded pedal under a load of 200N is less than 25mm. Between 50mm and 175mm of rearward displacement, the penalty is calculated using a sliding scale between 0 to 1 point."]
[null,null,"Integrity of Passenger Compartment (-1)",0,{"$f":"D41","v":0}]
[null,"Chest assessment",null,{"$f":"MAX(MIN(E35:E36)+SUM(E37:E41),0)","v":4},null,{"$f":"MAX(MIN(G35:G36)+SUM(G37:G41),0)","v":2.968}]
[]
[null,"KNEE, FEMUR and PELVIS"]
[null,null,"Left Knee Slide - mm",0.03,{"$f":"ROUND(Sliding_Scale(D45,6,15,4,0),Round)","v":4},0.2,{"$f":"ROUND(Sliding_Scale(F45,6,15,4,0),Round)","v":4},null,"**Manufacturer should advise prior to crash test if the steering wheel column and/or any pedal (accelerator/brake/clutch) is designed to breakway under load."]
[null,null,"Left Femur Compression level exceeded - kN",0.23,{"$f":"ROUND(Sliding_Scale(D46,3.8,IF(D47<11,9.07-1.51*D47/10,7.56),4,0),Round)","v":4},0.05,{"$f":"ROUND(Sliding_Scale(F46,3.8,IF(F47<11,9.07-1.51*F47/10,7.56),4,0),Round)","v":4}]
[null,null,"duration of exceedence - ms",0,null,0]
[null,null,"Variable Contact (-1) ",0,{"$f":"D48","v":0},0,{"$f":"F48","v":0}]
[null,null,"Concentrated Loading (-1) ",0,{"$f":"D49","v":0},0,{"$f":"F49","v":0}]
[null,null,"Incorrect Airbag Deployment Modifier (-1)",0,{"$f":"D50","v":0},0,{"$f":"F50","v":0}]
[null,"Left Knee, Femur and Pelvis assessment",null,null,{"$f":"MAX(MIN(E45:E46)+SUM(E48:E50),0)","v":4},null,{"$f":"MAX(MIN(G45:G46)+SUM(G48:G50),0)","v":4}]
[null,null,"Right Knee Slide - mm",1.46,{"$f":"ROUND(Sliding_Scale(D52,6,15,4,0),Round)","v":4},0.27,{"$f":"ROUND(Sliding_Scale(F52,6,15,4,0),Round)","v":4}]
[null,null,"Right Femur Compression level exceeded - kN",0.02,{"$f":"ROUND(Sliding_Scale(D53,3.8,IF(D54<11,9.07-1.51*D54/10,7.56),4,0),Round)","v":4},0.12,{"$f":"ROUND(Sliding_Scale(F53,3.8,IF(F54<11,9.07-1.51*F54/10,7.56),4,0),Round)","v":4}]
[null,null,"duration of exceedence - ms",0,null,0]
[null,null,"Variable Contact (-1) ",0,{"$f":"D55","v":0},0,{"$f":"F55","v":0}]
[null,null,"Concentrated Loading (-1) ",0,{"$f":"D56","v":0},0,{"$f":"F56","v":0}]
[null,null,"Incorrect Airbag Deployment Modifier (-1)",0,{"$f":"D57","v":0},0,{"$f":"F57","v":0}]
[null,"Right Knee, Femur and Pelvis assessment",null,null,{"$f":"MAX(MIN(E52:E53)+SUM(E55:E57),0)","v":4},null,{"$f":"MAX(MIN(G52:G53)+SUM(G55:G57),0)","v":4}]
[]
[null,"Knee, Femur and Pelvis assessment",null,{"$f":"MIN(E51,E58)","v":4},null,{"$f":"MIN(G51,G58)","v":4}]
[]
[null,"LOWER LEG"]
[null,null,"Left Upper Compression - kN",1.31,{"$f":"ROUND(Sliding_Scale(D63,2,8,4,0),Round)","v":4},1.56,{"$f":"ROUND(Sliding_Scale(F63,2,8,4,0),Round)","v":4}]
[null,null,"Left Lower Compression - kN",1.72,{"$f":"ROUND(Sliding_Scale(D64,2,8,4,0),Round)","v":4},0.95,{"$f":"ROUND(Sliding_Scale(F64,2,8,4,0),Round)","v":4}]
[null,null,"Left Upper Tibia Index ",0.4,{"$f":"ROUND(Sliding_Scale(D65,0.4,1.3,4,0),Round)","v":4},0.6,{"$f":"ROUND(Sliding_Scale(F65,0.4,1.3,4,0),Round)","v":3.1110000000000002}]
[null,null,"Left Lower Tibia Index",0.22,{"$f":"ROUND(Sliding_Scale(D66,0.4,1.3,4,0),Round)","v":4},0.4,{"$f":"ROUND(Sliding_Scale(F66,0.4,1.3,4,0),Round)","v":4}]
[null,null,"Maximum Pedal Vertical Displacement - mm",{"$f":"MAX(D68:D70)","v":0},{"$f":"MIN(ROUND(Modifier_Sliding_Scale(D68,72,88,-1,0),Round),ROUND(Modifier_Sliding_Scale(D69,72,88,-1,0),Round),ROUND(Modifier_Sliding_Scale(D70,72,88,-1,0),Round))","v":0}]
[null,null,"Accel Vertical Displacement - mm",{"$f":"L22","v":-9.6910000000000309},{"$f":"IF(D68>0,\"upward\",IF(D68<0,\"downward\",\"\"))","v":"downward"},"Brake"]
[null,null,"Brake Vertical Displacement - mm",{"$f":"L27","v":-30.477000000000089},{"$f":"IF(D69>0,\"upward\",IF(D69<0,\"downward\",\"\"))","v":"downward"},"Clutch"]
[null,null,"Clutch Vertical Displacement - mm",{"$f":"L32","v":0},{"$f":"IF(D70>0,\"upward\",IF(D70<0,\"downward\",\"\"))","v":""},"Accelerator"]
[null,"Left Lower Leg assessment",null,null,{"$f":"MAX(MIN(E63:E66)+E67,0)","v":4},null,{"$f":"MIN(G63:G66)","v":3.1110000000000002}]
[]
[null,null,"Right Upper Compression - kN",1.65,{"$f":"ROUND(Sliding_Scale(D73,2,8,4,0),Round)","v":4},1.01,{"$f":"ROUND(Sliding_Scale(F73,2,8,4,0),Round)","v":4}]
[null,null,"Right Lower Compression - kN",2.04,{"$f":"ROUND(Sliding_Scale(D74,2,8,4,0),Round)","v":3.9729999999999999},1.43,{"$f":"ROUND(Sliding_Scale(F74,2,8,4,0),Round)","v":4}]
[null,null,"Right Upper Tibia Index ",0.36,{"$f":"ROUND(Sliding_Scale(D75,0.4,1.3,4,0),Round)","v":4},0.23,{"$f":"ROUND(Sliding_Scale(F75,0.4,1.3,4,0),Round)","v":4}]
[null,null,"Right Lower Tibia Index",0.22,{"$f":"ROUND(Sliding_Scale(D76,0.4,1.3,4,0),Round)","v":4},0.38,{"$f":"ROUND(Sliding_Scale(F76,0.4,1.3,4,0),Round)","v":4}]
[null,null,"Maximum Pedal Vertical Displacement - mm",{"$f":"MAX(D78:D80)","v":0},{"$f":"MIN(ROUND(Modifier_Sliding_Scale(D78,72,88,-1,0),Round),ROUND(Modifier_Sliding_Scale(D79,72,88,-1,0),Round),ROUND(Modifier_Sliding_Scale(D80,72,88,-1,0),Round))","v":0}]
[null,null,"Accel Vertical Displacement - mm",{"$f":"L22","v":-9.6910000000000309},{"$f":"IF(D78>0,\"upward\",IF(D78<0,\"downward\",\"\"))","v":"downward"}]
[null,null,"Brake Vertical Displacement - mm",{"$f":"L27","v":-30.477000000000089},{"$f":"IF(D79>0,\"upward\",IF(D79<0,\"downward\",\"\"))","v":"downward"}]
[null,null,"Clutch Vertical Displacement - mm",{"$f":"L32","v":0},{"$f":"IF(D80>0,\"upward\",IF(D80<0,\"downward\",\"\"))","v":""}]
[null,"Right Lower Leg assessment",null,null,{"$f":"MAX(MIN(E73:E76)+E77,0)","v":3.9729999999999999},null,{"$f":"MIN(G73:G76)","v":4}]
[]
[null,"FOOT and ANKLE"]
[null,null,"Maximum Pedal Horizontal Displacement - mm",{"$f":"MAX(D85:D87)","v":32.107999999999947},{"$f":"MIN(ROUND(Sliding_Scale(D85,100,200,4,0),Round),ROUND(Sliding_Scale(D86,100,200,4,0),Round),ROUND(Sliding_Scale(D87,100,200,4,0),Round))","v":4}]
[null,null,"Accel Horizontal Displacement - mm",{"$f":"L20","v":32.107999999999947},{"$f":"IF(D85>0,\"rearward\",IF(D85<0,\"forward\",\"\"))","v":"rearward"},"Brake"]
[null,null,"Brake Horizontal Displacement - mm",{"$f":"L25","v":13.673000000000002},{"$f":"IF(D86>0,\"rearward\",IF(D86<0,\"forward\",\"\"))","v":"rearward"},"Clutch"]
[null,null,"Clutch Horizontal Displacement - mm",{"$f":"L30","v":0},{"$f":"IF(D87>0,\"rearward\",IF(D87<0,\"forward\",\"\"))","v":""},"Accelerator"]
[null,null,"Footwell Rupture (-1)",0,{"$f":"D88","v":0}]
[null,null,"Pedal Blocking (-1)",{"$f":"MAX(O20,O25,O30)","v":0},{"$f":"ROUND(Sliding_Scale(D89,50,175,0,-1),Round)","v":0}]
[null,"Foot and Ankle assessment",null,null,{"$f":"MAX(E84+E88+E89,0)","v":4}]
[]
[null,"Lower Leg, Foot and Ankle assessment",null,{"$f":"MIN(E71,E81,E90)","v":3.9729999999999999},null,{"$f":"MIN(G71,G81)","v":3.1110000000000002}]
[]
[null,"SUMMARY "]
[null,null,"Head and Neck Assessment",{"$f":"D32","v":4},null,{"$f":"F32","v":4}]
[null,null,"Chest Assessment",{"$f":"D42","v":4},null,{"$f":"F42","v":2.968}]
[null,null,"Knee, Femur and Pelvis Assessment",{"$f":"D60","v":4},null,{"$f":"F60","v":4}]
[null,null,"Lower Leg, Foot and Ankle Assessment",{"$f":"D92","v":3.9729999999999999},null,{"$f":"F92","v":3.1110000000000002}]
[]
[null,"Door Opening",null,0]
[]
[null,"TOTAL",null,{"$f":"SUM(D95:E98)","v":15.972999999999999},null,{"$f":"SUM(F95:G98)","v":14.079000000000001}]
[]
[null,"TOTAL FRONTAL ODB",null,{"$f":"MAX(IF(OR(E7=0,E8=0,E9=0,G7=0,G8=0,G9=0,E25=0,E27=0,E29=0,G25=0,G27=0,G29=0,E35=0,E36=0,G35=0,G36=0),0,MIN(D95,F95)+MIN(D96,F96)+MIN(D97,F97)+MIN(D98,F98)+D100),0)","v":14.079000000000001}]

{"sheet":"AOP Side MDB ","index":3,"n_rows":101,"n_cols":5,"rows_kept":101,"cut":false,"hidden":false,"merged":[[46,3,46,4],[47,3,47,4],[42,1,42,2],[42,3,42,4],[37,1,37,2],[37,3,37,4],[44,1,44,2],[45,3,45,4],[59,1,59,4],[48,3,48,4],[51,1,51,2],[51,3,51,4],[53,1,53,2],[53,3,53,4],[49,1,49,2],[49,3,49,4],[55,1,55,2],[55,3,55,4],[18,1,18,2],[26,1,26,2],[26,3,26,4],[32,1,32,2],[32,3,32,4],[1,1,2,2],[1,3,2,4],[3,1,3,2],[9,1,9,2],[9,3,9,4]]}
[]
[null,"Side MDB Test",null,"Driver"]
[]
[null,{"$f":"GENERAL!C11","v":0},null,"Value","Points"]
[null,"HEAD"]
[null,null,"Peak resultant acceleration - g",2]
[null,null,"HIC15",3,{"$f":"ROUND(Sliding_Scale(D7,500,700,4,0),Round)","v":4}]
[null,null,"Resultant Acc. 3 msec exeedence - g",3,{"$f":"ROUND(Sliding_Scale(D8,72,80,4,0),Round)","v":4}]
[null,null,"Incorrect airbag deployment modifier (-1)",-1,{"$f":"D9","v":-1}]
[null,"Head assessment",null,{"$f":"MAX(MIN(E7:E8)+E9,0)","v":3}]
[]
[null,"CHEST"]
[]
[null,null,"Lateral compression - mm"]
[]
[null,null,"Top ",20,{"$f":"ROUND(Sliding_Scale(D16,28,50,4,0),Round)","v":4}]
[null,null,"Middle ",21,{"$f":"ROUND(Sliding_Scale(D17,28,50,4,0),Round)","v":4}]
[null,null,"Bottom",2,{"$f":"ROUND(Sliding_Scale(D18,28,50,4,0),Round)","v":4}]
[null,"Chest rib assessment",null,null,{"$f":"MIN(E16:E18)","v":4}]
[null,null,"Shoulder Force modifier (-4)",null,{"$f":"IF(D21>=3,-4,0)","v":0}]
[null,null,"Shoulder Fy - kN",2.9]
[null,null,"Viscous Criterion modifier (-4)",null,{"$f":"IF(OR(D23>=1,D24>=1,D25>=1),-4,0)","v":0}]
[null,null," Top rib Viscous Criterion - m/s",0.9]
[null,null,"Middle rib Viscous Criterion - m/s",0.9]
[null,null,"Bottom rib Viscous Criterion - m/s",0.9]
[null,null,"Incorrect airbag deployment modifier (-1)",-1,{"$f":"D26","v":-1}]
[null,"Chest assessment",null,{"$f":"MAX(MIN(E16:E18)+SUM(E20,E22,E26),0)","v":3}]
[]
[null,"ABDOMEN"]
[null,null,"Lateral compression - mm"]
[null,null,"Top",2,{"$f":"ROUND(Sliding_Scale(D31,47,65,4,0),Round)","v":4}]
[null,null,"Bottom",2,{"$f":"ROUND(Sliding_Scale(D32,47,65,4,0),Round)","v":4}]
[null,"Abdomen rib assessment",null,{"$f":"MIN(E31:E32)","v":4}]
[null,null,"Viscous Criterion modifier (-4)",null,{"$f":"IF(OR(D35>=1,D36>=1),-4,0)","v":0}]
[null,null," Top rib Viscous Criterion - m/s",0.2]
[null,null,"Bottom rib Viscous Criterion - m/s",0.2]
[null,null,"Incorrect airbag deployment modifier (-1)",0,{"$f":"D37","v":0}]
[null,"Abdomen assessment",null,{"$f":"MAX(MIN(E31:E32)+SUM(E34,E37),0)","v":4}]
[]
[null,"PELVIS"]
[null,null,"Pubic Symphysis force - kN",1.2,{"$f":"ROUND(Sliding_Scale(D41,1.7,2.8,4,0),Round)","v":4}]
[null,null,"Incorrect airbag deployment modifier (-1)",0,{"$f":"D42","v":0}]
[null,"Pelvis assessment",null,{"$f":"MAX(E41+E42,0)","v":4}]
[]
[null,"SUMMARY"]
[null,null,"Head assessment",{"$f":"D10","v":3}]
[null,null,"Chest assessment",{"$f":"D27","v":3}]
[null,null,"Abdomen assessment",{"$f":"D38","v":4}]
[null,null,"Pelvis assessment",{"$f":"D43","v":4}]
[null,"DUMMY SCORE",null,{"$f":"SUM(D46:E49)","v":14}]
[]
[null,"Door Opening",null,0]
[]
[null,"TOTAL",null,{"$f":"SUM(D46:E49,D52)","v":14}]
[]
[null,"TOTAL SIDE MDB",null,{"$f":"ROUND(IF(OR(E7=0,E8=0,E16=0,E17=0,E18=0,E31=0,E32=0,E41=0),0,(D50+D52)/16*8),Round)","v":7}]
[]
[]
[]
[null,"LOADCELL DATA"]
[null,"Back Plate kN"]
[null,"Fx","Max"]
[null,null,"Min"]
[null,"Fy","Max"]
[null,null,"Min"]
[null,"Back Plate Nm"]
[null,"My","Max"]
[null,null,"Min"]
[null,"Mz","Max"]
[null,null,"Min"]
[null,"Spine kN"]
[null,"Fx","Max"]
[null,null,"Min"]
[null,"Fy","Max"]
[null,null,"Min"]
[null,"Spine Nm"]
[null,"Mx","Max"]
[null,null,"Min"]
[null,"My","Max"]
[null,null,"Min"]
[null,"Shoulder kN"]
[null,"Fx","Max"]
[null,null,"Min"]
[null,"Fy","Max"]
[null,null,"Min"]
[null,"Fz","Max"]
[null,null,"Min"]
[null,"Femur kN (struck side)"]
[null,"Fx","Max"]
[null,null,"Min"]
[null,"Fy","Max"]
[null,null,"Min"]
[null,"Fz","Max"]
[null,null,"Min"]
[null,"Femur Nm (struck side)"]
[null,"Mx","Max"]
[null,null,"Min"]
[null,"My","Max"]
[null,null,"Min"]
[null,"Mz","Max"]
[null,null,"Min"]

{"sheet":"AOP HPT","index":4,"n_rows":20,"n_cols":7,"rows_kept":20,"cut":false,"hidden":false,"merged":[[1,1,1,6],[3,1,3,2],[4,6,13,6],[15,3,15,5],[16,1,16,2],[16,3,16,5],[17,1,17,2],[17,3,17,5],[18,1,18,2],[18,3,18,5],[19,1,19,2],[19,3,19,5]]}
[]
[null,"Fitment Rating System for Head Protection Technology"]
[]
[null,"COUNTRY",null,"FITMENT TYPE","α x CS","CS","CTFS"]
[null,"Brunei",null,null,{"$f":"IF(AND(C5=\"Yes\",D5=\"Option A\"),F5*1,IF(AND(C5=\"Yes\",D5=\"Option B\"),F5*0.5,IF(AND(C5=\"Yes\",D5=\"Option C\"),0,0)))","v":0},{"$f":"IF(C5=\"Yes\",2,0)","v":0},{"$f":"(SUM(E5:E14)/SUM(F5:F14))*G15","v":8}]
[null,"Singapore",null,null,{"$f":"IF(AND(C6=\"Yes\",D6=\"Option A\"),F6*1,IF(AND(C6=\"Yes\",D6=\"Option B\"),F6*0.5,IF(AND(C6=\"Yes\",D6=\"Option C\"),0,0)))","v":0},{"$f":"IF(C6=\"Yes\",2,0)","v":0}]
[null,"Malaysia","Yes","Option A",3,{"$f":"IF(C7=\"Yes\",3,0)","v":3}]
[null,"Thailand",null,null,0,{"$f":"IF(C8=\"Yes\",3,0)","v":0}]
[null,"Indonesia",null,null,0,{"$f":"IF(C9=\"Yes\",3,0)","v":0}]
[null,"The Philippines",null,null,0,{"$f":"IF(C10=\"Yes\",2,0)","v":0}]
[null,"Vietnam",null,null,0,{"$f":"IF(C11=\"Yes\",2,0)","v":0}]
[null,"Laos",null,null,0,{"$f":"IF(C12=\"Yes\",1,0)","v":0}]
[null,"Cambodia",null,null,0,{"$f":"IF(C13=\"Yes\",1,0)","v":0}]
[null,"Myanmar",null,null,0,{"$f":"IF(C14=\"Yes\",1,0)","v":0}]
[null,null,null,null,null,"TFS",8]
[null,null,null,"Pre-Requisite UN R135 staring 2023"]
[null,"Fitment Type",null,"Details",null,null,"Fitment Rating Score, α"]
[null,"Option A",null,"Vehicle model is equipped with HPT as standard equipment",null,null,1]
[null,"Option B",null,"Vehicle model is equipped with HPT as optional equipment",null,null,0.5]
[null,"Option C",null,"Vehicle model is not equipped with HPT",null,null,0]

{"sheet":"COP Dynamic ","index":5,"n_rows":132,"n_cols":7,"rows_kept":132,"cut":false,"hidden":false,"merged":[[1,1,2,2],[1,3,2,4],[1,5,2,6],[3,1,3,2],[4,3,4,4],[4,5,4,6],[5,3,5,4],[5,5,5,6],[6,3,6,4],[6,5,6,6],[7,3,7,4],[7,5,7,6],[8,3,8,4],[8,5,8,6],[9,3,9,4],[9,5,9,6],[10,3,10,4],[10,5,10,6],[11,3,11,4],[11,5,11,6],[13,3,13,4],[13,5,13,6],[14,3,14,4],[14,5,14,6],[15,3,15,4],[15,5,15,6],[16,3,16,4],[16,5,16,6],[17,3,17,4],[17,5,17,6],[36,1,36,2],[18,3,18,4],[18,5,18,6],[23,1,23,2],[24,3,24,4],[24,5,24,6],[25,3,25,4],[25,5,25,6],[29,1,29,2],[30,3,30,4],[30,5,30,6],[31,3,31,4],[31,5,31,6],[47,3,47,4],[47,5,47,6],[37,1,37,2],[37,3,37,4],[37,5,37,6],[39,3,39,4],[39,5,39,6],[40,3,40,4],[40,5,40,6],[41,3,41,4],[41,5,41,6],[42,3,42,4],[42,5,42,6],[46,1,46,2],[48,3,48,4],[48,5,48,6],[50,3,50,4],[50,5,50,6],[52,1,52,2],[52,3,52,4],[52,5,52,6],[60,1,60,2],[60,3,60,6],[66,1,66,2],[54,1,54,2],[55,3,55,4],[55,5,55,6],[56,3,56,4],[56,5,56,6],[58,1,58,2],[58,3,58,4],[58,5,58,6],[61,1,61,2],[61,3,61,6]]}
[]
[null,"Child Occupant Protection",null,"Q6",null,"Q10"]
[]
[null,null,null,"Value","Points","Value","Points"]
[null,"CRS DETAILS"]
[null,null,"Child restraint"]
[null,null,"CRS make and model"]
[null,null,"Installation method","ISOFIX"]
[null,null,"Type of CRS","Highback booster",null,"Highback booster"]
[null,null,"Approved under UN ECE","R129.03",null,"R129.03"]
[null,null,"Available to the general public at dealers","Yes",null,"Yes"]
[null,null,"Recommended by vehicle manufacturer","No",null,"No"]
[]
[null,"FRONTAL"]
[null,null,"Dummy restrained throughout impact?"]
[null,null,"Belt slipping of shoulder?","No",null,"No"]
[null,null,"Submarining or upward movement in rebound?","No",null,"No"]
[null,null,"CRS anchorage to vehicle failure?","No",null,"No"]
[null,null,"Head"]
[null,null,"Evidence of hard contact","Yes",null,"Yes"]
[null,null,"HIC15",300,{"$f":"IF(AND(D21<700,D20=\"No\"),\"\",ROUND(IF(D21>700,0,IF(D21<500,4,4-4*((500-D21)/(500-700)))),Round))","v":4},300,{"$f":"IF(AND(F21<700,F20=\"No\"),\"\",ROUND(IF(F21>700,0,IF(F21<500,4,4-4*((500-F21)/(500-700)))),Round))","v":4}]
[null,null,"Head Resultant 3msec - g",21,{"$f":"ROUND(IF(D22>80,0,IF(D22<60,4,4-4*((60-D22)/(60-80)))),Round)","v":4},21,{"$f":"ROUND(IF(F22>80,0,IF(F22<60,4,4-4*((60-F22)/(60-80)))),Round)","v":4}]
[null,null,"Head Excursion (-2/-4) - mm",200,{"$f":"IF(D23>=550,-4,0)","v":0},300,{"$f":"IF(F23>=550,-4,IF(F23>=450,-2,0))","v":0}]
[null,"Head assessment",null,null,{"$f":"MAX(MIN(E21:E22)+E23,0)","v":4},null,{"$f":"MAX(MIN(G21:G22)+G23,0)","v":4}]
[]
[null,null,"Upper Neck"]
[null,null,"Belt interaction?","Yes",null,"Yes"]
[null,null,"Tension (Upper neck Fz)",1.7,{"$f":"ROUND(IF(D28>2.62,0,IF(D28<1.7,2,2-2*((1.7-D28)/(1.7-2.62)))),Round)","v":2},1.7,{"$f":"ROUND(IF(F28>2.62,0,IF(F28<1.7,2,2-2*((1.7-F28)/(1.7-2.62)))),Round)","v":2}]
[null,null,"Extension (My)",20,{"$f":"IF(D20=\"Yes\",IF(D29<36,2,0),\"\")","v":2},47,{"$f":"IF(F20=\"Yes\",IF(F29<49,2,0),\"\")","v":2}]
[null,"Upper Neck assessment",null,null,{"$f":"MAX(MIN(E28:E29),0)","v":2},null,{"$f":"MAX(MIN(G28:G29),0)","v":2}]
[]
[null,null,"Chest (T4)"]
[null,null,"Chest Resultant 3msec - g",60,null,40,{"$f":"ROUND(IF(F33>55,0,IF(F33<41,2,2-2*((41-F33)/(41-55)))),Round)","v":2}]
[null,null,"Upper chest deflection  (resultant) - mm",20]
[null,null,"Lower chest deflection  (resultant) - mm",30]
[null,null,"Chest Deflection - mm",20,{"$f":"ROUND(IF(D36>42,0,IF(D36<30,2,2-2*((30-D36)/(30-42)))),Round)","v":2},30,{"$f":"IF(F36>=56,-2,0)","v":0}]
[null,"Chest assessment",null,null,{"$f":"E36","v":2},null,{"$f":"MAX(MIN(SUM(G33:G36)),0)","v":2}]
[null,"Front assessment",null,{"$f":"IF(OR(D16=\"Yes\",D17=\"Yes\",D18=\"Yes\",D21>800,D22>80),0,MAX(SUM(E24,E30,E37)+IF(D16=\"Partial\",-4,0),0))","v":8},null,{"$f":"IF(OR(F16=\"Yes\",F17=\"Yes\",F18=\"Yes\",F21>800,F22>80),0,MAX(SUM(G24,G30,G37)+IF(F16=\"Partial\",-4,0),0))","v":8}]
[]
[null,"SIDE"]
[null,null,"Dummy restrained throughout impact?","Yes",null,"Yes"]
[null,null,"CRS anchorage to vehicle failure?","No",null,"No"]
[null,null,"Head"]
[null,null,"Bottoming out or contact with interior?","Yes",null,"Yes"]
[null,null,"HIC15",500,{"$f":"IF(AND(D45<700,D44=\"No\"),\"\",ROUND(IF(D45>700,0,IF(D45<500,2,2-2*((500-D45)/(500-700)))),Round))","v":2},500,{"$f":"IF(AND(F45<700,D44=\"No\"),\"\",ROUND(IF(F45>700,0,IF(F45<500,2,2-2*((500-F45)/(500-700)))),Round))","v":2}]
[null,null,"Head Resultant 3msec - g",50,{"$f":"ROUND(IF(D46>80,0,IF(D46<60,2,2-2*((60-D46)/(60-80)))),Round)","v":2},50,{"$f":"ROUND(IF(F46>80,0,IF(F46<60,2,2-2*((60-F46)/(60-80)))),Round)","v":2}]
[null,"Head assessment",null,null,{"$f":"MAX(MIN(E45:E46),0)","v":2},null,{"$f":"MAX(MIN(G45:G46),0)","v":2}]
[]
[null,null,"Neck"]
[null,null,"Resultant Force (Upper neck)",2.2000000000000002,{"$f":"IF(D50=\"\",0,IF(D50>=2.4,0,1))","v":1},2.1,{"$f":"IF(F50=\"\",0,IF(F50>=2.2,0,1))","v":1}]
[null,null,"Chest"]
[null,null,"Chest Resultant 3msec - g",67,{"$f":"IF(D52=\"\",0,IF(D52>=67,0,1))","v":0},67,{"$f":"IF(F52=\"\",0,IF(F52>=67,0,1))","v":0}]
[null,"Side assessment",null,{"$f":"IF(OR(D41=\"No\",D42=\"Yes\",D45>800,D46>80),0,SUM(E47,E50,E52))","v":3},null,{"$f":"IF(OR(F41=\"No\",F42=\"Yes\",F45>800,F46>80),0,SUM(G47,G50,G52))","v":3}]
[]
[null,"SUMMARY"]
[null,null,"Front assessment",{"$f":"D38","v":8},null,{"$f":"F38","v":8}]
[null,null,"Side assessment",{"$f":"D53","v":3},null,{"$f":"F53","v":3}]
[]
[null,"TOTAL",null,{"$f":"ROUND(SUM(D56:E57),Round)","v":11},null,{"$f":"ROUND(SUM(F56:G57),Round)","v":11}]
[]
[null,"Total Front Asessment",null,{"$f":"SUM(D56,F56)","v":16}]
[null,"Total Side Asessment",null,{"$f":"SUM(D57,F57)","v":6}]
[]
[]
[]
[]
[null,"DUMMY MEASUREMENTS",null,"Frontal","Side","Frontal","Side"]
[null,"Head"]
[null,"Ax","Max"]
[null,null,"Min"]
[null,"Ay","Max"]
[null,null,"Min"]
[null,"Az","Max"]
[null,null,"Min"]
[null,"Neck"]
[null,"Fx","Max"]
[null,null,"Min"]
[null,"Fy","Max"]
[null,null,"Min"]
[null,"Fz","Max"]
[null,null,"Min"]
[null,"Mx","Max"]
[null,null,"Min"]
[null,"My","Max"]
[null,null,"Min"]
[null,"Mz","Max"]
[null,null,"Min"]
[null,"Shoulder"]
[null,"Fx","Max"]
[null,null,"Min"]
[null,"Fy","Max"]
[null,null,"Min"]
[null,"Fz","Max"]
[null,null,"Min"]
[null,"T1"]
[null,"Ay","Max"]
[null,"Chest"]
[null,"Ax","Max"]
[null,null,"Min"]
[null,"Ay","Max"]
[null,null,"Min"]
[null,"Az","Max"]
[null,null,"Min"]
[null,"Dchest","Max"]
[null,null,"Min"]
[null,"LO","Max"]
[null,null,"Min"]
[null,"UP","Max"]
[null,null,"Min"]
[null,"Lumbar Spine (lower)"]
[null,"Fx","Max"]
[null,null,"Min"]
[null,"Fy","Max"]
[null,null,"Min"]
[null,"Fz","Max"]
[null,null,"Min"]
[null,"Mx","Max"]
[null,null,"Min"]
[null,"My","Max"]
[null,null,"Min"]
[null,"Mz","Max"]
[null,null,"Min"]
[null,"Pelvis-Sacrum"]
[null,"Ax","Max"]
[null,null,"Min"]
[null,"Ay","Max"]
[null,null,"Min"]
[null,"Az","Max"]
[null,null,"Min"]
[null,"Pelvis-Pubis"]
[null,"Fy","Max"]
[null,null,"Min"]

{"sheet":"COP Installation ","index":6,"n_rows":28,"n_cols":19,"rows_kept":28,"cut":false,"hidden":false,"merged":[[4,15,4,18],[5,3,5,5],[6,3,6,5],[1,1,3,7],[1,8,1,14],[1,15,2,18],[2,9,2,11],[2,12,2,14],[22,8,22,18],[7,3,7,5],[8,3,8,5],[9,3,9,5],[10,3,10,5],[11,3,11,5],[12,3,12,5],[13,3,13,5],[14,3,14,5],[15,3,15,5],[16,1,19,1],[22,1,22,7],[4,1,15,1],[4,3,4,5],[23,2,23,7],[23,8,23,18],[24,2,24,7],[24,8,24,18],[27,1,27,7],[27,8,27,18]]}
[]
[null,"CRS Installation Assessment",null,null,null,null,null,null,"Seating Position",null,null,null,null,null,null,"SCORING"]
[null,null,null,null,null,null,null,null,"Front","2nd row",null,null,"3rd row"]
[null,null,null,null,null,null,null,null,"Pass","Left","Centre","Right","Left","Centre","Right","Pass","Fail","Exempt","Score"]
[null,"Reference List","Category","CRS",null,null,"Direction","Interface"]
[null,null,"<85cm","Joie i-Gemm 3",null,null,"Rwd","B _ _ _","Pass","Pass","Pass","Pass","N/A","N/A","N/A",{"$f":"COUNTIF(I6:O6,\"Pass\")","v":4},{"$f":"COUNTIF(I6:O6,\"Fail\")","v":0},{"$f":"COUNTIF(I6:O6,\"Exempt\")","v":0},{"$f":"IF(AND(P6=0,Q6=0),\"Exempt\",(P6/(P6+Q6)))","v":1}]
[null,null,"<85cm","Joie i-Gemm 3 +i-base 2",null,null,"Rwd","_ I L _","Exempt","Pass","Exempt","Pass","N/A","N/A","N/A",{"$f":"COUNTIF(I7:O7,\"Pass\")","v":2},{"$f":"COUNTIF(I7:O7,\"Fail\")","v":0},{"$f":"COUNTIF(I7:O7,\"Exempt\")","v":2},{"$f":"IF(AND(P7=0,Q7=0),\"Exempt\",(P7/(P7+Q7)))","v":1}]
[null,null,"40-105 cm ","Joie Steadi",null,null,"Rwd","B _ _ _","Pass","Pass","Pass","Pass","N/A","N/A","N/A",4,0,0,1]
[null,null,"76-105 cm ","Joie Steadi",null,null,"Fwd","B _ _ _","Pass","Pass","Pass","Pass","N/A","N/A","N/A",4,0,0,1]
[null,null,"76-150 cm","Joie Elevate",null,null,"Fwd","B _ _ _","Pass","Pass","Pass","Pass","N/A","N/A","N/A",4,0,0,1]
[null,null,"40-105 cm ","Nuna Todl Next + base next",null,null,"Rwd / Fwd","_ I L _","Exempt","Pass","Exempt","Pass","N/A","N/A","N/A",2,0,2,1]
[null,null,"40-105 cm ","Recaro Salia 125",null,null,"Rwd / Fwd","_ I L _","Exempt","Pass","Exempt","Pass","N/A","N/A","N/A",2,0,2,{"$f":"IF(AND(P12=0,Q12=0),\"Exempt\",(P12/(P12+Q12)))","v":1}]
[null,null,"40-105 cm","Chicco Seat 3 Fit I-Size Air",null,null,"Rwd / Fwd","_ I L _","Exempt","Pass","Exempt","Pass","N/A","N/A","N/A",2,0,2,{"$f":"IF(AND(P13=0,Q13=0),\"Exempt\",(P13/(P13+Q13)))","v":1}]
[null,null,"40-125 cm ","Joie i-Spin Grow/Multiway",null,null,"Rwd / Fwd","_ I _ S","Exempt","Pass","Exempt","Pass","N/A","N/A","N/A",2,0,2,{"$f":"IF(AND(P14=0,Q14=0),\"Exempt\",(P14/(P14+Q14)))","v":1}]
[null,null,"100-150 cm","Cozy N Safe Augusta i-Size",null,null,"Fwd","B I _ _","Exempt","Pass","Exempt","Pass","N/A","N/A","N/A",2,0,2,1]
[null,null,"100-150 cm","Nuna AACE Lx",null,null,"Fwd","B I _ _","Exempt","Pass","Exempt","Pass","N/A","N/A","N/A",2,0,2,1]
[null,"OEM","<85 cm","XXXX ",null,null,null,null,"Pass","Pass","Exempt","Pass","N/A","N/A","N/A",3,0,1,1]
[null,null,"76 - 105 cm","XXXX ",null,null,null,null,"Pass","Pass","Exempt","Pass","N/A","N/A","N/A",3,0,1,1]
[null,null,"Q 6","XXXX ",null,null,null,null,"Pass","Pass","Exempt","Pass","N/A","N/A","N/A",3,0,1,1]
[null,null,"Q 10","XXXX ",null,null,null,null,"Pass","Pass","Exempt","Pass","N/A","N/A","N/A",3,0,1,1]
[]
[]
[null,"SUMMARY"]
[null,null,"Reference List assessment ( Max 10 points)",null,null,null,null,null,{"$f":"(SUM(S6:S16)/(11-COUNTIF(S6:S16,\"Exempt\")))*10","v":10}]
[null,null,"OEM assessment (Max 2 Points)",null,null,null,null,null,{"$f":"(SUM(S17:S20)/(4-COUNTIF(S17:S20,\"Exempt\")))*2","v":2}]
[]
[]
[null,"TOTAL INSTALLATION ASSESSMENT",null,null,null,null,null,null,{"$f":"SUM(I24:S25)","v":12}]

{"sheet":"COP Vehicle ","index":7,"n_rows":28,"n_cols":5,"rows_kept":28,"cut":false,"hidden":false,"merged":[[1,1,2,2],[1,3,2,4],[3,1,3,2],[27,1,27,2],[27,3,27,4]]}
[]
[null,"Vehicle based assessment"]
[]
[null,null,null,"Value","Points"]
[null,"VEHICLE BASED ASSESSMENT"]
[null,null,"Provision of Three-point Seat Belts  ","Fail",{"$f":"IF(D6 = \"Pass\",1,0)","v":0}]
[]
[null,null,"Gabarit Installation"]
[null,null,"2nd row outboard seats","Fail",{"$f":"IF(D9 = \"Pass\",1,0)","v":0}]
[null,null,"All passenger seats","Fail",{"$f":"IF(D10 = \"Pass\",1,0)","v":0}]
[]
[null,null,"Two Simultaneous Use Seating Positions",null,""]
[null,null,"CRS covering Groups 0 to III","Fail",{"$f":"IF(D13 = \"Pass\",1,0)","v":0}]
[null,null,"i-Size CRS ","Fail",{"$f":"IF(D14 = \"Pass\",1,0)","v":0}]
[]
[null,null,"ISOFIX Usability"]
[null,null,"Two or more ISOFIX and/or i-Size seating positions"]
[null,null,"Presence in the car and approve according to UNE ECE R14","Pass",{"$f":"IF(D18 = \"Pass\",1,0)","v":1}]
[null,null,"Awareness of the  existecence and location of anchorage and top tether","Pass",{"$f":"IF(D19 = \"Pass\",1,0)","v":1}]
[]
[null,null,"Two or more Largest ISOFIX Positions "]
[null,null,"Simultaneous use with ISO/R3","Fail",{"$f":"IF(D22 = \"Pass\",1,0)","v":0}]
[]
[null,null,"Passenger Airbag Warning Marking and Disabling"]
[null,null,"Warning Marking","Fail",{"$f":"IF(D25 = \"Pass\",2,0)","v":0}]
[null,null,"Automatic airbag disabling switch","N/A",{"$f":"IF(D26 = \"Pass\",3,0)","v":0}]
[]
[null,"TOTAL VEHICLE BASED ASSESSMENT",null,{"$f":"(E6+E9+E10+E13+E14+E18+E19+E22+E25+E26)","v":2}]

{"sheet":"COP CPD ","index":8,"n_rows":25,"n_cols":7,"rows_kept":25,"cut":false,"hidden":false,"merged":[[2,1,2,7],[4,1,4,2],[17,1,17,2],[5,6,14,7],[4,6,4,7],[17,3,17,5],[17,6,17,7],[21,1,21,2],[19,6,19,7],[20,6,20,7],[21,6,21,7],[21,3,21,5],[18,1,18,2],[18,6,18,7],[18,3,18,5],[19,3,19,5],[20,3,20,5],[19,1,19,2],[20,1,20,2],[22,3,22,5],[22,6,22,7],[23,6,23,7],[24,6,24,7],[22,1,22,2],[23,1,23,2],[24,1,24,2],[23,3,23,5],[24,3,24,5]]}
[]
[]
[null,"Child Presence Detection"]
[]
[null,"COUNTRY",null,"FITMENT TYPE","α x CS  x CPD Type","CS","CTFS"]
[null,"Brunei","Yes","Option D",{"$f":"IF(AND(C6=\"Yes\",D6=\"Option A\"),F6*1,IF(AND(C6=\"Yes\",D6=\"Option B\"),F6*0.9,IF(AND(C6=\"Yes\",D6=\"Option C\"),F6*0.8,IF(AND(C6=\"Yes\",D6=\"Option D\"),F6*0.6,IF(AND(C6=\"Yes\",D6=\"Option E\"),F6*0.5,IF(AND(C6=\"Yes\",D6=\"Option F\"),F6*0.25,IF(AND(C6=\"Yes\",D6=\"Option G\"),0,0)))))))","v":1.2},{"$f":"IF(C6=\"Yes\",2,0)","v":2},{"$f":"(SUM(E6:E15)/SUM(F6:F15))*G16","v":2.9999999999999991}]
[null,"Singapore","Yes","Option D",{"$f":"IF(AND(C7=\"Yes\",D7=\"Option A\"),F7*1,IF(AND(C7=\"Yes\",D7=\"Option B\"),F7*0.9,IF(AND(C7=\"Yes\",D7=\"Option C\"),F7*0.8,IF(AND(C7=\"Yes\",D7=\"Option D\"),F7*0.6,IF(AND(C7=\"Yes\",D7=\"Option E\"),F7*0.5,IF(AND(C7=\"Yes\",D7=\"Option F\"),F7*0.25,IF(AND(C7=\"Yes\",D7=\"Option G\"),0,0)))))))","v":1.2},{"$f":"IF(C7=\"Yes\",2,0)","v":2}]
[null,"Malaysia","Yes","Option D",1.7999999999999998,{"$f":"IF(C8=\"Yes\",3,0)","v":3}]
[null,"Thailand","Yes","Option D",1.7999999999999998,{"$f":"IF(C9=\"Yes\",3,0)","v":3}]
[null,"Indonesia","Yes","Option D",1.7999999999999998,{"$f":"IF(C10=\"Yes\",3,0)","v":3}]
[null,"The Philippines","Yes","Option D",1.2,{"$f":"IF(C11=\"Yes\",2,0)","v":2}]
[null,"Vietnam","Yes","Option D",1.2,{"$f":"IF(C12=\"Yes\",2,0)","v":2}]
[null,"Laos","Yes","Option D",0.6,{"$f":"IF(C13=\"Yes\",1,0)","v":1}]
[null,"Cambodia","Yes","Option D",0.6,{"$f":"IF(C14=\"Yes\",1,0)","v":1}]
[null,"Myanmar","Yes","Option D",0.6,{"$f":"IF(C15=\"Yes\",1,0)","v":1}]
[null,null,null,null,null,"TFS",5]
[]
[null,"Fitment Type",null,"Details",null,null,"Fitment Rating Score, α"]
[null,"Option A",null,"Vehicle model is equipped with Classification 1 and Classification 2 as standard equipment.",null,null,1]
[null,"Option B",null,"Vehicle model is equipped with Classification 1 and Classification 2 as optional equipment and Alert as optional equipment.",null,null,0.9]
[null,"Option C",null,"Vehicle model is equipped with Classification 2 as standard equipment.",null,null,0.8]
[null,"Option D",null,"Vehicle model is equipped with Classification 2 as optional equipment and Alert as optional equipment.",null,null,0.6]
[null,"Option E",null,"Vehicle model is equipped with Alert as standard equipment.",null,null,0.5]
[null,"Option F",null,"Vehicle model is equipped with Alert as optional equipment.",null,null,0.25]
[null,"Option G",null,"Vehicle model is not equipped with CPD",null,null,0]

{"sheet":"SAT-EBA","index":9,"n_rows":23,"n_cols":7,"rows_kept":23,"cut":false,"hidden":false,"merged":[[21,1,21,2],[21,3,21,5],[21,6,21,7],[22,1,22,2],[22,3,22,5],[22,6,22,7],[19,1,19,2],[19,3,19,5],[19,6,19,7],[20,1,20,2],[20,3,20,5],[20,6,20,7],[17,1,17,2],[17,3,17,5],[17,6,17,7],[18,1,18,2],[18,3,18,5],[18,6,18,7],[16,1,16,2],[16,3,16,5],[16,6,16,7],[1,1,1,7],[3,1,3,2],[3,6,3,7],[4,6,13,7],[14,6,14,7]]}
[]
[null,"Fitment Rating System for Effective Braking and Avoidance"]
[]
[null,"COUNTRY",null,"FITMENT TYPE","α x CS","CS","CTFS"]
[null,"Brunei",null,null,{"$f":"IF(AND(C5=\"Yes\",D5=\"Option A\"),F5*1,IF(AND(C5=\"Yes\",D5=\"Option B\"),F5*0.5,IF(AND(C5=\"Yes\",D5=\"Option C\"),F5*0.375,IF(AND(C5=\"Yes\",D5=\"Option D\"),F5*0.25,IF(AND(C5=\"Yes\",D5=\"Option E\"),F5*0.125,IF(AND(C5=\"Yes\",D5=\"Option F\"),0,0))))))","v":0},{"$f":"IF(C5=\"Yes\",2,0)","v":0},{"$f":"(SUM(E5:E14)/SUM(F5:F14))*G15","v":6}]
[null,"Singapore",null,null,{"$f":"IF(AND(C6=\"Yes\",D6=\"Option A\"),F6*1,IF(AND(C6=\"Yes\",D6=\"Option B\"),F6*0.5,IF(AND(C6=\"Yes\",D6=\"Option C\"),F6*0.375,IF(AND(C6=\"Yes\",D6=\"Option D\"),F6*0.25,IF(AND(C6=\"Yes\",D6=\"Option E\"),F6*0.125,IF(AND(C6=\"Yes\",D6=\"Option F\"),0,0))))))","v":0},{"$f":"IF(C6=\"Yes\",2,0)","v":0}]
[null,"Malaysia","Yes","Option A",{"$f":"IF(AND(C7=\"Yes\",D7=\"Option A\"),F7*1,IF(AND(C7=\"Yes\",D7=\"Option B\"),F7*0.5,IF(AND(C7=\"Yes\",D7=\"Option C\"),F7*0.375,IF(AND(C7=\"Yes\",D7=\"Option D\"),F7*0.25,IF(AND(C7=\"Yes\",D7=\"Option E\"),F7*0.125,IF(AND(C7=\"Yes\",D7=\"Option F\"),0,0))))))","v":3},{"$f":"IF(C7=\"Yes\",3,0)","v":3}]
[null,"Thailand",null,null,0,{"$f":"IF(C8=\"Yes\",3,0)","v":0}]
[null,"Indonesia",null,null,0,{"$f":"IF(C9=\"Yes\",3,0)","v":0}]
[null,"The Philippines",null,null,0,{"$f":"IF(C10=\"Yes\",2,0)","v":0}]
[null,"Vietnam",null,null,0,{"$f":"IF(C11=\"Yes\",2,0)","v":0}]
[null,"Laos",null,null,0,{"$f":"IF(C12=\"Yes\",1,0)","v":0}]
[null,"Cambodia",null,null,0,{"$f":"IF(C13=\"Yes\",1,0)","v":0}]
[null,"Myanmar",null,null,0,{"$f":"IF(C14=\"Yes\",1,0)","v":0}]
[null,null,null,null,null,"TFS",6]
[]
[null,"Fitment Type",null,"Details",null,null,"Fitment Rating Score, α"]
[null,"Option A",null,"Vehicle model is equipped with ESC as standard equipment",null,null,1]
[null,"Option B",null,"Vehicle model is equipped with ESC as optional equipment but ABS as standard equipment",null,null,0.5]
[null,"Option C",null,"Vehicle model is not equipped with ESC but equipped with ABS as standard equipment",null,null,0.375]
[null,"Option D",null,"Vehicle model is equipped with both ESC and ABS as optional equipment",null,null,0.25]
[null,"Option E",null,"Vehicle model is not equipped with ESC but equipped with ABS as optional equpment",null,null,0.125]
[null,"Option F",null,"Vehicle model is not equipped with either ESC or ABS",null,null,0]

{"sheet":"SAT-SBR","index":10,"n_rows":23,"n_cols":7,"rows_kept":23,"cut":false,"hidden":false,"merged":[[21,1,21,2],[21,3,21,5],[21,6,21,7],[22,1,22,2],[22,3,22,5],[22,6,22,7],[19,1,19,2],[19,3,19,5],[19,6,19,7],[20,1,20,2],[20,3,20,5],[20,6,20,7],[17,1,17,2],[17,3,17,5],[17,6,17,7],[18,1,18,2],[18,3,18,5],[18,6,18,7],[16,1,16,2],[16,3,16,5],[16,6,16,7],[1,1,1,7],[3,1,3,2],[3,6,3,7],[4,6,13,7],[14,6,14,7]]}
[]
[null,"Fitment Rating System for Seatbelt Reminders"]
[]
[null,"COUNTRY",null,"FITMENT TYPE","α x CS","CS","CTFS"]
[null,"Brunei",null,null,{"$f":"IF(AND(C5=\"Yes\",D5=\"Option A\"),F5*1,IF(AND(C5=\"Yes\",D5=\"Option B\"),F5*0.75,IF(AND(C5=\"Yes\",D5=\"Option C\"),F5*0.625,IF(AND(C5=\"Yes\",D5=\"Option D\"),F5*0.5,IF(AND(C5=\"Yes\",D5=\"Option E\"),F5*0.25,IF(AND(C5=\"Yes\",D5=\"Option F\"),0,0))))))","v":0},{"$f":"IF(C5=\"Yes\",2,0)","v":0},{"$f":"(SUM(E5:E14)/SUM(F5:F14))*G15","v":6}]
[null,"Singapore",null,null,{"$f":"IF(AND(C6=\"Yes\",D6=\"Option A\"),F6*1,IF(AND(C6=\"Yes\",D6=\"Option B\"),F6*0.75,IF(AND(C6=\"Yes\",D6=\"Option C\"),F6*0.625,IF(AND(C6=\"Yes\",D6=\"Option D\"),F6*0.5,IF(AND(C6=\"Yes\",D6=\"Option E\"),F6*0.25,IF(AND(C6=\"Yes\",D6=\"Option F\"),0,0))))))","v":0},{"$f":"IF(C6=\"Yes\",2,0)","v":0}]
[null,"Malaysia","Yes","Option A",3,{"$f":"IF(C7=\"Yes\",3,0)","v":3}]
[null,"Thailand",null,null,0,{"$f":"IF(C8=\"Yes\",3,0)","v":0}]
[null,"Indonesia",null,null,0,{"$f":"IF(C9=\"Yes\",3,0)","v":0}]
[null,"The Philippines",null,null,0,{"$f":"IF(C10=\"Yes\",2,0)","v":0}]
[null,"Vietnam",null,null,0,{"$f":"IF(C11=\"Yes\",2,0)","v":0}]
[null,"Laos",null,null,0,{"$f":"IF(C12=\"Yes\",1,0)","v":0}]
[null,"Cambodia",null,null,0,{"$f":"IF(C13=\"Yes\",1,0)","v":0}]
[null,"Myanmar",null,null,0,{"$f":"IF(C14=\"Yes\",1,0)","v":0}]
[null,null,null,null,null,"TFS",6]
[]
[null,"Fitment Type",null,"Details",null,null,"Fitment Rating Score, α"]
[null,"Option A",null,"Vehicle model is equipped with SBR for driver, front passenger and rear passengers with seats occupant detection as standard equipment",null,null,1]
[null,"Option B",null,"Vehicle model is equipped with SBR for driver, front passenger and rear passengers as standard equipment",null,null,0.75]
[null,"Option C",null,"Vehicle model is equipped with SBR for driver and front passenger as standard equipment but rear passengers as optional equipment",null,null,0.625]
[null,"Option D",null,"Vehicle model is equipped with SBR for driver and front passenger only as standard equipment",null,null,0.5]
[null,"Option E",null,"Vehicle model is equipped with SBR for driver only as standard equipment",null,null,0.25]
[null,"Option F",null,"Vehicle model is not equipped with SBR",null,null,0]

{"sheet":"SAT-AEB CCRs","index":11,"n_rows":37,"n_cols":7,"rows_kept":37,"cut":false,"hidden":false,"merged":[[16,1,16,2],[16,3,16,5],[16,6,16,7],[1,1,1,7],[3,1,3,2],[3,6,3,7],[4,6,13,7],[14,6,14,7],[19,1,19,2],[19,3,19,5],[19,6,19,7],[17,1,17,2],[17,3,17,5],[17,6,17,7],[18,1,18,2],[18,3,18,5],[18,6,18,7]]}
[]
[null,"Fitment Rating System for AEB City"]
[]
[null,"COUNTRY",null,"FITMENT TYPE","α x CS","CS","CTFS"]
[null,"Brunei",null,null,{"$f":"IF(AND(C5=\"Yes\",D5=\"Option A\"),F5*1,IF(AND(C5=\"Yes\",D5=\"Option B\"),F5*0.5,IF(AND(C5=\"Yes\",D5=\"Option C\"),F5*0,0)))","v":0},{"$f":"IF(C5=\"Yes\",2,0)","v":0},{"$f":"(SUM(E5:E14)/SUM(F5:F14))*G15*F36","v":1.25}]
[null,"Singapore",null,null,0,{"$f":"IF(C6=\"Yes\",2,0)","v":0}]
[null,"Malaysia","Yes","Option B",1.5,{"$f":"IF(C7=\"Yes\",3,0)","v":3}]
[null,"Thailand",null,null,0,{"$f":"IF(C8=\"Yes\",3,0)","v":0}]
[null,"Indonesia",null,null,0,{"$f":"IF(C9=\"Yes\",3,0)","v":0}]
[null,"The Philippines",null,null,0,{"$f":"IF(C10=\"Yes\",2,0)","v":0}]
[null,"Vietnam",null,null,0,{"$f":"IF(C11=\"Yes\",2,0)","v":0}]
[null,"Laos",null,null,0,{"$f":"IF(C12=\"Yes\",1,0)","v":0}]
[null,"Cambodia",null,null,0,{"$f":"IF(C13=\"Yes\",1,0)","v":0}]
[null,"Myanmar",null,null,0,{"$f":"IF(C14=\"Yes\",1,0)","v":0}]
[null,null,null,null,null,"TFS",2.5]
[]
[null,"Fitment Type",null,"Details",null,null,"Fitment Rating Score, α"]
[null,"Option A",null,"Vehicle model is equipped with AEB City as standard equipment",null,null,1]
[null,"Option B",null,"Vehicle model is equipped with AEB City as optional equipment",null,null,0.5]
[null,"Option C",null,"Vehicle model is not equipped with AEB City",null,null,0]
[]
[]
[null,"Test speed(km/h)","Point","Vrel_threshold (km/h)","Vrel_Impact (km/h)","Score (Test Speed)"]
[null,10,1,0,0,{"$f":"MIN((B24-E24)/(B24-D24),1)*C24","v":1}]
[null,15,2,0,0,2]
[null,20,2,0,0,2]
[null,25,2,0,0,2]
[null,30,2,0,0,2]
[null,35,2,0,0,2]
[null,40,1,0,0,1]
[null,45,1,15,0,1]
[null,50,1,25,0,1]
[null,55,1,30,0,1]
[null,60,1,35,0,1]
[null,"Total",{"$f":"SUM(C24:C34)","v":16},null,null,{"$f":" SUM(F24:F34)","v":16}]
[null,null,null,null,"Normalized Score",{"$f":"F35/C35","v":1}]
[null,null,null,null,"AEB City Score",{"$f":"F36*2.5","v":2.5}]

{"sheet":"SAT-CCRm & CCRb ","index":12,"n_rows":46,"n_cols":8,"rows_kept":46,"cut":false,"hidden":false,"merged":[[16,1,16,2],[16,3,16,5],[16,6,16,7],[1,1,1,7],[3,1,3,2],[3,6,3,7],[4,6,13,7],[14,6,14,7],[17,1,17,2],[17,3,17,5],[17,6,17,7],[18,1,18,2],[18,3,18,5],[18,6,18,7],[34,1,34,6],[44,4,44,6],[45,4,45,6],[19,1,19,2],[19,3,19,5],[19,6,19,7],[21,1,21,7],[31,5,31,6],[32,5,32,6]]}
[]
[null,"Fitment Rating System for AEB Inter-urban"]
[]
[null,"COUNTRY",null,"FITMENT TYPE","α x CS","CS","CTFS"]
[null,"Brunei",null,null,{"$f":"IF(AND(C5=\"Yes\",D5=\"Option A\"),F5*1,IF(AND(C5=\"Yes\",D5=\"Option B\"),F5*0.5,IF(AND(C5=\"Yes\",D5=\"Option C\"),F5*0,0)))","v":0},{"$f":"IF(C5=\"Yes\",2,0)","v":0},{"$f":"(SUM(E5:E14)/SUM(F5:F14))*G15*H32","v":5}]
[null,"Singapore",null,null,{"$f":"IF(AND(C6=\"Yes\",D6=\"Option A\"),F6*1,IF(AND(C6=\"Yes\",D6=\"Option B\"),F6*0.5,IF(AND(C6=\"Yes\",D6=\"Option C\"),F6*0,0)))","v":0},{"$f":"IF(C6=\"Yes\",2,0)","v":0}]
[null,"Malaysia","Yes","Option A",3,{"$f":"IF(C7=\"Yes\",3,0)","v":3}]
[null,"Thailand",null,null,0,{"$f":"IF(C8=\"Yes\",3,0)","v":0}]
[null,"Indonesia",null,null,0,{"$f":"IF(C9=\"Yes\",3,0)","v":0}]
[null,"The Philippines",null,null,0,{"$f":"IF(C10=\"Yes\",2,0)","v":0}]
[null,"Vietnam",null,null,0,{"$f":"IF(C11=\"Yes\",2,0)","v":0}]
[null,"Laos",null,null,0,{"$f":"IF(C12=\"Yes\",1,0)","v":0}]
[null,"Cambodia",null,null,0,{"$f":"IF(C13=\"Yes\",1,0)","v":0}]
[null,"Myanmar",null,null,0,{"$f":"IF(C14=\"Yes\",1,0)","v":0}]
[null,null,null,null,null,"TFS",5]
[]
[null,"Fitment Type",null,"Details",null,null,"Fitment Rating Score, α"]
[null,"Option A",null,"Vehicle model is equipped with AEB Inter-urban as standard equipment",null,null,1]
[null,"Option B",null,"Vehicle model is equipped with AEB Inter-urban as optional equipment",null,null,0.5]
[null,"Option C",null,"Vehicle model is not equipped with AEB Inter-urban",null,null,0]
[]
[null,"CCRM"]
[null,"Test speed(km/h)","Point","Vrel_Test (km/h)","Vimpact (km/h)","Vrel_threshold (km/h)","Vrel_Impact (km/h)","Score (Test Speed)"]
[null,30,1,10,20,0,{"$f":"IF(E24>B24-D24,E24-(B24-D24),0)","v":0},{"$f":"(D24-G24)/(D24-F24)*C24","v":1}]
[null,35,1,15,20,0,{"$f":"IF(E25>B25-D25,E25-(B25-D25),0)","v":0},{"$f":"(D25-G25)/(D25-F25)*C25","v":1}]
[null,40,1,20,20,0,0,1]
[null,45,1,25,20,0,0,1]
[null,50,1,30,20,0,0,1]
[null,55,1,35,20,0,0,1]
[null,60,1,40,20,0,{"$f":"IF(E30>B30-D30,E30-(B30-D30),0)","v":0},1]
[null,"Total",7,null,null,null,null,{"$f":" SUM(H24:H30)","v":7}]
[null,null,null,null,null,"Normalized Score",null,{"$f":"H31/C31","v":1}]
[]
[]
[null,"CCRb"]
[null,"Test speed(km/h)","Point","Distance, Deceleration","Vimpact (km/h)","Vrel_Impact (km/h)","Score (Test Speed)"]
[null,50,1,"12m, 2m/s2",0,0,{"$f":"((B37-F37)/B37)*C37","v":1}]
[null,50,1,"12m, 6m/s2",0,0,{"$f":"((B38-F38)/B38)*C38","v":1}]
[null,50,1,"40m, 2m/s2",0,0,{"$f":"((B39-F39)/B39)*C39","v":1}]
[null,50,1,"40m, 6m/s2",0,0,{"$f":"((B40-F40)/B40)*C40","v":1}]
[null,"Total",{"$f":"SUM(C37:C40)","v":4},null,null,null,{"$f":"SUM(G37:G40)","v":4}]
[]
[null,null,null,"Type of AEB Inter Urban","CCRm","CCRb","Total Points"]
[null,null,null,"Points",{"$f":"H31","v":7},{"$f":"G41","v":4},{"$f":"E44+F44","v":11}]
[null,null,null,"Total Normalize Score, %",{"$f":"(G44/(C31+C41))*100","v":100}]
[null,null,null,"Total Score ",{"$f":"5*(E45/100)","v":5}]

{"sheet":"SAT-LKA","index":13,"n_rows":27,"n_cols":7,"rows_kept":27,"cut":false,"hidden":false,"merged":[[26,6,26,7],[24,1,24,2],[24,3,24,4],[24,6,24,7],[25,1,25,2],[25,3,25,4],[25,6,25,7],[19,1,19,2],[19,3,19,5],[19,6,19,7],[23,1,23,2],[23,3,23,4],[23,6,23,7],[17,1,17,2],[17,3,17,5],[17,6,17,7],[18,1,18,2],[18,3,18,5],[18,6,18,7],[16,1,16,2],[16,3,16,5],[16,6,16,7],[1,1,1,7],[3,1,3,2],[3,6,3,7],[4,6,13,7],[14,6,14,7]]}
[]
[null,"Fitment Rating System for LKA"]
[]
[null,"COUNTRY",null,"FITMENT TYPE","α x CS","CS","CTFS"]
[null,"Brunei",null,null,{"$f":"IF(AND(C5=\"Yes\",D5=\"Option A\"),F5*1,IF(AND(C5=\"Yes\",D5=\"Option B\"),F5*0.5,IF(AND(C5=\"Yes\",D5=\"Option C\"),F5*0,0)))","v":0},{"$f":"IF(C5=\"Yes\",2,0)","v":0},{"$f":"(SUM(E5:E14)/SUM(F5:F14))*G15*G27","v":0.75}]
[null,"Singapore",null,null,0,{"$f":"IF(C6=\"Yes\",2,0)","v":0}]
[null,"Malaysia","Yes","Option B",{"$f":"IF(AND(C7=\"Yes\",D7=\"Option A\"),F7*1,IF(AND(C7=\"Yes\",D7=\"Option B\"),F7*0.5,IF(AND(C7=\"Yes\",D7=\"Option C\"),F7*0,0)))","v":1.5},{"$f":"IF(C7=\"Yes\",3,0)","v":3}]
[null,"Thailand",null,null,0,{"$f":"IF(C8=\"Yes\",3,0)","v":0}]
[null,"Indonesia",null,null,0,{"$f":"IF(C9=\"Yes\",3,0)","v":0}]
[null,"The Philippines",null,null,0,{"$f":"IF(C10=\"Yes\",2,0)","v":0}]
[null,"Vietnam",null,null,0,{"$f":"IF(C11=\"Yes\",2,0)","v":0}]
[null,"Laos",null,null,0,{"$f":"IF(C12=\"Yes\",1,0)","v":0}]
[null,"Cambodia",null,null,0,{"$f":"IF(C13=\"Yes\",1,0)","v":0}]
[null,"Myanmar",null,null,0,{"$f":"IF(C14=\"Yes\",1,0)","v":0}]
[null,null,null,null,null,"TFS",1.5]
[]
[null,"Fitment Type",null,"Details",null,null,"Fitment Rating Score, α"]
[null,"Option A",null,"Vehicle model is equipped with LKA as standard equipment",null,null,1]
[null,"Option B",null,"Vehicle model is equipped with LKA as optional equipment",null,null,0.5]
[null,"Option C",null,"Vehicle model is not equipped with LKA",null,null,0]
[]
[]
[]
[null,"Line",null,"Scenario",null,"Result","Normalized Score"]
[null,"Dashed Line",null,"Single lane marking",null,"Pass",{"$f":"IF(AND(F25=\"Pass\",F26=\"Pass\"),0.5,0)","v":0.5}]
[null,"Solid Line",null,"Single lane marking",null,"Pass",{"$f":"IF(AND(F26=\"Pass\",F25=\"Pass\"),0.5,0)","v":0.5}]
[null,null,null,null,null,"Total Score",{"$f":"SUM(G25:H26)","v":1}]

{"sheet":"SAT-LDW","index":14,"n_rows":25,"n_cols":7,"rows_kept":25,"cut":false,"hidden":false,"merged":[[24,6,24,7],[22,1,22,2],[22,3,22,4],[22,6,22,7],[23,1,23,2],[23,3,23,4],[23,6,23,7],[19,1,19,2],[19,3,19,5],[19,6,19,7],[21,1,21,2],[21,3,21,4],[21,6,21,7],[17,1,17,2],[17,3,17,5],[17,6,17,7],[18,1,18,2],[18,3,18,5],[18,6,18,7],[16,1,16,2],[16,3,16,5],[16,6,16,7],[1,1,1,7],[3,1,3,2],[3,6,3,7],[4,6,13,7],[14,6,14,7]]}
[]
[null,"Fitment Rating System for LDW"]
[]
[null,"COUNTRY",null,"FITMENT TYPE","α x CS","CS","CTFS"]
[null,"Brunei",null,null,{"$f":"IF(AND(C5=\"Yes\",D5=\"Option A\"),F5*1,IF(AND(C5=\"Yes\",D5=\"Option B\"),F5*0.5,IF(AND(C5=\"Yes\",D5=\"Option C\"),F5*0,0)))","v":0},{"$f":"IF(C5=\"Yes\",2,0)","v":0},{"$f":"(SUM(E5:E14)/SUM(F5:F14))*G15*G25","v":0.5}]
[null,"Singapore",null,null,{"$f":"IF(AND(C6=\"Yes\",D6=\"Option A\"),F6*1,IF(AND(C6=\"Yes\",D6=\"Option B\"),F6*0.5,IF(AND(C6=\"Yes\",D6=\"Option C\"),F6*0,0)))","v":0},{"$f":"IF(C6=\"Yes\",2,0)","v":0}]
[null,"Malaysia","Yes","Option A",3,{"$f":"IF(C7=\"Yes\",3,0)","v":3}]
[null,"Thailand",null,null,0,{"$f":"IF(C8=\"Yes\",3,0)","v":0}]
[null,"Indonesia",null,null,0,{"$f":"IF(C9=\"Yes\",3,0)","v":0}]
[null,"The Philippines",null,null,0,{"$f":"IF(C10=\"Yes\",2,0)","v":0}]
[null,"Vietnam",null,null,0,{"$f":"IF(C11=\"Yes\",2,0)","v":0}]
[null,"Laos",null,null,0,{"$f":"IF(C12=\"Yes\",1,0)","v":0}]
[null,"Cambodia",null,null,0,{"$f":"IF(C13=\"Yes\",1,0)","v":0}]
[null,"Myanmar",null,null,0,{"$f":"IF(C14=\"Yes\",1,0)","v":0}]
[null,null,null,null,null,"TFS",0.5]
[]
[null,"Fitment Type",null,"Details",null,null,"Fitment Rating Score, α"]
[null,"Option A",null,"Vehicle model is equipped with LDW as standard equipment",null,null,1]
[null,"Option B",null,"Vehicle model is equipped with LDW as optional equipment",null,null,0.5]
[null,"Option C",null,"Vehicle model is not equipped with LDW",null,null,0]
[]
[null,"Line",null,"Scenario",null,"Result","Normalized Score"]
[null,"Dashed Line",null,"Single lane marking",null,"Pass",{"$f":"IF(AND(F23=\"Pass\",F24=\"Pass\"),0.5,0)","v":0.5}]
[null,"Solid Line",null,"Single lane marking",null,"Pass",{"$f":"IF(AND(F24=\"Pass\",F23=\"Pass\"),0.5,0)","v":0.5}]
[null,null,null,null,null,"Total Score",{"$f":"SUM(G23:H24)","v":1}]

{"sheet":"SAT-Advanced ","index":15,"n_rows":82,"n_cols":7,"rows_kept":82,"cut":false,"hidden":false,"merged":[[61,1,61,2],[61,3,61,5],[61,6,61,7],[47,6,56,7],[57,6,57,7],[59,1,59,2],[59,3,59,5],[59,6,59,7],[60,1,60,2],[60,3,60,5],[60,6,60,7],[41,1,41,2],[41,3,41,5],[41,6,41,7],[44,1,44,7],[46,1,46,2],[46,6,46,7],[40,1,40,2],[40,3,40,5],[40,6,40,7],[21,1,21,2],[21,3,21,5],[21,6,21,7],[24,1,24,7],[26,1,26,2],[26,6,26,7],[27,6,36,7],[37,6,37,7],[39,1,39,2],[39,3,39,5],[39,6,39,7],[17,6,17,7],[19,1,19,2],[19,3,19,5],[19,6,19,7],[20,1,20,2],[20,3,20,5],[20,6,20,7],[7,6,16,7],[1,1,1,4],[1,5,1,7],[4,1,4,7],[6,1,6,2],[6,6,6,7],[64,1,64,7],[66,1,66,2],[66,6,66,7],[67,6,76,7],[77,6,77,7],[81,1,81,2],[81,3,81,5],[81,6,81,7],[79,1,79,2],[79,3,79,5],[79,6,79,7],[80,1,80,2],[80,3,80,5],[80,6,80,7]]}
[]
[null,"FRS Total Score for Advanced SATs",null,null,null,{"$f":"IF(SUM(G8,G28,G48,G68)>2,2,SUM(G8,G28,G48,G68))","v":2}]
[]
[]
[null,"Fitment Rating System for AEB Pedestrian"]
[]
[null,"COUNTRY",null,"FITMENT TYPE","α x CS","CS","CTFS"]
[null,"Brunei",null,null,{"$f":"IF(AND(C8=\"Yes\",D8=\"Option A\"),F8*1,IF(AND(C8=\"Yes\",D8=\"Option B\"),F8*0,0))","v":0},{"$f":"IF(C8=\"Yes\",2,0)","v":0},{"$f":"(SUM(E8:E17)/SUM(F8:F17))*G18","v":1}]
[null,"Singapore",null,null,0,{"$f":"IF(C9=\"Yes\",2,0)","v":0}]
[null,"Malaysia","Yes","Option A",3,{"$f":"IF(C10=\"Yes\",3,0)","v":3}]
[null,"Thailand",null,null,0,{"$f":"IF(C11=\"Yes\",3,0)","v":0}]
[null,"Indonesia",null,null,0,{"$f":"IF(C12=\"Yes\",3,0)","v":0}]
[null,"The Philippines",null,null,0,{"$f":"IF(C13=\"Yes\",2,0)","v":0}]
[null,"Vietnam",null,null,0,{"$f":"IF(C14=\"Yes\",2,0)","v":0}]
[null,"Laos",null,null,0,{"$f":"IF(C15=\"Yes\",1,0)","v":0}]
[null,"Cambodia",null,null,0,{"$f":"IF(C16=\"Yes\",1,0)","v":0}]
[null,"Myanmar",null,null,0,{"$f":"IF(C17=\"Yes\",1,0)","v":0}]
[null,null,null,null,null,"TFS",1]
[]
[null,"Fitment Type",null,"Details",null,null,"Fitment Rating Score, α"]
[null,"Option A",null,"Vehicle model is equipped with AEB Pedestrian as standard or optional equipment",null,null,1]
[null,"Option B",null,"Vehicle model is not equipped with AEB Pedestrian",null,null,0]
[]
[]
[null,"Fitment Rating System for Multi Collision Brake"]
[]
[null,"COUNTRY",null,"FITMENT TYPE","α x CS","CS","CTFS"]
[null,"Brunei",null,null,{"$f":"IF(AND(C28=\"Yes\",D28=\"Option A\"),F28*1,IF(AND(C28=\"Yes\",D28=\"Option B\"),F28*0,0))","v":0},{"$f":"IF(C28=\"Yes\",2,0)","v":0},{"$f":"(SUM(E28:E37)/SUM(F28:F37))*G38","v":1}]
[null,"Singapore",null,null,{"$f":"IF(AND(C29=\"Yes\",D29=\"Option A\"),F29*1,IF(AND(C29=\"Yes\",D29=\"Option B\"),F29*0,0))","v":0},{"$f":"IF(C29=\"Yes\",2,0)","v":0}]
[null,"Malaysia","Yes","Option A",3,{"$f":"IF(C30=\"Yes\",3,0)","v":3}]
[null,"Thailand",null,null,0,{"$f":"IF(C31=\"Yes\",3,0)","v":0}]
[null,"Indonesia",null,null,0,{"$f":"IF(C32=\"Yes\",3,0)","v":0}]
[null,"The Philippines",null,null,0,{"$f":"IF(C33=\"Yes\",2,0)","v":0}]
[null,"Vietnam",null,null,0,{"$f":"IF(C34=\"Yes\",2,0)","v":0}]
[null,"Laos",null,null,0,{"$f":"IF(C35=\"Yes\",1,0)","v":0}]
[null,"Cambodia",null,null,0,{"$f":"IF(C36=\"Yes\",1,0)","v":0}]
[null,"Myanmar",null,null,0,{"$f":"IF(C37=\"Yes\",1,0)","v":0}]
[null,null,null,null,null,"TFS",1]
[]
[null,"Fitment Type",null,"Details",null,null,"Fitment Rating Score, α"]
[null,"Option A",null,"Vehicle model is equipped with MCB as standard or optional equipment",null,null,1]
[null,"Option B",null,"Vehicle model is not equipped with MCB",null,null,0]
[]
[]
[null,"Fitment Rating System for Speed Assistance System"]
[]
[null,"COUNTRY",null,"FITMENT TYPE","α x CS","CS","CTFS"]
[null,"Brunei",null,null,{"$f":"IF(AND(C48=\"Yes\",D48=\"Option A\"),F48*1,IF(AND(C48=\"Yes\",D48=\"Option B\"),F48*0,0))","v":0},{"$f":"IF(C48=\"Yes\",2,0)","v":0},{"$f":"(SUM(E48:E57)/SUM(F48:F57))*G58","v":0}]
[null,"Singapore",null,null,{"$f":"IF(AND(C49=\"Yes\",D49=\"Option A\"),F49*1,IF(AND(C49=\"Yes\",D49=\"Option B\"),F49*0,0))","v":0},{"$f":"IF(C49=\"Yes\",2,0)","v":0}]
[null,"Malaysia","Yes","Option B",0,{"$f":"IF(C50=\"Yes\",3,0)","v":3}]
[null,"Thailand",null,null,0,{"$f":"IF(C51=\"Yes\",3,0)","v":0}]
[null,"Indonesia",null,null,0,{"$f":"IF(C52=\"Yes\",3,0)","v":0}]
[null,"The Philippines",null,null,0,{"$f":"IF(C53=\"Yes\",2,0)","v":0}]
[null,"Vietnam",null,null,0,{"$f":"IF(C54=\"Yes\",2,0)","v":0}]
[null,"Laos",null,null,0,{"$f":"IF(C55=\"Yes\",1,0)","v":0}]
[null,"Cambodia",null,null,0,{"$f":"IF(C56=\"Yes\",1,0)","v":0}]
[null,"Myanmar",null,null,0,{"$f":"IF(C57=\"Yes\",1,0)","v":0}]
[null,null,null,null,null,"TFS",1]
[]
[null,"Fitment Type",null,"Details",null,null,"Fitment Rating Score, α"]
[null,"Option A",null,"Vehicle model is equipped with SA System as standard or optional equipment",null,null,1]
[null,"Option B",null,"Vehicle model is not equipped with SA System",null,null,0]
[]
[]
[null,"Fitment Rating System for Driver State Monitoring"]
[]
[null,"COUNTRY",null,"FITMENT TYPE","α x CS","CS","CTFS"]
[null,"Brunei",null,null,{"$f":"IF(AND(C68=\"Yes\",D68=\"Option A\"),F68*1,IF(AND(C68=\"Yes\",D68=\"Option B\"),F68*0,0))","v":0},{"$f":"IF(C68=\"Yes\",2,0)","v":0},{"$f":"(SUM(E68:E77)/SUM(F68:F77))*G78","v":0}]
[null,"Singapore",null,null,{"$f":"IF(AND(C69=\"Yes\",D69=\"Option A\"),F69*1,IF(AND(C69=\"Yes\",D69=\"Option B\"),F69*0,0))","v":0},{"$f":"IF(C69=\"Yes\",2,0)","v":0}]
[null,"Malaysia","Yes","Option B",0,{"$f":"IF(C70=\"Yes\",3,0)","v":3}]
[null,"Thailand",null,null,0,{"$f":"IF(C71=\"Yes\",3,0)","v":0}]
[null,"Indonesia",null,null,0,{"$f":"IF(C72=\"Yes\",3,0)","v":0}]
[null,"The Philippines",null,null,0,{"$f":"IF(C73=\"Yes\",2,0)","v":0}]
[null,"Vietnam",null,null,0,{"$f":"IF(C74=\"Yes\",2,0)","v":0}]
[null,"Laos",null,null,0,{"$f":"IF(C75=\"Yes\",1,0)","v":0}]
[null,"Cambodia",null,null,0,{"$f":"IF(C76=\"Yes\",1,0)","v":0}]
[null,"Myanmar",null,null,0,{"$f":"IF(C77=\"Yes\",1,0)","v":0}]
[null,null,null,null,null,"TFS",1]
[]
[null,"Fitment Type",null,"Details",null,null,"Fitment Rating Score, α"]
[null,"Option A",null,"Vehicle model is equipped with DSM as standard or optional equipment",null,null,1]
[null,"Option B",null,"Vehicle model is not equipped with DSM",null,null,0]

{"sheet":"MS-BST ","index":16,"n_rows":34,"n_cols":7,"rows_kept":34,"cut":false,"hidden":false,"merged":[[21,1,21,2],[21,3,21,5],[21,6,21,7],[19,1,19,2],[19,3,19,5],[19,6,19,7],[20,1,20,2],[20,3,20,5],[20,6,20,7],[17,1,17,2],[17,3,17,5],[17,6,17,7],[18,1,18,2],[18,3,18,5],[18,6,18,7],[16,1,16,2],[16,3,16,5],[16,6,16,7],[1,1,1,7],[3,1,3,2],[3,6,3,7],[4,6,13,7],[14,6,14,7],[26,6,29,8],[30,6,33,8],[24,1,24,5],[26,5,29,5],[30,5,33,5],[30,1,33,1],[33,2,33,3],[25,2,25,3],[26,1,29,1],[29,2,29,3]]}
[]
[null,"Fitment Rating System for Blind Spot Technology (BSD/BSV)"]
[]
[null,"COUNTRY",null,"FITMENT TYPE","α x CS","CS","CTFS"]
[null,"Brunei",null,null,{"$f":"IF(AND(C5=\"Yes\",D5=\"Option A\"),F5*1,IF(AND(C5=\"Yes\",D5=\"Option B\"),F5*0.5,IF(AND(C5=\"Yes\",D5=\"Option C\"),F5*0.5,IF(AND(C5=\"Yes\",D5=\"Option D\"),F5*0.25,IF(AND(C5=\"Yes\",D5=\"Option E\"),0,0)))))","v":0},{"$f":"IF(C5=\"Yes\",2,0)","v":0},{"$f":"(SUM(E5:E14)/SUM(F5:F14))*G15","v":8}]
[null,"Singapore",null,null,{"$f":"IF(AND(C6=\"Yes\",D6=\"Option A\"),F6*1,IF(AND(C6=\"Yes\",D6=\"Option B\"),F6*0.5,IF(AND(C6=\"Yes\",D6=\"Option C\"),F6*0.5,IF(AND(C6=\"Yes\",D6=\"Option D\"),F6*0.25,IF(AND(C6=\"Yes\",D6=\"Option E\"),0,0)))))","v":0},{"$f":"IF(C6=\"Yes\",2,0)","v":0}]
[null,"Malaysia","Yes","Option A",3,{"$f":"IF(C7=\"Yes\",3,0)","v":3}]
[null,"Thailand",null,null,0,{"$f":"IF(C8=\"Yes\",3,0)","v":0}]
[null,"Indonesia",null,null,0,{"$f":"IF(C9=\"Yes\",3,0)","v":0}]
[null,"The Philippines",null,null,0,{"$f":"IF(C10=\"Yes\",2,0)","v":0}]
[null,"Vietnam",null,null,0,{"$f":"IF(C11=\"Yes\",2,0)","v":0}]
[null,"Laos",null,null,0,{"$f":"IF(C12=\"Yes\",1,0)","v":0}]
[null,"Cambodia",null,null,0,{"$f":"IF(C13=\"Yes\",1,0)","v":0}]
[null,"Myanmar",null,null,0,{"$f":"IF(C14=\"Yes\",1,0)","v":0}]
[null,null,null,null,null,"TFS",8]
[]
[null,"Fitment Type",null,"Details",null,null,"Fitment Rating Score, α"]
[null,"Option A",null,"Vehicle model is equipped with BST for both nearside and offside as standard equipment",null,null,1]
[null,"Option B",null,"Vehicle model is equipped with BST for both nearside and offside as optional equipment",null,null,0.5]
[null,"Option C",null,"Vehicle model is equipped with BST for one side only as standard equipment",null,null,0.5]
[null,"Option D",null,"Vehicle model is equipped with BST for one side only as optional equipment",null,null,0.25]
[null,"Option E",null,"Vehicle model is not equipped with BST",null,null,0]
[]
[]
[null,"BST Assessment"]
[null,"Position","Type of Assessment",null,"Result","OVERALL RESULT"]
[null,"Driver Side",1,"Must give warning","Pass",{"$f":"IF(AND(E27=\"Pass\",E28=\"Pass\",E29=\"Pass\",E30=\"Pass\"), \"PASS\",\"FAIL\")","v":"PASS"}]
[null,null,2,"Must give warning","Pass"]
[null,null,3,"Must give warning","Pass"]
[null,null,"False signal",null,"Pass"]
[null,"Passenger Side",1,"Must give warning","Fail",{"$f":"IF(AND(E31=\"Pass\",E32=\"Pass\",E33=\"Pass\",E34=\"Pass\"), \"PASS\",\"FAIL\")","v":"FAIL"}]
[null,null,2,"Must give warning","Pass"]
[null,null,3,"Must give warning","Pass"]
[null,null,"False signal",null,"Pass"]

{"sheet":"MS-ARV","index":17,"n_rows":31,"n_cols":7,"rows_kept":31,"cut":false,"hidden":false,"merged":[[29,2,29,3],[29,4,29,5],[29,6,29,7],[30,4,30,5],[30,6,30,7],[26,2,26,3],[26,4,26,5],[26,6,26,7],[27,1,28,1],[27,2,27,3],[27,4,27,5],[27,6,27,7],[28,2,28,3],[28,4,28,5],[28,6,28,7],[22,1,25,1],[22,2,22,3],[22,4,22,5],[22,6,22,7],[23,2,23,3],[23,4,23,5],[23,6,23,7],[24,2,24,3],[24,4,24,5],[24,6,24,7],[25,2,25,3],[25,4,25,5],[25,6,25,7],[19,1,19,2],[19,3,19,5],[19,6,19,7],[21,2,21,3],[21,4,21,5],[21,6,21,7],[17,1,17,2],[17,3,17,5],[17,6,17,7],[18,1,18,2],[18,3,18,5],[18,6,18,7],[16,1,16,2],[16,3,16,5],[16,6,16,7],[1,1,1,7],[3,1,3,2],[3,6,3,7],[4,6,13,7],[14,6,14,7]]}
[]
[null,"Fitment Rating System for Advanced  Rear Visualization"]
[]
[null,"COUNTRY",null,"FITMENT TYPE","α x CS","CS","CTFS"]
[null,"Brunei",null,null,{"$f":"IF(AND(C5=\"Yes\",D5=\"Option A\"),F5*1,IF(AND(C5=\"Yes\",D5=\"Option B\"),F5*0.5,IF(AND(C5=\"Yes\",D5=\"Option C\"),F5*0,0)))","v":0},{"$f":"IF(C5=\"Yes\",2,0)","v":0},{"$f":"(SUM(E5:E14)/SUM(F5:F14))*G15*G31","v":3}]
[null,"Singapore",null,null,{"$f":"IF(AND(C6=\"Yes\",D6=\"Option A\"),F6*1,IF(AND(C6=\"Yes\",D6=\"Option B\"),F6*0.5,IF(AND(C6=\"Yes\",D6=\"Option C\"),F6*0,0)))","v":0},{"$f":"IF(C6=\"Yes\",2,0)","v":0}]
[null,"Malaysia","Yes","Option A",3,{"$f":"IF(C7=\"Yes\",3,0)","v":3}]
[null,"Thailand",null,null,0,{"$f":"IF(C8=\"Yes\",3,0)","v":0}]
[null,"Indonesia",null,null,0,{"$f":"IF(C9=\"Yes\",3,0)","v":0}]
[null,"The Philippines",null,null,0,{"$f":"IF(C10=\"Yes\",2,0)","v":0}]
[null,"Vietnam",null,null,0,{"$f":"IF(C11=\"Yes\",2,0)","v":0}]
[null,"Laos",null,null,0,{"$f":"IF(C12=\"Yes\",1,0)","v":0}]
[null,"Cambodia",null,null,0,{"$f":"IF(C13=\"Yes\",1,0)","v":0}]
[null,"Myanmar",null,null,0,{"$f":"IF(C14=\"Yes\",1,0)","v":0}]
[null,null,null,null,null,"TFS",3]
[]
[null,"Fitment Type",null,"Details",null,null,"Fitment Rating Score, α"]
[null,"Option A",null,"Vehicle model is equipped with ARV as standard equipment",null,null,1]
[null,"Option B",null,"Vehicle model is equipped with ARV as optional equipment",null,null,0.5]
[null,"Option C",null,"Vehicle model is not equipped with ARV",null,null,0]
[]
[null,"Functional","Criteria",null,"Asessment",null,"Scoring"]
[null,"Rearward Visibility","Proximity Visibility",null,"Larger than inside mirror",null,{"$f":"IF(E23=\"Larger than inside mirror\",0.5,0)","v":0.5}]
[null,null,"Field of view expansion",null,"Over 3m",null,{"$f":"IF(E24=\"Over 3m\",0.5,IF(E24=\"Expanded\",0.3,0))","v":0.5}]
[null,null,"Long Distance Visibility (20m)",null,"Over 5.25m",null,{"$f":"IF(E25=\"Over 5.25m\",0.5,IF(E25=\"Over 3.50m\",0.4,IF(E25=\"Over 1.75m\",0.3,0)))","v":0.5}]
[null,null,"Long Distance Visibility(30m)",null,"Over 5.25m",null,{"$f":"IF(E26=\"Over 5.25m\",0.5,IF(E26=\"Over 3.50m\",0.4,IF(E26=\"Over 1.75m\",0.3,0)))","v":0.5}]
[null,"Night Adaptation","Visibility",null,"Pass",null,{"$f":"IF(E27=\"Pass\",1.5,1)","v":1.5}]
[null,"Environment Adaptation","Glare",null,"Pass",null,{"$f":"IF(E28=\"Pass\",0.5,0)","v":0.5}]
[null,null,"Weathear",null,"Pass",null,{"$f":"IF(E29=\"Pass\",0.5,0)","v":0.5}]
[null,null,null,null,"ARV System Score",null,{"$f":"SUM(G23:H26)*G27+(SUM(G28:H29))","v":4}]
[null,null,null,null,"Normalize Score",null,{"$f":"G30/4","v":1}]

{"sheet":"MS-AHB ","index":18,"n_rows":42,"n_cols":23,"rows_kept":42,"cut":false,"hidden":false,"merged":[[11,13,11,15],[11,16,11,19],[6,18,6,19],[1,1,1,7],[1,12,1,19],[3,1,3,2],[3,6,3,7],[3,12,3,19],[17,2,17,5],[17,6,17,7],[18,16,18,19],[14,6,14,7],[14,12,14,19],[16,2,16,5],[16,6,16,7],[16,13,16,15],[16,16,16,19],[18,2,18,5],[18,6,18,7],[18,13,18,15],[13,12,13,19],[4,6,13,7],[4,12,4,14],[4,15,4,17],[4,18,4,19],[5,12,5,14],[5,15,5,17],[7,12,7,14],[7,15,7,19],[5,18,5,19],[6,12,6,14],[6,15,6,17],[9,12,9,19],[10,12,12,12],[10,13,10,15],[10,16,10,19],[23,16,23,19],[19,2,19,5],[19,6,19,7],[19,12,19,19],[20,2,20,5],[20,6,20,7],[21,2,21,5],[28,1,28,2],[28,13,28,15],[28,16,28,19],[21,6,21,7],[21,13,21,15],[21,16,21,19],[22,2,22,5],[22,6,22,7],[23,2,23,5],[23,6,23,7],[23,13,23,15],[26,1,26,2],[26,13,26,15],[26,16,26,19],[24,12,24,19],[27,1,27,2],[29,1,29,5],[30,5,30,6],[31,5,31,6],[34,12,34,19],[35,13,35,14],[35,15,35,16],[35,18,35,19],[36,12,37,12],[36,13,37,14],[36,15,36,16],[36,18,36,19],[37,15,37,16],[37,18,37,19],[40,12,40,19],[41,12,41,19],[38,12,39,12],[38,13,39,14],[38,15,38,16],[38,18,38,19],[39,15,39,16],[39,18,39,19]]}
[]
[null,"Fitment Rating System for Automatic High Beam (AHB) ",null,null,null,null,null,null,null,null,null,null,"Performance Evaluation for Automatic High Beam (AHB) "]
[]
[null,"COUNTRY",null,"FITMENT TYPE","α x CS","CS","CTFS",null,null,null,null,null,"Test Condition"]
[null,"Brunei","Yes","Option B",{"$f":"IF(AND(C5=\"Yes\",D5=\"Option A\"),F5*1,IF(AND(C5=\"Yes\",D5=\"Option B\"),F5*0.8,IF(AND(C5=\"Yes\",D5=\"Option C\"),F5*0.667,IF(AND(C5=\"Yes\",D5=\"Option D\"),F5*0.584,IF(AND(C5=\"Yes\",D5=\"Option E\"),F5*0.5,IF(AND(C5=\"Yes\",D5=\"Option F\"),F5*0.333,0))))))","v":1.6},{"$f":"IF(C5=\"Yes\",2,0)","v":2},{"$f":"(SUM(E5:E14)/SUM(F5:F14))*G15*H32","v":2.9400000000000004},null,null,null,null,null,"Ambient temperature (oC)",null,null,40,null,null,"(5°C - 40°C)"]
[null,"Singapore","Yes","Option A",2,{"$f":"IF(C6=\"Yes\",2,0)","v":2},null,null,null,null,null,null,"Road illumination (lux)",null,null,15,null,null,"(≥ 15 lux)"]
[null,"Malaysia","Yes","Option A",3,{"$f":"IF(C7=\"Yes\",3,0)","v":3},null,null,null,null,null,null,"Road without illumination (lux)",null,null,4,null,null,"(<5 lux)"]
[null,"Thailand","Yes","Option A",3,{"$f":"IF(C8=\"Yes\",3,0)","v":3},null,null,null,null,null,null,"’Automatic switching type’ (Yes/No)",null,null,"Yes"]
[null,"Indonesia","Yes","Option A",3,{"$f":"IF(C9=\"Yes\",3,0)","v":3}]
[null,"The Philippines","Yes","Option A",2,{"$f":"IF(C10=\"Yes\",2,0)","v":2},null,null,null,null,null,null,"Operation Speed Assessment"]
[null,"Vietnam","Yes","Option A",2,{"$f":"IF(C11=\"Yes\",2,0)","v":2},null,null,null,null,null,null,"Requirement","Activated Start Speed (km/h)",null,null,"Performance Acceptability"]
[null,"Laos","Yes","Option A",1,{"$f":"IF(C12=\"Yes\",1,0)","v":1},null,null,null,null,null,null,null,"(< 50 km/h)",null,null,"(Yes/No)"]
[null,"Cambodia","Yes","Option A",1,{"$f":"IF(C13=\"Yes\",1,0)","v":1},null,null,null,null,null,null,null,"Run 1","Run 2","Run 3","VUT","Oncoming","VUT","Preceding"]
[null,"Myanmar","Yes","Option A",1,{"$f":"IF(C14=\"Yes\",1,0)","v":1},null,null,null,null,null,null,"URBAN ROADa"]
[null,null,null,null,null,"TFS",3,null,null,null,null,null,"With illumination"]
[null,null,null,null,null,null,null,null,null,null,null,null,"Low to High Beam1",null,null,null,"Yes","Yes","Yes","Yes",null,null,"Yes"]
[null,"Fitment Type","Details",null,null,null,"Fitment Rating Score, α",null,null,null,null,null,"RESULT",{"$f":"IF(AND(N16<50,O16<50,P16<50),\"PASS\",\"FAIL\")","v":"PASS"},null,null,{"$f":"IF(Q16=\"Yes\",\"PASS\",\"FAIL\")","v":"PASS"},null,null,null,null,null,"No"]
[null,"Option A","Vehicle model is equipped with ADB as standard equipment",null,null,null,1,null,null,null,null,null,"High to Low Beam2",45,null,null,"Yes","Yes","Yes","Yes"]
[null,"Option B","Vehicle model is equipped with ADB as optional equipment but AHB as standard equipment",null,null,null,0.8,null,null,null,null,null,"RESULT",{"$f":"IF(AND(N18<50,O18<50,P18<50),\"PASS\",\"FAIL\")","v":"PASS"},null,null,{"$f":"IF(AND(Q18=\"Yes\",R18=\"Yes\",S18=\"Yes\",T18=\"Yes\"),\"PASS\",\"FAIL\")","v":"PASS"}]
[null,"Option C","Vehicle model is not equipped with ADB but equipped with AHB as standard equipment",null,null,null,0.66700000000000004,null,null,null,null,null,"Without illumination"]
[null,"Option D","Vehicle model is equipped with ADB as optional and AHB as optional equipment",null,null,null,0.58399999999999996,null,null,null,null,null,"Low to High Beam1",null,null,null,"Yes","Yes","Yes","Yes"]
[null,"Option E","Vehicle model is equipped with ADB as optional equipment and not equipped with AHB",null,null,null,0.5,null,null,null,null,null,"RESULT",{"$f":"IF(AND(N21<50,O21<50,P21<50),\"PASS\",\"FAIL\")","v":"PASS"},null,null,{"$f":"IF(Q21=\"Yes\",\"PASS\",\"FAIL\")","v":"PASS"}]
[null,"Option F","Vehicle model is not equipped with ADB but equipped with AHB as optional equipment",null,null,null,0.33300000000000002,null,null,null,null,null,"High to Low Beam2",null,null,null,"Yes","Yes","Yes","Yes"]
[null,"Option G","Vehicle model is not equipped with either AHB or ADB",null,null,null,0,null,null,null,null,null,"RESULT",{"$f":"IF(AND(N23<50,O23<50,P23<50),\"PASS\",\"FAIL\")","v":"PASS"},null,null,{"$f":"IF(AND(Q23=\"Yes\",R23=\"Yes\",S23=\"Yes\",T23=\"Yes\"),\"PASS\",\"FAIL\")","v":"PASS"}]
[null,null,null,null,null,null,null,null,null,null,null,null,"COUNTRY ROADb"]
[null,null,null,null,null,null,null,null,null,null,null,null,"Low to High Beam1",null,null,null,"Yes","Yes","Yes","Yes"]
[null,"Test",null,"Headlight","Activated Speed or Distance","Status","Result","Score",null,null,null,null,"RESULT",{"$f":"IF(AND(N26<50,O26<50,P26<50),\"PASS\",\"FAIL\")","v":"PASS"},null,null,{"$f":"IF(Q26=\"Yes\",\"PASS\",\"FAIL\")","v":"PASS"}]
[null,"Operational Speed",null,"Low to High Beam and Vice Versa","< 50 km/h","Auto switching",{"$f":"IF(AND(N17=\"PASS\", Q17=\"PASS\", N19=\"PASS\", Q19=\"PASS\", N22=\"PASS\", Q22=\"PASS\", N24=\"PASS\", Q24=\"PASS\", N27=\"PASS\", Q27=\"PASS\", N29=\"PASS\", Q29=\"PASS\"), \"Pass\", \"Fail\")","v":"Pass"},{"$f":"IF(G28=\"Pass\",1,0)","v":1},null,null,null,null,"High to Low Beam2",null,null,null,"Yes","Yes","Yes","Yes"]
[null,"Illuminance measurement",null,"High Beam","100 meters","5 Lux (Min)",{"$f":"IF(AND(S37=\"PASS\",S38=\"PASS\",S39=\"PASS\",S40=\"PASS\"),\"Pass\",\"Fail\")","v":"Pass"},{"$f":"IF(G29=\"Pass\",1,0)","v":1},null,null,null,null,"RESULT",{"$f":"IF(AND(N28<50,O28<50,P28<50),\"PASS\",\"FAIL\")","v":"PASS"},null,null,{"$f":"IF(AND(Q28=\"Yes\",R28=\"Yes\",S28=\"Yes\",T28=\"Yes\"),\"PASS\",\"FAIL\")","v":"PASS"}]
[null,"ADB Functioning",null,null,null,null,0,1,null,null,null,null,"1 Must automatically switching at < 50 km/h",null,null,"a Detect oncoming/preceding vehicle at < 50 km/h"]
[null,null,null,null,null,"AHB/ADB System Score",null,{"$f":"SUM(H28:H30)","v":3},null,null,null,null,"2 Detect oncoming/preceding vehicle at < 50 km/h",null,null,"b Detect oncoming/preceding vehicle at < 50 km/h"]
[null,null,null,null,null,"Normalized Score",null,{"$f":"H31/3","v":1}]
[]
[]
[null,null,null,null,null,null,null,null,null,null,null,null,"Illuminance Evaluation"]
[null,null,null,null,null,null,null,null,null,null,null,null,"Position","Distance (m) 1",null,"Height (cm) 2",null,"Measurement (lux)","RESULT"]
[null,null,null,null,null,null,null,null,null,null,null,null,"A",100,null,25,null,5,{"$f":"IF(R37>4,\"PASS\",\"FAIL\")","v":"PASS"}]
[null,null,null,null,null,null,null,null,null,null,null,null,null,null,null,110,null,5,{"$f":"IF(R38>4,\"PASS\",\"FAIL\")","v":"PASS"}]
[null,null,null,null,null,null,null,null,null,null,null,null,"B",100,null,25,null,5,{"$f":"IF(R39>4,\"PASS\",\"FAIL\")","v":"PASS"}]
[null,null,null,null,null,null,null,null,null,null,null,null,null,null,null,110,null,5,{"$f":"IF(R40>4,\"PASS\",\"FAIL\")","v":"PASS"}]
[null,null,null,null,null,null,null,null,null,null,null,null,"1 Measured from the ground"]
[null,null,null,null,null,null,null,null,null,null,null,null,"2 Measured from the VUT leading edge"]

{"sheet":"MS-PED","index":19,"n_rows":20,"n_cols":7,"rows_kept":20,"cut":false,"hidden":false,"merged":[[16,1,16,2],[16,3,16,5],[16,6,16,7],[1,1,1,7],[3,1,3,2],[3,6,3,7],[4,6,13,7],[14,6,14,7],[19,1,19,2],[19,3,19,5],[19,6,19,7],[17,1,17,2],[17,3,17,5],[17,6,17,7],[18,1,18,2],[18,3,18,5],[18,6,18,7]]}
[]
[null,"Fitment Rating System for Pedestrian Protection "]
[]
[null,"COUNTRY",null,"FITMENT TYPE","α x CS","CS","CTFS"]
[null,"Brunei",null,null,{"$f":"IF(AND(C5=\"Yes\",D5=\"Option A\"),F5*1,IF(AND(C5=\"Yes\",D5=\"Option B\"),F5*0.5,IF(AND(C5=\"Yes\",D5=\"Option C\"),F5*0,0)))","v":0},{"$f":"IF(C5=\"Yes\",2,0)","v":0},{"$f":"(SUM(E5:E14)/SUM(F5:F14))*G15","v":1}]
[null,"Singapore",null,null,{"$f":"IF(AND(C6=\"Yes\",D6=\"Option A\"),F6*1,IF(AND(C6=\"Yes\",D6=\"Option B\"),F6*0.5,IF(AND(C6=\"Yes\",D6=\"Option C\"),F6*0,0)))","v":0},{"$f":"IF(C6=\"Yes\",2,0)","v":0}]
[null,"Malaysia","Yes","Option B",1.5,{"$f":"IF(C7=\"Yes\",3,0)","v":3}]
[null,"Thailand",null,null,0,{"$f":"IF(C8=\"Yes\",3,0)","v":0}]
[null,"Indonesia",null,null,0,{"$f":"IF(C9=\"Yes\",3,0)","v":0}]
[null,"The Philippines",null,null,0,{"$f":"IF(C10=\"Yes\",2,0)","v":0}]
[null,"Vietnam",null,null,0,{"$f":"IF(C11=\"Yes\",2,0)","v":0}]
[null,"Laos",null,null,0,{"$f":"IF(C12=\"Yes\",1,0)","v":0}]
[null,"Cambodia",null,null,0,{"$f":"IF(C13=\"Yes\",1,0)","v":0}]
[null,"Myanmar",null,null,0,{"$f":"IF(C14=\"Yes\",1,0)","v":0}]
[null,null,null,null,null,"TFS",2]
[null,"Valid Until 31st  December 2027"]
[null,"Fitment Type",null,"Details",null,null,"Fitment Rating Score, α"]
[null,"Option A",null,"Vehicle model meets Pedestrian Protection (UNR 127-3)  ",null,null,1]
[null,"Option B",null,"Vehicle model meets Pedestrian Protection (UNR 127-2)  ",null,null,0.5]
[null,"Option C",null,"Vehicle model does not meet Pedestrian Protection (UNR 127)",null,null,0]

{"sheet":"MS-AEB CM","index":20,"n_rows":101,"n_cols":14,"rows_kept":101,"cut":false,"hidden":false,"merged":[[60,5,61,5],[60,6,61,7],[72,6,72,7],[19,1,19,2],[19,3,19,5],[19,6,19,7],[100,2,100,4],[4,10,6,10],[57,2,57,3],[57,4,57,5],[57,6,57,7],[17,1,17,2],[17,3,17,5],[17,6,17,7],[18,1,18,2],[18,3,18,5],[18,6,18,7],[93,4,94,4],[78,2,78,3],[79,2,79,3],[80,2,80,3],[81,2,81,3],[4,14,4,16],[5,11,5,13],[5,14,5,16],[14,6,14,7],[4,11,4,13],[1,1,1,7],[3,1,3,2],[3,6,3,7],[4,6,13,7],[16,1,16,2],[16,3,16,5],[16,6,16,7],[82,2,82,3],[83,2,83,3],[34,8,34,9],[34,10,34,11],[99,2,99,4],[95,3,96,3],[97,3,98,3],[97,4,98,4],[86,1,87,4],[89,1,90,1],[89,4,92,4],[91,1,92,1],[91,2,92,2],[91,3,92,3],[93,1,94,1],[93,2,94,2],[93,3,94,3],[49,2,49,3],[22,1,23,1],[22,2,22,5],[22,6,22,9],[49,4,49,5],[49,6,49,7],[52,1,53,1],[52,2,53,3],[52,4,53,5],[52,6,53,7],[60,1,61,1],[60,2,61,3],[72,2,72,3],[75,1,76,1],[75,2,77,3],[22,10,22,13],[23,2,23,3],[23,4,23,5],[23,6,23,7],[23,8,23,9],[23,10,23,11],[23,12,23,13],[34,12,34,13],[36,2,36,5],[36,10,36,13],[37,1,38,1],[37,2,37,3],[37,4,37,5],[37,6,37,7],[37,10,37,11],[37,12,37,13],[38,2,38,3],[38,4,38,5],[38,6,38,7],[38,8,38,9],[34,2,34,3],[34,4,34,5],[34,6,34,7],[95,1,96,1],[95,2,96,2],[95,4,96,4],[97,1,98,1],[97,2,98,2]]}
[]
[null,"Fitment Rating System for AEB Car to Motorcyclist"]
[]
[null,"COUNTRY",null,"FITMENT TYPE","α x CS","CS","CTFS"]
[null,"Brunei",null,null,{"$f":"IF(AND(C5=\"Yes\",D5=\"Option A\"),F5*1,IF(AND(C5=\"Yes\",D5=\"Option B\"),F5*0.5,IF(AND(C5=\"Yes\",D5=\"Option C\"),F5*0,0)))","v":0},{"$f":"IF(C5=\"Yes\",2,0)","v":0},{"$f":"(SUM(E5:E14)/SUM(F5:F14))*G15*C101","v":6}]
[null,"Singapore",null,null,{"$f":"IF(AND(C6=\"Yes\",D6=\"Option A\"),F6*1,IF(AND(C6=\"Yes\",D6=\"Option B\"),F6*0.5,IF(AND(C6=\"Yes\",D6=\"Option C\"),F6*0,0)))","v":0},{"$f":"IF(C6=\"Yes\",2,0)","v":0}]
[null,"Malaysia","Yes","Option A",3,{"$f":"IF(C7=\"Yes\",3,0)","v":3}]
[null,"Thailand",null,null,0,{"$f":"IF(C8=\"Yes\",3,0)","v":0}]
[null,"Indonesia",null,null,0,{"$f":"IF(C9=\"Yes\",3,0)","v":0}]
[null,"The Philippines",null,null,0,{"$f":"IF(C10=\"Yes\",2,0)","v":0}]
[null,"Vietnam",null,null,0,{"$f":"IF(C11=\"Yes\",2,0)","v":0}]
[null,"Laos",null,null,0,{"$f":"IF(C12=\"Yes\",1,0)","v":0}]
[null,"Cambodia",null,null,0,{"$f":"IF(C13=\"Yes\",1,0)","v":0}]
[null,"Myanmar",null,null,0,{"$f":"IF(C14=\"Yes\",1,0)","v":0}]
[null,null,null,null,null,"TFS",6]
[]
[null,"Fitment Type",null,"Details",null,null,"Fitment Rating Score, α"]
[null,"Option A",null,"Vehicle model is equipped with AEB CM as standard equipment",null,null,1]
[null,"Option B",null,"Vehicle model is equipped with AEB CM as optional equipment",null,null,0.5]
[null,"Option C",null,"Vehicle model is not equipped with AEB CM",null,null,0]
[]
[]
[null,"CMRm (50%)","30km/h",null,null,null,"45 km/h",null,null,null,"60 km/h"]
[null,null,"AEB",null,"FCW",null,"AEB",null,"FCW",null,"AEB",null,"FCW"]
[null,"Test speed (km/h)","Vimpact (km/h)","Points","Vimpact (km/h)","Points","Vimpact (km/h)","Points","Vimpact (km/h)","Points","Vimpact (km/h)","Points","Vimpact (km/h)","Points"]
[null,40,0,{"$f":"IF(C26=\"\",0,IF(C26=0,1,0))","v":1},0,{"$f":"IF(E26=\"\",0,IF(E26=0,1,0))","v":1}]
[null,45,0,{"$f":"IF(C27=\"\",0,IF(C27=0,1,0))","v":1},0,1]
[null,50,0,1,0,1]
[null,55,0,1,0,1,0,{"$f":"IF(G29=\"\",0,IF(G29=0,1,0))","v":1},0,{"$f":"IF(I29=\"\",0,IF(I29=0,1,0))","v":1}]
[null,60,0,1,0,1,0,1,0,1]
[null,65,null,null,0,1,null,null,0,1]
[null,70,null,null,0,1,null,null,0,1,null,null,0,{"$f":"IF(M32=\"\",0,IF(M32=0,1,0))","v":1}]
[null,75,null,null,0,1,null,null,0,1,null,null,0,1]
[null,80,null,null,0,1,null,null,0,1,null,null,0,1]
[null,"Result",{"$f":"SUM(D26:D30)","v":5},null,{"$f":"SUM(F26:F34)","v":9},null,{"$f":"SUM(H29:H30)","v":2},null,{"$f":"SUM(J29:J34)","v":6},null,null,null,{"$f":"SUM(N32:N34)","v":3}]
[]
[]
[null,"CMRm (25%)","30km/h",null,"45 km/h",null,"60 km/h"]
[null,null,"FCW",null,"FCW",null,"FCW"]
[null,"Test speed (km/h)","Vimpact (km/h)","Points","Vimpact (km/h)","Points","Vimpact (km/h)","Points"]
[null,40,0,{"$f":"IF(C41=\"\",0,IF(C41=0,1,0))","v":1}]
[null,45,0,{"$f":"IF(C42=\"\",0,IF(C42=0,1,0))","v":1}]
[null,50,0,1]
[null,55,0,1,0,{"$f":"IF(E44=\"\",0,IF(E44=0,1,0))","v":1}]
[null,60,0,1,0,1]
[null,65,0,{"$f":"IF(C46=\"\",0,IF(C46=0,1,0))","v":1},0,1]
[null,70,0,{"$f":"IF(C47=\"\",0,IF(C47=0,1,0))","v":1},0,1,0,{"$f":"IF(G47=\"\",0,IF(G47=0,1,0))","v":1}]
[null,75,0,1,0,1,0,1]
[null,80,0,1,0,1,0,1]
[null,"Result",{"$f":"SUM(D41:D49)","v":9},null,{"$f":"SUM(F44:F49)","v":6},null,{"$f":"SUM(H47:H49)","v":3}]
[]
[]
[null,"CMFtap","30km/h",null,"45 km/h",null,"60 km/h"]
[]
[null,"Test speed (km/h)","Vimpact (km/h)","Points","Vimpact (km/h)","Points","Vimpact (km/h)","Points"]
[null,10,0,{"$f":"IF(C56=\"\",0,IF(C56=0,1,0))","v":1},0,{"$f":"IF(E56=\"\",0,IF(E56=0,1,0))","v":1},0,{"$f":"IF(G56=\"\",0,IF(G56=0,1,0))","v":1}]
[null,20,0,{"$f":"IF(C57=\"\",0,IF(C57=0,1,0))","v":1},0,1,0,1]
[null,"Result",{"$f":"SUM(D56:D57)","v":2},null,{"$f":"SUM(F56:F57)","v":2},null,{"$f":"SUM(H56:H57)","v":2}]
[]
[]
[null,"CMCrossing (Nearside)","20km/h",null,null,"CMCrossing (Farside)","20km/h"]
[]
[null,"Test speed (km/h)","Vimpact (km/h)","Points",null,"Test speed (km/h)","Vimpact (km/h)","Points"]
[null,20,0,{"$f":"IF(C64=\"\",0,IF(C64=0,1,0))","v":1},null,20,0,{"$f":"IF(G64=\"\",0,IF(G64=0,1,0))","v":1}]
[null,25,0,{"$f":"IF(C65=\"\",0,IF(C65=0,1,0))","v":1},null,25,0,{"$f":"IF(G65=\"\",0,IF(G65=0,1,0))","v":1}]
[null,30,0,1,null,30,0,1]
[null,35,0,1,null,35,0,1]
[null,40,0,1,null,40,0,1]
[null,45,0,1,null,45,0,1]
[null,50,0,1,null,50,0,1]
[null,55,0,1,null,55,0,1]
[null,60,0,1,null,60,0,1]
[null,"Result",{"$f":"SUM(D64:D72)","v":9},null,null,"Result",{"$f":"SUM(H64:H72)","v":9}]
[]
[]
[null,"CMOncoming","VUT @ 72 km/h & AMT @ 60 km/h"]
[]
[null,"VUT speed direction"]
[null,0.2,"PASS"]
[null,0.3,"PASS"]
[null,0.4,"PASS"]
[null,0.5,"PASS"]
[null,0.6,"PASS"]
[null,"Result",{"$f":"IF(COUNTIF(C79:D83,\"Pass\")=5,1,0)","v":1}]
[]
[]
[null,"Summary"]
[]
[null,"Test scenario","Test type","Total","Points"]
[null,"CMRm (50%)","AEB",{"$f":"C35+G35","v":7},{"$f":"(D90+D91+D92)/43*1.5","v":1.5}]
[null,null,"FCW",{"$f":"E35+I35+M35","v":18}]
[null,"CMRm (25%)","FCW",{"$f":"C50+E50+G50","v":18}]
[]
[null,"CMFtap","AEB",{"$f":"C58+E58+G58","v":6},{"$f":"D94/6*1.5","v":1.5}]
[]
[null,"CMCrossing","AEB",{"$f":"C73+G73","v":18},{"$f":"D96/18*1.5","v":1.5}]
[]
[null,"CMOncoming","LSS",{"$f":"C84","v":1},{"$f":"D98*1.5","v":1.5}]
[]
[null,"AEB CM Score",{"$f":"SUM(E90:E99)","v":6}]
[null,"Normalized Score",{"$f":"C100/6","v":1}]

{"sheet":"MS-Advanced","index":21,"n_rows":102,"n_cols":7,"rows_kept":102,"cut":false,"hidden":false,"merged":[[101,1,101,2],[101,3,101,5],[101,6,101,7],[87,6,96,7],[97,6,97,7],[99,1,99,2],[99,3,99,5],[99,6,99,7],[100,1,100,2],[100,3,100,5],[100,6,100,7],[81,1,81,2],[81,3,81,5],[81,6,81,7],[84,1,84,7],[86,1,86,2],[86,6,86,7],[80,1,80,2],[80,3,80,5],[80,6,80,7],[61,1,61,2],[61,3,61,5],[61,6,61,7],[64,1,64,7],[66,1,66,2],[66,6,66,7],[67,6,76,7],[77,6,77,7],[79,1,79,2],[79,3,79,5],[79,6,79,7],[60,1,60,2],[60,3,60,5],[60,6,60,7],[41,1,41,2],[41,3,41,5],[41,6,41,7],[44,1,44,7],[46,1,46,2],[46,6,46,7],[47,6,56,7],[57,6,57,7],[59,1,59,2],[59,3,59,5],[59,6,59,7],[40,1,40,2],[40,3,40,5],[40,6,40,7],[21,1,21,2],[21,3,21,5],[21,6,21,7],[24,1,24,7],[26,1,26,2],[26,6,26,7],[27,6,36,7],[37,6,37,7],[39,1,39,2],[39,3,39,5],[39,6,39,7],[17,6,17,7],[19,1,19,2],[19,3,19,5],[19,6,19,7],[20,1,20,2],[20,3,20,5],[20,6,20,7],[7,6,16,7],[1,1,1,4],[1,5,1,7],[4,1,4,7],[6,1,6,2],[6,6,6,7]]}
[]
[null,"FRS Total Score for Advanced MSTs",null,null,null,{"$f":"IF(SUM(G8,G28,G48,G68,G88)>2,2,SUM(G8,G28,G48,G68,G88))","v":2}]
[]
[]
[null,"Fitment Rating System for RCTA/RCTB"]
[]
[null,"COUNTRY",null,"FITMENT TYPE","α x CS","CS","CTFS"]
[null,"Brunei",null,null,{"$f":"IF(AND(C8=\"Yes\",D8=\"Option A\"),F8*1,IF(AND(C8=\"Yes\",D8=\"Option B\"),F8*0,0))","v":0},{"$f":"IF(C8=\"Yes\",2,0)","v":0},{"$f":"(SUM(E8:E17)/SUM(F8:F17))*G18","v":1}]
[null,"Singapore",null,null,{"$f":"IF(AND(C9=\"Yes\",D9=\"Option A\"),F9*1,IF(AND(C9=\"Yes\",D9=\"Option B\"),F9*0,0))","v":0},{"$f":"IF(C9=\"Yes\",2,0)","v":0}]
[null,"Malaysia","Yes","Option A",3,{"$f":"IF(C10=\"Yes\",3,0)","v":3}]
[null,"Thailand",null,null,0,{"$f":"IF(C11=\"Yes\",3,0)","v":0}]
[null,"Indonesia",null,null,0,{"$f":"IF(C12=\"Yes\",3,0)","v":0}]
[null,"The Philippines",null,null,0,{"$f":"IF(C13=\"Yes\",2,0)","v":0}]
[null,"Vietnam",null,null,0,{"$f":"IF(C14=\"Yes\",2,0)","v":0}]
[null,"Laos",null,null,0,{"$f":"IF(C15=\"Yes\",1,0)","v":0}]
[null,"Cambodia",null,null,0,{"$f":"IF(C16=\"Yes\",1,0)","v":0}]
[null,"Myanmar",null,null,0,{"$f":"IF(C17=\"Yes\",1,0)","v":0}]
[null,null,null,null,null,"TFS",1]
[]
[null,"Fitment Type",null,"Details",null,null,"Fitment Rating Score, α"]
[null,"Option A",null,"Vehicle model is equipped with RCTA/RCTB as standard or optional equipment",null,null,1]
[null,"Option B",null,"Vehicle model is not equipped with RCTA/RCTB ",null,null,0]
[]
[]
[null,"Fitment Rating System for Head Protection"]
[]
[null,"COUNTRY",null,"FITMENT TYPE","α x CS","CS","CTFS"]
[null,"Brunei",null,null,{"$f":"IF(AND(C28=\"Yes\",D28=\"Option A\"),F28*1,IF(AND(C28=\"Yes\",D28=\"Option B\"),F28*0,0))","v":0},{"$f":"IF(C28=\"Yes\",2,0)","v":0},{"$f":"(SUM(E28:E37)/SUM(F28:F37))*G38","v":1}]
[null,"Singapore",null,null,{"$f":"IF(AND(C29=\"Yes\",D29=\"Option A\"),F29*1,IF(AND(C29=\"Yes\",D29=\"Option B\"),F29*0,0))","v":0},{"$f":"IF(C29=\"Yes\",2,0)","v":0}]
[null,"Malaysia","Yes","Option A",3,{"$f":"IF(C30=\"Yes\",3,0)","v":3}]
[null,"Thailand",null,null,0,{"$f":"IF(C31=\"Yes\",3,0)","v":0}]
[null,"Indonesia",null,null,0,{"$f":"IF(C32=\"Yes\",3,0)","v":0}]
[null,"The Philippines",null,null,0,{"$f":"IF(C33=\"Yes\",2,0)","v":0}]
[null,"Vietnam",null,null,0,{"$f":"IF(C34=\"Yes\",2,0)","v":0}]
[null,"Laos",null,null,0,{"$f":"IF(C35=\"Yes\",1,0)","v":0}]
[null,"Cambodia",null,null,0,{"$f":"IF(C36=\"Yes\",1,0)","v":0}]
[null,"Myanmar",null,null,0,{"$f":"IF(C37=\"Yes\",1,0)","v":0}]
[null,null,null,null,null,"TFS",1]
[]
[null,"Fitment Type",null,"Details",null,null,"Fitment Rating Score, α"]
[null,"Option A",null,"Vehicle model is equipped with Head Protection as standard or optional equipment",null,null,1]
[null,"Option B",null,"Vehicle model is not equipped with Head Protection",null,null,0]
[]
[]
[null,"Fitment Rating System for XXX"]
[]
[null,"COUNTRY",null,"FITMENT TYPE","α x CS","CS","CTFS"]
[null,"Brunei",null,null,{"$f":"IF(AND(C48=\"Yes\",D48=\"Option A\"),F48*1,IF(AND(C48=\"Yes\",D48=\"Option B\"),F48*0,0))","v":0},{"$f":"IF(C48=\"Yes\",2,0)","v":0},{"$f":"(SUM(E48:E57)/SUM(F48:F57))*G58","v":1}]
[null,"Singapore",null,null,{"$f":"IF(AND(C49=\"Yes\",D49=\"Option A\"),F49*1,IF(AND(C49=\"Yes\",D49=\"Option B\"),F49*0,0))","v":0},{"$f":"IF(C49=\"Yes\",2,0)","v":0}]
[null,"Malaysia","Yes","Option A",3,{"$f":"IF(C50=\"Yes\",3,0)","v":3}]
[null,"Thailand",null,null,0,{"$f":"IF(C51=\"Yes\",3,0)","v":0}]
[null,"Indonesia",null,null,0,{"$f":"IF(C52=\"Yes\",3,0)","v":0}]
[null,"The Philippines",null,null,0,{"$f":"IF(C53=\"Yes\",2,0)","v":0}]
[null,"Vietnam",null,null,0,{"$f":"IF(C54=\"Yes\",2,0)","v":0}]
[null,"Laos",null,null,0,{"$f":"IF(C55=\"Yes\",1,0)","v":0}]
[null,"Cambodia",null,null,0,{"$f":"IF(C56=\"Yes\",1,0)","v":0}]
[null,"Myanmar",null,null,0,{"$f":"IF(C57=\"Yes\",1,0)","v":0}]
[null,null,null,null,null,"TFS",1]
[]
[null,"Fitment Type",null,"Details",null,null,"Fitment Rating Score, α"]
[null,"Option A",null,"Vehicle model is equipped with XXX as standard or optional equipment",null,null,1]
[null,"Option B",null,"Vehicle model is not equipped with XXX",null,null,0]
[]
[]
[null,"Fitment Rating System for XXX"]
[]
[null,"COUNTRY",null,"FITMENT TYPE","α x CS","CS","CTFS"]
[null,"Brunei",null,null,{"$f":"IF(AND(C68=\"Yes\",D68=\"Option A\"),F68*1,IF(AND(C68=\"Yes\",D68=\"Option B\"),F68*0,0))","v":0},{"$f":"IF(C68=\"Yes\",2,0)","v":0},{"$f":"(SUM(E68:E77)/SUM(F68:F77))*G78","v":0}]
[null,"Singapore",null,null,{"$f":"IF(AND(C69=\"Yes\",D69=\"Option A\"),F69*1,IF(AND(C69=\"Yes\",D69=\"Option B\"),F69*0,0))","v":0},{"$f":"IF(C69=\"Yes\",2,0)","v":0}]
[null,"Malaysia","Yes",null,0,{"$f":"IF(C70=\"Yes\",3,0)","v":3}]
[null,"Thailand",null,null,0,{"$f":"IF(C71=\"Yes\",3,0)","v":0}]
[null,"Indonesia",null,null,0,{"$f":"IF(C72=\"Yes\",3,0)","v":0}]
[null,"The Philippines",null,null,0,{"$f":"IF(C73=\"Yes\",2,0)","v":0}]
[null,"Vietnam",null,null,0,{"$f":"IF(C74=\"Yes\",2,0)","v":0}]
[null,"Laos",null,null,0,{"$f":"IF(C75=\"Yes\",1,0)","v":0}]
[null,"Cambodia",null,null,0,{"$f":"IF(C76=\"Yes\",1,0)","v":0}]
[null,"Myanmar",null,null,0,{"$f":"IF(C77=\"Yes\",1,0)","v":0}]
[null,null,null,null,null,"TFS",1]
[]
[null,"Fitment Type",null,"Details",null,null,"Fitment Rating Score, α"]
[null,"Option A",null,"Vehicle model is equipped with XXX as standard or optional equipment",null,null,1]
[null,"Option B",null,"Vehicle model is not equipped with XXX",null,null,0]
[]
[]
[null,"Fitment Rating System for XXX"]
[]
[null,"COUNTRY",null,"FITMENT TYPE","α x CS","CS","CTFS"]
[null,"Brunei",null,null,{"$f":"IF(AND(C88=\"Yes\",D88=\"Option A\"),F88*1,IF(AND(C88=\"Yes\",D88=\"Option B\"),F88*0,0))","v":0},{"$f":"IF(C88=\"Yes\",2,0)","v":0},{"$f":"(SUM(E88:E97)/SUM(F88:F97))*G98","v":0}]
[null,"Singapore",null,null,{"$f":"IF(AND(C89=\"Yes\",D89=\"Option A\"),F89*1,IF(AND(C89=\"Yes\",D89=\"Option B\"),F89*0,0))","v":0},{"$f":"IF(C89=\"Yes\",2,0)","v":0}]
[null,"Malaysia","Yes",null,0,{"$f":"IF(C90=\"Yes\",3,0)","v":3}]
[null,"Thailand",null,null,0,{"$f":"IF(C91=\"Yes\",3,0)","v":0}]
[null,"Indonesia",null,null,0,{"$f":"IF(C92=\"Yes\",3,0)","v":0}]
[null,"The Philippines",null,null,0,{"$f":"IF(C93=\"Yes\",2,0)","v":0}]
[null,"Vietnam",null,null,0,{"$f":"IF(C94=\"Yes\",2,0)","v":0}]
[null,"Laos",null,null,0,{"$f":"IF(C95=\"Yes\",1,0)","v":0}]
[null,"Cambodia",null,null,0,{"$f":"IF(C96=\"Yes\",1,0)","v":0}]
[null,"Myanmar",null,null,0,{"$f":"IF(C97=\"Yes\",1,0)","v":0}]
[null,null,null,null,null,"TFS",1]
[]
[null,"Fitment Type",null,"Details",null,null,"Fitment Rating Score, α"]
[null,"Option A",null,"Vehicle model is equipped with XXX as standard or optional equipment",null,null,1]
[null,"Option B",null,"Vehicle model is not equipped with XXX",null,null,0]

{"sheet":"Rating Requirements","index":22,"n_rows":9,"n_cols":26,"rows_kept":9,"cut":false,"hidden":true,"merged":[[0,21,0,25],[0,26,0,27],[0,1,0,5],[0,6,0,10],[0,11,0,15],[0,16,0,20]]}
[3,2012,null,null,null,null,2013,null,null,null,null,2014,null,null,null,null,2015,null,null,null,null,2016]
[null,"AOP","COP","PP","SA","TOT","AOP","COP","PP","SA","TOT","AOP","COP","PP","SA","TOT","AOP","COP","PP","SA","TOT","AOP","COP","PP","SA","TOT"]
["5 stars",80,75,60,60,80,80,60,60,65,80,80,75,60,65,75,80,75,65,70,75]
["4 stars",70,60,50,40,70,70,60,50,55,70,70,60,50,55,65,70,60,50,60,65]
["3 stars",40,30,25,25,60,40,30,25,30,60,50,30,40,30,50,50,30,40,40,50]
["2 stars",30,25,15,15,55,30,25,15,20,55,30,25,20,20,40,30,25,20,20,40]
["1 star",20,15,10,5,45,20,15,10,10,45,20,15,10,10,30,20,15,10,10,30]
["Weighting",50,20,20,10,null,50,20,20,10,null,40,20,20,20,null,40,20,20,20]
["Max points",36,49,36,7,null,36,49,36,9,null,38,49,36,13,null,38,49,36,13]

{"sheet":"Database Reference","index":23,"n_rows":1272,"n_cols":32,"rows_kept":1272,"cut":false,"hidden":true,"merged":[]}
["ValueStructure_Key","Parent_Key","ValueName","Description","Label","XMLtag","ValueFunction","Sort","DATABASE_ID",null,null,null,null,null,null,null,null,null,null,null,null,null,null,null,null,null,"N/A",0,"N/A",0,"Belt",1]
[581,697,"POLE TEST PERFORMED",null,null,"Yes","Database Reference'!$K$483",50,{"$f":"COUNTIF($A$2:$A$3487,A2)","v":1},null,null,null,null,null,null,null,null,null,null,null,null,null,null,null,null,null,"D Green",1,"Exempt",1,"iSize",3]
[100,611,"UNROUNDED ADULT OCCUPANT SCORE",null,null,{"$f":"#REF!","v":{"$error":"#REF!"}},"Database Reference'!$K$2",10,1,null,null,null,null,null,null,null,null,null,null,null,null,null,null,null,null,null,"Green",2,"Pass",2,"ISOFIX",2]
[101,100,"FRONTAL IMPACT SCORE",null,null,{"$f":"#REF!","v":{"$error":"#REF!"}},"Database Reference'!$K$3",10,1,null,null,null,null,null,null,null,null,null,null,null,null,null,null,null,null,null,"Yellow",3,"P Fail",3,"N/A",0]
[102,101,"HEAD AND NECK BODY REGION SCORE",null,null,{"$f":"MIN(F6,F24)","v":4},null,10,1,null,null,null,null,null,null,null,null,null,null,null,null,null,null,null,null,null,"Orange",4,"Fail",4]
[103,102,"DRIVER HEAD/NECK SCORE",null,null,{"$f":"'AOP Frontal ODB'!D32","v":4},"Database Reference'!$K$5",10,1,null,null,null,null,null,null,null,null,null,null,null,null,null,null,null,null,null,"Brown",5]
[104,103,"DRIVER HEAD SCORE",null,null,{"$f":"'AOP Frontal ODB'!E22","v":4},"Database Reference'!$K$6",10,1,null,null,null,null,null,null,null,null,null,null,null,null,null,null,null,null,null,"Red",6]
[105,104,"HIC36",null,null,{"$f":"'AOP Frontal ODB'!D8","v":500},"Database Reference'!$K$7",10,1,null,null,null,null,null,null,null,null,null,null,null,null,null,null,null,null,null,"D Red",7]
[106,104,"Resultant Acc. 3 msec exeedence ",null,null,{"$f":"'AOP Frontal ODB'!D9","v":37.71},"Database Reference'!$K$8",20,1,null,null,null,null,null,null,null,null,null,null,null,null,null,null,null,null,null,"Blue",8]
[107,104,"Honeycomb crush",null,null,{"$f":"'AOP Frontal ODB'!D11","v":0},"Database Reference'!$K$9",30,1]
[108,104,"HIC36","Honeycomb crush",null,{"$f":"'AOP Frontal ODB'!D13","v":0},"Database Reference'!$K$10",40,1]
[109,104,"Resultant peak Acc.","Honeycomb crush",null,{"$f":"'AOP Frontal ODB'!D12","v":0},"Database Reference'!$K$11",50,1]
[110,104,"Resultant Acc. 3 msec exeedence","Honeycomb crush",null,{"$f":"'AOP Frontal ODB'!D14","v":0},"Database Reference'!$K$12",60,1]
[111,104,"Displacement top end of steering column H (-1-0 points)",null,null,{"$f":"'AOP Frontal ODB'!D19","v":-18.313000000000102},"Database Reference'!$K$13",70,1]
[112,104,"Displacement top end of steering column V (-1-0 points)",null,null,{"$f":"'AOP Frontal ODB'!D20","v":15.927000000000135},"Database Reference'!$K$14",80,1]
[113,104,"Displacement top end of steering column L (-1-0 points)",null,null,{"$f":"'AOP Frontal ODB'!D21","v":-3.5790000000000077},"Database Reference'!$K$15",90,1]
[114,104,"Unstable airbag or bottoming out(-1-0 points)",null,null,0,"Database Reference'!$K$16",100,1]
[115,103,"DRIVER NECK SCORE",null,null,{"$f":"'AOP Frontal ODB'!E30","v":4},"Database Reference'!$K$17",20,1]
[116,115,"Shear level exceeded - kN",null,null,{"$f":"'AOP Frontal ODB'!D25","v":0.45},"Database Reference'!$K$18",10,1]
[117,115,"Dr duration of shear exceedence",null,null,{"$f":"'AOP Frontal ODB'!D26","v":0},"Database Reference'!$K$19",20,1]
[118,115,"Dr Tension level exceeded - kN",null,null,{"$f":"'AOP Frontal ODB'!D27","v":1.1599999999999999},"Database Reference'!$K$20",30,1]
[119,115,"Dr duration of tension exceedence - ms",null,null,{"$f":"'AOP Frontal ODB'!D28","v":0},"Database Reference'!$K$21",40,1]
[120,115,"Dr Extension My - Nm",null,null,{"$f":"'AOP Frontal ODB'!D29","v":8.6999999999999993},"Database Reference'!$K$22",50,1]
[121,102,"PASSENGER HEAD/NECK SCORE",null,null,{"$f":"'AOP Frontal ODB'!F32","v":4},"Database Reference'!$K$23",20,1]
[122,121,"PASSENGER HEAD SCORE",null,null,{"$f":"'AOP Frontal ODB'!G22","v":4},"Database Reference'!$K$24",10,1]
[123,122,"Pass HIC36",null,null,{"$f":"'AOP Frontal ODB'!F8","v":120.56},"Database Reference'!$K$25",10,1]
[124,122,"Pass Resultant Acc. 3 msec exeedence ",null,null,{"$f":"'AOP Frontal ODB'!F9","v":37.6},"Database Reference'!$K$26",20,1]
[125,122,"Pass Unstable airbag or bottoming out(-1-0 points)",null,null,0,"Database Reference'!$K$27",30,1]
[126,121,"PASSENGER NECK SCORE",null,null,{"$f":"'AOP Frontal ODB'!G30","v":4},"Database Reference'!$K$28",10,1]
[127,126,"Shear level exceeded - kN",null,null,{"$f":"'AOP Frontal ODB'!F25","v":0.89},"Database Reference'!$K$29",10,1]
[128,126,"Pass duration of shear exceedence",null,null,{"$f":"'AOP Frontal ODB'!F26","v":0},"Database Reference'!$K$30",20,1]
[129,126,"Tension level exceeded - kN",null,null,{"$f":"'AOP Frontal ODB'!F27","v":1.44},"Database Reference'!$K$31",30,1]
[130,126,"Duration of tension exceedence",null,null,{"$f":"'AOP Frontal ODB'!F28","v":0},"Database Reference'!$K$32",40,1]
[131,126,"Extension My - Nm",null,null,{"$f":"'AOP Frontal ODB'!F29","v":7.89},"Database Reference'!$K$33",50,1]
[132,101,"CHEST SCORE",null,null,{"$f":"MIN(F36,F42)","v":2.968},null,20,1]
[133,132,"DRIVER CHEST SCORE","SumDrChestAssessment",null,{"$f":"'AOP Frontal ODB'!D42","v":4},"Database Reference'!$K$35",10,1]
[134,133,"Compression",null,null,{"$f":"'AOP Frontal ODB'!D35","v":20.010000000000002},"Database Reference'!$K$36",10,1]
[135,133,"viscous criterion",null,null,{"$f":"'AOP Frontal ODB'!D36","v":0.05},"Database Reference'!$K$37",20,1]
[136,133,"A Pillar Displacement",null,null,{"$f":"'AOP Frontal ODB'!D40","v":4.5740000000000691},"Database Reference'!$K$38",30,1]
[137,133,"Steering wheel contact (-1) ",null,null,{"$f":"'AOP Frontal ODB'!D39","v":0},"Database Reference'!$K$39",40,1]
[138,133,"Unstable passenger compartment (-1)",null,null,{"$f":"'AOP Frontal ODB'!D41","v":0},"Database Reference'!$K$40",50,1]
[139,132,"PASSENGER CHEST SCORE",null,null,{"$f":"'AOP Frontal ODB'!F42","v":2.968},"Database Reference'!$K$41",20,1]
[140,139,"Compression",null,null,{"$f":"'AOP Frontal ODB'!F35","v":27.16},"Database Reference'!$K$42",10,1]
[141,139,"viscous criterion",null,null,{"$f":"'AOP Frontal ODB'!F36","v":0.5},"Database Reference'!$K$43",20,1]
[142,101,"KNEE/FEMUR/PELVIS BODY REGION SCORE",null,null,{"$f":"MIN('AOP Frontal ODB'!D97,'AOP Frontal ODB'!F97)","v":4},null,20,1]
[143,142,"DRIVER KNEE/FEMUR/PELVIS SCORE",null,null,{"$f":"'AOP Frontal ODB'!D60","v":4},"Database Reference'!$K$45",10,1]
[144,143,"DRIVER LEFT KNEE/FEMUR/PELVIS SCORE",null,null,{"$f":"'AOP Frontal ODB'!E51","v":4},"Database Reference'!$K$46",10,1]
[145,144,"Left Knee Slide - mm",null,null,{"$f":"'AOP Frontal ODB'!D45","v":0.03},"Database Reference'!$K$47",10,1]
[146,144,"Left Femur Compression level exceeded - kN",null,null,{"$f":"'AOP Frontal ODB'!D46","v":0.23},"Database Reference'!$K$48",20,1]
[147,144,"Duration of femur exceedence",null,null,{"$f":"'AOP Frontal ODB'!D47","v":0},"Database Reference'!$K$49",30,1]
[148,144,"Left Knee Variable contact (-1) ",null,null,{"$f":"'AOP Frontal ODB'!D48","v":0},"Database Reference'!$K$50",40,1]
[149,144,"Left Knee Concentrated loading (-1) ",null,null,{"$f":"'AOP Frontal ODB'!D49","v":0},"Database Reference'!$K$51",50,1]
[150,143,"DRIVER RIGTH KNEE/FEMUR/PELVIS SCORE",null,null,{"$f":"'AOP Frontal ODB'!E58","v":4},"Database Reference'!$K$52",20,1]
[151,150,"Right Knee Slide - mm",null,null,{"$f":"'AOP Frontal ODB'!D52","v":1.46},"Database Reference'!$K$53",10,1]
[152,150,"Right Femur Compression level exceeded - kN",null,null,{"$f":"'AOP Frontal ODB'!D53","v":0.02},"Database Reference'!$K$54",20,1]
[153,150,"Duration of femur exceedence",null,null,{"$f":"'AOP Frontal ODB'!D54","v":0},"Database Reference'!$K$55",30,1]
[154,150,"Right Variable contact (-1) ",null,null,{"$f":"'AOP Frontal ODB'!D55","v":0},"Database Reference'!$K$56",40,1]
[155,150,"Right Concentrated loading (-1) ",null,null,{"$f":"'AOP Frontal ODB'!D56","v":0},"Database Reference'!$K$57",50,1]
[156,142,"PASSENGER KNEE/FEMUR/PELVIS SCORE",null,null,{"$f":"'AOP Frontal ODB'!F60","v":4},"Database Reference'!$K$58",20,1]
[157,156,"PASSENGER LEFT KNEE/FEMUR/PELVIS SCORE",null,null,{"$f":"'AOP Frontal ODB'!G51","v":4},"Database Reference'!$K$59",10,1]
[158,157,"Pass Left Knee Slide - mm",null,null,{"$f":"'AOP Frontal ODB'!F52","v":0.27},"Database Reference'!$K$60",10,1]
[159,157,"Pass Left Femur Compression level exceeded - kN",null,null,{"$f":"'AOP Frontal ODB'!F53","v":0.12},"Database Reference'!$K$61",20,1]
[160,157,"Duration of femur exceedence",null,null,{"$f":"'AOP Frontal ODB'!F54","v":0},"Database Reference'!$K$62",30,1]
[161,157,"Left Knee Variable contact (-1) ",null,null,{"$f":"'AOP Frontal ODB'!F55","v":0},"Database Reference'!$K$63",40,1]
[162,157,"Left Knee Concentrated loading (-1) ",null,null,{"$f":"'AOP Frontal ODB'!F56","v":0},"Database Reference'!$K$64",50,1]
[163,156,"PASSENGER RIGHT KNEE/FEMUR/PELVIS SCORE",null,null,{"$f":"'AOP Frontal ODB'!G58","v":4},"Database Reference'!$K$65",20,{"$f":"COUNTIF($A$2:$A$3487,A66)","v":1}]
[164,163,"Right Knee Slide - mm",null,null,{"$f":"'AOP Frontal ODB'!F52","v":0.27},"Database Reference'!$K$66",10,1]
[165,163,"Right Femur Compression level exceeded - kN",null,null,{"$f":"'AOP Frontal ODB'!F53","v":0.12},"Database Reference'!$K$67",20,1]
[166,163,"Duration of femur exceedence",null,null,{"$f":"'AOP Frontal ODB'!F54","v":0},"Database Reference'!$K$68",30,1]
[167,163,"Right Variable contact (-1) ",null,null,{"$f":"'AOP Frontal ODB'!F55","v":0},"Database Reference'!$K$69",40,1]
[168,163,"Right Concentrated loading (-1) ",null,null,{"$f":"'AOP Frontal ODB'!F56","v":0},"Database Reference'!$K$70",50,1]
[169,101,"LOWER LEG, FOOT AND ANKLE BODY REGION SCORE",null,null,{"$f":"MIN('Database Reference'!F73,'Database Reference'!F86)","v":3.1110000000000002},null,30,1]
[170,169,"DRIVER LOWER LEG, FOOT AND ANKLE SCORE",null,null,{"$f":"'AOP Frontal ODB'!D92","v":3.9729999999999999},"Database Reference'!$K$72",10,1]
[171,170,"DRIVER LEFT LOWER LEG SCORE",null,null,{"$f":"'AOP Frontal ODB'!E71","v":4},"Database Reference'!$K$73",10,1]
[172,171,"Left compression Fz - kN",null,null,{"$f":"'AOP Frontal ODB'!D63","v":1.31},"Database Reference'!$K$74",10,1]
[173,171,"Left Upper Tibia Index ",null,null,{"$f":"'AOP Frontal ODB'!D65","v":0.4},"Database Reference'!$K$75",20,1]
[174,171,"Left Lower Tibia Index",null,null,{"$f":"'AOP Frontal ODB'!D66","v":0.22},"Database Reference'!$K$76",30,1]
[175,170,"DRIVER RIGHT LOWER LEG SCORE",null,null,{"$f":"'AOP Frontal ODB'!E81","v":3.9729999999999999},"Database Reference'!$K$77",20,1]
[176,175,"Right compression Fz - kN",null,null,{"$f":"'AOP Frontal ODB'!D74","v":2.04},"Database Reference'!$K$78",10,1]
[177,175,"Right Upper Tibia Index ",null,null,{"$f":"'AOP Frontal ODB'!D75","v":0.36},"Database Reference'!$K$79",20,1]
[178,175,"Right Lower Tibia Index",null,null,{"$f":"'AOP Frontal ODB'!D76","v":0.22},"Database Reference'!$K$80",30,1]
[179,170,"DRIVER FOOT AND ANKLE SCORE",null,null,{"$f":"'AOP Frontal ODB'!E90","v":4},"Database Reference'!$K$81",30,1]
[180,179,"Pedal horizontal displacement - mm",null,null,{"$f":"'AOP Frontal ODB'!D84","v":32.107999999999947},"Database Reference'!$K$82",10,1]
[181,179,"Footwell Rupture (-1)",null,null,{"$f":"'AOP Frontal ODB'!D88","v":0},"Database Reference'!$K$83",20,1]
[182,179,"Pedal Blocking (-1)",null,null,{"$f":"'AOP Frontal ODB'!D89","v":0},"Database Reference'!$K$84",30,1]
[183,169,"PASSENGER LOWER LEG SCORE",null,null,{"$f":"'AOP Frontal ODB'!F92","v":3.1110000000000002},"Database Reference'!$K$85",20,1]
[184,183,"PASSENGER LEFT LOWER LEG SCORE",null,null,{"$f":"'AOP Frontal ODB'!G71","v":3.1110000000000002},"Database Reference'!$K$86",10,1]
[185,184,"Left compression Fz - kN",null,null,{"$f":"'AOP Frontal ODB'!F63","v":1.56},"Database Reference'!$K$87",10,1]
[186,184,"Left Upper Tibia Index ",null,null,{"$f":"'AOP Frontal ODB'!F65","v":0.6},"Database Reference'!$K$88",20,1]
[187,184,"Left Lower Tibia Index",null,null,{"$f":"'AOP Frontal ODB'!F66","v":0.4},"Database Reference'!$K$89",30,1]
[188,183,"PASSENGER RIGHT LOWER LEG SCORE",null,null,{"$f":"'AOP Frontal ODB'!G81","v":4},"Database Reference'!$K$90",20,1]
[189,188,"Right compression Fz - kN",null,null,{"$f":"'AOP Frontal ODB'!F74","v":1.43},"Database Reference'!$K$91",10,1]
[190,188,"Right Upper Tibia Index ",null,null,{"$f":"'AOP Frontal ODB'!F75","v":0.23},"Database Reference'!$K$92",20,1]
[191,188,"Right Lower Tibia Index",null,null,{"$f":"'AOP Frontal ODB'!F76","v":0.38},"Database Reference'!$K$93",30,1]
[192,101,"DOOR OPENING IN FRONTAL IMPACT","Modifier",null,{"$f":"'AOP Frontal ODB'!D100","v":0},"Database Reference'!$K$94",40,1]
[193,740,"SIDE IMPACT SCORE",null,null,{"$f":"#REF!","v":{"$error":"#REF!"}},"Database Reference'!$K$95",20,1]
[194,193,"HEAD BODY REGION SCORE",null,null,{"$f":"#REF!","v":{"$error":"#REF!"}},"Database Reference'!$K$96",10,1]
[195,194,"Peak resultant acceleration - g",null,null,{"$f":"#REF!","v":{"$error":"#REF!"}},"Database Reference'!$K$97",10,1]
[196,194,"HIC36",null,null,{"$f":"#REF!","v":{"$error":"#REF!"}},"Database Reference'!$K$98",20,1]
[197,194,"Resultant Acc. 3 msec exceedence - g",null,null,{"$f":"#REF!","v":{"$error":"#REF!"}},"Database Reference'!$K$99",30,1]
[198,194,"Incorrect airbag deployment (-1)",null,null,{"$f":"#REF!","v":{"$error":"#REF!"}},null,40,1]
[199,193,"CHEST BODY REGION SCORE",null,null,{"$f":"#REF!","v":{"$error":"#REF!"}},"Database Reference'!$K$101",20,1]
[200,199,"TOP RIB SCORE",null,null,{"$f":"#REF!","v":{"$error":"#REF!"}},"Database Reference'!$K$102",10,1]
[201,200,"Top rib Compression - mm",null,null,{"$f":"#REF!","v":{"$error":"#REF!"}},"Database Reference'!$K$103",10,1]
[202,200,"Top rib Viscous Criterion - m/s",null,null,{"$f":"#REF!","v":{"$error":"#REF!"}},"Database Reference'!$K$104",20,1]
[203,199,"MID RIB SCORE",null,null,{"$f":"#REF!","v":{"$error":"#REF!"}},"Database Reference'!$K$105",10,1]
[204,203,"Mid rib Compression - mm",null,null,{"$f":"#REF!","v":{"$error":"#REF!"}},"Database Reference'!$K$106",10,1]
[205,203,"Mid rib Viscous Criterion - m/s",null,null,{"$f":"#REF!","v":{"$error":"#REF!"}},"Database Reference'!$K$107",20,1]
[206,199,"BOTTOM RIB SCORE",null,null,{"$f":"#REF!","v":{"$error":"#REF!"}},"Database Reference'!$K$108",30,1]
[207,206,"Bottom rib Compression - mm",null,null,{"$f":"#REF!","v":{"$error":"#REF!"}},"Database Reference'!$K$109",10,1]
[208,206,"Bottom rib Viscous Criterion - m/s",null,null,{"$f":"#REF!","v":{"$error":"#REF!"}},"Database Reference'!$K$110",20,1]
[209,199,"T12 Modifier",null,null,{"$f":"#REF!","v":{"$error":"#REF!"}},"Database Reference'!$K$111",40,1]
[210,199,"Backplate Load Modifier",null,null,{"$f":"#REF!","v":{"$error":"#REF!"}},"Database Reference'!$K$112",50,1]
[211,199,"Incorrect airbag deployment",null,null,{"$f":"#REF!","v":{"$error":"#REF!"}},null,60,1]
[212,193,"ABDOMEN BODY REGION SCORE",null,null,{"$f":"#REF!","v":{"$error":"#REF!"}},"Database Reference'!$K$114",30,1]
[213,212,"Peak lateral force - kN",null,null,{"$f":"#REF!","v":{"$error":"#REF!"}},"Database Reference'!$K$115",10,1]
[214,212,"Peak lateral force - kN",null,null,{"$f":"#REF!","v":{"$error":"#REF!"}},"Database Reference'!$K$116",20,1]
[215,212,"Peak lateral force - kN",null,null,{"$f":"#REF!","v":{"$error":"#REF!"}},"Database Reference'!$K$117",30,1]
[216,212,"Incorrect airbag deployment (-1)","Not used",null,null,null,40,1]
[217,193,"PELVIS BODY REGION SCORE",null,null,{"$f":"#REF!","v":{"$error":"#REF!"}},"Database Reference'!$K$119",40,1]
[218,217,"Pubic Symphysis force - kN",null,null,{"$f":"#REF!","v":{"$error":"#REF!"}},"Database Reference'!$K$120",10,1]
[219,193,"INCORRECT AIRBAG DEPLOYMENT",null,null,{"$f":"#REF!","v":{"$error":"#REF!"}},null,50,1]
[220,193,"DOORS OPENING IN SIDE IMPACT",null,null,{"$f":"#REF!","v":{"$error":"#REF!"}},"Database Reference'!$K$122",60,1]
[221,741,"POLE TEST SCORE",null,null,{"$f":"#REF!","v":{"$error":"#REF!"}},"Database Reference'!$K$123",30,1]
[222,221,"HEAD BODY REGION SCORE",null,null,{"$f":"#REF!","v":{"$error":"#REF!"}},"Database Reference'!$K$124",10,1]
[223,222,"Peak resultant acceleration - g",null,null,{"$f":"#REF!","v":{"$error":"#REF!"}},"Database Reference'!$K$125",10,1]
[224,222,"HIC36",null,null,{"$f":"#REF!","v":{"$error":"#REF!"}},"Database Reference'!$K$126",20,1]
[225,222,"Resultant Acc. 3 msec exceedence - g",null,null,{"$f":"#REF!","v":{"$error":"#REF!"}},"Database Reference'!$K$127",30,1]
[226,222,"Incorrect airbag deployment (-1)",null,null,{"$f":"#REF!","v":{"$error":"#REF!"}},null,40,1]
[227,221,"CHEST BODY REGION SCORE",null,null,{"$f":"#REF!","v":{"$error":"#REF!"}},"Database Reference'!$K$129",20,{"$f":"COUNTIF($A$2:$A$3487,A130)","v":1}]
[228,227,"TOP RIB SCORE",null,null,{"$f":"#REF!","v":{"$error":"#REF!"}},"Database Reference'!$K$130",10,1]
[229,228,"Top rib Compression - mm",null,null,{"$f":"#REF!","v":{"$error":"#REF!"}},"Database Reference'!$K$131",10,1]
[230,228,"Top rib Viscous Criterion - m/s",null,null,{"$f":"#REF!","v":{"$error":"#REF!"}},"Database Reference'!$K$132",20,1]
[231,227,"MID RIB SCORE",null,null,{"$f":"#REF!","v":{"$error":"#REF!"}},"Database Reference'!$K$133",20,1]
[232,231,"Mid rib Compression - mm",null,null,{"$f":"#REF!","v":{"$error":"#REF!"}},"Database Reference'!$K$134",10,1]
[233,231,"Mid rib Viscous Criterion - m/s",null,null,{"$f":"#REF!","v":{"$error":"#REF!"}},"Database Reference'!$K$135",20,1]
[234,227,"BOTTOM RIB SCORE",null,null,{"$f":"#REF!","v":{"$error":"#REF!"}},"Database Reference'!$K$136",30,1]
[235,234,"Bottom rib Compression - mm",null,null,{"$f":"#REF!","v":{"$error":"#REF!"}},"Database Reference'!$K$137",10,1]
[236,234,"Bottom rib Viscous Criterion - m/s",null,null,{"$f":"#REF!","v":{"$error":"#REF!"}},"Database Reference'!$K$138",20,1]
[237,227,"T12 MODIFIER",null,null,{"$f":"#REF!","v":{"$error":"#REF!"}},"Database Reference'!$K$139",40,1]
[238,227,"BACKPLATE LOAD MODIFER",null,null,{"$f":"#REF!","v":{"$error":"#REF!"}},"Database Reference'!$K$140",50,1]
[239,227,"INCORRECT AIRBAG DEPLOYMENT",null,null,{"$f":"#REF!","v":{"$error":"#REF!"}},null,60,1]
[240,221,"ABDOMEN BODY REGION SCORE",null,null,{"$f":"#REF!","v":{"$error":"#REF!"}},"Database Reference'!$K$142",30,1]
[241,240,"Front Peak lateral force - kN",null,null,{"$f":"#REF!","v":{"$error":"#REF!"}},"Database Reference'!$K$143",10,1]
[242,240,"Mid Peak lateral force - kN",null,null,{"$f":"#REF!","v":{"$error":"#REF!"}},"Database Reference'!$K$144",20,1]
[243,240,"Rear Peak lateral force - kN",null,null,{"$f":"#REF!","v":{"$error":"#REF!"}},"Database Reference'!$K$145",30,1]
[244,240,"Incorrect airbag deployment (-1)","Not used",null,null,null,40,1]
[245,221,"PELVIS BODY REGION SCORE",null,null,{"$f":"#REF!","v":{"$error":"#REF!"}},"Database Reference'!$K$147",40,1]
[246,245,"Pubic Symphysis force - kN",null,null,{"$f":"#REF!","v":{"$error":"#REF!"}},"Database Reference'!$K$148",10,1]
[247,221,"INCORRECT AIRBAG DEPLOYMENT",null,null,{"$f":"#REF!","v":{"$error":"#REF!"}},"Database Reference'!$K$149",50,1]
[248,221,"DOORS OPENING IN POLE IMPACT",null,null,{"$f":"#REF!","v":{"$error":"#REF!"}},"Database Reference'!$K$150",60,1]
[249,697,"SBR POINTS",null,null,{"$f":"#REF!","v":{"$error":"#REF!"}},"Database Reference'!$K$151",60,1]
[250,612,"UNROUNDED CHILD PROTECTION SCORE",null,null,{"$f":"#REF!","v":{"$error":"#REF!"}},"Database Reference'!$K$152",20,1]
[251,250,"CRS Dynamic Test Rating",null,null,{"$f":"#REF!","v":{"$error":"#REF!"}},null,10,1]
[252,251,"P1.5 Dynamic Score",null,null,{"$f":"SUM(#REF!)","v":{"$error":"#REF!"}},"Database Reference'!$K$154",10,1]
[253,252,"Forward facing Head Score",null,null,{"$f":"#REF!","v":{"$error":"#REF!"}},null,10,1]
[254,252,"Excursion Score",null,null,{"$f":"#REF!","v":{"$error":"#REF!"}},null,20,1]
[255,252,"Hard contact Score (head contact not on car)",null,null,null,null,30,1]
[256,252,"Rearward facing Head Score",null,null,{"$f":"#REF!","v":{"$error":"#REF!"}},null,40,1]
[257,252,"Score if no contact with car nor head compressive load",null,null,{"$f":"#REF!","v":{"$error":"#REF!"}},null,50,1]
[258,252,"Score for Neck Tension (Head Vertical Acceleration)",null,null,"",null,60,1]
[259,252,"Score for Head Contact (3msec accounting for peak)",null,null,"",null,70,1]
[260,252,"Side Head Score",null,null,{"$f":"#REF!","v":{"$error":"#REF!"}},null,80,1]
[261,252,"Head Side Resultant Acceleration",null,null,{"$f":"#REF!","v":{"$error":"#REF!"}},null,90,1]
[262,252,"Frontal Chest Score",null,null,{"$f":"#REF!","v":{"$error":"#REF!"}},null,100,1]
[263,252,"Chest Frontal Resultant Acceleration",null,null,{"$f":"#REF!","v":{"$error":"#REF!"}},null,110,1]
[264,252,"Chest Frontal Vertical Acceleration",null,null,0,null,120,1]
[265,252,"Dynamic Tests Rating",null,null,null,null,130,1]
[266,251,"P3 Dynamic Score",null,null,{"$f":"SUM(#REF!)","v":{"$error":"#REF!"}},"Database Reference'!$K$168",20,1]
[267,266,"Forward facing Head Score",null,null,{"$f":"#REF!","v":{"$error":"#REF!"}},null,10,1]
[268,266,"Excursion Score",null,null,{"$f":"#REF!","v":{"$error":"#REF!"}},null,20,1]
[269,266,"Hard contact Score (head contact not on car)",null,null,null,null,30,1]
[270,266,"Rearward facing Head Score",null,null,{"$f":"#REF!","v":{"$error":"#REF!"}},null,40,1]
[271,266,"Score if no contact with car nor head compressive load",null,null,{"$f":"#REF!","v":{"$error":"#REF!"}},null,50,1]
[272,266,"Score for Neck Tension (Head Vertical Acceleration)",null,null,null,null,60,1]
[273,266,"Score for Head Contact (3msec accounting for peak)",null,null,"",null,70,1]
[274,266,"Side Head Score",null,null,{"$f":"#REF!","v":{"$error":"#REF!"}},null,80,1]
[275,266,"Head Side Resultant Acceleration",null,null,{"$f":"#REF!","v":{"$error":"#REF!"}},null,90,1]
[276,266,"Frontal Chest Score",null,null,{"$f":"#REF!","v":{"$error":"#REF!"}},null,100,1]
[277,266,"Chest Frontal Resultant Acceleration",null,null,{"$f":"#REF!","v":{"$error":"#REF!"}},null,110,1]
[278,266,"Chest Frontal Vertical Acceleration",null,null,0,null,120,1]
[279,266,"Dynamic Tests Rating",null,null,null,null,130,1]
[280,250,"CRS Labelling Rating",null,null,null,null,20,1]
[281,280,"P1.5 Labelling",null,null,null,"Database Reference'!$K$183",10,1]
[282,281,"Belt routes permanent marked and colour coded",null,null,null,null,10,1]
[283,281,"Instructions visible and permanent on both sides of restraint",null,null,null,null,20,1]
[284,281,"Advice visible on when to use as forward facing of two way seats",null,null,null,null,30,1]
[285,281,"Alternative adult seat belt routes  (ECE Reg 43.03 Supplement 3)",null,null,null,null,40,1]
[286,281,"Advice on use of seat and components for all sizes of children",null,null,null,null,50,1]
[287,281,"ISOFIX Instructions visible and permanent on both sides of restraint",null,null,null,null,60,1]
[288,281,"Instructions on preparing seat for installation",null,null,null,null,70,1]
[289,281,"Tell-tales Position function and interpretation explained",null,null,null,null,80,1]
[290,281,"Position and use of additional tethers explained",null,null,null,null,90,1]
[291,281,"Tell-tales must inform if there is only partial latching",null,null,null,null,100,{"$f":"COUNTIF($A$2:$A$3487,A194)","v":1}]
[292,281,"Use and adjustment of latches and tethers",null,null,null,null,110,1]
[293,281,"Information on which vehicles the CRS can be used in",null,null,null,null,120,1]
[294,280,"P3 Labelling",null,null,null,"Database Reference'!$K$196",20,1]
[295,294,"Belt routes permanent marked and colour coded",null,null,null,null,10,1]
[296,294,"Instructions visible and permanent on both sides of restraint",null,null,null,null,20,1]
[297,294,"Advice visible on when to use as forward facing of two way seats",null,null,null,null,30,1]
[298,294,"Alternative adult seat belt routes  (ECE Reg 43.03 Supplement 3)",null,null,null,null,40,1]
[299,294,"Advice on use of seat and components for all sizes of children",null,null,null,null,50,1]
[300,294,"ISOFIX Instructions visible and permanent on both sides of restraint",null,null,null,null,60,1]
[301,294,"Instructions on preparing seat for installation",null,null,null,null,70,1]
[302,294,"Tell-tales Position function and interpretation explained",null,null,null,null,80,1]
[303,294,"Position and use of additional tethers explained",null,null,null,null,90,1]
[304,294,"Tell-tales must inform if there is only partial latching",null,null,null,null,100,1]
[305,294,"Use and adjustment of latches and tethers",null,null,null,null,110,1]
[306,294,"Information on which vehicles the CRS can be used in",null,null,null,null,120,1]
[307,250,"Vehicle Compatibility Rating",null,null,null,null,30,1]
[308,307,"P1.5 Compatibility",null,null,null,"Database Reference'!$K$210",10,1]
[309,308,"Incompatibility between CRS with Seats and Adult Seat Belt",null,null,null,null,10,1]
[310,308,"Incompatibility between CRS and car (i.e CRS legs)",null,null,null,null,20,1]
[311,308,"Preditable mislatching that can compromise safety",null,null,null,null,30,1]
[312,307,"P3 Compatibility",null,null,null,"Database Reference'!$K$214",20,1]
[313,312,"Incompatibility between CRS with Seats and Adult Seat Belt",null,null,null,null,10,1]
[314,312,"Incompatibility between CRS and car (i.e CRS legs)",null,null,null,null,20,1]
[315,312,"Preditable mislatching that can compromise safety",null,null,null,null,30,1]
[316,250,"Vehicle CRS Use Rating",null,null,{"$f":"#REF!","v":{"$error":"#REF!"}},"Database Reference'!$K$218",40,1]
[317,316,"Vehicle air bag labelling",null,null,null,null,10,1]
[318,316,"Able to fit rear facing restraint in front passenger's seat",null,null,null,null,20,1]
[319,316,"Automatic sensing in front of rearward facing restraints",null,null,null,null,30,1]
[320,316,"Three point seat belts on all passenger seats",null,null,null,null,40,1]
[321,316,"Compatibility check with Gabarit",null,null,null,null,50,1]
[322,316,"ISOFIX marking and information",null,null,null,null,60,1]
[323,316,"Universal Seating positions assessment",null,null,null,null,70,1]
[324,316,"Number of ISOFIX seat positions",null,null,null,null,80,1]
[325,316,"Size of ISOFIX seats catered for",null,null,null,null,90,1]
[326,316,"Two or more integrated child restraints",null,null,null,null,100,1]
[327,316,"Integrated restraint that caters for all age groups",null,null,null,null,110,1]
[328,613,"UNROUNDED PEDESTRIAN SCORE",null,null,{"$f":"#REF!","v":{"$error":"#REF!"}},"Database Reference'!$K$230",30,1]
[329,328,"Adult Headform Score",null,null,null,"Database Reference'!$K$231",10,1]
[330,329,"A1",null,null,null,null,10,1]
[331,330,"A1A Score",null,null,null,"Database Reference'!$K$233",10,1]
[332,330,"A1A Nomination",null,null,null,"Database Reference'!$K$234",20,1]
[333,330,"A1B Score",null,null,null,"Database Reference'!$K$235",30,1]
[334,330,"A1B Nomination",null,null,null,"Database Reference'!$K$236",40,1]
[335,330,"A1C Score",null,null,null,"Database Reference'!$K$237",50,1]
[336,330,"A1C Nomination",null,null,null,"Database Reference'!$K$238",60,1]
[337,330,"A1D Score",null,null,null,"Database Reference'!$K$239",70,1]
[338,330,"A1D Nomination",null,null,null,"Database Reference'!$K$240",80,1]
[339,329,"A2",null,null,null,null,20,1]
[340,339,"A2A Score",null,null,null,"Database Reference'!$K$242",10,1]
[341,339,"A2A Nomination",null,null,null,"Database Reference'!$K$243",20,1]
[342,339,"A2B Score",null,null,null,"Database Reference'!$K$244",30,1]
[343,339,"A2B Nomination",null,null,null,"Database Reference'!$K$245",40,1]
[344,339,"A2C Score",null,null,null,"Database Reference'!$K$246",50,1]
[345,339,"A2C Nomination",null,null,null,"Database Reference'!$K$247",60,1]
[346,339,"A2D Score",null,null,null,"Database Reference'!$K$248",70,1]
[347,339,"A2D Nomination",null,null,null,"Database Reference'!$K$249",80,1]
[348,329,"A3",null,null,null,null,30,1]
[349,348,"A3A Score",null,null,null,"Database Reference'!$K$251",10,1]
[350,348,"A3A Nomination",null,null,null,"Database Reference'!$K$252",20,1]
[351,348,"A3B Score",null,null,null,"Database Reference'!$K$253",30,1]
[352,348,"A3B Nomination",null,null,null,"Database Reference'!$K$254",40,1]
[353,348,"A3C Score",null,null,null,"Database Reference'!$K$255",50,1]
[354,348,"A3C Nomination",null,null,null,"Database Reference'!$K$256",60,1]
[355,348,"A3D Score",null,null,null,"Database Reference'!$K$257",70,{"$f":"COUNTIF($A$2:$A$3487,A258)","v":1}]
[356,348,"A3D Nomination",null,null,null,"Database Reference'!$K$258",80,1]
[357,329,"A4",null,null,null,null,40,1]
[358,357,"A4A Score",null,null,null,"Database Reference'!$K$260",10,1]
[359,357,"A4A Nomination",null,null,null,"Database Reference'!$K$261",20,1]
[360,357,"A4B Score",null,null,null,"Database Reference'!$K$262",30,1]
[361,357,"A4B Nomination",null,null,null,"Database Reference'!$K$263",40,1]
[362,357,"A4C Score",null,null,null,"Database Reference'!$K$264",50,1]
[363,357,"A4C Nomination",null,null,null,"Database Reference'!$K$265",60,1]
[364,357,"A4D Score",null,null,null,"Database Reference'!$K$266",70,1]
[365,357,"A4D Nomination",null,null,null,"Database Reference'!$K$267",80,1]
[366,329,"A5",null,null,null,null,50,1]
[367,366,"A5A Score",null,null,null,"Database Reference'!$K$269",10,1]
[368,366,"A5A Nomination",null,null,null,"Database Reference'!$K$270",20,1]
[369,366,"A5B Score",null,null,null,"Database Reference'!$K$271",30,1]
[370,366,"A5B Nomination",null,null,null,"Database Reference'!$K$272",40,1]
[371,366,"A5C Score",null,null,null,"Database Reference'!$K$273",50,1]
[372,366,"A5C Nomination",null,null,null,"Database Reference'!$K$274",60,1]
[373,366,"A5D Score",null,null,null,"Database Reference'!$K$275",70,1]
[374,366,"A5D Nomination",null,null,null,"Database Reference'!$K$276",80,1]
[375,329,"A6",null,null,null,null,60,1]
[376,375,"A6A Score",null,null,null,"Database Reference'!$K$278",10,1]
[377,375,"A6A Nomination",null,null,null,"Database Reference'!$K$279",20,1]
[378,375,"A6B Score",null,null,null,"Database Reference'!$K$280",30,1]
[379,375,"A6B Nomination",null,null,null,"Database Reference'!$K$281",40,1]
[380,375,"A6C Score",null,null,null,"Database Reference'!$K$282",50,1]
[381,375,"A6C Nomination",null,null,null,"Database Reference'!$K$283",60,1]
[382,375,"A6D Score",null,null,null,"Database Reference'!$K$284",70,1]
[383,375,"A6D Nomination",null,null,null,"Database Reference'!$K$285",80,1]
[384,328,"Child Headform Score",null,null,null,"Database Reference'!$K$286",20,1]
[385,384,"C1",null,null,null,null,10,1]
[386,385,"C1A Score",null,null,null,"Database Reference'!$K$288",10,1]
[387,385,"C1A Nomination",null,null,null,"Database Reference'!$K$289",20,1]
[388,385,"C1B Score",null,null,null,"Database Reference'!$K$290",30,1]
[389,385,"C1B Nomination",null,null,null,"Database Reference'!$K$291",40,1]
[390,385,"C1C Score",null,null,null,"Database Reference'!$K$292",50,1]
[391,385,"C1C Nomination",null,null,null,"Database Reference'!$K$293",60,1]
[392,385,"C1D Score",null,null,null,"Database Reference'!$K$294",70,1]
[393,385,"C1D Nomination",null,null,null,"Database Reference'!$K$295",80,1]
[394,384,"C2",null,null,null,null,20,1]
[395,394,"C2A Score",null,null,null,"Database Reference'!$K$297",10,1]
[396,394,"C2A Nomination",null,null,null,"Database Reference'!$K$298",20,1]
[397,394,"C2B Score",null,null,null,"Database Reference'!$K$299",30,1]
[398,394,"C2B Nomination",null,null,null,"Database Reference'!$K$300",40,1]
[399,394,"C2C Score",null,null,null,"Database Reference'!$K$301",50,1]
[400,394,"C2C Nomination",null,null,null,"Database Reference'!$K$302",60,1]
[401,394,"C2D Score",null,null,null,"Database Reference'!$K$303",70,1]
[402,394,"C2D Nomination",null,null,null,"Database Reference'!$K$304",80,1]
[403,384,"C3",null,null,null,null,30,1]
[404,403,"C3A Score",null,null,null,"Database Reference'!$K$306",10,1]
[405,403,"C3A Nomination",null,null,null,"Database Reference'!$K$307",20,1]
[406,403,"C3B Score",null,null,null,"Database Reference'!$K$308",30,1]
[407,403,"C3B Nomination",null,null,null,"Database Reference'!$K$309",40,1]
[408,403,"C3C Score",null,null,null,"Database Reference'!$K$310",50,1]
[409,403,"C3C Nomination",null,null,null,"Database Reference'!$K$311",60,1]
[410,403,"C3D Score",null,null,null,"Database Reference'!$K$312",70,1]
[411,403,"C3D Score",null,null,null,"Database Reference'!$K$313",80,1]
[412,384,"C4",null,null,null,null,40,1]
[413,412,"C4A Score",null,null,null,"Database Reference'!$K$315",10,1]
[414,412,"C4A Nomination",null,null,null,"Database Reference'!$K$316",20,1]
[415,412,"C4B Score",null,null,null,"Database Reference'!$K$317",30,1]
[416,412,"C4B Nomination",null,null,null,"Database Reference'!$K$318",40,1]
[417,412,"C4C Score",null,null,null,"Database Reference'!$K$319",50,1]
[418,412,"C4C Nomination",null,null,null,"Database Reference'!$K$320",60,1]
[419,412,"C4D Score",null,null,null,"Database Reference'!$K$321",70,{"$f":"COUNTIF($A$2:$A$3487,A322)","v":1}]
[420,412,"C4D Nomination",null,null,null,"Database Reference'!$K$322",80,1]
[421,384,"C5",null,null,null,null,50,1]
[422,421,"C5A Score",null,null,null,"Database Reference'!$K$324",10,1]
[423,421,"C5A Nomination",null,null,null,"Database Reference'!$K$325",20,1]
[424,421,"C5B Score",null,null,null,"Database Reference'!$K$326",30,1]
[425,421,"C5B Nomination",null,null,null,"Database Reference'!$K$327",40,1]
[426,421,"C5C Score",null,null,null,"Database Reference'!$K$328",50,1]
[427,421,"C5C Nomination",null,null,null,"Database Reference'!$K$329",60,1]
[428,421,"C5D Score",null,null,null,"Database Reference'!$K$330",70,1]
[429,421,"C5D Nomination",null,null,null,"Database Reference'!$K$331",80,1]
[430,384,"C6",null,null,null,null,60,1]
[431,430,"C6A Score",null,null,null,"Database Reference'!$K$333",10,1]
[432,430,"C6A Nomination",null,null,null,"Database Reference'!$K$334",20,1]
[433,430,"C6B Score",null,null,null,"Database Reference'!$K$335",30,1]
[434,430,"C6B Nomination",null,null,null,"Database Reference'!$K$336",40,1]
[435,430,"C6C Score",null,null,null,"Database Reference'!$K$337",50,1]
[436,430,"C6C Nomination",null,null,null,"Database Reference'!$K$338",60,1]
[437,430,"C6D Score",null,null,null,"Database Reference'!$K$339",70,1]
[438,430,"C6D Nomination",null,null,null,"Database Reference'!$K$340",80,1]
[439,328,"Upper Legform Score",null,null,{"$f":"#REF!","v":{"$error":"#REF!"}},"Database Reference'!$K$341",30,1]
[440,439,"U1 Score",null,null,{"$f":"SUM(F345+F351)","v":{"$error":"#REF!"}},"Database Reference'!$K$342",10,1]
[441,440,"U1A Nomination",null,null,{"$f":"IF(#REF!=\"Euro NCAP point\",\"N\",IF(#REF!=\"Manufacturer nominated\",\"M\",\"\"))","v":{"$error":"#REF!"}},"Database Reference'!$K$343",10,1]
[442,440,"U1A Score",null,null,{"$f":"#REF!","v":{"$error":"#REF!"}},"Database Reference'!$K$344",20,1]
[443,442,"U1A Femur upper bending moment - Nm",null,null,{"$f":"#REF!","v":{"$error":"#REF!"}},"Database Reference'!$K$345",10,1]
[444,442,"U1A Femur centre bending moment - Nm",null,null,{"$f":"#REF!","v":{"$error":"#REF!"}},"Database Reference'!$K$346",20,1]
[445,442,"U1A Femur lower bending moment - Nm",null,null,{"$f":"#REF!","v":{"$error":"#REF!"}},"Database Reference'!$K$347",30,1]
[446,442,"U1A Femur: sum of forces - kN",null,null,{"$f":"#REF!","v":{"$error":"#REF!"}},"Database Reference'!$K$348",40,1]
[447,440,"U1B Nomination",null,null,{"$f":"IF(#REF!=\"Euro NCAP point\",\"N\",IF(#REF!=\"Manufacturer nominated\",\"M\",\"\"))","v":{"$error":"#REF!"}},"Database Reference'!$K$349",30,1]
[448,440,"U1B Score",null,null,{"$f":"#REF!","v":{"$error":"#REF!"}},"Database Reference'!$K$350",40,1]
[449,448,"U1B Femur upper bending moment - Nm",null,null,{"$f":"#REF!","v":{"$error":"#REF!"}},"Database Reference'!$K$351",10,1]
[450,448,"U1B Femur centre bending moment - Nm",null,null,{"$f":"#REF!","v":{"$error":"#REF!"}},"Database Reference'!$K$352",20,1]
[451,448,"U1B Femur lower bending moment - Nm",null,null,{"$f":"#REF!","v":{"$error":"#REF!"}},"Database Reference'!$K$353",30,1]
[452,448,"U1B Femur: sum of forces - kN",null,null,{"$f":"#REF!","v":{"$error":"#REF!"}},"Database Reference'!$K$354",40,1]
[453,439,"U2 Score",null,null,{"$f":"SUM(F358+F364)","v":{"$error":"#REF!"}},"Database Reference'!$K$355",20,1]
[454,453,"U2A Nomination",null,null,{"$f":"IF(#REF!=\"Euro NCAP point\",\"N\",IF(#REF!=\"Manufacturer nominated\",\"M\",\"\"))","v":{"$error":"#REF!"}},"Database Reference'!$K$356",10,1]
[455,453,"U2A Score",null,null,{"$f":"#REF!","v":{"$error":"#REF!"}},"Database Reference'!$K$357",20,1]
[456,455,"U2A Femur upper bending moment - Nm",null,null,{"$f":"#REF!","v":{"$error":"#REF!"}},"Database Reference'!$K$358",10,1]
[457,455,"U2A Femur centre bending moment - Nm",null,null,{"$f":"#REF!","v":{"$error":"#REF!"}},"Database Reference'!$K$359",20,1]
[458,455,"U2A Femur lower bending moment - Nm",null,null,{"$f":"#REF!","v":{"$error":"#REF!"}},"Database Reference'!$K$360",30,1]
[459,455,"U2A Femur: sum of forces - kN",null,null,{"$f":"#REF!","v":{"$error":"#REF!"}},"Database Reference'!$K$361",40,1]
[460,453,"U2B Nomination",null,null,{"$f":"IF(#REF!=\"Euro NCAP point\",\"N\",IF(#REF!=\"Manufacturer nominated\",\"M\",\"\"))","v":{"$error":"#REF!"}},"Database Reference'!$K$362",30,1]
[461,453,"U2B Score",null,null,{"$f":"#REF!","v":{"$error":"#REF!"}},"Database Reference'!$K$363",40,1]
[462,461,"U2B Femur upper bending moment - Nm",null,null,{"$f":"#REF!","v":{"$error":"#REF!"}},"Database Reference'!$K$364",10,1]
[463,461,"U2B Femur centre bending moment - Nm",null,null,{"$f":"#REF!","v":{"$error":"#REF!"}},"Database Reference'!$K$365",20,1]
[464,461,"U2B Femur lower bending moment - Nm",null,null,{"$f":"#REF!","v":{"$error":"#REF!"}},"Database Reference'!$K$366",30,1]
[465,461,"U2B Femur: sum of forces - kN",null,null,{"$f":"#REF!","v":{"$error":"#REF!"}},"Database Reference'!$K$367",40,1]
[466,439,"U3 Score",null,null,{"$f":"SUM(F371+F377)","v":{"$error":"#REF!"}},"Database Reference'!$K$368",30,1]
[467,466,"U3A Nomination",null,null,{"$f":"IF(#REF!=\"Euro NCAP point\",\"N\",IF(#REF!=\"Manufacturer nominated\",\"M\",\"\"))","v":{"$error":"#REF!"}},"Database Reference'!$K$369",10,1]
[468,466,"U3A Score",null,null,{"$f":"#REF!","v":{"$error":"#REF!"}},"Database Reference'!$K$370",20,1]
[469,468,"U3A Femur upper bending moment - Nm",null,null,{"$f":"#REF!","v":{"$error":"#REF!"}},"Database Reference'!$K$371",10,1]
[470,468,"U3A Femur centre bending moment - Nm",null,null,{"$f":"#REF!","v":{"$error":"#REF!"}},"Database Reference'!$K$372",20,1]
[471,468,"U3A Femur lower bending moment - Nm",null,null,{"$f":"#REF!","v":{"$error":"#REF!"}},"Database Reference'!$K$373",30,1]
[472,468,"U3A Femur: sum of forces - kN",null,null,{"$f":"#REF!","v":{"$error":"#REF!"}},"Database Reference'!$K$374",40,1]
[473,466,"U3B Nomination",null,null,{"$f":"IF(#REF!=\"Euro NCAP point\",\"N\",IF(#REF!=\"Manufacturer nominated\",\"M\",\"\"))","v":{"$error":"#REF!"}},"Database Reference'!$K$375",30,1]
[474,466,"U3B Score",null,null,{"$f":"#REF!","v":{"$error":"#REF!"}},"Database Reference'!$K$376",40,1]
[475,474,"U3B Femur upper bending moment - Nm",null,null,{"$f":"#REF!","v":{"$error":"#REF!"}},"Database Reference'!$K$377",10,1]
[476,474,"U3B Femur centre bending moment - Nm",null,null,{"$f":"#REF!","v":{"$error":"#REF!"}},"Database Reference'!$K$378",20,1]
[477,474,"U3B Femur lower bending moment - Nm",null,null,{"$f":"#REF!","v":{"$error":"#REF!"}},"Database Reference'!$K$379",30,1]
[478,474,"U3B Femur: sum of forces - kN",null,null,{"$f":"#REF!","v":{"$error":"#REF!"}},"Database Reference'!$K$380",40,1]
[479,328,"Legform Score",null,null,{"$f":"#REF!","v":{"$error":"#REF!"}},"Database Reference'!$K$381",40,1]
[480,479,"L1 Score",null,null,{"$f":"SUM(F385+F390)","v":{"$error":"#REF!"}},"Database Reference'!$K$382",10,1]
[481,480,"L1A Nomination",null,null,{"$f":"IF(#REF!=\"Euro NCAP point\",\"N\",IF(#REF!=\"Manufacturer nominated\",\"M\",\"\"))","v":{"$error":"#REF!"}},"Database Reference'!$K$383",10,1]
[482,480,"L1A Score",null,null,{"$f":"#REF!","v":{"$error":"#REF!"}},"Database Reference'!$K$384",20,1]
[483,482,"L1A Tibia acceleration - g",null,null,{"$f":"#REF!","v":{"$error":"#REF!"}},"Database Reference'!$K$385",10,{"$f":"COUNTIF($A$2:$A$3487,A386)","v":1}]
[484,482,"L1A Knee shear displacement - mm",null,null,{"$f":"#REF!","v":{"$error":"#REF!"}},"Database Reference'!$K$386",20,1]
[485,482,"L1A Knee bending angle - deg",null,null,{"$f":"#REF!","v":{"$error":"#REF!"}},"Database Reference'!$K$387",30,1]
[486,480,"L1B Nomination",null,null,{"$f":"IF(#REF!=\"Euro NCAP point\",\"N\",IF(#REF!=\"Manufacturer nominated\",\"M\",\"\"))","v":{"$error":"#REF!"}},"Database Reference'!$K$388",30,1]
[487,480,"L1B Score",null,null,{"$f":"#REF!","v":{"$error":"#REF!"}},"Database Reference'!$K$389",40,1]
[488,487,"L1B Tibia acceleration - g",null,null,{"$f":"#REF!","v":{"$error":"#REF!"}},"Database Reference'!$K$390",10,1]
[489,487,"L1B Knee shear displacement - mm",null,null,{"$f":"#REF!","v":{"$error":"#REF!"}},"Database Reference'!$K$391",20,1]
[490,487,"L1B Knee bending angle - deg",null,null,{"$f":"#REF!","v":{"$error":"#REF!"}},"Database Reference'!$K$392",30,1]
[491,479,"L2 Score",null,null,{"$f":"SUM(F396+F401)","v":{"$error":"#REF!"}},"Database Reference'!$K$393",20,1]
[492,491,"L2A Nomination",null,null,{"$f":"IF(#REF!=\"Euro NCAP point\",\"N\",IF(#REF!=\"Manufacturer nominated\",\"M\",\"\"))","v":{"$error":"#REF!"}},"Database Reference'!$K$394",10,1]
[493,491,"L2A Score",null,null,{"$f":"#REF!","v":{"$error":"#REF!"}},"Database Reference'!$K$395",20,1]
[494,493,"L2A Tibia acceleration - g",null,null,{"$f":"#REF!","v":{"$error":"#REF!"}},"Database Reference'!$K$396",10,1]
[495,493,"L2A Knee shear displacement - mm",null,null,{"$f":"#REF!","v":{"$error":"#REF!"}},"Database Reference'!$K$397",20,1]
[496,493,"L2A Knee bending angle - deg",null,null,{"$f":"#REF!","v":{"$error":"#REF!"}},"Database Reference'!$K$398",30,1]
[497,491,"L2B Nomination",null,null,{"$f":"IF(#REF!=\"Euro NCAP point\",\"N\",IF(#REF!=\"Manufacturer nominated\",\"M\",\"\"))","v":{"$error":"#REF!"}},"Database Reference'!$K$399",30,1]
[498,491,"L2B Score",null,null,{"$f":"#REF!","v":{"$error":"#REF!"}},"Database Reference'!$K$400",40,1]
[499,498,"L2B Tibia acceleration - g",null,null,{"$f":"#REF!","v":{"$error":"#REF!"}},"Database Reference'!$K$401",10,1]
[500,498,"L2B Knee shear displacement - mm",null,null,{"$f":"#REF!","v":{"$error":"#REF!"}},"Database Reference'!$K$402",20,1]
[501,498,"L2B Knee bending angle - deg",null,null,{"$f":"#REF!","v":{"$error":"#REF!"}},"Database Reference'!$K$403",30,1]
[502,479,"L3 Score",null,null,{"$f":"SUM(F407+F412)","v":{"$error":"#REF!"}},"Database Reference'!$K$404",30,1]
[503,502,"L3A Nomination",null,null,{"$f":"IF(#REF!=\"Euro NCAP point\",\"N\",IF(#REF!=\"Manufacturer nominated\",\"M\",\"\"))","v":{"$error":"#REF!"}},"Database Reference'!$K$405",10,1]
[504,502,"L3A Score",null,null,{"$f":"#REF!","v":{"$error":"#REF!"}},"Database Reference'!$K$406",20,1]
[505,504,"L3A Tibia acceleration - g",null,null,{"$f":"#REF!","v":{"$error":"#REF!"}},"Database Reference'!$K$407",10,1]
[506,504,"L3A Knee shear displacement - mm",null,null,{"$f":"#REF!","v":{"$error":"#REF!"}},"Database Reference'!$K$408",20,1]
[507,504,"L3A Knee bending angle - deg",null,null,{"$f":"#REF!","v":{"$error":"#REF!"}},"Database Reference'!$K$409",30,1]
[508,502,"L3B Nomination",null,null,{"$f":"IF(#REF!=\"Euro NCAP point\",\"N\",IF(#REF!=\"Manufacturer nominated\",\"M\",\"\"))","v":{"$error":"#REF!"}},"Database Reference'!$K$410",30,1]
[509,502,"L3B Score",null,null,{"$f":"#REF!","v":{"$error":"#REF!"}},"Database Reference'!$K$411",40,1]
[510,509,"L3B Tibia acceleration - g",null,null,{"$f":"#REF!","v":{"$error":"#REF!"}},"Database Reference'!$K$412",10,1]
[511,509,"L3B Knee shear displacement - mm",null,null,{"$f":"#REF!","v":{"$error":"#REF!"}},"Database Reference'!$K$413",20,1]
[512,509,"L3B Knee bending angle - deg",null,null,{"$f":"#REF!","v":{"$error":"#REF!"}},"Database Reference'!$K$414",30,1]
[513,514,"ROUNDED ADULT OCCUPANT SCORE",null,null,null,"Database Reference'!$K$415",10,1]
[514,697,"ADULT OCCUPANT STAR RATING",null,null,null,"Database Reference'!$K$416",20,1]
[515,516,"ROUNDED CHILD PROTECTION SCORE",null,null,null,"Database Reference'!$K$417",0,1]
[516,697,"CHILD PROTECTION STAR RATING","ChildStarRating",null,null,"Database Reference'!$K$418",30,1]
[517,518,"ROUNDED PEDESTRIAN SCORE",null,null,null,"Database Reference'!$K$419",0,1]
[518,697,"PEDESTRIAN STAR RATING","PedStarRating",null,null,"Database Reference'!$K$420",40,1]
[519,514,"STRIKE THROUGH",null,null,null,"Database Reference'!$K$421",10,1]
[520,331,"A1A HIC",null,null,null,"Database Reference'!$K$422",20,1]
[521,333,"A1B HIC",null,null,null,"Database Reference'!$K$423",20,1]
[522,335,"A1C HIC",null,null,null,"Database Reference'!$K$424",20,1]
[523,337,"A1D HIC",null,null,null,"Database Reference'!$K$425",20,1]
[524,340,"A2A HIC",null,null,null,"Database Reference'!$K$426",20,1]
[525,342,"A2B HIC",null,null,null,"Database Reference'!$K$427",20,1]
[526,344,"A2C HIC",null,null,null,"Database Reference'!$K$428",20,1]
[527,346,"A2D HIC",null,null,null,"Database Reference'!$K$429",20,1]
[528,349,"A3A HIC",null,null,null,"Database Reference'!$K$430",20,1]
[529,351,"A3B HIC",null,null,null,"Database Reference'!$K$431",20,1]
[530,353,"A3C HIC",null,null,null,"Database Reference'!$K$432",20,1]
[531,355,"A3D HIC",null,null,null,"Database Reference'!$K$433",20,1]
[532,358,"A4A HIC",null,null,null,"Database Reference'!$K$434",20,1]
[533,360,"A4B HIC",null,null,null,"Database Reference'!$K$435",20,1]
[534,362,"A4C HIC",null,null,null,"Database Reference'!$K$436",20,1]
[535,364,"A4D HIC",null,null,null,"Database Reference'!$K$437",20,1]
[536,367,"A5A HIC",null,null,null,"Database Reference'!$K$438",20,1]
[537,369,"A5B HIC",null,null,null,"Database Reference'!$K$439",20,1]
[538,371,"A5C HIC",null,null,null,"Database Reference'!$K$440",20,1]
[539,373,"A5D HIC",null,null,null,"Database Reference'!$K$441",20,1]
[540,376,"A6A HIC",null,null,null,"Database Reference'!$K$442",20,1]
[541,378,"A6B HIC",null,null,null,"Database Reference'!$K$443",20,1]
[542,380,"A6C HIC",null,null,null,"Database Reference'!$K$444",20,1]
[543,382,"A6D HIC",null,null,null,"Database Reference'!$K$445",20,1]
[544,586,"MAKE",null,"carmakestring",{"$f":"#REF!","v":{"$error":"#REF!"}},"Database Reference'!$K$446",0,1]
[545,586,"MODEL",null,"carmodelstring",{"$f":"#REF!","v":{"$error":"#REF!"}},"Database Reference'!$K$447",0,1]
[546,586,"Body Type",null,"body",{"$f":"#REF!","v":{"$error":"#REF!"}},"Database Reference'!$K$448",0,1]
[547,586,"Year Tested",null,"testyear",{"$f":"#REF!","v":{"$error":"#REF!"}},"Database Reference'!$K$449",0,{"$f":"COUNTIF($A$2:$A$3487,A450)","v":1}]
[548,586,"Kerb Weight",null,"kerbweight",{"$f":"CONCATENATE(#REF!,\"kg\")","v":{"$error":"#REF!"}},"Database Reference'!$K$450",0,1]
[549,586,"Start VIN",null,"vin",{"$f":"#REF!","v":{"$error":"#REF!"}},"Database Reference'!$K$451",0,1]
[550,587,"Front Comments",null,"commentfront",null,"Database Reference'!$K$452",0,1]
[551,587,"Side Comments",null,"commentside",null,"Database Reference'!$K$453",0,1]
[552,587,"Child Comments",null,"commentchild",{"$f":"Comments!B4","v":0},"Database Reference'!$K$454",0,1]
[553,587,"Pedestrian Comments",null,"commentpedestrian",{"$f":"Comments!B5","v":0},"Database Reference'!$K$455",0,1]
[554,586,"Model Description",null,"testedmodel",{"$f":"#REF!","v":{"$error":"#REF!"}},"Database Reference'!$K$456",0,1]
[555,386,"C1A HIC",null,null,null,"Database Reference'!$K$457",0,1]
[556,388,"C1B HIC",null,null,null,"Database Reference'!$K$458",20,1]
[557,390,"C1C HIC",null,null,null,"Database Reference'!$K$459",20,1]
[558,392,"C1D HIC",null,null,null,"Database Reference'!$K$460",20,1]
[559,395,"C2A HIC",null,null,null,"Database Reference'!$K$461",20,1]
[560,397,"C2B HIC",null,null,null,"Database Reference'!$K$462",20,1]
[561,399,"C2C HIC",null,null,null,"Database Reference'!$K$463",20,1]
[562,401,"C2D HIC",null,null,null,"Database Reference'!$K$464",20,1]
[563,404,"C3A HIC",null,null,null,"Database Reference'!$K$465",20,1]
[564,406,"C3B HIC",null,null,null,"Database Reference'!$K$466",20,1]
[565,408,"C3C HIC",null,null,null,"Database Reference'!$K$467",20,1]
[566,410,"C3D HIC",null,null,null,"Database Reference'!$K$468",20,1]
[567,413,"C4A HIC",null,null,null,"Database Reference'!$K$469",20,1]
[568,415,"C4B HIC",null,null,null,"Database Reference'!$K$470",20,1]
[569,417,"C4C HIC",null,null,null,"Database Reference'!$K$471",20,1]
[570,419,"C4D HIC",null,null,null,"Database Reference'!$K$472",20,1]
[571,422,"C5A HIC",null,null,null,"Database Reference'!$K$473",20,1]
[572,424,"C5B HIC",null,null,null,"Database Reference'!$K$474",20,1]
[573,426,"C5C HIC",null,null,null,"Database Reference'!$K$475",20,1]
[574,428,"C5D HIC",null,null,null,"Database Reference'!$K$476",20,1]
[575,431,"C6A HIC",null,null,null,"Database Reference'!$K$477",20,1]
[576,433,"C6B HIC",null,null,null,"Database Reference'!$K$478",20,1]
[577,435,"C6C HIC",null,null,null,"Database Reference'!$K$479",20,1]
[578,437,"C6D HIC",null,null,null,"Database Reference'!$K$480",20,1]
[579,586,"NCAP Category",null,"carclassstring",{"$f":"#REF!","v":{"$error":"#REF!"}},"Database Reference'!$K$481",999,1]
[580,583,"NCAP Combined Title",null,"$name",{"$f":"#REF!","v":{"$error":"#REF!"}},"Database Reference'!$K$482",999,1]
[584,583,"Safety equipment",null,null,null,null,10,1]
[585,584,"Driver frontal airbag",null,"driverairbag",{"$f":"#REF!","v":{"$error":"#REF!"}},"Safety Equipment'!$B$6",25,1]
[586,583,"Car  details",null,null,null,null,20,1]
[587,583,"Comments",null,null,{"$f":"Comments!B2","v":0},null,10,1]
[588,583,"Child Restraints",null,null,null,null,0,1]
[591,584,"Front seatbelt pretensioners",null,"pretensioner",{"$f":"#REF!","v":{"$error":"#REF!"}},"Safety Equipment'!$B$2",5,1]
[592,584,"Front seatbelt load limiters",null,"loadlimiter",{"$f":"#REF!","v":{"$error":"#REF!"}},"Safety Equipment'!$B$3",10,1]
[593,584,"Pass Front airbag",null,"passengerbag",{"$f":"#REF!","v":{"$error":"#REF!"}},"Safety Equipment'!$B$7",30,1]
[594,584,"Rear seatbelt pretensioners",null,"rearpretensioner",{"$f":"#REF!","v":{"$error":"#REF!"}},"Safety Equipment'!$B$4",15,1]
[595,584,"Rear seatbelt load limiters",null,"rearloadlimiter",{"$f":"#REF!","v":{"$error":"#REF!"}},"Safety Equipment'!$B$5",20,1]
[596,584,"Side Thorax Airbag",null,"sideairbagchest",{"$f":"#REF!","v":{"$error":"#REF!"}},"Safety Equipment'!$B$8",35,1]
[597,584,"Side Head Airbag",null,"sideairbaghead",{"$f":"#REF!","v":{"$error":"#REF!"}},"Safety Equipment'!$B$9",40,1]
[598,584,"Driver knee airbag",null,"driverkneebag",{"$f":"#REF!","v":{"$error":"#REF!"}},"Safety Equipment'!$B$10",45,1]
[599,584,"Front Passenger knee airbag",null,"passkneebag",{"$f":"#REF!","v":{"$error":"#REF!"}},"Safety Equipment'!$B$11",50,1]
[600,584,"Front pretensioner comment",null,"pretensioner_comment",{"$f":"#REF!","v":{"$error":"#REF!"}},"Safety Equipment'!$C$2",6,1]
[601,584,"Front load limiter comment",null,"loadlimiter_comment",{"$f":"#REF!","v":{"$error":"#REF!"}},"Safety Equipment'!$C$3",11,1]
[602,584,"Rear pretensioner comment",null,"rearpretensioner_comment",{"$f":"#REF!","v":{"$error":"#REF!"}},"Safety Equipment'!$C$4",16,1]
[603,584,"Rear load limiter comment",null,"rearloadlimiter_comment",{"$f":"#REF!","v":{"$error":"#REF!"}},"Safety Equipment'!$C$5",21,1]
[604,584,"Driver frontal airbag comment",null,"driverairbag_comment",{"$f":"#REF!","v":{"$error":"#REF!"}},"Safety Equipment'!$C$6",26,1]
[605,584,"Passenger airbag comment",null,"passengerbag_comment",{"$f":"#REF!","v":{"$error":"#REF!"}},"Safety Equipment'!$C$7",31,1]
[606,584,"Side thorax airbag comment",null,"sideairbagchest_comment",{"$f":"#REF!","v":{"$error":"#REF!"}},"Safety Equipment'!$C$8",36,1]
[607,584,"Side Head Airbag Comment",null,"sideairbaghead_comment",{"$f":"#REF!","v":{"$error":"#REF!"}},"Safety Equipment'!$C$9",41,1]
[608,584,"driver knee airbag comment",null,"driverkneebag_comment",{"$f":"#REF!","v":{"$error":"#REF!"}},"Safety Equipment'!$C$10",46,1]
[609,584,"Passenger Knee Airbag Comment",null,"passkneebag_comment",{"$f":"#REF!","v":{"$error":"#REF!"}},"Safety Equipment'!$C$11",51,1]
[582,183,"PASSENGER FOOT AND ANKLE SCORE",null,null,null,null,30,1]
[583,null,"TEXT VALUES",null,null,null,null,15,1]
[589,588,"18month restraint",null,"p15",{"$f":"#REF!","v":{"$error":"#REF!"}},"Safety Equipment'!$H$2",0,1]
[590,588,"3years restraint",null,"p3",{"$f":"#REF!","v":{"$error":"#REF!"}},"Safety Equipment'!$H$3",0,1]
[610,null,"OVERALL STAR RATING",null,null,{"$f":"#REF!","v":{"$error":"#REF!"}},null,10,1]
[611,610,"Weighted Adult Normalised Percentage",null,null,{"$f":"#REF!","v":{"$error":"#REF!"}},null,0,1]
[612,610,"Weighted Child Normalised Percentage",null,null,{"$f":"#REF!","v":{"$error":"#REF!"}},null,0,{"$f":"COUNTIF($A$2:$A$3487,A514)","v":1}]
[613,610,"Weighted Pedestrian Normalised Percentage",null,null,{"$f":"#REF!","v":{"$error":"#REF!"}},null,0,1]
[614,610,"Weighted Safety Assist Normalised Percentage",null,null,{"$f":"#REF!","v":{"$error":"#REF!"}},null,0,1]
[615,614,"Safety Assist unrounded score",null,null,{"$f":"#REF!","v":{"$error":"#REF!"}},null,0,1]
[616,615,"ESC unrounded score",null,null,{"$f":"#REF!","v":{"$error":"#REF!"}},null,0,1]
[617,616,"ESC raw scored",null,null,null,null,0,1]
[618,616,"ESC fitment multiplier",null,null,null,null,0,1]
[619,615,"SLD unrounded score",null,null,0,null,0,1]
[620,619,"SLD raw score",null,null,0,null,0,1]
[621,619,"SLD fitment multiplier",null,null,null,null,0,1]
[622,615,"SBR unrounded score",null,null,{"$f":"ROUND(#REF!,Round)","v":{"$error":"#REF!"}},null,0,1]
[623,622,"SBR raw score",null,null,null,null,0,1]
[624,622,"SBR fitment multiplier",null,null,null,null,0,1]
[625,100,"WHIPLASH SCALED SCORE",null,null,{"$f":"#REF!","v":{"$error":"#REF!"}},null,0,1]
[626,625,"Whiplash unscaled score",null,null,{"$f":"#REF!","v":{"$error":"#REF!"}},null,0,1]
[627,626,"High Severity capped score",null,null,{"$f":"#REF!","v":{"$error":"#REF!"}},null,0,1]
[628,626,"Medium Severity capped score",null,null,{"$f":"#REF!","v":{"$error":"#REF!"}},null,0,1]
[629,626,"Low Severity capped score",null,null,{"$f":"#REF!","v":{"$error":"#REF!"}},null,0,1]
[630,626,"Geometry Score",null,null,{"$f":"#REF!","v":{"$error":"#REF!"}},null,0,1]
[631,626,"Seatback modifier",null,null,{"$f":"#REF!","v":{"$error":"#REF!"}},null,0,1]
[632,626,"Usability modifier",null,null,{"$f":"#REF!","v":{"$error":"#REF!"}},null,0,1]
[633,703,"HiSeverity NIC points",null,null,{"$f":"#REF!","v":{"$error":"#REF!"}},null,0,1]
[698,583,"Whiplash Text","Text values for whiplash",null,null,null,0,1]
[699,583,"Whiplash Text",null,null,null,null,0,1]
[700,699,"Seat Type",null,null,{"$f":"#REF!","v":{"$error":"#REF!"}},null,10,1]
[701,699,"Restraint Type",null,null,{"$f":"#REF!","v":{"$error":"#REF!"}},null,20,1]
[702,699,"Whiplash Comments",null,null,{"$f":"#REF!","v":{"$error":"#REF!"}},null,0,1]
[703,627,"High Severity Uncapped Score",null,null,{"$f":"SUM(#REF!,#REF!)","v":{"$error":"#REF!"}},null,0,1]
[704,627,"High Severity Capped",null,null,{"$f":"IF(F529<F541,1,0)","v":{"$error":"#REF!"}},null,0,1]
[705,628,"Medium Severity Uncapped Score",null,null,{"$f":"SUM(#REF!,#REF!)","v":{"$error":"#REF!"}},null,0,1]
[706,628,"Medium Severity Capped",null,null,{"$f":"IF(F530<F543,1,0)","v":{"$error":"#REF!"}},null,0,1]
[707,629,"Low Severity Uncapped Score",null,null,{"$f":"SUM(#REF!,#REF!)","v":{"$error":"#REF!"}},null,0,1]
[708,629,"Low Severity Capping",null,null,{"$f":"IF(F531<F545,1,0)","v":{"$error":"#REF!"}},null,0,1]
[709,630,"Average Backset",null,null,{"$f":"AVERAGE(#REF!,#REF!,#REF!)","v":{"$error":"#REF!"}},null,0,1]
[710,630,"Average Height",null,null,{"$f":"AVERAGE(#REF!,#REF!,#REF!)","v":{"$error":"#REF!"}},null,0,1]
[711,626,"Artefact loading",null,null,{"$f":"#REF!","v":{"$error":"#REF!"}},null,0,1]
[712,625,"Scaled Scores",null,null,null,null,0,1]
[713,712,"Hi Sev Capped Scaled",null,null,null,null,0,1]
[714,712,"Mid Sev Capped Scaled",null,null,null,null,0,1]
[715,712,"Lo Sev Capped Scaled",null,null,null,null,0,1]
[716,712,"Geometry Scaled",null,null,null,null,0,1]
[717,712,"Seatback Mod Scaled",null,null,null,null,0,1]
[718,712,"Usability Mod Scaled",null,null,null,null,0,1]
[719,712,"Artefact Scaled",null,null,null,null,0,1]
[720,703,"Hi Severity Seat Opening",null,null,{"$f":"#REF!","v":{"$error":"#REF!"}},null,0,1]
[721,705,"Mid Severity Seat Opening",null,null,null,null,0,1]
[722,707,"Lo Severity Seat Opening",null,null,null,null,0,1]
[723,587,"Safety Assist Comments",null,null,{"$f":"Comments!B6","v":0},null,0,1]
[724,587,"Adult Comments",null,null,{"$f":"Comments!B3","v":0},null,0,1]
[725,589,"18m CRS Group",null,null,{"$f":"#REF!","v":{"$error":"#REF!"}},null,0,1]
[726,590,"3y CRS group",null,null,{"$f":"#REF!","v":{"$error":"#REF!"}},null,0,1]
[727,589,"18m CRS fix",null,null,{"$f":"#REF!","v":{"$error":"#REF!"}},null,0,1]
[728,590,"3y CRS fix",null,null,{"$f":"#REF!","v":{"$error":"#REF!"}},null,0,1]
[634,703,"HiSeverity Nkm points",null,null,{"$f":"#REF!","v":{"$error":"#REF!"}},null,0,1]
[635,703,"HiSeverity Rebound Veclocity points",null,null,{"$f":"#REF!","v":{"$error":"#REF!"}},null,0,1]
[636,703,"HiSeverity Fx points",null,null,{"$f":"#REF!","v":{"$error":"#REF!"}},null,0,1]
[637,703,"HiSeverity Fz points",null,null,{"$f":"#REF!","v":{"$error":"#REF!"}},null,0,1]
[638,703,"HiSeverity T1 acceleration points",null,null,{"$f":"#REF!","v":{"$error":"#REF!"}},null,0,1]
[639,703,"HiSeverity THRC points",null,null,{"$f":"#REF!","v":{"$error":"#REF!"}},null,0,1]
[640,705,"MidSeverity NIC points",null,null,{"$f":"#REF!","v":{"$error":"#REF!"}},null,0,1]
[641,705,"MidSeverity Nkm points",null,null,{"$f":"#REF!","v":{"$error":"#REF!"}},null,0,1]
[642,705,"MidSeverity Rebound velocity points",null,null,{"$f":"#REF!","v":{"$error":"#REF!"}},null,0,1]
[643,705,"MidSeverity Fx points",null,null,{"$f":"#REF!","v":{"$error":"#REF!"}},null,0,1]
[644,705,"MidSeverity Fz points",null,null,{"$f":"#REF!","v":{"$error":"#REF!"}},null,0,1]
[645,705,"MidSeverity T1 acceleration points",null,null,{"$f":"#REF!","v":{"$error":"#REF!"}},null,0,{"$f":"COUNTIF($A$2:$A$3487,A578)","v":1}]
[646,705,"MidSeverity THRC points",null,null,{"$f":"#REF!","v":{"$error":"#REF!"}},null,0,1]
[647,707,"LoSeverity NIC points",null,null,{"$f":"#REF!","v":{"$error":"#REF!"}},null,0,1]
[648,707,"LoSeverity Nkm points",null,null,{"$f":"#REF!","v":{"$error":"#REF!"}},null,0,1]
[649,707,"LoSeverity rebound velocity points",null,null,{"$f":"#REF!","v":{"$error":"#REF!"}},null,0,1]
[650,707,"LoSeverity Fx points",null,null,{"$f":"#REF!","v":{"$error":"#REF!"}},null,0,1]
[651,707,"LoSeverity Fz points",null,null,{"$f":"#REF!","v":{"$error":"#REF!"}},null,0,1]
[652,707,"LoSeverity T1 acceleration points",null,null,{"$f":"#REF!","v":{"$error":"#REF!"}},null,0,1]
[653,707,"LoSeverity THRC points",null,null,{"$f":"#REF!","v":{"$error":"#REF!"}},null,0,1]
[654,633,"HiSeverity NIC",null,null,{"$f":"#REF!","v":{"$error":"#REF!"}},null,0,1]
[655,634,"HiSeverity Nkm",null,null,{"$f":"#REF!","v":{"$error":"#REF!"}},null,0,1]
[656,635,"HiSeverity rebound velocity",null,null,{"$f":"#REF!","v":{"$error":"#REF!"}},null,0,1]
[657,636,"HiSeverity Fx",null,null,{"$f":"#REF!","v":{"$error":"#REF!"}},null,0,1]
[658,637,"HiSeverity Fz",null,null,{"$f":"#REF!","v":{"$error":"#REF!"}},null,0,1]
[659,638,"HiSeverity T1 acceleration",null,null,{"$f":"#REF!","v":{"$error":"#REF!"}},null,0,1]
[660,639,"HiSeverity THRC",null,null,{"$f":"#REF!","v":{"$error":"#REF!"}},null,0,1]
[661,640,"MidSeverity NIC",null,null,{"$f":"#REF!","v":{"$error":"#REF!"}},null,0,1]
[662,641,"MidSeverity Nkm",null,null,{"$f":"#REF!","v":{"$error":"#REF!"}},null,0,1]
[663,642,"MidSeverity Rebound velocity",null,null,{"$f":"#REF!","v":{"$error":"#REF!"}},null,0,1]
[664,643,"MidSeverity Fx",null,null,{"$f":"#REF!","v":{"$error":"#REF!"}},null,0,1]
[665,644,"MidSeverity Fz",null,null,{"$f":"#REF!","v":{"$error":"#REF!"}},null,0,1]
[666,645,"MidSeverity T1 acceleration",null,null,{"$f":"#REF!","v":{"$error":"#REF!"}},null,0,1]
[667,646,"MidSeverity THRC",null,null,{"$f":"#REF!","v":{"$error":"#REF!"}},null,0,1]
[668,647,"LoSeverity NIC",null,null,{"$f":"#REF!","v":{"$error":"#REF!"}},null,0,1]
[669,648,"LoSeverity Nkm",null,null,{"$f":"#REF!","v":{"$error":"#REF!"}},null,0,1]
[670,649,"LoSeverity rebound velocity",null,null,{"$f":"#REF!","v":{"$error":"#REF!"}},null,0,1]
[671,650,"LoSeverity Fx",null,null,{"$f":"#REF!","v":{"$error":"#REF!"}},null,0,1]
[672,651,"LoSeverity Fz",null,null,{"$f":"#REF!","v":{"$error":"#REF!"}},null,0,1]
[673,652,"LoSeverity T1 acceleration",null,null,{"$f":"#REF!","v":{"$error":"#REF!"}},null,0,1]
[674,653,"LoSeverity THRC",null,null,{"$f":"#REF!","v":{"$error":"#REF!"}},null,0,1]
[675,633,"HiSeverity NIC capped","","",null,"",0,1]
[676,634,"HiSeverity Nkm capped","","",null,"",0,1]
[677,635,"HiSeverity rebound velocity capped","","",null,"",0,1]
[678,636,"HiSeverity Fx capped","","",null,"",0,1]
[679,637,"HiSeverity Fz capped","","",null,"",0,1]
[680,638,"HiSeverity T1 acceleration capped","","",null,"",0,1]
[681,639,"HiSeverity THRC capped","","",null,"",0,1]
[682,640,"MidSeverity NIC capped","","",null,"",0,1]
[683,641,"MidSeverity Nkm capped","","",null,"",0,1]
[684,642,"MidSeverity Rebound velocity capped","","",null,"",0,1]
[685,643,"MidSeverity Fx capped","","",null,"",0,1]
[686,644,"MidSeverity Fz capped","","",null,"",0,1]
[687,645,"MidSeverity T1 acceleration capped","","",null,"",0,1]
[688,646,"MidSeverity THRC capped","","",null,"",0,1]
[689,647,"LoSeverity NIC capped","","",null,"",0,1]
[690,648,"LoSeverity Nkm capped","","",null,"",0,1]
[691,649,"LoSeverity rebound velocity capped","","",null,"",0,1]
[692,650,"LoSeverity Fx capped","","",null,"",0,1]
[693,651,"LoSeverity Fz capped","","",null,"",0,1]
[694,652,"LoSeverity T1 acceleration capped","","",null,"",0,1]
[695,653,"LoSeverity THRC capped","","",null,"",0,1]
[696,610,"Total weighted percentage",null,null,{"$f":"#REF!","v":{"$error":"#REF!"}},null,0,1]
[697,null,"Old values",null,null,null,null,0,1]
[729,612,"Seat Number",null,null,{"$f":"IF(#REF!=\"Two seater\",2,1)","v":{"$error":"#REF!"}},null,null,1]
[730,589,"18m CRS facing",null,"18m_CRS_facing",{"$f":"LOWER(#REF!)","v":{"$error":"#REF!"}},null,null,1]
[731,590,"3y CRS facing",null,"3y_CRS_facing",{"$f":"LOWER(#REF!)","v":{"$error":"#REF!"}},null,null,1]
[732,584,"SLD Description",null,null,{"$f":"#REF!","v":{"$error":"#REF!"}},null,null,1]
[733,584,"SLD Fitment",null,null,{"$f":"#REF!","v":{"$error":"#REF!"}},null,null,1]
[734,584,"ESC Fitment",null,null,{"$f":"#REF!","v":{"$error":"#REF!"}},null,null,1]
[735,584,"SBR Driver",null,null,null,null,null,1]
[736,584,"SBR Passenger",null,null,null,null,null,1]
[737,584,"SBR Rear",null,null,{"$f":"IF(F787=\"Yes\",\"rear\",\"\")","v":{"$error":"#REF!"}},null,null,1]
[738,586,"Reference Mass",null,null,{"$f":"#REF!","v":{"$error":"#REF!"}},null,null,1]
[739,328,"Headform Score",null,null,{"$f":"#REF!","v":{"$error":"#REF!"}},null,null,1]
[740,100,"Scaled Side Score",null,null,{"$f":"#REF!","v":{"$error":"#REF!"}},null,null,{"$f":"COUNTIF($A$2:$A$3487,A642)","v":1}]
[741,100,"Scaled Pole Score",null,null,{"$f":"#REF!","v":{"$error":"#REF!"}},null,null,1]
[742,240,"Abdomen Sum Forces",null,null,{"$f":"#REF!","v":{"$error":"#REF!"}},null,null,1]
[743,697,"SHOW POLE TEST STAR",null,null,null,null,null,1]
[744,583,"Driver airbag contact",null,null,{"$f":"IF('AOP Frontal ODB'!D15=-1,\"unstable\",\"stable\")","v":"stable"},"REFINE",null,1]
[745,583,"Passenger airbag contact",null,null,{"$f":"IF('AOP Frontal ODB'!F15=-1,\"unstable\",\"stable\")","v":"stable"},"REFINE",null,1]
[746,583,"St Wheel rearward",null,null,{"$f":"IF('AOP Frontal ODB'!D19<=0,\"none\",CONCATENATE(ROUND('AOP Frontal ODB'!D19,0),\"mm\"))","v":"none"},null,null,1]
[747,583,"St Wheel upward",null,null,{"$f":"IF('AOP Frontal ODB'!D20<=0,\"none\",CONCATENATE(ABS(ROUND('AOP Frontal ODB'!D20,0)),\"mm\"))","v":"16mm"},null,null,1]
[748,583,"St Wheel lateral",null,null,{"$f":"IF('AOP Frontal ODB'!D21=0,\"none\",CONCATENATE(ABS(ROUND('AOP Frontal ODB'!D21,0)),IF('AOP Frontal ODB'!D21>0,\"mm to the left\",\"mm to the right\")))","v":"4mm to the right"},null,null,1]
[749,583,"Contact with wheel",null,null,{"$f":"IF('AOP Frontal ODB'!D39=-1,\"yes\",\"none\")","v":"none"},null,null,1]
[750,583,"Screen Pillar rearward",null,null,{"$f":"IF('AOP Frontal ODB'!D40=0,\"none\",CONCATENATE(ABS(ROUND('AOP Frontal ODB'!D40,0)),\"mm\"))","v":"5mm"},null,null,1]
[751,583,"Pass Compartment Stability",null,null,{"$f":"IF('AOP Frontal ODB'!D41=-1,\"unstable\",\"stable\")","v":"stable"},null,null,1]
[752,583,"Stiff Structures Present",null,null,{"$f":"#REF!","v":{"$error":"#REF!"}},null,null,1]
[753,583,"Concentrated knee loading",null,null,{"$f":"#REF!","v":{"$error":"#REF!"}},null,null,1]
[754,583,"Rearward pedal displacement",null,null,{"$f":"IF('AOP Frontal ODB'!D84<=0,\"none\",CONCATENATE(VLOOKUP('AOP Frontal ODB'!D84,'AOP Frontal ODB'!D85:F87,3,0),\" - \",ABS('AOP Frontal ODB'!D84),\"mm\"))","v":"Brake - 32.1079999999999mm"},null,null,1]
[755,583,"Upward pedal displacement",null,null,{"$f":"IF('AOP Frontal ODB'!D67<=0,\"none\",CONCATENATE(VLOOKUP('AOP Frontal ODB'!D67,'AOP Frontal ODB'!D68:F70,3,0),\" - \",ABS('AOP Frontal ODB'!D67),\"mm\"))","v":"none"},null,null,1]
[756,583,"Footwell rupture",null,null,{"$f":"IF('AOP Frontal ODB'!D88=-1,\"rupture\",\"none\")","v":"none"},null,null,1]
[757,583,"18m restraint used",null,null,{"$f":"CONCATENATE(#REF!,\", \",LOWER(#REF!),\" using \",#REF!)","v":{"$error":"#REF!"}},null,null,1]
[758,583,"3y restraint used",null,null,{"$f":"CONCATENATE(#REF!,\", \",LOWER(#REF!),\" using \",#REF!)","v":{"$error":"#REF!"}},null,null,1]
[759,583,"Airbag warning label",null,null,{"$f":"#REF!","v":{"$error":"#REF!"}},null,null,1]
[760,583,"18m head forward",null,null,{"$f":"IF(AND(#REF!=\"No\",#REF!<550),\"protected\",\"vulnerable\")","v":{"$error":"#REF!"}},null,null,1]
[761,583,"3y head forward",null,null,{"$f":"IF(AND(#REF!=\"No\",#REF!<550),\"protected\",\"vulnerable\")","v":{"$error":"#REF!"}},null,null,1]
[762,583,"18m chest load",null,null,{"$f":"IF(#REF!<=41,\"good\",IF(#REF!<55,\"fair\",\"poor\"))","v":{"$error":"#REF!"}},null,null,1]
[763,583,"3y chest load",null,null,{"$f":"IF(#REF!<=50,\"good\",IF(#REF!<66,\"fair\",\"poor\"))","v":{"$error":"#REF!"}},null,null,1]
[764,583,"frontal 18m head acc",null,null,{"$f":"IF(#REF!=4,\"good\",IF(#REF!>0,\"fair\",\"poor\"))","v":{"$error":"#REF!"}},null,null,1]
[765,583,"frontal 3y head acc",null,null,{"$f":"IF(#REF!=4,\"good\",IF(#REF!>0,\"fair\",\"poor\"))","v":{"$error":"#REF!"}},null,null,1]
[766,583,"side 18m containment",null,null,{"$f":"IF(#REF!=\"Yes\",\"protected\",\"vulnerable\")","v":{"$error":"#REF!"}},null,null,1]
[767,583,"side 3 y containment",null,null,{"$f":"IF(#REF!=\"Yes\",\"protected\",\"vulnerable\")","v":{"$error":"#REF!"}},null,null,1]
[768,583,"side 18m head acc",null,null,{"$f":"IF(#REF!=4,\"good\",IF(#REF!>0,\"fair\",\"poor\"))","v":{"$error":"#REF!"}},null,null,1]
[769,583,"side 3 y head acc",null,null,{"$f":"IF(#REF!=4,\"good\",IF(#REF!>0,\"fair\",\"poor\"))","v":{"$error":"#REF!"}},null,null,1]
[770,584,"Side Airbag Pelvis",null,null,{"$f":"#REF!","v":{"$error":"#REF!"}},null,null,1]
[771,584,"Side Airbag Pelvis Comment",null,null,{"$f":"#REF!","v":{"$error":"#REF!"}},null,null,1]
[772,586,"Reference_Mass",null,null,{"$f":"#REF!","v":{"$error":"#REF!"}},null,null,1]
[773,586,"Car Make",null,null,{"$f":"IF(ISERROR(VLOOKUP(#REF!,#REF!,2,0)),\"\",VLOOKUP(#REF!,#REF!,2,0))","v":""},null,null,1]
[774,586,"Car Model",null,null,{"$f":"IF(ISERROR(VLOOKUP(#REF!,#REF!,2,0)),\"\",VLOOKUP(#REF!,#REF!,2,0))","v":""},null,null,1]
[775,586,"Car Class",null,null,{"$f":"IF(ISERROR(VLOOKUP(#REF!,#REF!,2,0)),\"\",VLOOKUP(#REF!,#REF!,2,0))","v":""},null,null,1]
[776,586,"Car Category",null,null,{"$f":"IF(ISERROR(VLOOKUP(VLOOKUP(#REF!,#REF!,3,0),#REF!,2,0)),\"\",VLOOKUP(VLOOKUP(#REF!,#REF!,3,0),#REF!,2,0))","v":""},null,null,1]
[777,442,"U1A BLE height",null,null,null,null,null,1]
[778,442,"U1A Bumper Lead",null,null,null,null,null,1]
[779,442,"U1A Energy",null,null,null,null,null,1]
[780,448,"U1B BLE height",null,null,null,null,null,1]
[781,448,"U1B Bumper Lead",null,null,null,null,null,1]
[782,448,"U1B Energy",null,null,null,null,null,1]
[783,455,"U2A BLE height",null,null,null,null,null,1]
[784,455,"U2A Bumper Lead",null,null,null,null,null,1]
[785,455,"U2A Energy",null,null,null,null,null,1]
[786,461,"U2B BLE height",null,null,null,null,null,1]
[787,461,"U2B Bumper Lead",null,null,null,null,null,1]
[788,461,"U2B Energy",null,null,null,null,null,1]
[789,468,"U3A BLE height",null,null,null,null,null,1]
[790,468,"U3A Bumper Lead",null,null,null,null,null,1]
[791,468,"U3A Energy",null,null,null,null,null,1]
[792,474,"U3B BLE height",null,null,null,null,null,1]
[793,474,"U3B Bumper Lead",null,null,null,null,null,1]
[794,474,"U3B Energy",null,null,null,null,null,1]
[795,584,"ESC Fitted",null,"esc_onboard",{"$f":"#REF!","v":{"$error":"#REF!"}},null,null,1]
[796,584,"SLD Fitted",null,"sld_onboard",{"$f":"#REF!","v":{"$error":"#REF!"}},null,null,1]
[797,584,"SBR Fitted",null,"sbr_onboard",{"$f":"IF(OR(#REF!=\"Yes\"),\"Yes\",\"No\")","v":{"$error":"#REF!"}},null,null,1]
[798,584,"ESC comments",null,"esc_comments",{"$f":"#REF!","v":{"$error":"#REF!"}},null,null,1]
[799,584,"SLD comments",null,"sld_comments",{"$f":"#REF!","v":{"$error":"#REF!"}},null,null,1]
[800,584,"SBR comments",null,"sbr_comments",{"$f":"IF(AND(#REF!=\"Yes\"),\"Driver, Passenger and Rear\",IF(#REF!=\"Yes\",\"Driver and Passenger\",\"None\"))","v":{"$error":"#REF!"}},null,null,1]
[801,622,"Driver SBR Points",null,null,null,null,null,1]
[802,622,"Pass SBR Points",null,null,null,null,null,1]
[803,622,"Rear SBR Points",null,null,{"$f":"#REF!","v":{"$error":"#REF!"}},null,null,1]
[804,584,"ESC Pass",null,"ESC_Pass",{"$f":"IF(AND(#REF!=\"Pass\",#REF!,#REF!),\"Pass\",\"Fail\")","v":{"$error":"#REF!"}},null,null,{"$f":"COUNTIF($A$2:$A$3487,A706)","v":1}]
[805,584,"SLD Pass",null,"SLD_Pass","Not assessed",null,null,1]
[806,584,"Dr_SBR Pass",null,"Dr_SBR_Pass",null,null,null,1]
[807,584,"Pass_SBR Pass",null,"Pass_SBR_Pass",null,null,null,1]
[808,584,"Rear_SBR Pass",null,"Rear_SBR_Pass",{"$f":"IF(#REF!=\"No\",\"Not Available\",IF(ISERROR(SEARCH(\"Pass\",#REF!,1)),\"Fail\",\"Pass\"))","v":{"$error":"#REF!"}},null,null,1]
[809,439,"Tall_Bumper_Score",null,null,{"$f":"#REF!","v":{"$error":"#REF!"}},null,null,1]
[810,439,"Tall L1 Score",null,null,{"$f":"SUM(F714,F720)","v":{"$error":"#REF!"}},null,null,1]
[811,439,"Tall L1A Nomination",null,null,{"$f":"IF(#REF!=\"Euro NCAP point\",\"N\",IF(#REF!=\"Manufacturer nominated\",\"M\",\"\"))","v":{"$error":"#REF!"}},null,null,1]
[812,439,"Tall L1A Score",null,null,{"$f":"#REF!","v":{"$error":"#REF!"}},null,null,1]
[813,439,"Tall L1A Femur upper bending moment - Nm",null,null,{"$f":"#REF!","v":{"$error":"#REF!"}},null,null,1]
[814,439,"Tall L1A Femur centre bending moment - Nm",null,null,{"$f":"#REF!","v":{"$error":"#REF!"}},null,null,1]
[815,439,"Tall L1A Femur lower bending moment - Nm",null,null,{"$f":"#REF!","v":{"$error":"#REF!"}},null,null,1]
[816,439,"Tall L1A Femur: sum of forces - kN",null,null,{"$f":"#REF!","v":{"$error":"#REF!"}},null,null,1]
[817,439,"Tall L1B Nomination",null,null,{"$f":"IF(#REF!=\"Euro NCAP point\",\"N\",IF(#REF!=\"Manufacturer nominated\",\"M\",\"\"))","v":{"$error":"#REF!"}},null,null,1]
[818,439,"Tall L1B Score",null,null,{"$f":"#REF!","v":{"$error":"#REF!"}},null,null,1]
[819,439,"Tall L1B Femur upper bending moment - Nm",null,null,{"$f":"#REF!","v":{"$error":"#REF!"}},null,null,1]
[820,439,"Tall L1B Femur centre bending moment - Nm",null,null,{"$f":"#REF!","v":{"$error":"#REF!"}},null,null,1]
[821,439,"Tall L1B Femur lower bending moment - Nm",null,null,{"$f":"#REF!","v":{"$error":"#REF!"}},null,null,1]
[822,439,"Tall L1B Femur: sum of forces - kN",null,null,{"$f":"#REF!","v":{"$error":"#REF!"}},null,null,1]
[823,439,"Tall L2 Score",null,null,{"$f":"SUM(F727,F733)","v":{"$error":"#REF!"}},null,null,1]
[824,439,"Tall L2A Nomination",null,null,{"$f":"IF(#REF!=\"Euro NCAP point\",\"N\",IF(#REF!=\"Manufacturer nominated\",\"M\",\"\"))","v":{"$error":"#REF!"}},null,null,1]
[825,439,"Tall L2A Score",null,null,{"$f":"#REF!","v":{"$error":"#REF!"}},null,null,1]
[826,439,"Tall L2A Femur upper bending moment - Nm",null,null,{"$f":"#REF!","v":{"$error":"#REF!"}},null,null,1]
[827,439,"Tall L2A Femur centre bending moment - Nm",null,null,{"$f":"#REF!","v":{"$error":"#REF!"}},null,null,1]
[828,439,"Tall L2A Femur lower bending moment - Nm",null,null,{"$f":"#REF!","v":{"$error":"#REF!"}},null,null,1]
[829,439,"Tall L2A Femur: sum of forces - kN",null,null,{"$f":"#REF!","v":{"$error":"#REF!"}},null,null,1]
[830,439,"Tall L2B Nomination",null,null,{"$f":"IF(#REF!=\"Euro NCAP point\",\"N\",IF(#REF!=\"Manufacturer nominated\",\"M\",\"\"))","v":{"$error":"#REF!"}},null,null,1]
[831,439,"Tall L2B Score",null,null,{"$f":"#REF!","v":{"$error":"#REF!"}},null,null,1]
[832,439,"Tall L2B Femur upper bending moment - Nm",null,null,{"$f":"#REF!","v":{"$error":"#REF!"}},null,null,1]
[833,439,"Tall L2B Femur centre bending moment - Nm",null,null,{"$f":"#REF!","v":{"$error":"#REF!"}},null,null,1]
[834,439,"Tall L2B Femur lower bending moment - Nm",null,null,{"$f":"#REF!","v":{"$error":"#REF!"}},null,null,1]
[835,439,"Tall L2B Femur: sum of forces - kN",null,null,{"$f":"#REF!","v":{"$error":"#REF!"}},null,null,1]
[836,439,"Tall L3 Score",null,null,{"$f":"SUM(F740,F746)","v":{"$error":"#REF!"}},null,null,1]
[837,439,"Tall L3A Nomination",null,null,{"$f":"IF(#REF!=\"Euro NCAP point\",\"N\",IF(#REF!=\"Manufacturer nominated\",\"M\",\"\"))","v":{"$error":"#REF!"}},null,null,1]
[838,439,"Tall L3A Score",null,null,{"$f":"#REF!","v":{"$error":"#REF!"}},null,null,1]
[839,439,"Tall L3A Femur upper bending moment - Nm",null,null,{"$f":"#REF!","v":{"$error":"#REF!"}},null,null,1]
[840,439,"Tall L3A Femur centre bending moment - Nm",null,null,{"$f":"#REF!","v":{"$error":"#REF!"}},null,null,1]
[841,439,"Tall L3A Femur lower bending moment - Nm",null,null,{"$f":"#REF!","v":{"$error":"#REF!"}},null,null,1]
[842,439,"Tall L3A Femur: sum of forces - kN",null,null,{"$f":"#REF!","v":{"$error":"#REF!"}},null,null,1]
[843,439,"Tall L3B Nomination",null,null,{"$f":"IF(#REF!=\"Euro NCAP point\",\"N\",IF(#REF!=\"Manufacturer nominated\",\"M\",\"\"))","v":{"$error":"#REF!"}},null,null,1]
[844,439,"Tall L3B Score",null,null,{"$f":"#REF!","v":{"$error":"#REF!"}},null,null,1]
[845,439,"Tall L3B Femur upper bending moment - Nm",null,null,{"$f":"#REF!","v":{"$error":"#REF!"}},null,null,1]
[846,439,"Tall L3B Femur centre bending moment - Nm",null,null,{"$f":"#REF!","v":{"$error":"#REF!"}},null,null,1]
[847,439,"Tall L3B Femur lower bending moment - Nm",null,null,{"$f":"#REF!","v":{"$error":"#REF!"}},null,null,1]
[848,439,"Tall L3B Femur: sum of forces - kN",null,null,{"$f":"#REF!","v":{"$error":"#REF!"}},null,null,1]
[849,584,"SLD Test Performed",null,null,{"$f":"#REF!","v":{"$error":"#REF!"}},null,null,1]
[850,584,"ESC Test Performed",null,null,{"$f":"#REF!","v":{"$error":"#REF!"}},null,null,1]
[851,617,"ESC Test Mass",null,null,{"$f":"ESC!AB10","v":1412},null,null,1]
[852,617,"ESC Test Temp",null,null,{"$f":"ESC!AB21","v":"7,5°C"},null,null,1]
[853,617,"ESC Wind Speed",null,null,{"$f":"ESC!AB22","v":"1 m/s"},null,null,1]
[854,617,"COS100SAngle",null,null,{"$f":"ESC!AB35","v":-40.926535844099},null,null,1]
[855,617,"COS100Turn",null,null,{"$f":"ESC!AB36","v":"right"},null,null,1]
[856,617,"COS100PkYawVel",null,null,{"$f":"ESC!AB37","v":11.378932296617},null,null,1]
[857,617,"COS100_100YawVel",null,null,{"$f":"ESC!AB38","v":-0.36974211973700799},null,null,1]
[858,617,"COS100_175YawVel",null,null,{"$f":"ESC!AB39","v":-0.219574377036832},null,null,1]
[859,617,"COS100_BOSValid",null,null,{"$f":"ESC!AB40","v":"PASS"},null,null,1]
[860,617,"COS100_LatDisp",null,null,{"$f":"ESC!AB41","v":-1.2707467761890401},null,null,1]
[861,617,"COS100_YRR",null,null,{"$f":"ESC!AB42","v":2.8845438059010999},null,null,1]
[862,617,"COS175SAngle",null,null,{"$f":"ESC!AB43","v":40.895463834731103},null,null,1]
[863,617,"COS175Turn",null,null,{"$f":"ESC!AB44","v":"left"},null,null,1]
[864,617,"COS175PkYawVel",null,null,{"$f":"ESC!AB45","v":-11.5617395184735},null,null,1]
[865,617,"COS175_100YawVel",null,null,{"$f":"ESC!AB46","v":0.25825221482300997},null,null,1]
[866,617,"COS175_175YawVel",null,null,{"$f":"ESC!AB47","v":0.38092014369468002},null,null,1]
[867,617,"COS175_BOSValid",null,null,{"$f":"ESC!AB48","v":"PASS"},null,null,1]
[868,617,"COS175_LatDisp",null,null,{"$f":"ESC!AB49","v":1.2908157970131},null,null,{"$f":"COUNTIF($A$2:$A$3487,A770)","v":1}]
[869,617,"COS175_YRR",null,null,{"$f":"ESC!AB50","v":2.9384780776130399},null,null,1]
[870,617,"BOS107SAngle",null,null,{"$f":"ESC!AB51","v":278.53367562626698},null,null,1]
[871,617,"BOS107Turn",null,null,{"$f":"ESC!AB52","v":"left"},null,null,1]
[872,617,"BOS107PkYawVel",null,null,{"$f":"ESC!AB53","v":-47.874793173113602},null,null,1]
[873,617,"BOS107_100YawVel",null,null,{"$f":"ESC!AB54","v":1.1387035470817299},null,null,1]
[874,617,"BOS107_175YawVel",null,null,{"$f":"ESC!AB55","v":0.44308242205334297},null,null,1]
[875,617,"BOS107_BOSValid",null,null,{"$f":"ESC!AB56","v":"PASS"},null,null,1]
[876,617,"BOS107_LatDisp",null,null,{"$f":"ESC!AB57","v":3.01156299635855},null,null,1]
[877,617,"SSF",null,null,{"$f":"ESC!AB11","v":1.38},null,null,1]
[878,617,"Outriggers",null,null,{"$f":"ESC!AB12","v":"Not required"},null,null,1]
[879,617,"COS100_Pass",null,null,{"$f":"ESC!AB29","v":"Pass"},null,null,1]
[880,617,"COS175_Pass",null,null,{"$f":"ESC!AB30","v":"Pass"},null,null,1]
[881,617,"BOS107_Pass",null,null,{"$f":"ESC!AB31","v":"Pass"},null,null,1]
[882,617,"ESC_A_Angle",null,null,{"$f":"ESC!AB25","v":27.7},null,null,1]
[883,617,"ESC_Track",null,null,{"$f":"ESC!AB20","v":"dry"},null,null,1]
[884,617,"ESC_Name",null,null,{"$f":"#REF!","v":{"$error":"#REF!"}},null,null,1]
[885,584,"sbr_test_performed",null,null,{"$f":"#REF!","v":{"$error":"#REF!"}},null,null,1]
[886,617,"ESC_Switch",null,null,{"$f":"#REF!","v":{"$error":"#REF!"}},null,null,1]
[887,294,"TP1_R1_C","D",{"$f":"IF(#REF!=\"LHD\",\"Left\",\"Right\")","v":{"$error":"#REF!"}},{"$f":"VLOOKUP(OFFSET(#REF!,1,MATCH(\"Centre\",#REF!,0)),$AC$1:$AD$5,2,0)","v":{"$error":"#REF!"}},null,null,1]
[888,294,"TP1_R1_P","P",{"$f":"IF(#REF!=\"LHD\",\"Right\",\"Left\")","v":{"$error":"#REF!"}},{"$f":"VLOOKUP(OFFSET(#REF!,1,MATCH($E$790,#REF!,0)),$AC$1:$AD$5,2,0)","v":{"$error":"#REF!"}},null,null,1]
[889,294,"TP1_R2_D",null,null,{"$f":"VLOOKUP(OFFSET(#REF!,1,MATCH($E$789,#REF!,0)),$AC$1:$AD$5,2,0)","v":{"$error":"#REF!"}},null,null,1]
[890,294,"TP1_R2_C",null,null,{"$f":"VLOOKUP(OFFSET(#REF!,1,MATCH(\"Centre\",#REF!,0)),$AC$1:$AD$5,2,0)","v":{"$error":"#REF!"}},null,null,1]
[891,294,"TP1_R2_P",null,null,{"$f":"VLOOKUP(OFFSET(#REF!,1,MATCH($E$790,#REF!,0)),$AC$1:$AD$5,2,0)","v":{"$error":"#REF!"}},null,null,1]
[892,294,"TP1_R3_D",null,null,{"$f":"VLOOKUP(OFFSET(#REF!,1,MATCH($E$789,#REF!,0)),$AC$1:$AD$5,2,0)","v":{"$error":"#REF!"}},null,null,1]
[893,294,"TP1_R3_C",null,null,{"$f":"VLOOKUP(OFFSET(#REF!,1,MATCH(\"Centre\",#REF!,0)),$AC$1:$AD$5,2,0)","v":{"$error":"#REF!"}},null,null,1]
[894,294,"TP1_R3_P",null,null,{"$f":"VLOOKUP(OFFSET(#REF!,1,MATCH($E$790,#REF!,0)),$AC$1:$AD$5,2,0)","v":{"$error":"#REF!"}},null,null,1]
[895,294,"TP2_R1_C",null,null,{"$f":"VLOOKUP(OFFSET(#REF!,2,MATCH(\"Centre\",#REF!,0)),$AC$1:$AD$5,2,0)","v":{"$error":"#REF!"}},null,null,1]
[896,294,"TP2_R1_P",null,null,{"$f":"VLOOKUP(OFFSET(#REF!,2,MATCH($E$790,#REF!,0)),$AC$1:$AD$5,2,0)","v":{"$error":"#REF!"}},null,null,1]
[897,294,"TP2_R2_D",null,null,{"$f":"VLOOKUP(OFFSET(#REF!,2,MATCH($E$789,#REF!,0)),$AC$1:$AD$5,2,0)","v":{"$error":"#REF!"}},null,null,1]
[898,294,"TP2_R2_C",null,null,{"$f":"VLOOKUP(OFFSET(#REF!,2,MATCH(\"Centre\",#REF!,0)),$AC$1:$AD$5,2,0)","v":{"$error":"#REF!"}},null,null,1]
[899,294,"TP2_R2_P",null,null,{"$f":"VLOOKUP(OFFSET(#REF!,2,MATCH($E$790,#REF!,0)),$AC$1:$AD$5,2,0)","v":{"$error":"#REF!"}},null,null,1]
[900,294,"TP2_R3_D",null,null,{"$f":"VLOOKUP(OFFSET(#REF!,2,MATCH($E$789,#REF!,0)),$AC$1:$AD$5,2,0)","v":{"$error":"#REF!"}},null,null,1]
[901,294,"TP2_R3_C",null,null,{"$f":"VLOOKUP(OFFSET(#REF!,2,MATCH(\"Centre\",#REF!,0)),$AC$1:$AD$5,2,0)","v":{"$error":"#REF!"}},null,null,1]
[902,294,"TP2_R3_P",null,null,{"$f":"VLOOKUP(OFFSET(#REF!,2,MATCH($E$790,#REF!,0)),$AC$1:$AD$5,2,0)","v":{"$error":"#REF!"}},null,null,1]
[903,294,"TP3_R1_C",null,null,{"$f":"VLOOKUP(OFFSET(#REF!,3,MATCH(\"Centre\",#REF!,0)),$AC$1:$AD$5,2,0)","v":{"$error":"#REF!"}},null,null,1]
[904,294,"TP3_R1_P",null,null,{"$f":"VLOOKUP(OFFSET(#REF!,3,MATCH($E$790,#REF!,0)),$AC$1:$AD$5,2,0)","v":{"$error":"#REF!"}},null,null,1]
[905,294,"TP3_R2_D",null,null,{"$f":"VLOOKUP(OFFSET(#REF!,3,MATCH($E$789,#REF!,0)),$AC$1:$AD$5,2,0)","v":{"$error":"#REF!"}},null,null,1]
[906,294,"TP3_R2_C",null,null,{"$f":"VLOOKUP(OFFSET(#REF!,3,MATCH(\"Centre\",#REF!,0)),$AC$1:$AD$5,2,0)","v":{"$error":"#REF!"}},null,null,1]
[907,294,"TP3_R2_P",null,null,{"$f":"VLOOKUP(OFFSET(#REF!,3,MATCH($E$790,#REF!,0)),$AC$1:$AD$5,2,0)","v":{"$error":"#REF!"}},null,null,1]
[908,294,"TP3_R3_D",null,null,{"$f":"VLOOKUP(OFFSET(#REF!,3,MATCH($E$789,#REF!,0)),$AC$1:$AD$5,2,0)","v":{"$error":"#REF!"}},null,null,1]
[909,294,"TP3_R3_C",null,null,{"$f":"VLOOKUP(OFFSET(#REF!,3,MATCH(\"Centre\",#REF!,0)),$AC$1:$AD$5,2,0)","v":{"$error":"#REF!"}},null,null,1]
[910,294,"TP3_R3_P",null,null,{"$f":"VLOOKUP(OFFSET(#REF!,3,MATCH($E$790,#REF!,0)),$AC$1:$AD$5,2,0)","v":{"$error":"#REF!"}},null,null,1]
[911,294,"TP4_R1_C",null,null,{"$f":"VLOOKUP(OFFSET(#REF!,4,MATCH(\"Centre\",#REF!,0)),$AC$1:$AD$5,2,0)","v":{"$error":"#REF!"}},null,null,1]
[912,294,"TP4_R1_P",null,null,{"$f":"VLOOKUP(OFFSET(#REF!,4,MATCH($E$790,#REF!,0)),$AC$1:$AD$5,2,0)","v":{"$error":"#REF!"}},null,null,1]
[913,294,"TP4_R2_D",null,null,{"$f":"VLOOKUP(OFFSET(#REF!,4,MATCH($E$789,#REF!,0)),$AC$1:$AD$5,2,0)","v":{"$error":"#REF!"}},null,null,1]
[914,294,"TP4_R2_C",null,null,{"$f":"VLOOKUP(OFFSET(#REF!,4,MATCH(\"Centre\",#REF!,0)),$AC$1:$AD$5,2,0)","v":{"$error":"#REF!"}},null,null,1]
[915,294,"TP4_R2_P",null,null,{"$f":"VLOOKUP(OFFSET(#REF!,4,MATCH($E$790,#REF!,0)),$AC$1:$AD$5,2,0)","v":{"$error":"#REF!"}},null,null,1]
[916,294,"TP4_R3_D",null,null,{"$f":"VLOOKUP(OFFSET(#REF!,4,MATCH($E$789,#REF!,0)),$AC$1:$AD$5,2,0)","v":{"$error":"#REF!"}},null,null,1]
[917,294,"TP4_R3_C",null,null,{"$f":"VLOOKUP(OFFSET(#REF!,4,MATCH(\"Centre\",#REF!,0)),$AC$1:$AD$5,2,0)","v":{"$error":"#REF!"}},null,null,1]
[918,294,"TP4_R3_P",null,null,{"$f":"VLOOKUP(OFFSET(#REF!,4,MATCH($E$790,#REF!,0)),$AC$1:$AD$5,2,0)","v":{"$error":"#REF!"}},null,null,1]
[919,294,"TP5_R1_C",null,null,{"$f":"VLOOKUP(OFFSET(#REF!,5,MATCH(\"Centre\",#REF!,0)),$AC$1:$AD$5,2,0)","v":{"$error":"#REF!"}},null,null,1]
[920,294,"TP5_R1_P",null,null,{"$f":"VLOOKUP(OFFSET(#REF!,5,MATCH($E$790,#REF!,0)),$AC$1:$AD$5,2,0)","v":{"$error":"#REF!"}},null,null,1]
[921,294,"TP5_R2_D",null,null,{"$f":"VLOOKUP(OFFSET(#REF!,5,MATCH($E$789,#REF!,0)),$AC$1:$AD$5,2,0)","v":{"$error":"#REF!"}},null,null,1]
[922,294,"TP5_R2_C",null,null,{"$f":"VLOOKUP(OFFSET(#REF!,5,MATCH(\"Centre\",#REF!,0)),$AC$1:$AD$5,2,0)","v":{"$error":"#REF!"}},null,null,1]
[923,294,"TP5_R2_P",null,null,{"$f":"VLOOKUP(OFFSET(#REF!,5,MATCH($E$790,#REF!,0)),$AC$1:$AD$5,2,0)","v":{"$error":"#REF!"}},null,null,1]
[924,294,"TP5_R3_D",null,null,{"$f":"VLOOKUP(OFFSET(#REF!,5,MATCH($E$789,#REF!,0)),$AC$1:$AD$5,2,0)","v":{"$error":"#REF!"}},null,null,1]
[925,294,"TP5_R3_C",null,null,{"$f":"VLOOKUP(OFFSET(#REF!,5,MATCH(\"Centre\",#REF!,0)),$AC$1:$AD$5,2,0)","v":{"$error":"#REF!"}},null,null,1]
[926,294,"TP5_R3_P",null,null,{"$f":"VLOOKUP(OFFSET(#REF!,5,MATCH($E$790,#REF!,0)),$AC$1:$AD$5,2,0)","v":{"$error":"#REF!"}},null,null,1]
[927,294,"TP6_R1_C",null,null,{"$f":"VLOOKUP(OFFSET(#REF!,6,MATCH(\"Centre\",#REF!,0)),$AC$1:$AD$5,2,0)","v":{"$error":"#REF!"}},null,null,1]
[928,294,"TP6_R1_P",null,null,{"$f":"VLOOKUP(OFFSET(#REF!,6,MATCH($E$790,#REF!,0)),$AC$1:$AD$5,2,0)","v":{"$error":"#REF!"}},null,null,1]
[929,294,"TP6_R2_D",null,null,{"$f":"VLOOKUP(OFFSET(#REF!,6,MATCH($E$789,#REF!,0)),$AC$1:$AD$5,2,0)","v":{"$error":"#REF!"}},null,null,1]
[930,294,"TP6_R2_C",null,null,{"$f":"VLOOKUP(OFFSET(#REF!,6,MATCH(\"Centre\",#REF!,0)),$AC$1:$AD$5,2,0)","v":{"$error":"#REF!"}},null,null,1]
[931,294,"TP6_R2_P",null,null,{"$f":"VLOOKUP(OFFSET(#REF!,6,MATCH($E$790,#REF!,0)),$AC$1:$AD$5,2,0)","v":{"$error":"#REF!"}},null,null,1]
[932,294,"TP6_R3_D",null,null,{"$f":"VLOOKUP(OFFSET(#REF!,6,MATCH($E$789,#REF!,0)),$AC$1:$AD$5,2,0)","v":{"$error":"#REF!"}},null,null,{"$f":"COUNTIF($A$2:$A$3487,A834)","v":1}]
[933,294,"TP6_R3_C",null,null,{"$f":"VLOOKUP(OFFSET(#REF!,6,MATCH(\"Centre\",#REF!,0)),$AC$1:$AD$5,2,0)","v":{"$error":"#REF!"}},null,null,1]
[934,294,"TP6_R3_P",null,null,{"$f":"VLOOKUP(OFFSET(#REF!,6,MATCH($E$790,#REF!,0)),$AC$1:$AD$5,2,0)","v":{"$error":"#REF!"}},null,null,1]
[935,294,"TP7_R1_C",null,null,{"$f":"VLOOKUP(OFFSET(#REF!,7,MATCH(\"Centre\",#REF!,0)),$AC$1:$AD$5,2,0)","v":{"$error":"#REF!"}},null,null,1]
[936,294,"TP7_R1_P",null,null,{"$f":"VLOOKUP(OFFSET(#REF!,7,MATCH($E$790,#REF!,0)),$AC$1:$AD$5,2,0)","v":{"$error":"#REF!"}},null,null,1]
[937,294,"TP7_R2_D",null,null,{"$f":"VLOOKUP(OFFSET(#REF!,7,MATCH($E$789,#REF!,0)),$AC$1:$AD$5,2,0)","v":{"$error":"#REF!"}},null,null,1]
[938,294,"TP7_R2_C",null,null,{"$f":"VLOOKUP(OFFSET(#REF!,7,MATCH(\"Centre\",#REF!,0)),$AC$1:$AD$5,2,0)","v":{"$error":"#REF!"}},null,null,1]
[939,294,"TP7_R2_P",null,null,{"$f":"VLOOKUP(OFFSET(#REF!,7,MATCH($E$790,#REF!,0)),$AC$1:$AD$5,2,0)","v":{"$error":"#REF!"}},null,null,1]
[940,294,"TP7_R3_D",null,null,{"$f":"VLOOKUP(OFFSET(#REF!,7,MATCH($E$789,#REF!,0)),$AC$1:$AD$5,2,0)","v":{"$error":"#REF!"}},null,null,1]
[941,294,"TP7_R3_C",null,null,{"$f":"VLOOKUP(OFFSET(#REF!,7,MATCH(\"Centre\",#REF!,0)),$AC$1:$AD$5,2,0)","v":{"$error":"#REF!"}},null,null,1]
[942,294,"TP7_R3_P",null,null,{"$f":"VLOOKUP(OFFSET(#REF!,7,MATCH($E$790,#REF!,0)),$AC$1:$AD$5,2,0)","v":{"$error":"#REF!"}},null,null,1]
[943,294,"TP8_R1_C",null,null,{"$f":"VLOOKUP(OFFSET(#REF!,8,MATCH(\"Centre\",#REF!,0)),$AC$1:$AD$5,2,0)","v":{"$error":"#REF!"}},null,null,1]
[944,294,"TP8_R1_P",null,null,{"$f":"VLOOKUP(OFFSET(#REF!,8,MATCH($E$790,#REF!,0)),$AC$1:$AD$5,2,0)","v":{"$error":"#REF!"}},null,null,1]
[945,294,"TP8_R2_D",null,null,{"$f":"VLOOKUP(OFFSET(#REF!,8,MATCH($E$789,#REF!,0)),$AC$1:$AD$5,2,0)","v":{"$error":"#REF!"}},null,null,1]
[946,294,"TP8_R2_C",null,null,{"$f":"VLOOKUP(OFFSET(#REF!,8,MATCH(\"Centre\",#REF!,0)),$AC$1:$AD$5,2,0)","v":{"$error":"#REF!"}},null,null,1]
[947,294,"TP8_R2_P",null,null,{"$f":"VLOOKUP(OFFSET(#REF!,8,MATCH($E$790,#REF!,0)),$AC$1:$AD$5,2,0)","v":{"$error":"#REF!"}},null,null,1]
[948,294,"TP8_R3_D",null,null,{"$f":"VLOOKUP(OFFSET(#REF!,8,MATCH($E$789,#REF!,0)),$AC$1:$AD$5,2,0)","v":{"$error":"#REF!"}},null,null,1]
[949,294,"TP8_R3_C",null,null,{"$f":"VLOOKUP(OFFSET(#REF!,8,MATCH(\"Centre\",#REF!,0)),$AC$1:$AD$5,2,0)","v":{"$error":"#REF!"}},null,null,1]
[950,294,"TP8_R3_P",null,null,{"$f":"VLOOKUP(OFFSET(#REF!,8,MATCH($E$790,#REF!,0)),$AC$1:$AD$5,2,0)","v":{"$error":"#REF!"}},null,null,1]
[951,294,"TP9_R1_C",null,null,{"$f":"VLOOKUP(OFFSET(#REF!,9,MATCH(\"Centre\",#REF!,0)),$AC$1:$AD$5,2,0)","v":{"$error":"#REF!"}},null,null,1]
[952,294,"TP9_R1_P",null,null,{"$f":"VLOOKUP(OFFSET(#REF!,9,MATCH($E$790,#REF!,0)),$AC$1:$AD$5,2,0)","v":{"$error":"#REF!"}},null,null,1]
[953,294,"TP9_R2_D",null,null,{"$f":"VLOOKUP(OFFSET(#REF!,9,MATCH($E$789,#REF!,0)),$AC$1:$AD$5,2,0)","v":{"$error":"#REF!"}},null,null,1]
[954,294,"TP9_R2_C",null,null,{"$f":"VLOOKUP(OFFSET(#REF!,9,MATCH(\"Centre\",#REF!,0)),$AC$1:$AD$5,2,0)","v":{"$error":"#REF!"}},null,null,1]
[955,294,"TP9_R2_P",null,null,{"$f":"VLOOKUP(OFFSET(#REF!,9,MATCH($E$790,#REF!,0)),$AC$1:$AD$5,2,0)","v":{"$error":"#REF!"}},null,null,1]
[956,294,"TP9_R3_D",null,null,{"$f":"VLOOKUP(OFFSET(#REF!,9,MATCH($E$789,#REF!,0)),$AC$1:$AD$5,2,0)","v":{"$error":"#REF!"}},null,null,1]
[957,294,"TP9_R3_C",null,null,{"$f":"VLOOKUP(OFFSET(#REF!,9,MATCH(\"Centre\",#REF!,0)),$AC$1:$AD$5,2,0)","v":{"$error":"#REF!"}},null,null,1]
[958,294,"TP9_R3_P",null,null,{"$f":"VLOOKUP(OFFSET(#REF!,9,MATCH($E$790,#REF!,0)),$AC$1:$AD$5,2,0)","v":{"$error":"#REF!"}},null,null,1]
[959,294,"OEM1_R1_C",null,null,{"$f":"VLOOKUP(OFFSET(#REF!,10,MATCH(\"Centre\",#REF!,0)),$AC$1:$AD$5,2,0)","v":{"$error":"#REF!"}},null,null,1]
[960,294,"OEM1_R1_P",null,null,{"$f":"VLOOKUP(OFFSET(#REF!,10,MATCH($E$790,#REF!,0)),$AC$1:$AD$5,2,0)","v":{"$error":"#REF!"}},null,null,1]
[961,294,"OEM1_R2_D",null,null,{"$f":"VLOOKUP(OFFSET(#REF!,10,MATCH($E$789,#REF!,0)),$AC$1:$AD$5,2,0)","v":{"$error":"#REF!"}},null,null,1]
[962,294,"OEM1_R2_C",null,null,{"$f":"VLOOKUP(OFFSET(#REF!,10,MATCH(\"Centre\",#REF!,0)),$AC$1:$AD$5,2,0)","v":{"$error":"#REF!"}},null,null,1]
[963,294,"OEM1_R2_P",null,null,{"$f":"VLOOKUP(OFFSET(#REF!,10,MATCH($E$790,#REF!,0)),$AC$1:$AD$5,2,0)","v":{"$error":"#REF!"}},null,null,1]
[964,294,"OEM1_R3_D",null,null,{"$f":"VLOOKUP(OFFSET(#REF!,10,MATCH($E$789,#REF!,0)),$AC$1:$AD$5,2,0)","v":{"$error":"#REF!"}},null,null,1]
[965,294,"OEM1_R3_C",null,null,{"$f":"VLOOKUP(OFFSET(#REF!,10,MATCH(\"Centre\",#REF!,0)),$AC$1:$AD$5,2,0)","v":{"$error":"#REF!"}},null,null,1]
[966,294,"OEM1_R3_P",null,null,{"$f":"VLOOKUP(OFFSET(#REF!,10,MATCH($E$790,#REF!,0)),$AC$1:$AD$5,2,0)","v":{"$error":"#REF!"}},null,null,1]
[967,294,"OEM2_R1_C",null,null,{"$f":"VLOOKUP(OFFSET(#REF!,11,MATCH(\"Centre\",#REF!,0)),$AC$1:$AD$5,2,0)","v":{"$error":"#REF!"}},null,null,1]
[968,294,"OEM2_R1_P",null,null,{"$f":"VLOOKUP(OFFSET(#REF!,11,MATCH($E$790,#REF!,0)),$AC$1:$AD$5,2,0)","v":{"$error":"#REF!"}},null,null,1]
[969,294,"OEM2_R2_D",null,null,{"$f":"VLOOKUP(OFFSET(#REF!,11,MATCH($E$789,#REF!,0)),$AC$1:$AD$5,2,0)","v":{"$error":"#REF!"}},null,null,1]
[970,294,"OEM2_R2_C",null,null,{"$f":"VLOOKUP(OFFSET(#REF!,11,MATCH(\"Centre\",#REF!,0)),$AC$1:$AD$5,2,0)","v":{"$error":"#REF!"}},null,null,1]
[971,294,"OEM2_R2_P",null,null,{"$f":"VLOOKUP(OFFSET(#REF!,11,MATCH($E$790,#REF!,0)),$AC$1:$AD$5,2,0)","v":{"$error":"#REF!"}},null,null,1]
[972,294,"OEM2_R3_D",null,null,{"$f":"VLOOKUP(OFFSET(#REF!,11,MATCH($E$789,#REF!,0)),$AC$1:$AD$5,2,0)","v":{"$error":"#REF!"}},null,null,1]
[973,294,"OEM2_R3_C",null,null,{"$f":"VLOOKUP(OFFSET(#REF!,11,MATCH(\"Centre\",#REF!,0)),$AC$1:$AD$5,2,0)","v":{"$error":"#REF!"}},null,null,1]
[974,294,"OEM2_R3_P",null,null,{"$f":"VLOOKUP(OFFSET(#REF!,11,MATCH($E$790,#REF!,0)),$AC$1:$AD$5,2,0)","v":{"$error":"#REF!"}},null,null,1]
[975,294,"TP1",null,null,"a9ffda5b-e2bd-4314-97f5-bbe6aa7b9020",null,null,1]
[976,294,"TP2",null,null,"cad5a5d1-740e-441d-bfff-9ebb97e991c7",null,null,1]
[977,294,"TP3",null,null,"f344b08d-b94c-4873-b7d2-9c266003eb1b",null,null,1]
[978,294,"TP4",null,null,"d2cfe3ac-f094-455b-8680-0a2526350e76",null,null,1]
[979,294,"TP5",null,null,"28540551-57ea-415a-96ff-30788b4910eb",null,null,1]
[980,294,"TP6",null,null,"28540551-57ea-415a-96ff-30788b4910eb",null,null,1]
[981,294,"TP7",null,null,"915f4473-507f-4bfc-a379-ff60d8a73445",null,null,1]
[982,294,"TP8",null,null,"595b64f8-0131-4a03-8a20-57cbc277c495",null,null,1]
[983,294,"TP9",null,null,"d2cfe3ac-f094-455b-8680-0a2526350e76",null,null,1]
[984,294,"OEM1",null,null,{"$f":"#REF!","v":{"$error":"#REF!"}},null,null,1]
[985,294,"OEM2",null,null,{"$f":"#REF!","v":{"$error":"#REF!"}},null,null,1]
[986,294,"Universal Assessment",null,null,{"$f":"#REF!","v":{"$error":"#REF!"}},null,null,1]
[987,294,"Semi-Universal Assessment",null,null,{"$f":"#REF!","v":{"$error":"#REF!"}},null,null,1]
[988,294,"OEM Assessment",null,null,{"$f":"#REF!","v":{"$error":"#REF!"}},null,null,1]
[989,294,"Installation Assessment",null,null,{"$f":"#REF!","v":{"$error":"#REF!"}},null,null,1]
[990,316,"Provision of Three-point Seat Belts  ",null,null,{"$f":"IF(#REF!=\"Pass\",1,0)","v":{"$error":"#REF!"}},null,null,1]
[991,316,"Gabarit Installation",null,null,{"$f":"#REF!","v":{"$error":"#REF!"}},null,null,1]
[992,316,"Three Simultaneous Use Seating Positions",null,null,{"$f":"#REF!","v":{"$error":"#REF!"}},null,null,1]
[993,316,"ISOFIX Usability",null,null,{"$f":"#REF!","v":{"$error":"#REF!"}},null,null,1]
[994,316,"Two or more Largest ISOFIX Positions ",null,null,{"$f":"#REF!","v":{"$error":"#REF!"}},null,null,1]
[995,316,"Passenger Airbag Warning Marking and Disabling",null,null,{"$f":"#REF!","v":{"$error":"#REF!"}},null,null,1]
[996,316,"Integrated CRS",null,null,{"$f":"#REF!","v":{"$error":"#REF!"}},null,null,{"$f":"COUNTIF($A$2:$A$3487,A898)","v":1}]
[997,329,"HF_R0_C10",null,null,{"$f":"VLOOKUP(#REF!,'Database Reference'!$AA$1:$AB$9,2,0)","v":{"$error":"#REF!"}},null,null,1]
[998,329,"HF_R0_C9",null,null,{"$f":"VLOOKUP(#REF!,'Database Reference'!$AA$1:$AB$9,2,0)","v":{"$error":"#REF!"}},null,null,1]
[999,329,"HF_R0_C8",null,null,{"$f":"VLOOKUP(#REF!,'Database Reference'!$AA$1:$AB$9,2,0)","v":{"$error":"#REF!"}},null,null,1]
[1000,329,"HF_R0_C7",null,null,{"$f":"VLOOKUP(#REF!,'Database Reference'!$AA$1:$AB$9,2,0)","v":{"$error":"#REF!"}},null,null,1]
[1001,329,"HF_R0_C6",null,null,{"$f":"VLOOKUP(#REF!,'Database Reference'!$AA$1:$AB$9,2,0)","v":{"$error":"#REF!"}},null,null,1]
[1002,329,"HF_R0_C5",null,null,{"$f":"VLOOKUP(#REF!,'Database Reference'!$AA$1:$AB$9,2,0)","v":{"$error":"#REF!"}},null,null,1]
[1003,329,"HF_R0_C4",null,null,{"$f":"VLOOKUP(#REF!,'Database Reference'!$AA$1:$AB$9,2,0)","v":{"$error":"#REF!"}},null,null,1]
[1004,329,"HF_R0_C3",null,null,{"$f":"VLOOKUP(#REF!,'Database Reference'!$AA$1:$AB$9,2,0)","v":{"$error":"#REF!"}},null,null,1]
[1005,329,"HF_R0_C2",null,null,{"$f":"VLOOKUP(#REF!,'Database Reference'!$AA$1:$AB$9,2,0)","v":{"$error":"#REF!"}},null,null,1]
[1006,329,"HF_R0_C1",null,null,{"$f":"VLOOKUP(#REF!,'Database Reference'!$AA$1:$AB$9,2,0)","v":{"$error":"#REF!"}},null,null,1]
[1007,329,"HF_R0_C0",null,null,{"$f":"VLOOKUP(#REF!,'Database Reference'!$AA$1:$AB$9,2,0)","v":{"$error":"#REF!"}},null,null,1]
[1008,329,"HF_R0_C-1",null,null,{"$f":"VLOOKUP(#REF!,'Database Reference'!$AA$1:$AB$9,2,0)","v":{"$error":"#REF!"}},null,null,1]
[1009,329,"HF_R0_C-2",null,null,{"$f":"VLOOKUP(#REF!,'Database Reference'!$AA$1:$AB$9,2,0)","v":{"$error":"#REF!"}},null,null,1]
[1010,329,"HF_R0_C-3",null,null,{"$f":"VLOOKUP(#REF!,'Database Reference'!$AA$1:$AB$9,2,0)","v":{"$error":"#REF!"}},null,null,1]
[1011,329,"HF_R0_C-4",null,null,{"$f":"VLOOKUP(#REF!,'Database Reference'!$AA$1:$AB$9,2,0)","v":{"$error":"#REF!"}},null,null,1]
[1012,329,"HF_R0_C-5",null,null,{"$f":"VLOOKUP(#REF!,'Database Reference'!$AA$1:$AB$9,2,0)","v":{"$error":"#REF!"}},null,null,1]
[1013,329,"HF_R0_C-6",null,null,{"$f":"VLOOKUP(#REF!,'Database Reference'!$AA$1:$AB$9,2,0)","v":{"$error":"#REF!"}},null,null,1]
[1014,329,"HF_R0_C-7",null,null,{"$f":"VLOOKUP(#REF!,'Database Reference'!$AA$1:$AB$9,2,0)","v":{"$error":"#REF!"}},null,null,1]
[1015,329,"HF_R0_C-8",null,null,{"$f":"VLOOKUP(#REF!,'Database Reference'!$AA$1:$AB$9,2,0)","v":{"$error":"#REF!"}},null,null,1]
[1016,329,"HF_R0_C-9",null,null,{"$f":"VLOOKUP(#REF!,'Database Reference'!$AA$1:$AB$9,2,0)","v":{"$error":"#REF!"}},null,null,1]
[1017,329,"HF_R0_C-10",null,null,{"$f":"VLOOKUP(#REF!,'Database Reference'!$AA$1:$AB$9,2,0)","v":{"$error":"#REF!"}},null,null,1]
[1018,329,"HF_R1_C10",null,null,{"$f":"VLOOKUP(#REF!,'Database Reference'!$AA$1:$AB$9,2,0)","v":{"$error":"#REF!"}},null,null,1]
[1019,329,"HF_R1_C9",null,null,{"$f":"VLOOKUP(#REF!,'Database Reference'!$AA$1:$AB$9,2,0)","v":{"$error":"#REF!"}},null,null,1]
[1020,329,"HF_R1_C8",null,null,{"$f":"VLOOKUP(#REF!,'Database Reference'!$AA$1:$AB$9,2,0)","v":{"$error":"#REF!"}},null,null,1]
[1021,329,"HF_R1_C7",null,null,{"$f":"VLOOKUP(#REF!,'Database Reference'!$AA$1:$AB$9,2,0)","v":{"$error":"#REF!"}},null,null,1]
[1022,329,"HF_R1_C6",null,null,{"$f":"VLOOKUP(#REF!,'Database Reference'!$AA$1:$AB$9,2,0)","v":{"$error":"#REF!"}},null,null,1]
[1023,329,"HF_R1_C5",null,null,{"$f":"VLOOKUP(#REF!,'Database Reference'!$AA$1:$AB$9,2,0)","v":{"$error":"#REF!"}},null,null,1]
[1024,329,"HF_R1_C4",null,null,{"$f":"VLOOKUP(#REF!,'Database Reference'!$AA$1:$AB$9,2,0)","v":{"$error":"#REF!"}},null,null,1]
[1025,329,"HF_R1_C3",null,null,{"$f":"VLOOKUP(#REF!,'Database Reference'!$AA$1:$AB$9,2,0)","v":{"$error":"#REF!"}},null,null,1]
[1026,329,"HF_R1_C2",null,null,{"$f":"VLOOKUP(#REF!,'Database Reference'!$AA$1:$AB$9,2,0)","v":{"$error":"#REF!"}},null,null,1]
[1027,329,"HF_R1_C1",null,null,{"$f":"VLOOKUP(#REF!,'Database Reference'!$AA$1:$AB$9,2,0)","v":{"$error":"#REF!"}},null,null,1]
[1028,329,"HF_R1_C0",null,null,{"$f":"VLOOKUP(#REF!,'Database Reference'!$AA$1:$AB$9,2,0)","v":{"$error":"#REF!"}},null,null,1]
[1029,329,"HF_R1_C-1",null,null,{"$f":"VLOOKUP(#REF!,'Database Reference'!$AA$1:$AB$9,2,0)","v":{"$error":"#REF!"}},null,null,1]
[1030,329,"HF_R1_C-2",null,null,{"$f":"VLOOKUP(#REF!,'Database Reference'!$AA$1:$AB$9,2,0)","v":{"$error":"#REF!"}},null,null,1]
[1031,329,"HF_R1_C-3",null,null,{"$f":"VLOOKUP(#REF!,'Database Reference'!$AA$1:$AB$9,2,0)","v":{"$error":"#REF!"}},null,null,1]
[1032,329,"HF_R1_C-4",null,null,{"$f":"VLOOKUP(#REF!,'Database Reference'!$AA$1:$AB$9,2,0)","v":{"$error":"#REF!"}},null,null,1]
[1033,329,"HF_R1_C-5",null,null,{"$f":"VLOOKUP(#REF!,'Database Reference'!$AA$1:$AB$9,2,0)","v":{"$error":"#REF!"}},null,null,1]
[1034,329,"HF_R1_C-6",null,null,{"$f":"VLOOKUP(#REF!,'Database Reference'!$AA$1:$AB$9,2,0)","v":{"$error":"#REF!"}},null,null,1]
[1035,329,"HF_R1_C-7",null,null,{"$f":"VLOOKUP(#REF!,'Database Reference'!$AA$1:$AB$9,2,0)","v":{"$error":"#REF!"}},null,null,1]
[1036,329,"HF_R1_C-8",null,null,{"$f":"VLOOKUP(#REF!,'Database Reference'!$AA$1:$AB$9,2,0)","v":{"$error":"#REF!"}},null,null,1]
[1037,329,"HF_R1_C-9",null,null,{"$f":"VLOOKUP(#REF!,'Database Reference'!$AA$1:$AB$9,2,0)","v":{"$error":"#REF!"}},null,null,1]
[1038,329,"HF_R1_C-10",null,null,{"$f":"VLOOKUP(#REF!,'Database Reference'!$AA$1:$AB$9,2,0)","v":{"$error":"#REF!"}},null,null,1]
[1039,329,"HF_R2_C10",null,null,{"$f":"VLOOKUP(#REF!,'Database Reference'!$AA$1:$AB$9,2,0)","v":{"$error":"#REF!"}},null,null,1]
[1040,329,"HF_R2_C9",null,null,{"$f":"VLOOKUP(#REF!,'Database Reference'!$AA$1:$AB$9,2,0)","v":{"$error":"#REF!"}},null,null,1]
[1041,329,"HF_R2_C8",null,null,{"$f":"VLOOKUP(#REF!,'Database Reference'!$AA$1:$AB$9,2,0)","v":{"$error":"#REF!"}},null,null,1]
[1042,329,"HF_R2_C7",null,null,{"$f":"VLOOKUP(#REF!,'Database Reference'!$AA$1:$AB$9,2,0)","v":{"$error":"#REF!"}},null,null,1]
[1043,329,"HF_R2_C6",null,null,{"$f":"VLOOKUP(#REF!,'Database Reference'!$AA$1:$AB$9,2,0)","v":{"$error":"#REF!"}},null,null,1]
[1044,329,"HF_R2_C5",null,null,{"$f":"VLOOKUP(#REF!,'Database Reference'!$AA$1:$AB$9,2,0)","v":{"$error":"#REF!"}},null,null,1]
[1045,329,"HF_R2_C4",null,null,{"$f":"VLOOKUP(#REF!,'Database Reference'!$AA$1:$AB$9,2,0)","v":{"$error":"#REF!"}},null,null,1]
[1046,329,"HF_R2_C3",null,null,{"$f":"VLOOKUP(#REF!,'Database Reference'!$AA$1:$AB$9,2,0)","v":{"$error":"#REF!"}},null,null,1]
[1047,329,"HF_R2_C2",null,null,{"$f":"VLOOKUP(#REF!,'Database Reference'!$AA$1:$AB$9,2,0)","v":{"$error":"#REF!"}},null,null,1]
[1048,329,"HF_R2_C1",null,null,{"$f":"VLOOKUP(#REF!,'Database Reference'!$AA$1:$AB$9,2,0)","v":{"$error":"#REF!"}},null,null,1]
[1049,329,"HF_R2_C0",null,null,{"$f":"VLOOKUP(#REF!,'Database Reference'!$AA$1:$AB$9,2,0)","v":{"$error":"#REF!"}},null,null,1]
[1050,329,"HF_R2_C-1",null,null,{"$f":"VLOOKUP(#REF!,'Database Reference'!$AA$1:$AB$9,2,0)","v":{"$error":"#REF!"}},null,null,1]
[1051,329,"HF_R2_C-2",null,null,{"$f":"VLOOKUP(#REF!,'Database Reference'!$AA$1:$AB$9,2,0)","v":{"$error":"#REF!"}},null,null,1]
[1052,329,"HF_R2_C-3",null,null,{"$f":"VLOOKUP(#REF!,'Database Reference'!$AA$1:$AB$9,2,0)","v":{"$error":"#REF!"}},null,null,1]
[1053,329,"HF_R2_C-4",null,null,{"$f":"VLOOKUP(#REF!,'Database Reference'!$AA$1:$AB$9,2,0)","v":{"$error":"#REF!"}},null,null,1]
[1054,329,"HF_R2_C-5",null,null,{"$f":"VLOOKUP(#REF!,'Database Reference'!$AA$1:$AB$9,2,0)","v":{"$error":"#REF!"}},null,null,1]
[1055,329,"HF_R2_C-6",null,null,{"$f":"VLOOKUP(#REF!,'Database Reference'!$AA$1:$AB$9,2,0)","v":{"$error":"#REF!"}},null,null,1]
[1056,329,"HF_R2_C-7",null,null,{"$f":"VLOOKUP(#REF!,'Database Reference'!$AA$1:$AB$9,2,0)","v":{"$error":"#REF!"}},null,null,1]
[1057,329,"HF_R2_C-8",null,null,{"$f":"VLOOKUP(#REF!,'Database Reference'!$AA$1:$AB$9,2,0)","v":{"$error":"#REF!"}},null,null,1]
[1058,329,"HF_R2_C-9",null,null,{"$f":"VLOOKUP(#REF!,'Database Reference'!$AA$1:$AB$9,2,0)","v":{"$error":"#REF!"}},null,null,1]
[1059,329,"HF_R2_C-10",null,null,{"$f":"VLOOKUP(#REF!,'Database Reference'!$AA$1:$AB$9,2,0)","v":{"$error":"#REF!"}},null,null,1]
[1060,329,"HF_R3_C10",null,null,{"$f":"VLOOKUP(#REF!,'Database Reference'!$AA$1:$AB$9,2,0)","v":{"$error":"#REF!"}},null,null,{"$f":"COUNTIF($A$2:$A$3487,A962)","v":1}]
[1061,329,"HF_R3_C9",null,null,{"$f":"VLOOKUP(#REF!,'Database Reference'!$AA$1:$AB$9,2,0)","v":{"$error":"#REF!"}},null,null,1]
[1062,329,"HF_R3_C8",null,null,{"$f":"VLOOKUP(#REF!,'Database Reference'!$AA$1:$AB$9,2,0)","v":{"$error":"#REF!"}},null,null,1]
[1063,329,"HF_R3_C7",null,null,{"$f":"VLOOKUP(#REF!,'Database Reference'!$AA$1:$AB$9,2,0)","v":{"$error":"#REF!"}},null,null,1]
[1064,329,"HF_R3_C6",null,null,{"$f":"VLOOKUP(#REF!,'Database Reference'!$AA$1:$AB$9,2,0)","v":{"$error":"#REF!"}},null,null,1]
[1065,329,"HF_R3_C5",null,null,{"$f":"VLOOKUP(#REF!,'Database Reference'!$AA$1:$AB$9,2,0)","v":{"$error":"#REF!"}},null,null,1]
[1066,329,"HF_R3_C4",null,null,{"$f":"VLOOKUP(#REF!,'Database Reference'!$AA$1:$AB$9,2,0)","v":{"$error":"#REF!"}},null,null,1]
[1067,329,"HF_R3_C3",null,null,{"$f":"VLOOKUP(#REF!,'Database Reference'!$AA$1:$AB$9,2,0)","v":{"$error":"#REF!"}},null,null,1]
[1068,329,"HF_R3_C2",null,null,{"$f":"VLOOKUP(#REF!,'Database Reference'!$AA$1:$AB$9,2,0)","v":{"$error":"#REF!"}},null,null,1]
[1069,329,"HF_R3_C1",null,null,{"$f":"VLOOKUP(#REF!,'Database Reference'!$AA$1:$AB$9,2,0)","v":{"$error":"#REF!"}},null,null,1]
[1070,329,"HF_R3_C0",null,null,{"$f":"VLOOKUP(#REF!,'Database Reference'!$AA$1:$AB$9,2,0)","v":{"$error":"#REF!"}},null,null,1]
[1071,329,"HF_R3_C-1",null,null,{"$f":"VLOOKUP(#REF!,'Database Reference'!$AA$1:$AB$9,2,0)","v":{"$error":"#REF!"}},null,null,1]
[1072,329,"HF_R3_C-2",null,null,{"$f":"VLOOKUP(#REF!,'Database Reference'!$AA$1:$AB$9,2,0)","v":{"$error":"#REF!"}},null,null,1]
[1073,329,"HF_R3_C-3",null,null,{"$f":"VLOOKUP(#REF!,'Database Reference'!$AA$1:$AB$9,2,0)","v":{"$error":"#REF!"}},null,null,1]
[1074,329,"HF_R3_C-4",null,null,{"$f":"VLOOKUP(#REF!,'Database Reference'!$AA$1:$AB$9,2,0)","v":{"$error":"#REF!"}},null,null,1]
[1075,329,"HF_R3_C-5",null,null,{"$f":"VLOOKUP(#REF!,'Database Reference'!$AA$1:$AB$9,2,0)","v":{"$error":"#REF!"}},null,null,1]
[1076,329,"HF_R3_C-6",null,null,{"$f":"VLOOKUP(#REF!,'Database Reference'!$AA$1:$AB$9,2,0)","v":{"$error":"#REF!"}},null,null,1]
[1077,329,"HF_R3_C-7",null,null,{"$f":"VLOOKUP(#REF!,'Database Reference'!$AA$1:$AB$9,2,0)","v":{"$error":"#REF!"}},null,null,1]
[1078,329,"HF_R3_C-8",null,null,{"$f":"VLOOKUP(#REF!,'Database Reference'!$AA$1:$AB$9,2,0)","v":{"$error":"#REF!"}},null,null,1]
[1079,329,"HF_R3_C-9",null,null,{"$f":"VLOOKUP(#REF!,'Database Reference'!$AA$1:$AB$9,2,0)","v":{"$error":"#REF!"}},null,null,1]
[1080,329,"HF_R3_C-10",null,null,{"$f":"VLOOKUP(#REF!,'Database Reference'!$AA$1:$AB$9,2,0)","v":{"$error":"#REF!"}},null,null,1]
[1081,329,"HF_R4_C10",null,null,{"$f":"VLOOKUP(#REF!,'Database Reference'!$AA$1:$AB$9,2,0)","v":{"$error":"#REF!"}},null,null,1]
[1082,329,"HF_R4_C9",null,null,{"$f":"VLOOKUP(#REF!,'Database Reference'!$AA$1:$AB$9,2,0)","v":{"$error":"#REF!"}},null,null,1]
[1083,329,"HF_R4_C8",null,null,{"$f":"VLOOKUP(#REF!,'Database Reference'!$AA$1:$AB$9,2,0)","v":{"$error":"#REF!"}},null,null,1]
[1084,329,"HF_R4_C7",null,null,{"$f":"VLOOKUP(#REF!,'Database Reference'!$AA$1:$AB$9,2,0)","v":{"$error":"#REF!"}},null,null,1]
[1085,329,"HF_R4_C6",null,null,{"$f":"VLOOKUP(#REF!,'Database Reference'!$AA$1:$AB$9,2,0)","v":{"$error":"#REF!"}},null,null,1]
[1086,329,"HF_R4_C5",null,null,{"$f":"VLOOKUP(#REF!,'Database Reference'!$AA$1:$AB$9,2,0)","v":{"$error":"#REF!"}},null,null,1]
[1087,329,"HF_R4_C4",null,null,{"$f":"VLOOKUP(#REF!,'Database Reference'!$AA$1:$AB$9,2,0)","v":{"$error":"#REF!"}},null,null,1]
[1088,329,"HF_R4_C3",null,null,{"$f":"VLOOKUP(#REF!,'Database Reference'!$AA$1:$AB$9,2,0)","v":{"$error":"#REF!"}},null,null,1]
[1089,329,"HF_R4_C2",null,null,{"$f":"VLOOKUP(#REF!,'Database Reference'!$AA$1:$AB$9,2,0)","v":{"$error":"#REF!"}},null,null,1]
[1090,329,"HF_R4_C1",null,null,{"$f":"VLOOKUP(#REF!,'Database Reference'!$AA$1:$AB$9,2,0)","v":{"$error":"#REF!"}},null,null,1]
[1091,329,"HF_R4_C0",null,null,{"$f":"VLOOKUP(#REF!,'Database Reference'!$AA$1:$AB$9,2,0)","v":{"$error":"#REF!"}},null,null,1]
[1092,329,"HF_R4_C-1",null,null,{"$f":"VLOOKUP(#REF!,'Database Reference'!$AA$1:$AB$9,2,0)","v":{"$error":"#REF!"}},null,null,1]
[1093,329,"HF_R4_C-2",null,null,{"$f":"VLOOKUP(#REF!,'Database Reference'!$AA$1:$AB$9,2,0)","v":{"$error":"#REF!"}},null,null,1]
[1094,329,"HF_R4_C-3",null,null,{"$f":"VLOOKUP(#REF!,'Database Reference'!$AA$1:$AB$9,2,0)","v":{"$error":"#REF!"}},null,null,1]
[1095,329,"HF_R4_C-4",null,null,{"$f":"VLOOKUP(#REF!,'Database Reference'!$AA$1:$AB$9,2,0)","v":{"$error":"#REF!"}},null,null,1]
[1096,329,"HF_R4_C-5",null,null,{"$f":"VLOOKUP(#REF!,'Database Reference'!$AA$1:$AB$9,2,0)","v":{"$error":"#REF!"}},null,null,1]
[1097,329,"HF_R4_C-6",null,null,{"$f":"VLOOKUP(#REF!,'Database Reference'!$AA$1:$AB$9,2,0)","v":{"$error":"#REF!"}},null,null,1]
[1098,329,"HF_R4_C-7",null,null,{"$f":"VLOOKUP(#REF!,'Database Reference'!$AA$1:$AB$9,2,0)","v":{"$error":"#REF!"}},null,null,1]
[1099,329,"HF_R4_C-8",null,null,{"$f":"VLOOKUP(#REF!,'Database Reference'!$AA$1:$AB$9,2,0)","v":{"$error":"#REF!"}},null,null,1]
[1100,329,"HF_R4_C-9",null,null,{"$f":"VLOOKUP(#REF!,'Database Reference'!$AA$1:$AB$9,2,0)","v":{"$error":"#REF!"}},null,null,1]
[1101,329,"HF_R4_C-10",null,null,{"$f":"VLOOKUP(#REF!,'Database Reference'!$AA$1:$AB$9,2,0)","v":{"$error":"#REF!"}},null,null,1]
[1102,329,"HF_R5_C10",null,null,{"$f":"VLOOKUP(#REF!,'Database Reference'!$AA$1:$AB$9,2,0)","v":{"$error":"#REF!"}},null,null,1]
[1103,329,"HF_R5_C9",null,null,{"$f":"VLOOKUP(#REF!,'Database Reference'!$AA$1:$AB$9,2,0)","v":{"$error":"#REF!"}},null,null,1]
[1104,329,"HF_R5_C8",null,null,{"$f":"VLOOKUP(#REF!,'Database Reference'!$AA$1:$AB$9,2,0)","v":{"$error":"#REF!"}},null,null,1]
[1105,329,"HF_R5_C7",null,null,{"$f":"VLOOKUP(#REF!,'Database Reference'!$AA$1:$AB$9,2,0)","v":{"$error":"#REF!"}},null,null,1]
[1106,329,"HF_R5_C6",null,null,{"$f":"VLOOKUP(#REF!,'Database Reference'!$AA$1:$AB$9,2,0)","v":{"$error":"#REF!"}},null,null,1]
[1107,329,"HF_R5_C5",null,null,{"$f":"VLOOKUP(#REF!,'Database Reference'!$AA$1:$AB$9,2,0)","v":{"$error":"#REF!"}},null,null,1]
[1108,329,"HF_R5_C4",null,null,{"$f":"VLOOKUP(#REF!,'Database Reference'!$AA$1:$AB$9,2,0)","v":{"$error":"#REF!"}},null,null,1]
[1109,329,"HF_R5_C3",null,null,{"$f":"VLOOKUP(#REF!,'Database Reference'!$AA$1:$AB$9,2,0)","v":{"$error":"#REF!"}},null,null,1]
[1110,329,"HF_R5_C2",null,null,{"$f":"VLOOKUP(#REF!,'Database Reference'!$AA$1:$AB$9,2,0)","v":{"$error":"#REF!"}},null,null,1]
[1111,329,"HF_R5_C1",null,null,{"$f":"VLOOKUP(#REF!,'Database Reference'!$AA$1:$AB$9,2,0)","v":{"$error":"#REF!"}},null,null,1]
[1112,329,"HF_R5_C0",null,null,{"$f":"VLOOKUP(#REF!,'Database Reference'!$AA$1:$AB$9,2,0)","v":{"$error":"#REF!"}},null,null,1]
[1113,329,"HF_R5_C-1",null,null,{"$f":"VLOOKUP(#REF!,'Database Reference'!$AA$1:$AB$9,2,0)","v":{"$error":"#REF!"}},null,null,1]
[1114,329,"HF_R5_C-2",null,null,{"$f":"VLOOKUP(#REF!,'Database Reference'!$AA$1:$AB$9,2,0)","v":{"$error":"#REF!"}},null,null,1]
[1115,329,"HF_R5_C-3",null,null,{"$f":"VLOOKUP(#REF!,'Database Reference'!$AA$1:$AB$9,2,0)","v":{"$error":"#REF!"}},null,null,1]
[1116,329,"HF_R5_C-4",null,null,{"$f":"VLOOKUP(#REF!,'Database Reference'!$AA$1:$AB$9,2,0)","v":{"$error":"#REF!"}},null,null,1]
[1117,329,"HF_R5_C-5",null,null,{"$f":"VLOOKUP(#REF!,'Database Reference'!$AA$1:$AB$9,2,0)","v":{"$error":"#REF!"}},null,null,1]
[1118,329,"HF_R5_C-6",null,null,{"$f":"VLOOKUP(#REF!,'Database Reference'!$AA$1:$AB$9,2,0)","v":{"$error":"#REF!"}},null,null,1]
[1119,329,"HF_R5_C-7",null,null,{"$f":"VLOOKUP(#REF!,'Database Reference'!$AA$1:$AB$9,2,0)","v":{"$error":"#REF!"}},null,null,1]
[1120,329,"HF_R5_C-8",null,null,{"$f":"VLOOKUP(#REF!,'Database Reference'!$AA$1:$AB$9,2,0)","v":{"$error":"#REF!"}},null,null,1]
[1121,329,"HF_R5_C-9",null,null,{"$f":"VLOOKUP(#REF!,'Database Reference'!$AA$1:$AB$9,2,0)","v":{"$error":"#REF!"}},null,null,1]
[1122,329,"HF_R5_C-10",null,null,{"$f":"VLOOKUP(#REF!,'Database Reference'!$AA$1:$AB$9,2,0)","v":{"$error":"#REF!"}},null,null,1]
[1123,329,"HF_R6_C10",null,null,{"$f":"VLOOKUP(#REF!,'Database Reference'!$AA$1:$AB$9,2,0)","v":{"$error":"#REF!"}},null,null,1]
[1124,329,"HF_R6_C9",null,null,{"$f":"VLOOKUP(#REF!,'Database Reference'!$AA$1:$AB$9,2,0)","v":{"$error":"#REF!"}},null,null,{"$f":"COUNTIF($A$2:$A$3487,A1026)","v":1}]
[1125,329,"HF_R6_C8",null,null,{"$f":"VLOOKUP(#REF!,'Database Reference'!$AA$1:$AB$9,2,0)","v":{"$error":"#REF!"}},null,null,1]
[1126,329,"HF_R6_C7",null,null,{"$f":"VLOOKUP(#REF!,'Database Reference'!$AA$1:$AB$9,2,0)","v":{"$error":"#REF!"}},null,null,1]
[1127,329,"HF_R6_C6",null,null,{"$f":"VLOOKUP(#REF!,'Database Reference'!$AA$1:$AB$9,2,0)","v":{"$error":"#REF!"}},null,null,1]
[1128,329,"HF_R6_C5",null,null,{"$f":"VLOOKUP(#REF!,'Database Reference'!$AA$1:$AB$9,2,0)","v":{"$error":"#REF!"}},null,null,1]
[1129,329,"HF_R6_C4",null,null,{"$f":"VLOOKUP(#REF!,'Database Reference'!$AA$1:$AB$9,2,0)","v":{"$error":"#REF!"}},null,null,1]
[1130,329,"HF_R6_C3",null,null,{"$f":"VLOOKUP(#REF!,'Database Reference'!$AA$1:$AB$9,2,0)","v":{"$error":"#REF!"}},null,null,1]
[1131,329,"HF_R6_C2",null,null,{"$f":"VLOOKUP(#REF!,'Database Reference'!$AA$1:$AB$9,2,0)","v":{"$error":"#REF!"}},null,null,1]
[1132,329,"HF_R6_C1",null,null,{"$f":"VLOOKUP(#REF!,'Database Reference'!$AA$1:$AB$9,2,0)","v":{"$error":"#REF!"}},null,null,1]
[1133,329,"HF_R6_C0",null,null,{"$f":"VLOOKUP(#REF!,'Database Reference'!$AA$1:$AB$9,2,0)","v":{"$error":"#REF!"}},null,null,1]
[1134,329,"HF_R6_C-1",null,null,{"$f":"VLOOKUP(#REF!,'Database Reference'!$AA$1:$AB$9,2,0)","v":{"$error":"#REF!"}},null,null,1]
[1135,329,"HF_R6_C-2",null,null,{"$f":"VLOOKUP(#REF!,'Database Reference'!$AA$1:$AB$9,2,0)","v":{"$error":"#REF!"}},null,null,1]
[1136,329,"HF_R6_C-3",null,null,{"$f":"VLOOKUP(#REF!,'Database Reference'!$AA$1:$AB$9,2,0)","v":{"$error":"#REF!"}},null,null,1]
[1137,329,"HF_R6_C-4",null,null,{"$f":"VLOOKUP(#REF!,'Database Reference'!$AA$1:$AB$9,2,0)","v":{"$error":"#REF!"}},null,null,1]
[1138,329,"HF_R6_C-5",null,null,{"$f":"VLOOKUP(#REF!,'Database Reference'!$AA$1:$AB$9,2,0)","v":{"$error":"#REF!"}},null,null,1]
[1139,329,"HF_R6_C-6",null,null,{"$f":"VLOOKUP(#REF!,'Database Reference'!$AA$1:$AB$9,2,0)","v":{"$error":"#REF!"}},null,null,1]
[1140,329,"HF_R6_C-7",null,null,{"$f":"VLOOKUP(#REF!,'Database Reference'!$AA$1:$AB$9,2,0)","v":{"$error":"#REF!"}},null,null,1]
[1141,329,"HF_R6_C-8",null,null,{"$f":"VLOOKUP(#REF!,'Database Reference'!$AA$1:$AB$9,2,0)","v":{"$error":"#REF!"}},null,null,1]
[1142,329,"HF_R6_C-9",null,null,{"$f":"VLOOKUP(#REF!,'Database Reference'!$AA$1:$AB$9,2,0)","v":{"$error":"#REF!"}},null,null,1]
[1143,329,"HF_R6_C-10",null,null,{"$f":"VLOOKUP(#REF!,'Database Reference'!$AA$1:$AB$9,2,0)","v":{"$error":"#REF!"}},null,null,1]
[1144,329,"HF_R7_C10",null,null,{"$f":"VLOOKUP(#REF!,'Database Reference'!$AA$1:$AB$9,2,0)","v":{"$error":"#REF!"}},null,null,1]
[1145,329,"HF_R7_C9",null,null,{"$f":"VLOOKUP(#REF!,'Database Reference'!$AA$1:$AB$9,2,0)","v":{"$error":"#REF!"}},null,null,1]
[1146,329,"HF_R7_C8",null,null,{"$f":"VLOOKUP(#REF!,'Database Reference'!$AA$1:$AB$9,2,0)","v":{"$error":"#REF!"}},null,null,1]
[1147,329,"HF_R7_C7",null,null,{"$f":"VLOOKUP(#REF!,'Database Reference'!$AA$1:$AB$9,2,0)","v":{"$error":"#REF!"}},null,null,1]
[1148,329,"HF_R7_C6",null,null,{"$f":"VLOOKUP(#REF!,'Database Reference'!$AA$1:$AB$9,2,0)","v":{"$error":"#REF!"}},null,null,1]
[1149,329,"HF_R7_C5",null,null,{"$f":"VLOOKUP(#REF!,'Database Reference'!$AA$1:$AB$9,2,0)","v":{"$error":"#REF!"}},null,null,1]
[1150,329,"HF_R7_C4",null,null,{"$f":"VLOOKUP(#REF!,'Database Reference'!$AA$1:$AB$9,2,0)","v":{"$error":"#REF!"}},null,null,1]
[1151,329,"HF_R7_C3",null,null,{"$f":"VLOOKUP(#REF!,'Database Reference'!$AA$1:$AB$9,2,0)","v":{"$error":"#REF!"}},null,null,1]
[1152,329,"HF_R7_C2",null,null,{"$f":"VLOOKUP(#REF!,'Database Reference'!$AA$1:$AB$9,2,0)","v":{"$error":"#REF!"}},null,null,1]
[1153,329,"HF_R7_C1",null,null,{"$f":"VLOOKUP(#REF!,'Database Reference'!$AA$1:$AB$9,2,0)","v":{"$error":"#REF!"}},null,null,1]
[1154,329,"HF_R7_C0",null,null,{"$f":"VLOOKUP(#REF!,'Database Reference'!$AA$1:$AB$9,2,0)","v":{"$error":"#REF!"}},null,null,1]
[1155,329,"HF_R7_C-1",null,null,{"$f":"VLOOKUP(#REF!,'Database Reference'!$AA$1:$AB$9,2,0)","v":{"$error":"#REF!"}},null,null,1]
[1156,329,"HF_R7_C-2",null,null,{"$f":"VLOOKUP(#REF!,'Database Reference'!$AA$1:$AB$9,2,0)","v":{"$error":"#REF!"}},null,null,1]
[1157,329,"HF_R7_C-3",null,null,{"$f":"VLOOKUP(#REF!,'Database Reference'!$AA$1:$AB$9,2,0)","v":{"$error":"#REF!"}},null,null,1]
[1158,329,"HF_R7_C-4",null,null,{"$f":"VLOOKUP(#REF!,'Database Reference'!$AA$1:$AB$9,2,0)","v":{"$error":"#REF!"}},null,null,1]
[1159,329,"HF_R7_C-5",null,null,{"$f":"VLOOKUP(#REF!,'Database Reference'!$AA$1:$AB$9,2,0)","v":{"$error":"#REF!"}},null,null,1]
[1160,329,"HF_R7_C-6",null,null,{"$f":"VLOOKUP(#REF!,'Database Reference'!$AA$1:$AB$9,2,0)","v":{"$error":"#REF!"}},null,null,1]
[1161,329,"HF_R7_C-7",null,null,{"$f":"VLOOKUP(#REF!,'Database Reference'!$AA$1:$AB$9,2,0)","v":{"$error":"#REF!"}},null,null,1]
[1162,329,"HF_R7_C-8",null,null,{"$f":"VLOOKUP(#REF!,'Database Reference'!$AA$1:$AB$9,2,0)","v":{"$error":"#REF!"}},null,null,1]
[1163,329,"HF_R7_C-9",null,null,{"$f":"VLOOKUP(#REF!,'Database Reference'!$AA$1:$AB$9,2,0)","v":{"$error":"#REF!"}},null,null,1]
[1164,329,"HF_R7_C-10",null,null,{"$f":"VLOOKUP(#REF!,'Database Reference'!$AA$1:$AB$9,2,0)","v":{"$error":"#REF!"}},null,null,1]
[1165,329,"HF_R8_C10",null,null,{"$f":"VLOOKUP(#REF!,'Database Reference'!$AA$1:$AB$9,2,0)","v":{"$error":"#REF!"}},null,null,1]
[1166,329,"HF_R8_C9",null,null,{"$f":"VLOOKUP(#REF!,'Database Reference'!$AA$1:$AB$9,2,0)","v":{"$error":"#REF!"}},null,null,1]
[1167,329,"HF_R8_C8",null,null,{"$f":"VLOOKUP(#REF!,'Database Reference'!$AA$1:$AB$9,2,0)","v":{"$error":"#REF!"}},null,null,1]
[1168,329,"HF_R8_C7",null,null,{"$f":"VLOOKUP(#REF!,'Database Reference'!$AA$1:$AB$9,2,0)","v":{"$error":"#REF!"}},null,null,1]
[1169,329,"HF_R8_C6",null,null,{"$f":"VLOOKUP(#REF!,'Database Reference'!$AA$1:$AB$9,2,0)","v":{"$error":"#REF!"}},null,null,1]
[1170,329,"HF_R8_C5",null,null,{"$f":"VLOOKUP(#REF!,'Database Reference'!$AA$1:$AB$9,2,0)","v":{"$error":"#REF!"}},null,null,1]
[1171,329,"HF_R8_C4",null,null,{"$f":"VLOOKUP(#REF!,'Database Reference'!$AA$1:$AB$9,2,0)","v":{"$error":"#REF!"}},null,null,1]
[1172,329,"HF_R8_C3",null,null,{"$f":"VLOOKUP(#REF!,'Database Reference'!$AA$1:$AB$9,2,0)","v":{"$error":"#REF!"}},null,null,1]
[1173,329,"HF_R8_C2",null,null,{"$f":"VLOOKUP(#REF!,'Database Reference'!$AA$1:$AB$9,2,0)","v":{"$error":"#REF!"}},null,null,1]
[1174,329,"HF_R8_C1",null,null,{"$f":"VLOOKUP(#REF!,'Database Reference'!$AA$1:$AB$9,2,0)","v":{"$error":"#REF!"}},null,null,1]
[1175,329,"HF_R8_C0",null,null,{"$f":"VLOOKUP(#REF!,'Database Reference'!$AA$1:$AB$9,2,0)","v":{"$error":"#REF!"}},null,null,1]
[1176,329,"HF_R8_C-1",null,null,{"$f":"VLOOKUP(#REF!,'Database Reference'!$AA$1:$AB$9,2,0)","v":{"$error":"#REF!"}},null,null,1]
[1177,329,"HF_R8_C-2",null,null,{"$f":"VLOOKUP(#REF!,'Database Reference'!$AA$1:$AB$9,2,0)","v":{"$error":"#REF!"}},null,null,1]
[1178,329,"HF_R8_C-3",null,null,{"$f":"VLOOKUP(#REF!,'Database Reference'!$AA$1:$AB$9,2,0)","v":{"$error":"#REF!"}},null,null,1]
[1179,329,"HF_R8_C-4",null,null,{"$f":"VLOOKUP(#REF!,'Database Reference'!$AA$1:$AB$9,2,0)","v":{"$error":"#REF!"}},null,null,1]
[1180,329,"HF_R8_C-5",null,null,{"$f":"VLOOKUP(#REF!,'Database Reference'!$AA$1:$AB$9,2,0)","v":{"$error":"#REF!"}},null,null,1]
[1181,329,"HF_R8_C-6",null,null,{"$f":"VLOOKUP(#REF!,'Database Reference'!$AA$1:$AB$9,2,0)","v":{"$error":"#REF!"}},null,null,1]
[1182,329,"HF_R8_C-7",null,null,{"$f":"VLOOKUP(#REF!,'Database Reference'!$AA$1:$AB$9,2,0)","v":{"$error":"#REF!"}},null,null,1]
[1183,329,"HF_R8_C-8",null,null,{"$f":"VLOOKUP(#REF!,'Database Reference'!$AA$1:$AB$9,2,0)","v":{"$error":"#REF!"}},null,null,1]
[1184,329,"HF_R8_C-9",null,null,{"$f":"VLOOKUP(#REF!,'Database Reference'!$AA$1:$AB$9,2,0)","v":{"$error":"#REF!"}},null,null,1]
[1185,329,"HF_R8_C-10",null,null,{"$f":"VLOOKUP(#REF!,'Database Reference'!$AA$1:$AB$9,2,0)","v":{"$error":"#REF!"}},null,null,1]
[1186,329,"HF_R9_C10",null,null,{"$f":"VLOOKUP(#REF!,'Database Reference'!$AA$1:$AB$9,2,0)","v":{"$error":"#REF!"}},null,null,1]
[1187,329,"HF_R9_C9",null,null,{"$f":"VLOOKUP(#REF!,'Database Reference'!$AA$1:$AB$9,2,0)","v":{"$error":"#REF!"}},null,null,1]
[1188,329,"HF_R9_C8",null,null,{"$f":"VLOOKUP(#REF!,'Database Reference'!$AA$1:$AB$9,2,0)","v":{"$error":"#REF!"}},null,null,{"$f":"COUNTIF($A$2:$A$3487,A1090)","v":1}]
[1189,329,"HF_R9_C7",null,null,{"$f":"VLOOKUP(#REF!,'Database Reference'!$AA$1:$AB$9,2,0)","v":{"$error":"#REF!"}},null,null,1]
[1190,329,"HF_R9_C6",null,null,{"$f":"VLOOKUP(#REF!,'Database Reference'!$AA$1:$AB$9,2,0)","v":{"$error":"#REF!"}},null,null,1]
[1191,329,"HF_R9_C5",null,null,{"$f":"VLOOKUP(#REF!,'Database Reference'!$AA$1:$AB$9,2,0)","v":{"$error":"#REF!"}},null,null,1]
[1192,329,"HF_R9_C4",null,null,{"$f":"VLOOKUP(#REF!,'Database Reference'!$AA$1:$AB$9,2,0)","v":{"$error":"#REF!"}},null,null,1]
[1193,329,"HF_R9_C3",null,null,{"$f":"VLOOKUP(#REF!,'Database Reference'!$AA$1:$AB$9,2,0)","v":{"$error":"#REF!"}},null,null,1]
[1194,329,"HF_R9_C2",null,null,{"$f":"VLOOKUP(#REF!,'Database Reference'!$AA$1:$AB$9,2,0)","v":{"$error":"#REF!"}},null,null,1]
[1195,329,"HF_R9_C1",null,null,{"$f":"VLOOKUP(#REF!,'Database Reference'!$AA$1:$AB$9,2,0)","v":{"$error":"#REF!"}},null,null,1]
[1196,329,"HF_R9_C0",null,null,{"$f":"VLOOKUP(#REF!,'Database Reference'!$AA$1:$AB$9,2,0)","v":{"$error":"#REF!"}},null,null,1]
[1197,329,"HF_R9_C-1",null,null,{"$f":"VLOOKUP(#REF!,'Database Reference'!$AA$1:$AB$9,2,0)","v":{"$error":"#REF!"}},null,null,1]
[1198,329,"HF_R9_C-2",null,null,{"$f":"VLOOKUP(#REF!,'Database Reference'!$AA$1:$AB$9,2,0)","v":{"$error":"#REF!"}},null,null,1]
[1199,329,"HF_R9_C-3",null,null,{"$f":"VLOOKUP(#REF!,'Database Reference'!$AA$1:$AB$9,2,0)","v":{"$error":"#REF!"}},null,null,1]
[1200,329,"HF_R9_C-4",null,null,{"$f":"VLOOKUP(#REF!,'Database Reference'!$AA$1:$AB$9,2,0)","v":{"$error":"#REF!"}},null,null,1]
[1201,329,"HF_R9_C-5",null,null,{"$f":"VLOOKUP(#REF!,'Database Reference'!$AA$1:$AB$9,2,0)","v":{"$error":"#REF!"}},null,null,1]
[1202,329,"HF_R9_C-6",null,null,{"$f":"VLOOKUP(#REF!,'Database Reference'!$AA$1:$AB$9,2,0)","v":{"$error":"#REF!"}},null,null,1]
[1203,329,"HF_R9_C-7",null,null,{"$f":"VLOOKUP(#REF!,'Database Reference'!$AA$1:$AB$9,2,0)","v":{"$error":"#REF!"}},null,null,1]
[1204,329,"HF_R9_C-8",null,null,{"$f":"VLOOKUP(#REF!,'Database Reference'!$AA$1:$AB$9,2,0)","v":{"$error":"#REF!"}},null,null,1]
[1205,329,"HF_R9_C-9",null,null,{"$f":"VLOOKUP(#REF!,'Database Reference'!$AA$1:$AB$9,2,0)","v":{"$error":"#REF!"}},null,null,1]
[1206,329,"HF_R9_C-10",null,null,{"$f":"VLOOKUP(#REF!,'Database Reference'!$AA$1:$AB$9,2,0)","v":{"$error":"#REF!"}},null,null,1]
[1207,329,"HF_R10_C10",null,null,{"$f":"VLOOKUP(#REF!,'Database Reference'!$AA$1:$AB$9,2,0)","v":{"$error":"#REF!"}},null,null,1]
[1208,329,"HF_R10_C9",null,null,{"$f":"VLOOKUP(#REF!,'Database Reference'!$AA$1:$AB$9,2,0)","v":{"$error":"#REF!"}},null,null,1]
[1209,329,"HF_R10_C8",null,null,{"$f":"VLOOKUP(#REF!,'Database Reference'!$AA$1:$AB$9,2,0)","v":{"$error":"#REF!"}},null,null,1]
[1210,329,"HF_R10_C7",null,null,{"$f":"VLOOKUP(#REF!,'Database Reference'!$AA$1:$AB$9,2,0)","v":{"$error":"#REF!"}},null,null,1]
[1211,329,"HF_R10_C6",null,null,{"$f":"VLOOKUP(#REF!,'Database Reference'!$AA$1:$AB$9,2,0)","v":{"$error":"#REF!"}},null,null,1]
[1212,329,"HF_R10_C5",null,null,{"$f":"VLOOKUP(#REF!,'Database Reference'!$AA$1:$AB$9,2,0)","v":{"$error":"#REF!"}},null,null,1]
[1213,329,"HF_R10_C4",null,null,{"$f":"VLOOKUP(#REF!,'Database Reference'!$AA$1:$AB$9,2,0)","v":{"$error":"#REF!"}},null,null,1]
[1214,329,"HF_R10_C3",null,null,{"$f":"VLOOKUP(#REF!,'Database Reference'!$AA$1:$AB$9,2,0)","v":{"$error":"#REF!"}},null,null,1]
[1215,329,"HF_R10_C2",null,null,{"$f":"VLOOKUP(#REF!,'Database Reference'!$AA$1:$AB$9,2,0)","v":{"$error":"#REF!"}},null,null,1]
[1216,329,"HF_R10_C1",null,null,{"$f":"VLOOKUP(#REF!,'Database Reference'!$AA$1:$AB$9,2,0)","v":{"$error":"#REF!"}},null,null,1]
[1217,329,"HF_R10_C0",null,null,{"$f":"VLOOKUP(#REF!,'Database Reference'!$AA$1:$AB$9,2,0)","v":{"$error":"#REF!"}},null,null,1]
[1218,329,"HF_R10_C-1",null,null,{"$f":"VLOOKUP(#REF!,'Database Reference'!$AA$1:$AB$9,2,0)","v":{"$error":"#REF!"}},null,null,1]
[1219,329,"HF_R10_C-2",null,null,{"$f":"VLOOKUP(#REF!,'Database Reference'!$AA$1:$AB$9,2,0)","v":{"$error":"#REF!"}},null,null,1]
[1220,329,"HF_R10_C-3",null,null,{"$f":"VLOOKUP(#REF!,'Database Reference'!$AA$1:$AB$9,2,0)","v":{"$error":"#REF!"}},null,null,1]
[1221,329,"HF_R10_C-4",null,null,{"$f":"VLOOKUP(#REF!,'Database Reference'!$AA$1:$AB$9,2,0)","v":{"$error":"#REF!"}},null,null,1]
[1222,329,"HF_R10_C-5",null,null,{"$f":"VLOOKUP(#REF!,'Database Reference'!$AA$1:$AB$9,2,0)","v":{"$error":"#REF!"}},null,null,1]
[1223,329,"HF_R10_C-6",null,null,{"$f":"VLOOKUP(#REF!,'Database Reference'!$AA$1:$AB$9,2,0)","v":{"$error":"#REF!"}},null,null,1]
[1224,329,"HF_R10_C-7",null,null,{"$f":"VLOOKUP(#REF!,'Database Reference'!$AA$1:$AB$9,2,0)","v":{"$error":"#REF!"}},null,null,1]
[1225,329,"HF_R10_C-8",null,null,{"$f":"VLOOKUP(#REF!,'Database Reference'!$AA$1:$AB$9,2,0)","v":{"$error":"#REF!"}},null,null,1]
[1226,329,"HF_R10_C-9",null,null,{"$f":"VLOOKUP(#REF!,'Database Reference'!$AA$1:$AB$9,2,0)","v":{"$error":"#REF!"}},null,null,1]
[1227,329,"HF_R10_C-10",null,null,{"$f":"VLOOKUP(#REF!,'Database Reference'!$AA$1:$AB$9,2,0)","v":{"$error":"#REF!"}},null,null,1]
[1228,329,"HF_R11_C10",null,null,{"$f":"VLOOKUP(#REF!,'Database Reference'!$AA$1:$AB$9,2,0)","v":{"$error":"#REF!"}},null,null,1]
[1229,329,"HF_R11_C9",null,null,{"$f":"VLOOKUP(#REF!,'Database Reference'!$AA$1:$AB$9,2,0)","v":{"$error":"#REF!"}},null,null,1]
[1230,329,"HF_R11_C8",null,null,{"$f":"VLOOKUP(#REF!,'Database Reference'!$AA$1:$AB$9,2,0)","v":{"$error":"#REF!"}},null,null,1]
[1231,329,"HF_R11_C7",null,null,{"$f":"VLOOKUP(#REF!,'Database Reference'!$AA$1:$AB$9,2,0)","v":{"$error":"#REF!"}},null,null,1]
[1232,329,"HF_R11_C6",null,null,{"$f":"VLOOKUP(#REF!,'Database Reference'!$AA$1:$AB$9,2,0)","v":{"$error":"#REF!"}},null,null,1]
[1233,329,"HF_R11_C5",null,null,{"$f":"VLOOKUP(#REF!,'Database Reference'!$AA$1:$AB$9,2,0)","v":{"$error":"#REF!"}},null,null,1]
[1234,329,"HF_R11_C4",null,null,{"$f":"VLOOKUP(#REF!,'Database Reference'!$AA$1:$AB$9,2,0)","v":{"$error":"#REF!"}},null,null,1]
[1235,329,"HF_R11_C3",null,null,{"$f":"VLOOKUP(#REF!,'Database Reference'!$AA$1:$AB$9,2,0)","v":{"$error":"#REF!"}},null,null,1]
[1236,329,"HF_R11_C2",null,null,{"$f":"VLOOKUP(#REF!,'Database Reference'!$AA$1:$AB$9,2,0)","v":{"$error":"#REF!"}},null,null,1]
[1237,329,"HF_R11_C1",null,null,{"$f":"VLOOKUP(#REF!,'Database Reference'!$AA$1:$AB$9,2,0)","v":{"$error":"#REF!"}},null,null,1]
[1238,329,"HF_R11_C0",null,null,{"$f":"VLOOKUP(#REF!,'Database Reference'!$AA$1:$AB$9,2,0)","v":{"$error":"#REF!"}},null,null,1]
[1239,329,"HF_R11_C-1",null,null,{"$f":"VLOOKUP(#REF!,'Database Reference'!$AA$1:$AB$9,2,0)","v":{"$error":"#REF!"}},null,null,1]
[1240,329,"HF_R11_C-2",null,null,{"$f":"VLOOKUP(#REF!,'Database Reference'!$AA$1:$AB$9,2,0)","v":{"$error":"#REF!"}},null,null,1]
[1241,329,"HF_R11_C-3",null,null,{"$f":"VLOOKUP(#REF!,'Database Reference'!$AA$1:$AB$9,2,0)","v":{"$error":"#REF!"}},null,null,1]
[1242,329,"HF_R11_C-4",null,null,{"$f":"VLOOKUP(#REF!,'Database Reference'!$AA$1:$AB$9,2,0)","v":{"$error":"#REF!"}},null,null,1]
[1243,329,"HF_R11_C-5",null,null,{"$f":"VLOOKUP(#REF!,'Database Reference'!$AA$1:$AB$9,2,0)","v":{"$error":"#REF!"}},null,null,1]
[1244,329,"HF_R11_C-6",null,null,{"$f":"VLOOKUP(#REF!,'Database Reference'!$AA$1:$AB$9,2,0)","v":{"$error":"#REF!"}},null,null,1]
[1245,329,"HF_R11_C-7",null,null,{"$f":"VLOOKUP(#REF!,'Database Reference'!$AA$1:$AB$9,2,0)","v":{"$error":"#REF!"}},null,null,1]
[1246,329,"HF_R11_C-8",null,null,{"$f":"VLOOKUP(#REF!,'Database Reference'!$AA$1:$AB$9,2,0)","v":{"$error":"#REF!"}},null,null,1]
[1247,329,"HF_R11_C-9",null,null,{"$f":"VLOOKUP(#REF!,'Database Reference'!$AA$1:$AB$9,2,0)","v":{"$error":"#REF!"}},null,null,1]
[1248,329,"HF_R11_C-10",null,null,{"$f":"VLOOKUP(#REF!,'Database Reference'!$AA$1:$AB$9,2,0)","v":{"$error":"#REF!"}},null,null,1]
[1249,329,"HF_R12_C10",null,null,{"$f":"VLOOKUP(#REF!,'Database Reference'!$AA$1:$AB$9,2,0)","v":{"$error":"#REF!"}},null,null,1]
[1250,329,"HF_R12_C9",null,null,{"$f":"VLOOKUP(#REF!,'Database Reference'!$AA$1:$AB$9,2,0)","v":{"$error":"#REF!"}},null,null,1]
[1251,329,"HF_R12_C8",null,null,{"$f":"VLOOKUP(#REF!,'Database Reference'!$AA$1:$AB$9,2,0)","v":{"$error":"#REF!"}},null,null,1]
[1252,329,"HF_R12_C7",null,null,{"$f":"VLOOKUP(#REF!,'Database Reference'!$AA$1:$AB$9,2,0)","v":{"$error":"#REF!"}},null,null,{"$f":"COUNTIF($A$2:$A$3487,A1154)","v":1}]
[1253,329,"HF_R12_C6",null,null,{"$f":"VLOOKUP(#REF!,'Database Reference'!$AA$1:$AB$9,2,0)","v":{"$error":"#REF!"}},null,null,1]
[1254,329,"HF_R12_C5",null,null,{"$f":"VLOOKUP(#REF!,'Database Reference'!$AA$1:$AB$9,2,0)","v":{"$error":"#REF!"}},null,null,1]
[1255,329,"HF_R12_C4",null,null,{"$f":"VLOOKUP(#REF!,'Database Reference'!$AA$1:$AB$9,2,0)","v":{"$error":"#REF!"}},null,null,1]
[1256,329,"HF_R12_C3",null,null,{"$f":"VLOOKUP(#REF!,'Database Reference'!$AA$1:$AB$9,2,0)","v":{"$error":"#REF!"}},null,null,1]
[1257,329,"HF_R12_C2",null,null,{"$f":"VLOOKUP(#REF!,'Database Reference'!$AA$1:$AB$9,2,0)","v":{"$error":"#REF!"}},null,null,1]
[1258,329,"HF_R12_C1",null,null,{"$f":"VLOOKUP(#REF!,'Database Reference'!$AA$1:$AB$9,2,0)","v":{"$error":"#REF!"}},null,null,1]
[1259,329,"HF_R12_C0",null,null,{"$f":"VLOOKUP(#REF!,'Database Reference'!$AA$1:$AB$9,2,0)","v":{"$error":"#REF!"}},null,null,1]
[1260,329,"HF_R12_C-1",null,null,{"$f":"VLOOKUP(#REF!,'Database Reference'!$AA$1:$AB$9,2,0)","v":{"$error":"#REF!"}},null,null,1]
[1261,329,"HF_R12_C-2",null,null,{"$f":"VLOOKUP(#REF!,'Database Reference'!$AA$1:$AB$9,2,0)","v":{"$error":"#REF!"}},null,null,1]
[1262,329,"HF_R12_C-3",null,null,{"$f":"VLOOKUP(#REF!,'Database Reference'!$AA$1:$AB$9,2,0)","v":{"$error":"#REF!"}},null,null,1]
[1263,329,"HF_R12_C-4",null,null,{"$f":"VLOOKUP(#REF!,'Database Reference'!$AA$1:$AB$9,2,0)","v":{"$error":"#REF!"}},null,null,1]
[1264,329,"HF_R12_C-5",null,null,{"$f":"VLOOKUP(#REF!,'Database Reference'!$AA$1:$AB$9,2,0)","v":{"$error":"#REF!"}},null,null,1]
[1265,329,"HF_R12_C-6",null,null,{"$f":"VLOOKUP(#REF!,'Database Reference'!$AA$1:$AB$9,2,0)","v":{"$error":"#REF!"}},null,null,1]
[1266,329,"HF_R12_C-7",null,null,{"$f":"VLOOKUP(#REF!,'Database Reference'!$AA$1:$AB$9,2,0)","v":{"$error":"#REF!"}},null,null,1]
[1267,329,"HF_R12_C-8",null,null,{"$f":"VLOOKUP(#REF!,'Database Reference'!$AA$1:$AB$9,2,0)","v":{"$error":"#REF!"}},null,null,1]
[1268,329,"HF_R12_C-9",null,null,{"$f":"VLOOKUP(#REF!,'Database Reference'!$AA$1:$AB$9,2,0)","v":{"$error":"#REF!"}},null,null,1]
[1269,329,"HF_R12_C-10",null,null,{"$f":"VLOOKUP(#REF!,'Database Reference'!$AA$1:$AB$9,2,0)","v":{"$error":"#REF!"}},null,null,1]
[1270,329,"HF_R13_C10",null,null,{"$f":"VLOOKUP(#REF!,'Database Reference'!$AA$1:$AB$9,2,0)","v":{"$error":"#REF!"}},null,null,1]
[1271,329,"HF_R13_C9",null,null,{"$f":"VLOOKUP(#REF!,'Database Reference'!$AA$1:$AB$9,2,0)","v":{"$error":"#REF!"}},null,null,1]
[1272,329,"HF_R13_C8",null,null,{"$f":"VLOOKUP(#REF!,'Database Reference'!$AA$1:$AB$9,2,0)","v":{"$error":"#REF!"}},null,null,1]
[1273,329,"HF_R13_C7",null,null,{"$f":"VLOOKUP(#REF!,'Database Reference'!$AA$1:$AB$9,2,0)","v":{"$error":"#REF!"}},null,null,1]
[1274,329,"HF_R13_C6",null,null,{"$f":"VLOOKUP(#REF!,'Database Reference'!$AA$1:$AB$9,2,0)","v":{"$error":"#REF!"}},null,null,1]
[1275,329,"HF_R13_C5",null,null,{"$f":"VLOOKUP(#REF!,'Database Reference'!$AA$1:$AB$9,2,0)","v":{"$error":"#REF!"}},null,null,1]
[1276,329,"HF_R13_C4",null,null,{"$f":"VLOOKUP(#REF!,'Database Reference'!$AA$1:$AB$9,2,0)","v":{"$error":"#REF!"}},null,null,1]
[1277,329,"HF_R13_C3",null,null,{"$f":"VLOOKUP(#REF!,'Database Reference'!$AA$1:$AB$9,2,0)","v":{"$error":"#REF!"}},null,null,1]
[1278,329,"HF_R13_C2",null,null,{"$f":"VLOOKUP(#REF!,'Database Reference'!$AA$1:$AB$9,2,0)","v":{"$error":"#REF!"}},null,null,1]
[1279,329,"HF_R13_C1",null,null,{"$f":"VLOOKUP(#REF!,'Database Reference'!$AA$1:$AB$9,2,0)","v":{"$error":"#REF!"}},null,null,1]
[1280,329,"HF_R13_C0",null,null,{"$f":"VLOOKUP(#REF!,'Database Reference'!$AA$1:$AB$9,2,0)","v":{"$error":"#REF!"}},null,null,1]
[1281,329,"HF_R13_C-1",null,null,{"$f":"VLOOKUP(#REF!,'Database Reference'!$AA$1:$AB$9,2,0)","v":{"$error":"#REF!"}},null,null,1]
[1282,329,"HF_R13_C-2",null,null,{"$f":"VLOOKUP(#REF!,'Database Reference'!$AA$1:$AB$9,2,0)","v":{"$error":"#REF!"}},null,null,1]
[1283,329,"HF_R13_C-3",null,null,{"$f":"VLOOKUP(#REF!,'Database Reference'!$AA$1:$AB$9,2,0)","v":{"$error":"#REF!"}},null,null,1]
[1284,329,"HF_R13_C-4",null,null,{"$f":"VLOOKUP(#REF!,'Database Reference'!$AA$1:$AB$9,2,0)","v":{"$error":"#REF!"}},null,null,1]
[1285,329,"HF_R13_C-5",null,null,{"$f":"VLOOKUP(#REF!,'Database Reference'!$AA$1:$AB$9,2,0)","v":{"$error":"#REF!"}},null,null,1]
[1286,329,"HF_R13_C-6",null,null,{"$f":"VLOOKUP(#REF!,'Database Reference'!$AA$1:$AB$9,2,0)","v":{"$error":"#REF!"}},null,null,1]
[1287,329,"HF_R13_C-7",null,null,{"$f":"VLOOKUP(#REF!,'Database Reference'!$AA$1:$AB$9,2,0)","v":{"$error":"#REF!"}},null,null,1]
[1288,329,"HF_R13_C-8",null,null,{"$f":"VLOOKUP(#REF!,'Database Reference'!$AA$1:$AB$9,2,0)","v":{"$error":"#REF!"}},null,null,1]
[1289,329,"HF_R13_C-9",null,null,{"$f":"VLOOKUP(#REF!,'Database Reference'!$AA$1:$AB$9,2,0)","v":{"$error":"#REF!"}},null,null,1]
[1290,329,"HF_R13_C-10",null,null,{"$f":"VLOOKUP(#REF!,'Database Reference'!$AA$1:$AB$9,2,0)","v":{"$error":"#REF!"}},null,null,1]
[1291,329,"HF_R14_C10",null,null,{"$f":"VLOOKUP(#REF!,'Database Reference'!$AA$1:$AB$9,2,0)","v":{"$error":"#REF!"}},null,null,1]
[1292,329,"HF_R14_C9",null,null,{"$f":"VLOOKUP(#REF!,'Database Reference'!$AA$1:$AB$9,2,0)","v":{"$error":"#REF!"}},null,null,1]
[1293,329,"HF_R14_C8",null,null,{"$f":"VLOOKUP(#REF!,'Database Reference'!$AA$1:$AB$9,2,0)","v":{"$error":"#REF!"}},null,null,1]
[1294,329,"HF_R14_C7",null,null,{"$f":"VLOOKUP(#REF!,'Database Reference'!$AA$1:$AB$9,2,0)","v":{"$error":"#REF!"}},null,null,1]
[1295,329,"HF_R14_C6",null,null,{"$f":"VLOOKUP(#REF!,'Database Reference'!$AA$1:$AB$9,2,0)","v":{"$error":"#REF!"}},null,null,1]
[1296,329,"HF_R14_C5",null,null,{"$f":"VLOOKUP(#REF!,'Database Reference'!$AA$1:$AB$9,2,0)","v":{"$error":"#REF!"}},null,null,1]
[1297,329,"HF_R14_C4",null,null,{"$f":"VLOOKUP(#REF!,'Database Reference'!$AA$1:$AB$9,2,0)","v":{"$error":"#REF!"}},null,null,1]
[1298,329,"HF_R14_C3",null,null,{"$f":"VLOOKUP(#REF!,'Database Reference'!$AA$1:$AB$9,2,0)","v":{"$error":"#REF!"}},null,null,1]
[1299,329,"HF_R14_C2",null,null,{"$f":"VLOOKUP(#REF!,'Database Reference'!$AA$1:$AB$9,2,0)","v":{"$error":"#REF!"}},null,null,1]
[1300,329,"HF_R14_C1",null,null,{"$f":"VLOOKUP(#REF!,'Database Reference'!$AA$1:$AB$9,2,0)","v":{"$error":"#REF!"}},null,null,1]
[1301,329,"HF_R14_C0",null,null,{"$f":"VLOOKUP(#REF!,'Database Reference'!$AA$1:$AB$9,2,0)","v":{"$error":"#REF!"}},null,null,1]
[1302,329,"HF_R14_C-1",null,null,{"$f":"VLOOKUP(#REF!,'Database Reference'!$AA$1:$AB$9,2,0)","v":{"$error":"#REF!"}},null,null,1]
[1303,329,"HF_R14_C-2",null,null,{"$f":"VLOOKUP(#REF!,'Database Reference'!$AA$1:$AB$9,2,0)","v":{"$error":"#REF!"}},null,null,1]
[1304,329,"HF_R14_C-3",null,null,{"$f":"VLOOKUP(#REF!,'Database Reference'!$AA$1:$AB$9,2,0)","v":{"$error":"#REF!"}},null,null,1]
[1305,329,"HF_R14_C-4",null,null,{"$f":"VLOOKUP(#REF!,'Database Reference'!$AA$1:$AB$9,2,0)","v":{"$error":"#REF!"}},null,null,1]
[1306,329,"HF_R14_C-5",null,null,{"$f":"VLOOKUP(#REF!,'Database Reference'!$AA$1:$AB$9,2,0)","v":{"$error":"#REF!"}},null,null,1]
[1307,329,"HF_R14_C-6",null,null,{"$f":"VLOOKUP(#REF!,'Database Reference'!$AA$1:$AB$9,2,0)","v":{"$error":"#REF!"}},null,null,1]
[1308,329,"HF_R14_C-7",null,null,{"$f":"VLOOKUP(#REF!,'Database Reference'!$AA$1:$AB$9,2,0)","v":{"$error":"#REF!"}},null,null,1]
[1309,329,"HF_R14_C-8",null,null,{"$f":"VLOOKUP(#REF!,'Database Reference'!$AA$1:$AB$9,2,0)","v":{"$error":"#REF!"}},null,null,1]
[1310,329,"HF_R14_C-9",null,null,{"$f":"VLOOKUP(#REF!,'Database Reference'!$AA$1:$AB$9,2,0)","v":{"$error":"#REF!"}},null,null,1]
[1311,329,"HF_R14_C-10",null,null,{"$f":"VLOOKUP(#REF!,'Database Reference'!$AA$1:$AB$9,2,0)","v":{"$error":"#REF!"}},null,null,1]
[1312,329,"First_Row_on_Screen",null,null,{"$f":"#REF!","v":{"$error":"#REF!"}},null,null,1]
[1313,329,"HF_Predicted_Score",null,null,{"$f":"#REF!","v":{"$error":"#REF!"}},null,null,1]
[1314,329,"HF_Default_Green",null,null,{"$f":"#REF!","v":{"$error":"#REF!"}},null,null,1]
[1315,329,"HF_Blue_Points_Score",null,null,{"$f":"#REF!","v":{"$error":"#REF!"}},null,null,1]
[1316,329,"HF_Correction_Factor",null,null,{"$f":"#REF!","v":{"$error":"#REF!"}},null,null,{"$f":"COUNTIF($A$2:$A$3487,A1218)","v":1}]
[1317,329,"HF_Score",null,null,{"$f":"#REF!","v":{"$error":"#REF!"}},null,null,1]
[1318,329,"Dr_Pass_SBR_pts",null,null,{"$f":"#REF!","v":{"$error":"#REF!"}},null,null,1]
[1319,329,"Dr_Pass_SBR_Pass",null,null,{"$f":"IF(#REF!=\"Not Assessed\",\"Not Assessed\",IF(AND(#REF!=\"Pass\"),\"Pass\",\"Fail\"))","v":{"$error":"#REF!"}},"NODESTRING",null,1]
[1320,586,"Seating",null,null,{"$f":"#REF!","v":{"$error":"#REF!"}},null,null,1]
[1321,614,"Dr_Pass_SBR",null,null,{"$f":"IF(F787=\"Yes\",\"driver and passenger\",\"\")","v":{"$error":"#REF!"}},null,null,1]
[1322,614,"SAS Type",null,null,{"$f":"CONCATENATE(\"Speed Assistance (\",#REF!,\")\")","v":{"$error":"#REF!"}},null,null,1]
[1323,614,"SLIF Pass",null,null,{"$f":"#REF!","v":{"$error":"#REF!"}},null,null,1]
[1324,614,"MSA Pass",null,null,{"$f":"#REF!","v":{"$error":"#REF!"}},null,null,1]
[1325,614,"ISA Pass",null,null,{"$f":"#REF!","v":{"$error":"#REF!"}},null,null,1]
[1326,614,"SLIF Points",null,null,{"$f":"#REF!","v":{"$error":"#REF!"}},null,null,1]
[1327,614,"MSA Points",null,null,{"$f":"#REF!","v":{"$error":"#REF!"}},null,null,1]
[1328,614,"ISA Points",null,null,{"$f":"#REF!+#REF!","v":{"$error":"#REF!"}},null,null,1]
[1329,614,"Speed Assist Pass",null,null,{"$f":"IF(F1224=\"Manual\",F1226,IF(F1224=\"Intelligent\",F1227,\"\"))","v":{"$error":"#REF!"}},null,null,1]
[1330,614,"SAS Points",null,null,{"$f":"#REF!","v":{"$error":"#REF!"}},null,null,1]
[1331,612,"Gabarit Installation",null,null,{"$f":"#REF!","v":{"$error":"#REF!"}},null,null,1]
[1332,612,"Three Simultaneous Use Seating Positions",null,null,{"$f":"#REF!","v":{"$error":"#REF!"}},null,null,1]
[1333,612,"ISOFIX Usability",null,null,{"$f":"#REF!","v":{"$error":"#REF!"}},null,null,1]
[1334,612,"Two or more Largest ISOFIX Positions ",null,null,{"$f":"#REF!","v":{"$error":"#REF!"}},null,null,1]
[1335,612,"Passenger Airbag Warning Marking and Disabling",null,null,{"$f":"#REF!","v":{"$error":"#REF!"}},null,null,1]
[1336,612,"Integrated CRS",null,null,{"$f":"#REF!","v":{"$error":"#REF!"}},null,null,1]
[1337,612,"TP1 Summary Colour",null,null,null,"1=green, 2=orange, 3=red",null,1]
[1338,612,"TP2 Summary Colour",null,null,null,null,null,1]
[1339,612,"TP3 Summary Colour",null,null,null,null,null,1]
[1340,612,"TP4 Summary Colour",null,null,null,null,null,1]
[1341,612,"TP5 Summary Colour",null,null,null,null,null,1]
[1342,612,"TP6 Summary Colour",null,null,null,null,null,1]
[1343,612,"TP7 Summary Colour",null,null,null,null,null,1]
[1344,612,"TP8 Summary Colour",null,null,null,null,null,1]
[1345,612,"TP9 Summary Colour",null,null,null,null,null,1]
[1346,612,"OEM1 Summary Colour",null,null,null,null,null,1]
[1347,612,"OEM2 Summary Colour",null,null,null,null,null,1]
[1348,583,"Pedestrian_Cartype",null,null,{"$f":"#REF!","v":{"$error":"#REF!"}},null,null,1]
[1349,583,"TP1_Mount",null,null,{"$f":"IF(NOT(ISERROR(FIND(\"I\",#REF!))),\"ISOFIX\",IF(NOT(ISERROR(FIND(\"B\",#REF!))),\"Seatbelt\",\"\"))","v":""},null,null,1]
[1350,583,"TP2_Mount",null,null,{"$f":"IF(NOT(ISERROR(FIND(\"I\",#REF!))),\"ISOFIX\",IF(NOT(ISERROR(FIND(\"B\",#REF!))),\"Seatbelt\",\"\"))","v":""},null,null,1]
[1351,583,"TP3_Mount",null,null,{"$f":"IF(NOT(ISERROR(FIND(\"I\",#REF!))),\"ISOFIX\",IF(NOT(ISERROR(FIND(\"B\",#REF!))),\"Seatbelt\",\"\"))","v":""},null,null,1]
[1352,583,"TP4_Mount",null,null,{"$f":"IF(NOT(ISERROR(FIND(\"I\",#REF!))),\"ISOFIX\",IF(NOT(ISERROR(FIND(\"B\",#REF!))),\"Seatbelt\",\"\"))","v":""},null,null,1]
[1353,583,"TP5_Mount",null,null,{"$f":"IF(NOT(ISERROR(FIND(\"I\",#REF!))),\"ISOFIX\",IF(NOT(ISERROR(FIND(\"B\",#REF!))),\"Seatbelt\",\"\"))","v":""},null,null,1]
[1354,583,"TP6_Mount",null,null,{"$f":"IF(NOT(ISERROR(FIND(\"I\",#REF!))),\"ISOFIX\",IF(NOT(ISERROR(FIND(\"B\",#REF!))),\"Seatbelt\",\"\"))","v":""},null,null,1]
[1355,583,"TP7_Mount",null,null,{"$f":"IF(NOT(ISERROR(FIND(\"I\",#REF!))),\"ISOFIX\",IF(NOT(ISERROR(FIND(\"B\",#REF!))),\"Seatbelt\",\"\"))","v":""},null,null,1]
[1356,583,"TP8_Mount",null,null,{"$f":"IF(NOT(ISERROR(FIND(\"I\",#REF!))),\"ISOFIX\",IF(NOT(ISERROR(FIND(\"B\",#REF!))),\"Seatbelt\",\"\"))","v":""},null,null,1]
[1357,583,"TP9_Mount",null,null,{"$f":"IF(NOT(ISERROR(FIND(\"I\",#REF!))),\"ISOFIX\",IF(NOT(ISERROR(FIND(\"B\",#REF!))),\"Seatbelt\",\"\"))","v":""},null,null,1]
[1358,583,"OEM1_Mount",null,null,{"$f":"IF(NOT(ISERROR(FIND(\"I\",#REF!))),\"ISOFIX\",IF(NOT(ISERROR(FIND(\"B\",#REF!))),\"Seatbelt\",\"\"))","v":""},null,null,1]
[1359,583,"OEM2_Mount",null,null,{"$f":"IF(NOT(ISERROR(FIND(\"I\",#REF!))),\"ISOFIX\",IF(NOT(ISERROR(FIND(\"B\",#REF!))),\"Seatbelt\",\"\"))","v":""},null,null,1]
[1360,612,"R1_C_Mount",null,null,{"$f":"VLOOKUP(OFFSET(#REF!,0,MATCH(\"Centre\",#REF!,0)),$AE$1:$AF$4,2,0)","v":{"$error":"#REF!"}},null,null,1]
[1361,612,"R1_P_Mount",null,null,{"$f":"VLOOKUP(OFFSET(#REF!,0,MATCH($E$790,#REF!,0)),$AE$1:$AF$4,2,0)","v":{"$error":"#REF!"}},"0=N/A",null,1]
[1362,612,"R2_D_Mount",null,null,{"$f":"VLOOKUP(OFFSET(#REF!,0,MATCH($E$789,#REF!,0)),$AE$1:$AF$4,2,0)","v":{"$error":"#REF!"}},"1=Belt",null,1]
[1363,612,"R2_C_Mount",null,null,{"$f":"VLOOKUP(OFFSET(#REF!,0,MATCH(\"Centre\",#REF!,0)),$AE$1:$AF$4,2,0)","v":{"$error":"#REF!"}},"2=ISOFIX",null,1]
[1364,612,"R2_P_Mount",null,null,{"$f":"VLOOKUP(OFFSET(#REF!,0,MATCH($E$790,#REF!,0)),$AE$1:$AF$4,2,0)","v":{"$error":"#REF!"}},"3=iSize",null,1]
[1365,612,"R3_D_Mount",null,null,{"$f":"VLOOKUP(OFFSET(#REF!,1,MATCH($E$789,#REF!,0)),$AE$1:$AF$4,2,0)","v":{"$error":"#REF!"}},null,null,1]
[1366,612,"R3_C_Mount",null,null,{"$f":"VLOOKUP(OFFSET(#REF!,1,MATCH(\"Centre\",#REF!,0)),$AE$1:$AF$4,2,0)","v":{"$error":"#REF!"}},null,null,1]
[1367,612,"R3_P_Mount",null,null,{"$f":"VLOOKUP(OFFSET(#REF!,1,MATCH($E$790,#REF!,0)),$AE$1:$AF$4,2,0)","v":{"$error":"#REF!"}},null,null,1]
[1368,612,"Car_CRS_Mount",null,null,{"$f":"MAX(F1262:F1269)","v":{"$error":"#REF!"}},null,null,1]
[1369,612,"Airbag_Switch",null,null,{"$f":"IF(#REF!=\"Yes\",1,0)","v":{"$error":"#REF!"}},null,null,1]
[1370,614,"Speed Informtation Text",null,null,"Speed Information",null,null,1]

{"sheet":"Export","index":24,"n_rows":1281,"n_cols":9,"rows_kept":1281,"cut":false,"hidden":true,"merged":[]}
[]
[]
[]
[]
[]
[]
[]
[]
[]
["ValueStructure_Key","Parent_Key","ValueName","Description","Label","XMLtag","ValueFunction","Sort","ValueType"]
[581,697,"POLE TEST PERFORMED",null,null,"Car input!O5","Database Reference'!F2",50,"booleanvalue"]
[100,611,"UNROUNDED ADULT OCCUPANT SCORE",null,null,"Summary!$B$30","Database Reference'!F3",10]
[101,100,"FRONTAL IMPACT SCORE",null,null,"Summary!$B$18","Database Reference'!F4",10]
[102,101,"HEAD AND NECK BODY REGION SCORE",null,null,null,"Database Reference'!F5",10]
[103,102,"DRIVER HEAD/NECK SCORE",null,null,"Summary!$B$7","Database Reference'!F6",10]
[104,103,"DRIVER HEAD SCORE",null,null,"Calculations!$D$15","Database Reference'!F7",10]
[105,104,"HIC36",null,null,"Car Input'!$D$7","Database Reference'!F8",10]
[106,104,"Resultant Acc. 3 msec exeedence ",null,null,"Car Input'!$D$6","Database Reference'!F9",20]
[107,104,"Honeycomb crush",null,null,"Car Input'!$D$10","Database Reference'!F10",30]
[108,104,"HIC36","Honeycomb crush",null,"Car Input'!$D$11","Database Reference'!F11",40]
[109,104,"Resultant peak Acc.","Honeycomb crush",null,"Car Input'!$D$12","Database Reference'!F12",50]
[110,104,"Resultant Acc. 3 msec exeedence","Honeycomb crush",null,"Car Input'!$D$13","Database Reference'!F13",60]
[111,104,"Displacement top end of steering column H (-1-0 points)",null,null,"Car Input'!$I$6","Database Reference'!F14",70]
[112,104,"Displacement top end of steering column V (-1-0 points)",null,null,"Car Input'!$I$7","Database Reference'!F15",80]
[113,104,"Displacement top end of steering column L (-1-0 points)",null,null,"Car Input'!$I$8","Database Reference'!F16",90]
[114,104,"Unstable airbag or bottoming out(-1-0 points)",null,null,"Car Input'!$D$74","Database Reference'!F17",100]
[115,103,"DRIVER NECK SCORE",null,null,"Calculations'!$D$25","Database Reference'!F18",20]
[116,115,"Shear level exceeded - kN",null,null,"Car Input'!$D15","Database Reference'!F19",10]
[117,115,"Dr duration of shear exceedence",null,null,"Car Input'!$D16","Database Reference'!F20",20]
[118,115,"Dr Tension level exceeded - kN",null,null,"Car Input'!$D17","Database Reference'!F21",30]
[119,115,"Dr duration of tension exceedence - ms",null,null,"Car Input'!$D18","Database Reference'!F22",40]
[120,115,"Dr Extension My - Nm",null,null,"Car Input'!$D19","Database Reference'!F23",50]
[121,102,"PASSENGER HEAD/NECK SCORE",null,null,"Passenger'!$B$13","Database Reference'!F24",20]
[122,121,"PASSENGER HEAD SCORE",null,null,"Calculations'!$E$15","Database Reference'!F25",10]
[123,122,"Pass HIC36",null,null,"Calculations'!$E$4","Database Reference'!F26",10]
[124,122,"Pass Resultant Acc. 3 msec exeedence ",null,null,"Calculations'!$E$5","Database Reference'!F27",20]
[125,122,"Pass Unstable airbag or bottoming out(-1-0 points)",null,null,"Car Input'!$E$74","Database Reference'!F28",30]
[126,121,"PASSENGER NECK SCORE",null,null,"Calculations'!$E$25","Database Reference'!F29",10]
[127,126,"Shear level exceeded - kN",null,null,"Car Input'!$E15","Database Reference'!F30",10]
[128,126,"Pass duration of shear exceedence",null,null,"Car Input'!$E16","Database Reference'!F31",20]
[129,126,"Tension level exceeded - kN",null,null,"Car Input'!$E17","Database Reference'!F32",30]
[130,126,"Duration of tension exceedence",null,null,"Car Input'!$E18","Database Reference'!F33",40]
[131,126,"Extension My - Nm",null,null,"Car Input'!$E19","Database Reference'!F34",50]
[132,101,"CHEST SCORE",null,null,null,"Database Reference'!F35",20]
[133,132,"DRIVER CHEST SCORE","SumDrChestAssessment",null,"Calculations!$D$33","Database Reference'!F36",10]
[134,133,"Compression",null,null,"Car Input'!$D$21","Database Reference'!F37",10]
[135,133,"viscous criterion",null,null,"Car Input'!$D$22","Database Reference'!F38",20]
[136,133,"A Pillar Displacement",null,null,"Car Input'!$I$25","Database Reference'!F39",30]
[137,133,"Steering wheel contact (-1) ",null,null,"Car Input'!$D$77","Database Reference'!F40",40]
[138,133,"Unstable passenger compartment (-1)",null,null,"Car Input'!$D$78","Database Reference'!F41",50]
[139,132,"PASSENGER CHEST SCORE",null,null,"Summary!$B$14","Database Reference'!F42",20]
[140,139,"Compression",null,null,"Car Input'!$E$21","Database Reference'!F43",10]
[141,139,"viscous criterion",null,null,"Car Input'!$E$22","Database Reference'!F44",20]
[142,101,"KNEE/FEMUR/PELVIS BODY REGION SCORE",null,null,null,"Database Reference'!F45",20]
[143,142,"DRIVER KNEE/FEMUR/PELVIS SCORE",null,null,"Summary!$B$9","Database Reference'!F46",10]
[144,143,"DRIVER LEFT KNEE/FEMUR/PELVIS SCORE",null,null,"Calculations'!$D$44","Database Reference'!F47",10]
[145,144,"Left Knee Slide - mm",null,null,"Car Input'!$D25","Database Reference'!F48",10]
[146,144,"Left Femur Compression level exceeded - kN",null,null,"Car Input'!$D26","Database Reference'!F49",20]
[147,144,"Duration of femur exceedence",null,null,"Car Input'!$D27","Database Reference'!F50",30]
[148,144,"Left Knee Variable contact (-1) ",null,null,"Car Input'!$D$80","Database Reference'!F51",40]
[149,144,"Left Knee Concentrated loading (-1) ",null,null,"Car Input'!$D$81","Database Reference'!F52",50]
[150,143,"DRIVER RIGTH KNEE/FEMUR/PELVIS SCORE",null,null,"Calculations'!$D$49","Database Reference'!F53",20]
[151,150,"Right Knee Slide - mm",null,null,"Car Input'!$D28","Database Reference'!F54",10]
[152,150,"Right Femur Compression level exceeded - kN",null,null,"Car Input'!$D29","Database Reference'!F55",20]
[153,150,"Duration of femur exceedence",null,null,"Car Input'!$D30","Database Reference'!F56",30]
[154,150,"Right Variable contact (-1) ",null,null,"Car Input'!$D$82","Database Reference'!F57",40]
[155,150,"Right Concentrated loading (-1) ",null,null,"Car Input'!$D$83","Database Reference'!F58",50]
[156,142,"PASSENGER KNEE/FEMUR/PELVIS SCORE",null,null,"Summary!$B$15","Database Reference'!F59",20]
[157,156,"PASSENGER LEFT KNEE/FEMUR/PELVIS SCORE",null,null,"Calculations'!$E$44","Database Reference'!F60",10]
[158,157,"Pass Left Knee Slide - mm",null,null,"Car Input'!$E$25","Database Reference'!F61",10]
[159,157,"Pass Left Femur Compression level exceeded - kN",null,null,"Car Input'!$E$26","Database Reference'!F62",20]
[160,157,"Duration of femur exceedence",null,null,"Car Input'!$E$27","Database Reference'!F63",30]
[161,157,"Left Knee Variable contact (-1) ",null,null,"Car Input'!$E$80","Database Reference'!F64",40]
[162,157,"Left Knee Concentrated loading (-1) ",null,null,"Car Input'!$E$81","Database Reference'!F65",50]
[163,156,"PASSENGER RIGHT KNEE/FEMUR/PELVIS SCORE",null,null,"Calculations'!$E$49","Database Reference'!F66",20]
[164,163,"Right Knee Slide - mm",null,null,"Car Input'!$E28","Database Reference'!F67",10]
[165,163,"Right Femur Compression level exceeded - kN",null,null,"Car Input'!$E29","Database Reference'!F68",20]
[166,163,"Duration of femur exceedence",null,null,"Car Input'!$E30","Database Reference'!F69",30]
[167,163,"Right Variable contact (-1) ",null,null,"Car Input'!$E$82","Database Reference'!F70",40]
[168,163,"Right Concentrated loading (-1) ",null,null,"Car Input'!$E$83","Database Reference'!F71",50]
[169,101,"LOWER LEG, FOOT AND ANKLE BODY REGION SCORE",null,null,null,"Database Reference'!F72",30]
[170,169,"DRIVER LOWER LEG, FOOT AND ANKLE SCORE",null,null,"Summary!$B$10","Database Reference'!F73",10]
[171,170,"DRIVER LEFT LOWER LEG SCORE",null,null,"Driver!$C$55","Database Reference'!F74",10]
[172,171,"Left compression Fz - kN",null,null,"Car Input'!$D32","Database Reference'!F75",10]
[173,171,"Left Upper Tibia Index ",null,null,"Car Input'!$D33","Database Reference'!F76",20]
[174,171,"Left Lower Tibia Index",null,null,"Car Input'!$D34","Database Reference'!F77",30]
[175,170,"DRIVER RIGHT LOWER LEG SCORE",null,null,"Driver!$C$61","Database Reference'!F78",20]
[176,175,"Right compression Fz - kN",null,null,"Car Input'!$D36","Database Reference'!F79",10]
[177,175,"Right Upper Tibia Index ",null,null,"Car Input'!$D37","Database Reference'!F80",20]
[178,175,"Right Lower Tibia Index",null,null,"Car Input'!$D38","Database Reference'!F81",30]
[179,170,"DRIVER FOOT AND ANKLE SCORE",null,null,"Driver!$C$67","Database Reference'!F82",30]
[180,179,"Pedal horizontal displacement - mm",null,null,"Car Input'!$I$22","Database Reference'!F83",10]
[181,179,"Footwell Rupture (-1)",null,null,"Car Input'!$D$85","Database Reference'!F84",20]
[182,179,"Pedal Blocking (-1)",null,null,"Car Input'!$I$17","Database Reference'!F85",30]
[183,169,"PASSENGER LOWER LEG SCORE",null,null,"Summary!$B$16","Database Reference'!F86",20]
[184,183,"PASSENGER LEFT LOWER LEG SCORE",null,null,"Passenger!$C$51","Database Reference'!F87",10]
[185,184,"Left compression Fz - kN",null,null,"Car Input'!$E32","Database Reference'!F88",10]
[186,184,"Left Upper Tibia Index ",null,null,"Car Input'!$E33","Database Reference'!F89",20]
[187,184,"Left Lower Tibia Index",null,null,"Car Input'!$E34","Database Reference'!F90",30]
[188,183,"PASSENGER RIGHT LOWER LEG SCORE",null,null,"Passenger!$C$56","Database Reference'!F91",20]
[189,188,"Right compression Fz - kN",null,null,"Car Input'!$E36","Database Reference'!F92",10]
[190,188,"Right Upper Tibia Index ",null,null,"Car Input'!$E37","Database Reference'!F93",20]
[191,188,"Right Lower Tibia Index",null,null,"Car Input'!$E38","Database Reference'!F94",30]
[192,101,"DOOR OPENING IN FRONTAL IMPACT","Modifier",null,"Car Input'!$E$87","Database Reference'!F95",40]
[193,740,"SIDE IMPACT SCORE",null,null,"Side'!$D$46","Database Reference'!F96",20]
[194,193,"HEAD BODY REGION SCORE",null,null,"Calculations'!$K$11","Database Reference'!F97",10]
[195,194,"Peak resultant acceleration - g",null,null,"Car Input'!$E45","Database Reference'!F98",10]
[196,194,"HIC36",null,null,"Car Input'!$E46","Database Reference'!F99",20]
[197,194,"Resultant Acc. 3 msec exceedence - g",null,null,"Car Input'!$E47","Database Reference'!F100",30]
[198,194,"Incorrect airbag deployment (-1)",null,null,null,"Database Reference'!F101",40]
[199,193,"CHEST BODY REGION SCORE",null,null,"Calculations'!$K$31","Database Reference'!F102",20]
[200,199,"TOP RIB SCORE",null,null,"Calculations'!$K$17","Database Reference'!F103",10]
[201,200,"Top rib Compression - mm",null,null,"Car Input'!$E$50","Database Reference'!F104",10]
[202,200,"Top rib Viscous Criterion - m/s",null,null,"Car Input'!$E$51","Database Reference'!F105",20]
[203,199,"MID RIB SCORE",null,null,"Calculations'!$K$22","Database Reference'!F106",10]
[204,203,"Mid rib Compression - mm",null,null,"Car Input'!$E$52","Database Reference'!F107",10]
[205,203,"Mid rib Viscous Criterion - m/s",null,null,"Car Input'!$E$53","Database Reference'!F108",20]
[206,199,"BOTTOM RIB SCORE",null,null,"Calculations'!$K$27","Database Reference'!F109",30]
[207,206,"Bottom rib Compression - mm",null,null,"Car Input'!$E$54","Database Reference'!F110",10]
[208,206,"Bottom rib Viscous Criterion - m/s",null,null,"Car Input'!$E$55","Database Reference'!F111",20]
[209,199,"T12 Modifier",null,null,"Side'!$D$23","Database Reference'!F112",40]
[210,199,"Backplate Load Modifier",null,null,"Side'!$D$24","Database Reference'!F113",50]
[211,199,"Incorrect airbag deployment",null,null,null,"Database Reference'!F114",60]
[212,193,"ABDOMEN BODY REGION SCORE",null,null,"Calculations'!$K$41","Database Reference'!F115",30]
[213,212,"Peak lateral force - kN",null,null,"Car Input'!$E58","Database Reference'!F116",10]
[214,212,"Peak lateral force - kN",null,null,"Car Input'!$E59","Database Reference'!F117",20]
[215,212,"Peak lateral force - kN",null,null,"Car Input'!$E60","Database Reference'!F118",30]
[216,212,"Incorrect airbag deployment (-1)",null,null,null,"Database Reference'!F119",40]
[217,193,"PELVIS BODY REGION SCORE",null,null,"Calculations'!$K$47","Database Reference'!F120",40]
[218,217,"Pubic Symphysis force - kN",null,null,"Car Input'!$E$64","Database Reference'!F121",10]
[219,193,"INCORRECT AIRBAG DEPLOYMENT",null,null,null,"Database Reference'!F122",50]
[220,193,"DOORS OPENING IN SIDE IMPACT",null,null,"Car Input'!$E$88","Database Reference'!F123",60]
[221,741,"POLE TEST SCORE",null,null,"Pole'!$D$42","Database Reference'!F124",30]
[222,221,"HEAD BODY REGION SCORE",null,null,"Pole'!$D$42","Database Reference'!F125",10]
[223,222,"Peak resultant acceleration - g",null,null,"Car Input'!$O7","Database Reference'!F126",10]
[224,222,"HIC36",null,null,"Car Input'!$O8","Database Reference'!F127",20]
[225,222,"Resultant Acc. 3 msec exceedence - g",null,null,"Car Input'!$O9","Database Reference'!F128",30]
[226,222,"Incorrect airbag deployment (-1)",null,null,null,"Database Reference'!F129",40]
[227,221,"CHEST BODY REGION SCORE",null,null,"Pole'!$D$43","Database Reference'!F130",20]
[228,227,"TOP RIB SCORE",null,null,"Calculations'!$Q$69","Database Reference'!F131",10]
[229,228,"Top rib Compression - mm",null,null,"Car Input'!$O13","Database Reference'!F132",10]
[230,228,"Top rib Viscous Criterion - m/s",null,null,"Car Input'!$O14","Database Reference'!F133",20]
[231,227,"MID RIB SCORE",null,null,"Calculations'!$Q$74","Database Reference'!F134",20]
[232,231,"Mid rib Compression - mm",null,null,"Car Input'!$O16","Database Reference'!F135",10]
[233,231,"Mid rib Viscous Criterion - m/s",null,null,"Car Input'!$O17","Database Reference'!F136",20]
[234,227,"BOTTOM RIB SCORE",null,null,"Calculations'!$Q$79","Database Reference'!F137",30]
[235,234,"Bottom rib Compression - mm",null,null,"Car Input'!$O19","Database Reference'!F138",10]
[236,234,"Bottom rib Viscous Criterion - m/s",null,null,"Car Input'!$O20","Database Reference'!F139",20]
[237,227,"T12 MODIFIER",null,null,"Calculations'!$Q$81","Database Reference'!F140",40]
[238,227,"BACKPLATE LOAD MODIFER",null,null,"Calculations'!$Q$82","Database Reference'!F141",50]
[239,227,"INCORRECT AIRBAG DEPLOYMENT",null,null,null,"Database Reference'!F142",60]
[240,221,"ABDOMEN BODY REGION SCORE",null,null,"Pole'!$D$44","Database Reference'!F143",30]
[241,240,"Front Peak lateral force - kN",null,null,"Car Input'!$O21","Database Reference'!F144",10]
[242,240,"Mid Peak lateral force - kN",null,null,"Car Input'!$O22","Database Reference'!F145",20]
[243,240,"Rear Peak lateral force - kN",null,null,"Car Input'!$O23","Database Reference'!F146",30]
[244,240,"Incorrect airbag deployment (-1)",null,null,null,"Database Reference'!F147",40]
[245,221,"PELVIS BODY REGION SCORE",null,null,"Pole'!$D$45","Database Reference'!F148",40]
[246,245,"Pubic Symphysis force - kN",null,null,"Car Input'!$O$27","Database Reference'!F149",10]
[247,221,"INCORRECT AIRBAG DEPLOYMENT",null,null,"Car Input'!$D$75","Database Reference'!F150",50]
[248,221,"DOORS OPENING IN POLE IMPACT",null,null,"Car Input'!$E$88","Database Reference'!F151",60]
[249,697,"SBR POINTS",null,null,"Calculations'!$D$69","Database Reference'!F152",60]
[250,612,"UNROUNDED CHILD PROTECTION SCORE",null,null,"Summary'!$G$14","Database Reference'!F153",20]
[251,250,"CRS Dynamic Test Rating",null,null,null,"Database Reference'!F154",10]
[252,251,"P1.5 Dynamic Score",null,null,"Child'!$F$39","Database Reference'!F155",10]
[253,252,"Forward facing Head Score",null,null,null,"Database Reference'!F156",10]
[254,252,"Excursion Score",null,null,null,"Database Reference'!F157",20]
[255,252,"Hard contact Score (head contact not on car)",null,null,null,"Database Reference'!F158",30]
[256,252,"Rearward facing Head Score",null,null,null,"Database Reference'!F159",40]
[257,252,"Score if no contact with car nor head compressive load",null,null,null,"Database Reference'!F160",50]
[258,252,"Score for Neck Tension (Head Vertical Acceleration)",null,null,null,"Database Reference'!F161",60]
[259,252,"Score for Head Contact (3msec accounting for peak)",null,null,null,"Database Reference'!F162",70]
[260,252,"Side Head Score",null,null,null,"Database Reference'!F163",80]
[261,252,"Head Side Resultant Acceleration",null,null,null,"Database Reference'!F164",90]
[262,252,"Frontal Chest Score",null,null,null,"Database Reference'!F165",100]
[263,252,"Chest Frontal Resultant Acceleration",null,null,null,"Database Reference'!F166",110]
[264,252,"Chest Frontal Vertical Acceleration",null,null,null,"Database Reference'!F167",120]
[265,252,"Dynamic Tests Rating",null,null,null,"Database Reference'!F168",130]
[266,251,"P3 Dynamic Score",null,null,"Child'!$I$39","Database Reference'!F169",20]
[267,266,"Forward facing Head Score",null,null,null,"Database Reference'!F170",10]
[268,266,"Excursion Score",null,null,null,"Database Reference'!F171",20]
[269,266,"Hard contact Score (head contact not on car)",null,null,null,"Database Reference'!F172",30]
[270,266,"Rearward facing Head Score",null,null,null,"Database Reference'!F173",40]
[271,266,"Score if no contact with car nor head compressive load",null,null,null,"Database Reference'!F174",50]
[272,266,"Score for Neck Tension (Head Vertical Acceleration)",null,null,null,"Database Reference'!F175",60]
[273,266,"Score for Head Contact (3msec accounting for peak)",null,null,null,"Database Reference'!F176",70]
[274,266,"Side Head Score",null,null,null,"Database Reference'!F177",80]
[275,266,"Head Side Resultant Acceleration",null,null,null,"Database Reference'!F178",90]
[276,266,"Frontal Chest Score",null,null,null,"Database Reference'!F179",100]
[277,266,"Chest Frontal Resultant Acceleration",null,null,null,"Database Reference'!F180",110]
[278,266,"Chest Frontal Vertical Acceleration",null,null,null,"Database Reference'!F181",120]
[279,266,"Dynamic Tests Rating",null,null,null,"Database Reference'!F182",130]
[280,250,"CRS Labelling Rating",null,null,null,"Database Reference'!F183",20]
[281,280,"P1.5 Labelling",null,null,"Child'!$F$57","Database Reference'!F184",10]
[282,281,"Belt routes permanent marked and colour coded",null,"P1_5BeltRoutes",null,"Database Reference'!F185",10,"nodestring"]
[283,281,"Instructions visible and permanent on both sides of restraint",null,"P1_5Instructions",null,"Database Reference'!F186",20,"nodestring"]
[284,281,"Advice visible on when to use as forward facing of two way seats",null,"P1_5Advice_Belt_Routes",null,"Database Reference'!F187",30,"nodestring"]
[285,281,"Alternative adult seat belt routes  (ECE Reg 43.03 Supplement 3)",null,"P1_5AlternativeRoutes",null,"Database Reference'!F188",40,"nodestring"]
[286,281,"Advice on use of seat and components for all sizes of children",null,"P1_5Advice_Child_Size",null,"Database Reference'!F189",50,"nodestring"]
[287,281,"ISOFIX Instructions visible and permanent on both sides of restraint",null,"P1_5ISOFIX_Both_Sides",null,"Database Reference'!F190",60,"nodestring"]
[288,281,"Instructions on preparing seat for installation",null,"P1_5Install_Instructions",null,"Database Reference'!F191",70,"nodestring"]
[289,281,"Tell-tales Position function and interpretation explained",null,"P1_5Tell_Tales",null,"Database Reference'!F192",80,"nodestring"]
[290,281,"Position and use of additional tethers explained",null,"P1_5Add_Tethers",null,"Database Reference'!F193",90,"nodestring"]
[291,281,"Tell-tales must inform if there is only partial latching",null,"P1_5Partial_Latch_Info",null,"Database Reference'!F194",100,"nodestring"]
[292,281,"Use and adjustment of latches and tethers",null,"P1_5Adjust_Latches",null,"Database Reference'!F195",110,"nodestring"]
[293,281,"Information on which vehicles the CRS can be used in",null,"P1_5Which_Cars",null,"Database Reference'!F196",120,"nodestring"]
[294,280,"P3 Labelling",null,null,"Child'!$I$57","Database Reference'!F197",20]
[295,294,"Belt routes permanent marked and colour coded",null,"P3BeltRoutes",null,"Database Reference'!F198",10,"nodestring"]
[296,294,"Instructions visible and permanent on both sides of restraint",null,"P3Instructions",null,"Database Reference'!F199",20,"nodestring"]
[297,294,"Advice visible on when to use as forward facing of two way seats",null,"P3Advice_Belt_Routes",null,"Database Reference'!F200",30,"nodestring"]
[298,294,"Alternative adult seat belt routes  (ECE Reg 43.03 Supplement 3)",null,"P3AlternativeRoutes",null,"Database Reference'!F201",40,"nodestring"]
[299,294,"Advice on use of seat and components for all sizes of children",null,"P3Advice_Child_Size",null,"Database Reference'!F202",50,"nodestring"]
[300,294,"ISOFIX Instructions visible and permanent on both sides of restraint",null,"P3ISOFIX_Both_Sides",null,"Database Reference'!F203",60,"nodestring"]
[301,294,"Instructions on preparing seat for installation",null,"P3Install_Instructions",null,"Database Reference'!F204",70,"nodestring"]
[302,294,"Tell-tales Position function and interpretation explained",null,"P3Tell_Tales",null,"Database Reference'!F205",80,"nodestring"]
[303,294,"Position and use of additional tethers explained",null,"P3Add_Tethers",null,"Database Reference'!F206",90,"nodestring"]
[304,294,"Tell-tales must inform if there is only partial latching",null,"P3Partial_Latch_Info",null,"Database Reference'!F207",100,"nodestring"]
[305,294,"Use and adjustment of latches and tethers",null,"P3Adjust_Latches",null,"Database Reference'!F208",110,"nodestring"]
[306,294,"Information on which vehicles the CRS can be used in",null,"P3Which_Cars",null,"Database Reference'!F209",120,"nodestring"]
[307,250,"Vehicle Compatibility Rating",null,null,null,"Database Reference'!F210",30]
[308,307,"P1.5 Compatibility",null,null,"Child'!$F$64","Database Reference'!F211",10]
[309,308,"Incompatibility between CRS with Seats and Adult Seat Belt",null,"P1_5Seat_Incompatibility",null,"Database Reference'!F212",10,"nodestring"]
[310,308,"Incompatibility between CRS and car (i.e CRS legs)",null,"P1_5Car_Incompatibility",null,"Database Reference'!F213",20,"nodestring"]
[311,308,"Preditable mislatching that can compromise safety",null,"P1_5Mismatching",null,"Database Reference'!F214",30,"nodestring"]
[312,307,"P3 Compatibility",null,null,"Child'!$I$64","Database Reference'!F215",20]
[313,312,"Incompatibility between CRS with Seats and Adult Seat Belt",null,"P3Seat_Incompatibility",null,"Database Reference'!F216",10,"nodestring"]
[314,312,"Incompatibility between CRS and car (i.e CRS legs)",null,"P3Car_Incompatibility",null,"Database Reference'!F217",20,"nodestring"]
[315,312,"Preditable mislatching that can compromise safety",null,"P3Mismatching",null,"Database Reference'!F218",30,"nodestring"]
[316,250,"Vehicle CRS Use Rating",null,null,"Child'!$F$81","Database Reference'!F219",40]
[317,316,"Vehicle air bag labelling",null,null,null,"Database Reference'!F220",10]
[318,316,"Able to fit rear facing restraint in front passenger's seat",null,null,null,"Database Reference'!F221",20]
[319,316,"Automatic sensing in front of rearward facing restraints",null,null,null,"Database Reference'!F222",30]
[320,316,"Three point seat belts on all passenger seats",null,null,null,"Database Reference'!F223",40]
[321,316,"Compatibility check with Gabarit",null,null,null,"Database Reference'!F224",50]
[322,316,"ISOFIX marking and information",null,null,null,"Database Reference'!F225",60]
[323,316,"Universal Seating positions assessment",null,null,null,"Database Reference'!F226",70]
[324,316,"Number of ISOFIX seat positions",null,null,null,"Database Reference'!F227",80]
[325,316,"Size of ISOFIX seats catered for",null,null,null,"Database Reference'!F228",90]
[326,316,"Two or more integrated child restraints",null,null,null,"Database Reference'!F229",100]
[327,316,"Integrated restraint that caters for all age groups",null,null,null,"Database Reference'!F230",110]
[328,613,"UNROUNDED PEDESTRIAN SCORE",null,null,"Summary'!$G$32","Database Reference'!F231",30]
[329,328,"Adult Headform Score",null,null,"Summary'!$G$24","Database Reference'!F232",10]
[330,329,"A1",null,null,null,"Database Reference'!F233",10]
[331,330,"A1A Score",null,null,"Calculations'!$Y$3","Database Reference'!F234",10]
[332,330,"A1A Nomination",null,"a1a_nomin","Car Input'!$L$43","Database Reference'!F235",20,"nodestring"]
[333,330,"A1B Score",null,null,"Calculations'!$Z$3","Database Reference'!F236",30]
[334,330,"A1B Nomination",null,"a1b_nomin","Car Input'!$M$43","Database Reference'!F237",40,"nodestring"]
[335,330,"A1C Score",null,null,"Calculations'!$AA$3","Database Reference'!F238",50]
[336,330,"A1C Nomination",null,"a1b_nomin","Car Input'!$N$43","Database Reference'!F239",60,"nodestring"]
[337,330,"A1D Score",null,null,"Calculations'!$AB$3","Database Reference'!F240",70]
[338,330,"A1D Nomination",null,"a1c_nomin","Car Input'!$O$43","Database Reference'!F241",80,"nodestring"]
[339,329,"A2",null,null,null,"Database Reference'!F242",20]
[340,339,"A2A Score",null,null,"Calculations'!$Y$4","Database Reference'!F243",10]
[341,339,"A2A Nomination",null,"a2a_nomin","Car Input'!$L$44","Database Reference'!F244",20,"nodestring"]
[342,339,"A2B Score",null,null,"Calculations'!$Z$4","Database Reference'!F245",30]
[343,339,"A2B Nomination",null,"a2b_nomin","Car Input'!$M$44","Database Reference'!F246",40,"nodestring"]
[344,339,"A2C Score",null,null,"Calculations'!$AA$4","Database Reference'!F247",50]
[345,339,"A2C Nomination",null,"a2b_nomin","Car Input'!$N$44","Database Reference'!F248",60,"nodestring"]
[346,339,"A2D Score",null,null,"Calculations'!$AB$4","Database Reference'!F249",70]
[347,339,"A2D Nomination",null,"a2c_nomin","Car Input'!$O$44","Database Reference'!F250",80,"nodestring"]
[348,329,"A3",null,null,null,"Database Reference'!F251",30]
[349,348,"A3A Score",null,null,"Calculations'!$Y$5","Database Reference'!F252",10]
[350,348,"A3A Nomination",null,"a3a_nomin","Car Input'!$L$45","Database Reference'!F253",20,"nodestring"]
[351,348,"A3B Score",null,null,"Calculations'!$Z$5","Database Reference'!F254",30]
[352,348,"A3B Nomination",null,"a3b_nomin","Car Input'!$M$45","Database Reference'!F255",40,"nodestring"]
[353,348,"A3C Score",null,null,"Calculations'!$AA$5","Database Reference'!F256",50]
[354,348,"A3C Nomination",null,"a3b_nomin","Car Input'!$N$45","Database Reference'!F257",60,"nodestring"]
[355,348,"A3D Score",null,null,"Calculations'!$AB$5","Database Reference'!F258",70]
[356,348,"A3D Nomination",null,"a3c_nomin","Car Input'!$O$45","Database Reference'!F259",80,"nodestring"]
[357,329,"A4",null,null,null,"Database Reference'!F260",40]
[358,357,"A4A Score",null,null,"Calculations'!$Y$6","Database Reference'!F261",10]
[359,357,"A4A Nomination",null,"a4a_nomin","Car Input'!$L$46","Database Reference'!F262",20,"nodestring"]
[360,357,"A4B Score",null,null,"Calculations'!$Z$6","Database Reference'!F263",30]
[361,357,"A4B Nomination",null,"a4b_nomin","Car Input'!$M$46","Database Reference'!F264",40,"nodestring"]
[362,357,"A4C Score",null,null,"Calculations'!$AA$6","Database Reference'!F265",50]
[363,357,"A4C Nomination",null,"a4b_nomin","Car Input'!$N$46","Database Reference'!F266",60,"nodestring"]
[364,357,"A4D Score",null,null,"Calculations'!$AB$6","Database Reference'!F267",70]
[365,357,"A4D Nomination",null,"a4c_nomin","Car Input'!$O$46","Database Reference'!F268",80,"nodestring"]
[366,329,"A5",null,null,null,"Database Reference'!F269",50]
[367,366,"A5A Score",null,null,"Calculations'!$Y$7","Database Reference'!F270",10]
[368,366,"A5A Nomination",null,"a5a_nomin","Car Input'!$L$47","Database Reference'!F271",20,"nodestring"]
[369,366,"A5B Score",null,null,"Calculations'!$Z$7","Database Reference'!F272",30]
[370,366,"A5B Nomination",null,"a5b_nomin","Car Input'!$M$47","Database Reference'!F273",40,"nodestring"]
[371,366,"A5C Score",null,null,"Calculations'!$AA$7","Database Reference'!F274",50]
[372,366,"A5C Nomination",null,"a5b_nomin","Car Input'!$N$47","Database Reference'!F275",60,"nodestring"]
[373,366,"A5D Score",null,null,"Calculations'!$AB$7","Database Reference'!F276",70]
[374,366,"A5D Nomination",null,"a5c_nomin","Car Input'!$O$47","Database Reference'!F277",80,"nodestring"]
[375,329,"A6",null,null,null,"Database Reference'!F278",60]
[376,375,"A6A Score",null,null,"Calculations'!$Y$8","Database Reference'!F279",10]
[377,375,"A6A Nomination",null,"a6a_nomin","Car Input'!$L$48","Database Reference'!F280",20,"nodestring"]
[378,375,"A6B Score",null,null,"Calculations'!$Z$8","Database Reference'!F281",30]
[379,375,"A6B Nomination",null,"a6b_nomin","Car Input'!$M$48","Database Reference'!F282",40,"nodestring"]
[380,375,"A6C Score",null,null,"Calculations'!$AA$8","Database Reference'!F283",50]
[381,375,"A6C Nomination",null,"a6b_nomin","Car Input'!$N$48","Database Reference'!F284",60,"nodestring"]
[382,375,"A6D Score",null,null,"Calculations'!$AB$8","Database Reference'!F285",70]
[383,375,"A6D Nomination",null,"a6c_nomin","Car Input'!$O$48","Database Reference'!F286",80,"nodestring"]
[384,328,"Child Headform Score",null,null,"Summary'!$G$26","Database Reference'!F287",20]
[385,384,"C1",null,null,null,"Database Reference'!F288",10]
[386,385,"C1A Score",null,null,"Calculations'!$Y$10","Database Reference'!F289",10]
[387,385,"C1A Nomination",null,"c1a_nomin","Car Input'!$L$50","Database Reference'!F290",20,"nodestring"]
[388,385,"C1B Score",null,null,"Calculations'!$Z$10","Database Reference'!F291",30]
[389,385,"C1B Nomination",null,"c1b_nomin","Car Input'!$M$50","Database Reference'!F292",40,"nodestring"]
[390,385,"C1C Score",null,null,"Calculations'!$AA$10","Database Reference'!F293",50]
[391,385,"C1C Nomination",null,"c1b_nomin","Car Input'!$N$50","Database Reference'!F294",60,"nodestring"]
[392,385,"C1D Score",null,null,"Calculations'!$AB$10","Database Reference'!F295",70]
[393,385,"C1D Nomination",null,"c1c_nomin","Car Input'!$O$50","Database Reference'!F296",80,"nodestring"]
[394,384,"C2",null,null,null,"Database Reference'!F297",20]
[395,394,"C2A Score",null,null,"Calculations'!$Y$11","Database Reference'!F298",10]
[396,394,"C2A Nomination",null,"c2a_nomin","Car Input'!$L$51","Database Reference'!F299",20,"nodestring"]
[397,394,"C2B Score",null,null,"Calculations'!$Z$11","Database Reference'!F300",30]
[398,394,"C2B Nomination",null,"c2b_nomin","Car Input'!$M$51","Database Reference'!F301",40,"nodestring"]
[399,394,"C2C Score",null,null,"Calculations'!$AA$11","Database Reference'!F302",50]
[400,394,"C2C Nomination",null,"c2b_nomin","Car Input'!$N$51","Database Reference'!F303",60,"nodestring"]
[401,394,"C2D Score",null,null,"Calculations'!$AB$11","Database Reference'!F304",70]
[402,394,"C2D Nomination",null,"c2c_nomin","Car Input'!$O$51","Database Reference'!F305",80,"nodestring"]
[403,384,"C3",null,null,null,"Database Reference'!F306",30]
[404,403,"C3A Score",null,null,"Calculations'!$Y$12","Database Reference'!F307",10]
[405,403,"C3A Nomination",null,"c3a_nomin","Car Input'!$L$52","Database Reference'!F308",20,"nodestring"]
[406,403,"C3B Score",null,null,"Calculations'!$Z$12","Database Reference'!F309",30]
[407,403,"C3B Nomination",null,"c3b_nomin","Car Input'!$M$52","Database Reference'!F310",40,"nodestring"]
[408,403,"C3C Score",null,null,"Calculations'!$AA$12","Database Reference'!F311",50]
[409,403,"C3C Nomination",null,"c3b_nomin","Car Input'!$N$52","Database Reference'!F312",60,"nodestring"]
[410,403,"C3D Score",null,null,"Calculations'!$AB$12","Database Reference'!F313",70]
[411,403,"C3D Score",null,"c3c_nomin","Car Input'!$O$52","Database Reference'!F314",80]
[412,384,"C4",null,null,null,"Database Reference'!F315",40]
[413,412,"C4A Score",null,null,"Calculations'!$Y$13","Database Reference'!F316",10]
[414,412,"C4A Nomination",null,"c4a_nomin","Car Input'!$L$53","Database Reference'!F317",20,"nodestring"]
[415,412,"C4B Score",null,null,"Calculations'!$Z$13","Database Reference'!F318",30]
[416,412,"C4B Nomination",null,"c4b_nomin","Car Input'!$M$53","Database Reference'!F319",40,"nodestring"]
[417,412,"C4C Score",null,null,"Calculations'!$AA$13","Database Reference'!F320",50]
[418,412,"C4C Nomination",null,"c4b_nomin","Car Input'!$N$53","Database Reference'!F321",60,"nodestring"]
[419,412,"C4D Score",null,null,"Calculations'!$AB$13","Database Reference'!F322",70]
[420,412,"C4D Nomination",null,"c4c_nomin","Car Input'!$O$53","Database Reference'!F323",80,"nodestring"]
[421,384,"C5",null,null,null,"Database Reference'!F324",50]
[422,421,"C5A Score",null,null,"Calculations'!$Y$14","Database Reference'!F325",10]
[423,421,"C5A Nomination",null,"c5a_nomin","Car Input'!$L$54","Database Reference'!F326",20,"nodestring"]
[424,421,"C5B Score",null,null,"Calculations'!$Z$14","Database Reference'!F327",30]
[425,421,"C5B Nomination",null,"c5b_nomin","Car Input'!$M$54","Database Reference'!F328",40,"nodestring"]
[426,421,"C5C Score",null,null,"Calculations'!$AA$14","Database Reference'!F329",50]
[427,421,"C5C Nomination",null,"c5b_nomin","Car Input'!$N$54","Database Reference'!F330",60,"nodestring"]
[428,421,"C5D Score",null,null,"Calculations'!$AB$14","Database Reference'!F331",70]
[429,421,"C5D Nomination",null,"c5c_nomin","Car Input'!$O$54","Database Reference'!F332",80,"nodestring"]
[430,384,"C6",null,null,null,"Database Reference'!F333",60]
[431,430,"C6A Score",null,null,"Calculations'!$Y$15","Database Reference'!F334",10]
[432,430,"C6A Nomination",null,"c6a_nomin","Car Input'!$L$55","Database Reference'!F335",20,"nodestring"]
[433,430,"C6B Score",null,null,"Calculations'!$Z$15","Database Reference'!F336",30]
[434,430,"C6B Nomination",null,"c6b_nomin","Car Input'!$M$55","Database Reference'!F337",40,"nodestring"]
[435,430,"C6C Score",null,null,"Calculations'!$AA$15","Database Reference'!F338",50]
[436,430,"C6C Nomination",null,"c6b_nomin","Car Input'!$N$55","Database Reference'!F339",60,"nodestring"]
[437,430,"C6D Score",null,null,"Calculations'!$AB$15","Database Reference'!F340",70]
[438,430,"C6D Nomination",null,"c6c_nomin","Car Input'!$O$55","Database Reference'!F341",80,"nodestring"]
[439,328,"Upper Legform Score",null,null,"Summary'!$G$28","Database Reference'!F342",30]
[440,439,"U1 Score",null,null,"Calculations'!$T$21","Database Reference'!F343",10]
[441,440,"U1A Nomination",null,"u1a_nomin","Car Input'!$L$57","Database Reference'!F344",10,"nodestring"]
[442,440,"U1A Score",null,null,"Calculations'!$W$21","Database Reference'!F345",20]
[443,442,"U1A Femur upper bending moment - Nm",null,null,"Calculations'!$P17","Database Reference'!F346",10]
[444,442,"U1A Femur centre bending moment - Nm",null,null,"Calculations'!$P18","Database Reference'!F347",20]
[445,442,"U1A Femur lower bending moment - Nm",null,null,"Calculations'!$P19","Database Reference'!F348",30]
[446,442,"U1A Femur: sum of forces - kN",null,null,"Calculations'!$P20","Database Reference'!F349",40]
[447,440,"U1B Nomination",null,"u2a_nomin","Car Input'!$M$57","Database Reference'!F350",30,"nodestring"]
[448,440,"U1B Score",null,null,"Calculations'!$X$21","Database Reference'!F351",40]
[449,448,"U1B Femur upper bending moment - Nm",null,null,"Calculations'!$Q17","Database Reference'!F352",10]
[450,448,"U1B Femur centre bending moment - Nm",null,null,"Calculations'!$Q18","Database Reference'!F353",20]
[451,448,"U1B Femur lower bending moment - Nm",null,null,"Calculations'!$Q19","Database Reference'!F354",30]
[452,448,"U1B Femur: sum of forces - kN",null,null,"Calculations'!$Q20","Database Reference'!F355",40]
[453,439,"U2 Score",null,null,"Calculations'!$T$26","Database Reference'!F356",20]
[454,453,"U2A Nomination",null,"u2a_nomin","Car Input'!$L$61","Database Reference'!F357",10,"nodestring"]
[455,453,"U2A Score",null,null,"Calculations'!$W$26","Database Reference'!F358",20]
[456,455,"U2A Femur upper bending moment - Nm",null,null,"Calculations'!$P22","Database Reference'!F359",10]
[457,455,"U2A Femur centre bending moment - Nm",null,null,"Calculations'!$P23","Database Reference'!F360",20]
[458,455,"U2A Femur lower bending moment - Nm",null,null,"Calculations'!$P24","Database Reference'!F361",30]
[459,455,"U2A Femur: sum of forces - kN",null,null,"Calculations'!$P25","Database Reference'!F362",40]
[460,453,"U2B Nomination",null,"u2b_nomin","Car Input'!$M$61","Database Reference'!F363",30,"nodestring"]
[461,453,"U2B Score",null,null,"Calculations'!$X$26","Database Reference'!F364",40]
[462,461,"U2B Femur upper bending moment - Nm",null,null,"Calculations'!$Q22","Database Reference'!F365",10]
[463,461,"U2B Femur centre bending moment - Nm",null,null,"Calculations'!$Q23","Database Reference'!F366",20]
[464,461,"U2B Femur lower bending moment - Nm",null,null,"Calculations'!$Q24","Database Reference'!F367",30]
[465,461,"U2B Femur: sum of forces - kN",null,null,"Calculations'!$Q25","Database Reference'!F368",40]
[466,439,"U3 Score",null,null,"Calculations'!$T$31","Database Reference'!F369",30]
[467,466,"U3A Nomination",null,"u3a_nomin","Car Input'!$L$65","Database Reference'!F370",10,"nodestring"]
[468,466,"U3A Score",null,null,"Calculations'!$W$31","Database Reference'!F371",20]
[469,468,"U3A Femur upper bending moment - Nm",null,null,"Calculations'!$P27","Database Reference'!F372",10]
[470,468,"U3A Femur centre bending moment - Nm",null,null,"Calculations'!$P28","Database Reference'!F373",20]
[471,468,"U3A Femur lower bending moment - Nm",null,null,"Calculations'!$P29","Database Reference'!F374",30]
[472,468,"U3A Femur: sum of forces - kN",null,null,"Calculations'!$P30","Database Reference'!F375",40]
[473,466,"U3B Nomination",null,"u3b_nomin","Car Input'!$M$65","Database Reference'!F376",30,"nodestring"]
[474,466,"U3B Score",null,null,"Calculations'!$X$31","Database Reference'!F377",40]
[475,474,"U3B Femur upper bending moment - Nm",null,null,"Calculations'!$Q27","Database Reference'!F378",10]
[476,474,"U3B Femur centre bending moment - Nm",null,null,"Calculations'!$Q28","Database Reference'!F379",20]
[477,474,"U3B Femur lower bending moment - Nm",null,null,"Calculations'!$Q29","Database Reference'!F380",30]
[478,474,"U3B Femur: sum of forces - kN",null,null,"Calculations'!$Q30","Database Reference'!F381",40]
[479,328,"Legform Score",null,null,"Summary'!$G$30","Database Reference'!F382",40]
[480,479,"L1 Score",null,null,"Calculations'!$T$36","Database Reference'!F383",10]
[481,480,"L1A Nomination",null,"l1a_nomin","Car Input'!$L$70","Database Reference'!F384",10,"nodestring"]
[482,480,"L1A Score",null,null,"Calculations'!$W$36","Database Reference'!F385",20]
[483,482,"L1A Tibia acceleration - g",null,null,"Calculations'!$P33","Database Reference'!F386",10]
[484,482,"L1A Knee shear displacement - mm",null,null,"Calculations'!$P34","Database Reference'!F387",20]
[485,482,"L1A Knee bending angle - deg",null,null,"Calculations'!$P35","Database Reference'!F388",30]
[486,480,"L1B Nomination",null,"l1b_nomin","Car Input'!$M$70","Database Reference'!F389",30,"nodestring"]
[487,480,"L1B Score",null,null,"Calculations'!$X$36","Database Reference'!F390",40]
[488,487,"L1B Tibia acceleration - g",null,null,"Calculations'!$Q33","Database Reference'!F391",10]
[489,487,"L1B Knee shear displacement - mm",null,null,"Calculations'!$Q34","Database Reference'!F392",20]
[490,487,"L1B Knee bending angle - deg",null,null,"Calculations'!$Q35","Database Reference'!F393",30]
[491,479,"L2 Score",null,null,"Calculations'!$T$40","Database Reference'!F394",20]
[492,491,"L2A Nomination",null,"l2a_nomin","Car Input'!$L$73","Database Reference'!F395",10,"nodestring"]
[493,491,"L2A Score",null,null,"Calculations'!$W$40","Database Reference'!F396",20]
[494,493,"L2A Tibia acceleration - g",null,null,"Calculations'!$P37","Database Reference'!F397",10]
[495,493,"L2A Knee shear displacement - mm",null,null,"Calculations'!$P38","Database Reference'!F398",20]
[496,493,"L2A Knee bending angle - deg",null,null,"Calculations'!$P39","Database Reference'!F399",30]
[497,491,"L2B Nomination",null,"l2b_nomin","Car Input'!$M$73","Database Reference'!F400",30,"nodestring"]
[498,491,"L2B Score",null,null,"Calculations'!$X$40","Database Reference'!F401",40]
[499,498,"L2B Tibia acceleration - g",null,null,"Calculations'!$Q37","Database Reference'!F402",10]
[500,498,"L2B Knee shear displacement - mm",null,null,"Calculations'!$Q38","Database Reference'!F403",20]
[501,498,"L2B Knee bending angle - deg",null,null,"Calculations'!$Q39","Database Reference'!F404",30]
[502,479,"L3 Score",null,null,"Calculations'!$T$44","Database Reference'!F405",30]
[503,502,"L3A Nomination",null,"l3a_nomin","Car Input'!$L$76","Database Reference'!F406",10,"nodestring"]
[504,502,"L3A Score",null,null,"Calculations'!$W$44","Database Reference'!F407",20]
[505,504,"L3A Tibia acceleration - g",null,null,"Calculations'!$P41","Database Reference'!F408",10]
[506,504,"L3A Knee shear displacement - mm",null,null,"Calculations'!$P42","Database Reference'!F409",20]
[507,504,"L3A Knee bending angle - deg",null,null,"Calculations'!$P43","Database Reference'!F410",30]
[508,502,"L3B Nomination",null,"l3b_nomin","Car Input'!$M$76","Database Reference'!F411",30,"nodestring"]
[509,502,"L3B Score",null,null,"Calculations'!$X$44","Database Reference'!F412",40]
[510,509,"L3B Tibia acceleration - g",null,null,"Calculations'!$Q41","Database Reference'!F413",10]
[511,509,"L3B Knee shear displacement - mm",null,null,"Calculations'!$Q42","Database Reference'!F414",20]
[512,509,"L3B Knee bending angle - deg",null,null,"Calculations'!$Q43","Database Reference'!F415",30]
[513,514,"ROUNDED ADULT OCCUPANT SCORE",null,null,"Summary!$B$34","Database Reference'!F416",10]
[514,697,"ADULT OCCUPANT STAR RATING",null,null,"Summary!$B$36","Database Reference'!F417",20]
[515,516,"ROUNDED CHILD PROTECTION SCORE",null,null,"Summary'!$G$16","Database Reference'!F418",0]
[516,697,"CHILD PROTECTION STAR RATING","ChildStarRating",null,"Summary!$G$18","Database Reference'!F419",30]
[517,518,"ROUNDED PEDESTRIAN SCORE",null,null,"Summary'!$G$34","Database Reference'!F420",0]
[518,697,"PEDESTRIAN STAR RATING","PedStarRating",null,"Summary!$G$36","Database Reference'!F421",40]
[519,514,"STRIKE THROUGH",null,null,"Summary!$B$38","Database Reference'!F422",10,"booleanvalue"]
[520,331,"A1A HIC",null,null,"Calculations'!$U$3","Database Reference'!F423",20]
[521,333,"A1B HIC",null,null,"Calculations'!$V$3","Database Reference'!F424",20]
[522,335,"A1C HIC",null,null,"Calculations'!$W$3","Database Reference'!F425",20]
[523,337,"A1D HIC",null,null,"Calculations'!$X$3","Database Reference'!F426",20]
[524,340,"A2A HIC",null,null,"Calculations'!$U$4","Database Reference'!F427",20]
[525,342,"A2B HIC",null,null,"Calculations'!$V$4","Database Reference'!F428",20]
[526,344,"A2C HIC",null,null,"Calculations'!$W$4","Database Reference'!F429",20]
[527,346,"A2D HIC",null,null,"Calculations'!$X$4","Database Reference'!F430",20]
[528,349,"A3A HIC",null,null,"Calculations'!$U$5","Database Reference'!F431",20]
[529,351,"A3B HIC",null,null,"Calculations'!$V$5","Database Reference'!F432",20]
[530,353,"A3C HIC",null,null,"Calculations'!$W$5","Database Reference'!F433",20]
[531,355,"A3D HIC",null,null,"Calculations'!$X$5","Database Reference'!F434",20]
[532,358,"A4A HIC",null,null,"Calculations'!$U$6","Database Reference'!F435",20]
[533,360,"A4B HIC",null,null,"Calculations'!$V$6","Database Reference'!F436",20]
[534,362,"A4C HIC",null,null,"Calculations'!$W$6","Database Reference'!F437",20]
[535,364,"A4D HIC",null,null,"Calculations'!$X$6","Database Reference'!F438",20]
[536,367,"A5A HIC",null,null,"Calculations'!$U$7","Database Reference'!F439",20]
[537,369,"A5B HIC",null,null,"Calculations'!$V$7","Database Reference'!F440",20]
[538,371,"A5C HIC",null,null,"Calculations'!$W$7","Database Reference'!F441",20]
[539,373,"A5D HIC",null,null,"Calculations'!$X$7","Database Reference'!F442",20]
[540,376,"A6A HIC",null,null,"Calculations'!$U$8","Database Reference'!F443",20]
[541,378,"A6B HIC",null,null,"Calculations'!$V$8","Database Reference'!F444",20]
[542,380,"A6C HIC",null,null,"Calculations'!$W$8","Database Reference'!F445",20]
[543,382,"A6D HIC",null,null,"Calculations'!$X$8","Database Reference'!F446",20]
[544,586,"MAKE",null,"carmakestring","'Model Details'!$B$2","Database Reference'!F447",0,"nodestring"]
[545,586,"MODEL",null,"carmodelstring","'Model Details'!$B$3","Database Reference'!F448",0,"nodestring"]
[546,586,"Body Type",null,"body","'Model Details'!$B$4","Database Reference'!F449",0,"nodestring"]
[547,586,"Year Tested",null,"testyear","'Model Details'!$B$5","Database Reference'!F450",0,"nodestring"]
[548,586,"Kerb Weight",null,"kerbweight","'Model Details'!$B$6","Database Reference'!F451",0,"nodestring"]
[549,586,"Start VIN",null,"vin","'Model Details'!$B$7","Database Reference'!F452",0,"nodestring"]
[550,587,"Front Comments",null,"commentfront","Comments'!$E$4","Database Reference'!F453",0,"nodestring"]
[551,587,"Side Comments",null,"commentside","Comments'!$E$5","Database Reference'!F454",0,"nodestring"]
[552,587,"Child Comments",null,"commentchild","Comments'!$E$6","Database Reference'!F455",0,"nodestring"]
[553,587,"Pedestrian Comments",null,"commentpedestrian","Comments'!$E$8","Database Reference'!F456",0,"nodestring"]
[554,586,"Model Description",null,"testedmodel","'Model Details'!$B$8","Database Reference'!F457",0,"nodestring"]
[555,386,"C1A HIC",null,null,"Calculations'!$U$10","Database Reference'!F458",0]
[556,388,"C1B HIC",null,null,"Calculations'!$V$10","Database Reference'!F459",20]
[557,390,"C1C HIC",null,null,"Calculations'!$W$10","Database Reference'!F460",20]
[558,392,"C1D HIC",null,null,"Calculations'!$X$10","Database Reference'!F461",20]
[559,395,"C2A HIC",null,null,"Calculations'!$U$11","Database Reference'!F462",20]
[560,397,"C2B HIC",null,null,"Calculations'!$V$11","Database Reference'!F463",20]
[561,399,"C2C HIC",null,null,"Calculations'!$W$11","Database Reference'!F464",20]
[562,401,"C2D HIC",null,null,"Calculations'!$X$11","Database Reference'!F465",20]
[563,404,"C3A HIC",null,null,"Calculations'!$U$12","Database Reference'!F466",20]
[564,406,"C3B HIC",null,null,"Calculations'!$V$12","Database Reference'!F467",20]
[565,408,"C3C HIC",null,null,"Calculations'!$W$12","Database Reference'!F468",20]
[566,410,"C3D HIC",null,null,"Calculations'!$X$12","Database Reference'!F469",20]
[567,413,"C4A HIC",null,null,"Calculations'!$U$13","Database Reference'!F470",20]
[568,415,"C4B HIC",null,null,"Calculations'!$V$13","Database Reference'!F471",20]
[569,417,"C4C HIC",null,null,"Calculations'!$W$13","Database Reference'!F472",20]
[570,419,"C4D HIC",null,null,"Calculations'!$X$13","Database Reference'!F473",20]
[571,422,"C5A HIC",null,null,"Calculations'!$U$14","Database Reference'!F474",20]
[572,424,"C5B HIC",null,null,"Calculations'!$V$14","Database Reference'!F475",20]
[573,426,"C5C HIC",null,null,"Calculations'!$W$14","Database Reference'!F476",20]
[574,428,"C5D HIC",null,null,"Calculations'!$X$14","Database Reference'!F477",20]
[575,431,"C6A HIC",null,null,"Calculations'!$U$15","Database Reference'!F478",20]
[576,433,"C6B HIC",null,null,"Calculations'!$V$15","Database Reference'!F479",20]
[577,435,"C6C HIC",null,null,"Calculations'!$W$15","Database Reference'!F480",20]
[578,437,"C6D HIC",null,null,"Calculations'!$X$15","Database Reference'!F481",20]
[579,586,"NCAP Category",null,"carclassstring","'Model Details'!$B$9","Database Reference'!F482",999,"nodestring"]
[580,583,"NCAP Combined Title",null,"$name",null,"Database Reference'!F483",999,"nodestring"]
[584,583,"Safety equipment",null,null,null,"Database Reference'!F484",10]
[585,584,"Driver frontal airbag",null,"driverairbag","'Safety Equipment'!$B$6","Database Reference'!F485",25,"nodestring"]
[586,583,"Car  details",null,null,null,"Database Reference'!F486",20]
[587,583,"Comments",null,null,null,"Database Reference'!F487",10]
[588,583,"Child Restraints",null,null,null,"Database Reference'!F488",0]
[591,584,"Front seatbelt pretensioners",null,"pretensioner","'Safety Equipment'!$B$2","Database Reference'!F489",5,"nodestring"]
[592,584,"Front seatbelt load limiters",null,"loadlimiter","'Safety Equipment'!$B$3","Database Reference'!F490",10,"nodestring"]
[593,584,"Pass Front airbag",null,"passengerbag","'Safety Equipment'!$B$7","Database Reference'!F491",30,"nodestring"]
[594,584,"Rear seatbelt pretensioners",null,"rearpretensioner","'Safety Equipment'!$B$4","Database Reference'!F492",15,"nodestring"]
[595,584,"Rear seatbelt load limiters",null,"rearloadlimiter","'Safety Equipment'!$B$5","Database Reference'!F493",20,"nodestring"]
[596,584,"Side Thorax Airbag",null,"sideairbagchest","'Safety Equipment'!$B$8","Database Reference'!F494",35,"nodestring"]
[597,584,"Side Head Airbag",null,"sideairbaghead","'Safety Equipment'!$B$9","Database Reference'!F495",40,"nodestring"]
[598,584,"Driver knee airbag",null,"driverkneebag","'Safety Equipment'!$B$10","Database Reference'!F496",45,"nodestring"]
[599,584,"Front Passenger knee airbag",null,"passkneebag","'Safety Equipment'!$B$11","Database Reference'!F497",50,"nodestring"]
[600,584,"Front pretensioner comment",null,"pretensioner_comment","'Safety Equipment'!$C$2","Database Reference'!F498",6,"nodestring"]
[601,584,"Front load limiter comment",null,"loadlimiter_comment","'Safety Equipment'!$C$3","Database Reference'!F499",11,"nodestring"]
[602,584,"Rear pretensioner comment",null,"rearpretensioner_comment","'Safety Equipment'!$C$4","Database Reference'!F500",16,"nodestring"]
[603,584,"Rear load limiter comment",null,"rearloadlimiter_comment","'Safety Equipment'!$C$5","Database Reference'!F501",21,"nodestring"]
[604,584,"Driver frontal airbag comment",null,"driverairbag_comment","'Safety Equipment'!$C$6","Database Reference'!F502",26,"nodestring"]
[605,584,"Passenger airbag comment",null,"passengerbag_comment","'Safety Equipment'!$C$7","Database Reference'!F503",31,"nodestring"]
[606,584,"Side thorax airbag comment",null,"sideairbagchest_comment","'Safety Equipment'!$C$8","Database Reference'!F504",36,"nodestring"]
[607,584,"Side Head Airbag Comment",null,"sideairbaghead_comment","'Safety Equipment'!$C$9","Database Reference'!F505",41,"nodestring"]
[608,584,"driver knee airbag comment",null,"driverkneebag_comment","'Safety Equipment'!$C$10","Database Reference'!F506",46,"nodestring"]
[609,584,"Passenger Knee Airbag Comment",null,"passkneebag_comment","'Safety Equipment'!$C$11","Database Reference'!F507",51,"nodestring"]
[582,183,"PASSENGER FOOT AND ANKLE SCORE",null,null,null,"Database Reference'!F508",30]
[583,null,"TEXT VALUES",null,null,null,"Database Reference'!F509",15]
[589,588,"18month restraint",null,"p15","'Safety Equipment'!$H$2","Database Reference'!F510",0,"nodestring"]
[590,588,"3years restraint",null,"p3","'Safety Equipment'!$H$3","Database Reference'!F511",0,"nodestring"]
[610,null,"OVERALL STAR RATING",null,null,null,"Database Reference'!F512",10]
[611,610,"Weighted Adult Normalised Percentage",null,null,null,"Database Reference'!F513",0]
[612,610,"Weighted Child Normalised Percentage",null,null,null,"Database Reference'!F514",0]
[613,610,"Weighted Pedestrian Normalised Percentage",null,null,null,"Database Reference'!F515",0]
[614,610,"Weighted Safety Assist Normalised Percentage",null,null,null,"Database Reference'!F516",0]
[615,614,"Safety Assist unrounded score",null,null,null,"Database Reference'!F517",0]
[616,615,"ESC unrounded score",null,null,null,"Database Reference'!F518",0]
[617,616,"ESC raw scored",null,null,null,"Database Reference'!F519",0]
[618,616,"ESC fitment multiplier",null,null,null,"Database Reference'!F520",0]
[619,615,"SLD unrounded score",null,null,null,"Database Reference'!F521",0]
[620,619,"SLD raw score",null,null,null,"Database Reference'!F522",0]
[621,619,"SLD fitment multiplier",null,null,null,"Database Reference'!F523",0]
[622,615,"SBR unrounded score",null,null,null,"Database Reference'!F524",0]
[623,622,"SBR raw score",null,null,null,"Database Reference'!F525",0]
[624,622,"SBR fitment multiplier",null,null,null,"Database Reference'!F526",0]
[625,100,"WHIPLASH SCALED SCORE",null,null,null,"Database Reference'!F527",0]
[626,625,"Whiplash unscaled score",null,null,null,"Database Reference'!F528",0]
[627,626,"High Severity capped score",null,null,null,"Database Reference'!F529",0]
[628,626,"Medium Severity capped score",null,null,null,"Database Reference'!F530",0]
[629,626,"Low Severity capped score",null,null,null,"Database Reference'!F531",0]
[630,626,"Geometry Score",null,null,null,"Database Reference'!F532",0]
[631,626,"Seatback modifier",null,null,null,"Database Reference'!F533",0]
[632,626,"Usability modifier",null,null,null,"Database Reference'!F534",0]
[633,703,"HiSeverity NIC points",null,null,null,"Database Reference'!F535",0]
[698,583,"Whiplash Text","Text values for whiplash",null,null,"Database Reference'!F536",0]
[699,583,"Whiplash Text",null,null,null,"Database Reference'!F537",0]
[700,699,"Seat Type",null,"SeatDescription",null,"Database Reference'!F538",10,"nodestring"]
[701,699,"Restraint Type",null,"RestraintType",null,"Database Reference'!F539",20,"nodestring"]
[702,699,"Whiplash Comments",null,"WhiplashComments",null,"Database Reference'!F540",0,"nodestring"]
[703,627,"High Severity Uncapped Score",null,null,null,"Database Reference'!F541",0]
[704,627,"High Severity Capped",null,"HiSeverityCapped",null,"Database Reference'!F542",0,"nodestring"]
[705,628,"Medium Severity Uncapped Score",null,null,null,"Database Reference'!F543",0]
[706,628,"Medium Severity Capped",null,"MidSeverityCapped",null,"Database Reference'!F544",0,"nodestring"]
[707,629,"Low Severity Uncapped Score",null,null,null,"Database Reference'!F545",0]
[708,629,"Low Severity Capping",null,"LoSeverityCapped",null,"Database Reference'!F546",0,"nodestring"]
[709,630,"Average Backset",null,null,null,"Database Reference'!F547",0]
[710,630,"Average Height",null,null,null,"Database Reference'!F548",0]
[711,626,"Artefact loading",null,null,null,"Database Reference'!F549",0]
[712,625,"Scaled Scores",null,null,null,"Database Reference'!F550",0]
[713,712,"Hi Sev Capped Scaled",null,null,null,"Database Reference'!F551",0]
[714,712,"Mid Sev Capped Scaled",null,null,null,"Database Reference'!F552",0]
[715,712,"Lo Sev Capped Scaled",null,null,null,"Database Reference'!F553",0]
[716,712,"Geometry Scaled",null,null,null,"Database Reference'!F554",0]
[717,712,"Seatback Mod Scaled",null,null,null,"Database Reference'!F555",0]
[718,712,"Usability Mod Scaled",null,null,null,"Database Reference'!F556",0]
[719,712,"Artefact Scaled",null,null,null,"Database Reference'!F557",0]
[720,703,"Hi Severity Seat Opening",null,null,null,"Database Reference'!F558",0]
[721,705,"Mid Severity Seat Opening",null,null,null,"Database Reference'!F559",0]
[722,707,"Lo Severity Seat Opening",null,null,null,"Database Reference'!F560",0]
[723,587,"Safety Assist Comments",null,"safety_assist_comments",null,"Database Reference'!F561",0,"nodestring"]
[724,587,"Adult Comments",null,"adult_comments",null,"Database Reference'!F562",0,"nodestring"]
[725,589,"18m CRS Group",null,"18m_group",null,"Database Reference'!F563",0,"nodestring"]
[726,590,"3y CRS group",null,"3yr_group",null,"Database Reference'!F564",0,"nodestring"]
[727,589,"18m CRS fix",null,"18m_CRS_fix",null,"Database Reference'!F565",0,"nodestring"]
[728,590,"3y CRS fix",null,"3yr_CRS_fix",null,"Database Reference'!F566",0,"nodestring"]
[634,703,"HiSeverity Nkm points",null,null,null,"Database Reference'!F567",0]
[635,703,"HiSeverity Rebound Veclocity points",null,null,null,"Database Reference'!F568",0]
[636,703,"HiSeverity Fx points",null,null,null,"Database Reference'!F569",0]
[637,703,"HiSeverity Fz points",null,null,null,"Database Reference'!F570",0]
[638,703,"HiSeverity T1 acceleration points",null,null,null,"Database Reference'!F571",0]
[639,703,"HiSeverity THRC points",null,null,null,"Database Reference'!F572",0]
[640,705,"MidSeverity NIC points",null,null,null,"Database Reference'!F573",0]
[641,705,"MidSeverity Nkm points",null,null,null,"Database Reference'!F574",0]
[642,705,"MidSeverity Rebound velocity points",null,null,null,"Database Reference'!F575",0]
[643,705,"MidSeverity Fx points",null,null,null,"Database Reference'!F576",0]
[644,705,"MidSeverity Fz points",null,null,null,"Database Reference'!F577",0]
[645,705,"MidSeverity T1 acceleration points",null,null,null,"Database Reference'!F578",0]
[646,705,"MidSeverity THRC points",null,null,null,"Database Reference'!F579",0]
[647,707,"LoSeverity NIC points",null,null,null,"Database Reference'!F580",0]
[648,707,"LoSeverity Nkm points",null,null,null,"Database Reference'!F581",0]
[649,707,"LoSeverity rebound velocity points",null,null,null,"Database Reference'!F582",0]
[650,707,"LoSeverity Fx points",null,null,null,"Database Reference'!F583",0]
[651,707,"LoSeverity Fz points",null,null,null,"Database Reference'!F584",0]
[652,707,"LoSeverity T1 acceleration points",null,null,null,"Database Reference'!F585",0]
[653,707,"LoSeverity THRC points",null,null,null,"Database Reference'!F586",0]
[654,633,"HiSeverity NIC",null,null,null,"Database Reference'!F587",0]
[655,634,"HiSeverity Nkm",null,null,null,"Database Reference'!F588",0]
[656,635,"HiSeverity rebound velocity",null,null,null,"Database Reference'!F589",0]
[657,636,"HiSeverity Fx",null,null,null,"Database Reference'!F590",0]
[658,637,"HiSeverity Fz",null,null,null,"Database Reference'!F591",0]
[659,638,"HiSeverity T1 acceleration",null,null,null,"Database Reference'!F592",0]
[660,639,"HiSeverity THRC",null,null,null,"Database Reference'!F593",0]
[661,640,"MidSeverity NIC",null,null,null,"Database Reference'!F594",0]
[662,641,"MidSeverity Nkm",null,null,null,"Database Reference'!F595",0]
[663,642,"MidSeverity Rebound velocity",null,null,null,"Database Reference'!F596",0]
[664,643,"MidSeverity Fx",null,null,null,"Database Reference'!F597",0]
[665,644,"MidSeverity Fz",null,null,null,"Database Reference'!F598",0]
[666,645,"MidSeverity T1 acceleration",null,null,null,"Database Reference'!F599",0]
[667,646,"MidSeverity THRC",null,null,null,"Database Reference'!F600",0]
[668,647,"LoSeverity NIC",null,null,null,"Database Reference'!F601",0]
[669,648,"LoSeverity Nkm",null,null,null,"Database Reference'!F602",0]
[670,649,"LoSeverity rebound velocity",null,null,null,"Database Reference'!F603",0]
[671,650,"LoSeverity Fx",null,null,null,"Database Reference'!F604",0]
[672,651,"LoSeverity Fz",null,null,null,"Database Reference'!F605",0]
[673,652,"LoSeverity T1 acceleration",null,null,null,"Database Reference'!F606",0]
[674,653,"LoSeverity THRC",null,null,null,"Database Reference'!F607",0]
[675,633,"HiSeverity NIC capped","",null,"","Database Reference'!F608",0]
[676,634,"HiSeverity Nkm capped","",null,"","Database Reference'!F609",0]
[677,635,"HiSeverity rebound velocity capped","",null,"","Database Reference'!F610",0]
[678,636,"HiSeverity Fx capped","",null,"","Database Reference'!F611",0]
[679,637,"HiSeverity Fz capped","",null,"","Database Reference'!F612",0]
[680,638,"HiSeverity T1 acceleration capped","",null,"","Database Reference'!F613",0]
[681,639,"HiSeverity THRC capped","",null,"","Database Reference'!F614",0]
[682,640,"MidSeverity NIC capped","",null,"","Database Reference'!F615",0]
[683,641,"MidSeverity Nkm capped","",null,"","Database Reference'!F616",0]
[684,642,"MidSeverity Rebound velocity capped","",null,"","Database Reference'!F617",0]
[685,643,"MidSeverity Fx capped","",null,"","Database Reference'!F618",0]
[686,644,"MidSeverity Fz capped","",null,"","Database Reference'!F619",0]
[687,645,"MidSeverity T1 acceleration capped","",null,"","Database Reference'!F620",0]
[688,646,"MidSeverity THRC capped","",null,"","Database Reference'!F621",0]
[689,647,"LoSeverity NIC capped","",null,"","Database Reference'!F622",0]
[690,648,"LoSeverity Nkm capped","",null,"","Database Reference'!F623",0]
[691,649,"LoSeverity rebound velocity capped","",null,"","Database Reference'!F624",0]
[692,650,"LoSeverity Fx capped","",null,"","Database Reference'!F625",0]
[693,651,"LoSeverity Fz capped","",null,"","Database Reference'!F626",0]
[694,652,"LoSeverity T1 acceleration capped","",null,"","Database Reference'!F627",0]
[695,653,"LoSeverity THRC capped","",null,"","Database Reference'!F628",0]
[696,610,"Total weighted percentage",null,null,null,"Database Reference'!F629",0]
[697,null,"Old values",null,null,null,"Database Reference'!F630",0]
[729,612,"Seat Number",null,null,null,"Database Reference'!F631"]
[730,589,"18m CRS facing",null,"18m_CRS_facing",null,"Database Reference'!F632",null,"nodestring"]
[731,590,"3y CRS facing",null,"3y_CRS_facing",null,"Database Reference'!F633",null,"nodestring"]
[732,584,"SLD Description",null,"SLD_Description",null,"Database Reference'!F634",null,"nodestring"]
[733,584,"SLD Fitment",null,"SLD_Fit",null,"Database Reference'!F635",null,"nodestring"]
[734,584,"ESC Fitment",null,"ESC_Fit",null,"Database Reference'!F636",null,"nodestring"]
[735,584,"SBR Driver",null,"SBR_Driver",null,"Database Reference'!F637",null,"nodestring"]
[736,584,"SBR Passenger",null,"SBR_Passenger",null,"Database Reference'!F638",null,"nodestring"]
[737,584,"SBR Rear",null,"SBR_Rear",null,"Database Reference'!F639",null,"nodestring"]
[738,586,"Reference Mass",null,null,null,"Database Reference'!F640"]
[739,328,"Headform Score",null,null,null,"Database Reference'!F641"]
[740,100,"Scaled Side Score",null,null,null,"Database Reference'!F642"]
[741,100,"Scaled Pole Score",null,null,null,"Database Reference'!F643"]
[742,240,"Abdomen Sum Forces",null,null,null,"Database Reference'!F644"]
[743,697,"SHOW POLE TEST STAR","","","","Database Reference'!F645",0,""]
[744,583,"Driver airbag contact","","Dr_airbag_contact","","Database Reference'!F646",null,"nodestring"]
[745,583,"Passenger airbag contact","","Pass_airbag_contact","","Database Reference'!F647",null,"nodestring"]
[746,583,"St Wheel rearward","","St_Wheel_Rear","","Database Reference'!F648",null,"nodestring"]
[747,583,"St Wheel upward","","St_Wheel_Up","","Database Reference'!F649",null,"nodestring"]
[748,583,"St Wheel lateral","","St_Wheel_Lat","","Database Reference'!F650",null,"nodestring"]
[749,583,"Contact with wheel","","St_Wheel_contact","","Database Reference'!F651",null,"nodestring"]
[750,583,"Screen Pillar rearward","","A_Pillar_Rear","","Database Reference'!F652",null,"nodestring"]
[751,583,"Pass Compartment Stability","","Shell_Stability","","Database Reference'!F653",null,"nodestring"]
[752,583,"Stiff Structures Present","","Stiff_Structures","","Database Reference'!F654",null,"nodestring"]
[753,583,"Concentrated knee loading","","Conc_Loading","","Database Reference'!F655",null,"nodestring"]
[754,583,"Rearward pedal displacement","","Pedal_Rear","","Database Reference'!F656",null,"nodestring"]
[755,583,"Upward pedal displacement","","Pedal_Up","","Database Reference'!F657",null,"nodestring"]
[756,583,"Footwell rupture","","Footwell_Rupture","","Database Reference'!F658",null,"nodestring"]
[757,583,"18m restraint used","","18m_full_restraint","","Database Reference'!F659",null,"nodestring"]
[758,583,"3y restraint used","","3y_full_restraint","","Database Reference'!F660",null,"nodestring"]
[759,583,"Airbag warning label","","Airbag_Warning","","Database Reference'!F661",null,"nodestring"]
[760,583,"18m head forward","","18m_head_movement","","Database Reference'!F662",null,"nodestring"]
[761,583,"3y head forward","","3y_head_movement","","Database Reference'!F663",null,"nodestring"]
[762,583,"18m chest load","","18m_chest_load","","Database Reference'!F664",null,"nodestring"]
[763,583,"3y chest load","","3y_chest_load","","Database Reference'!F665",null,"nodestring"]
[764,583,"frontal 18m head acc","","fr_18m_headacc","","Database Reference'!F666",null,"nodestring"]
[765,583,"frontal 3y head acc","","Fr_3y_headacc","","Database Reference'!F667",null,"nodestring"]
[766,583,"side 18m containment","","side_18m_contain","","Database Reference'!F668",null,"nodestring"]
[767,583,"side 3 y containment","","side_3y_contain","","Database Reference'!F669",null,"nodestring"]
[768,583,"side 18m head acc","","side_18m_headacc","","Database Reference'!F670",null,"nodestring"]
[769,583,"side 3 y head acc","","side_3y_headacc","","Database Reference'!F671",null,"nodestring"]
[770,584,"Side Airbag Pelvis",null,"sideairbagpelvis",null,"Database Reference'!F672",null,"nodestring"]
[771,584,"Side Airbag Pelvis Comment",null,"sideairbagpelvis_comment",null,"Database Reference'!F673",null,"nodestring"]
[772,586,"Reference_Mass",null,"reference_mass",null,"Database Reference'!F674",null,"nodestring"]
[773,586,"Car Make Code",null,"carmake",null,"Database Reference'!F675",null,"nodestring"]
[774,586,"Car Model Code",null,"carmodel",null,"Database Reference'!F676",null,"nodestring"]
[775,586,"Car Class",null,"carclass",null,"Database Reference'!F677",null,"nodestring"]
[776,586,"Car Category",null,"carcategory",null,"Database Reference'!F678",null,"nodestring"]
[777,442,"U1A BLE height",null,null,null,"Database Reference'!F679"]
[778,442,"U1A Bumper Lead",null,null,null,"Database Reference'!F680"]
[779,442,"U1A Energy",null,null,null,"Database Reference'!F681"]
[780,448,"U1B BLE height",null,null,null,"Database Reference'!F682"]
[781,448,"U1B Bumper Lead",null,null,null,"Database Reference'!F683"]
[782,448,"U1B Energy",null,null,null,"Database Reference'!F684"]
[783,455,"U2A BLE height",null,null,null,"Database Reference'!F685"]
[784,455,"U2A Bumper Lead",null,null,null,"Database Reference'!F686"]
[785,455,"U2A Energy",null,null,null,"Database Reference'!F687"]
[786,461,"U2B BLE height",null,null,null,"Database Reference'!F688"]
[787,461,"U2B Bumper Lead",null,null,null,"Database Reference'!F689"]
[788,461,"U2B Energy",null,null,null,"Database Reference'!F690"]
[789,468,"U3A BLE height",null,null,null,"Database Reference'!F691"]
[790,468,"U3A Bumper Lead",null,null,null,"Database Reference'!F692"]
[791,468,"U3A Energy",null,null,null,"Database Reference'!F693"]
[792,474,"U3B BLE height",null,null,null,"Database Reference'!F694"]
[793,474,"U3B Bumper Lead",null,null,null,"Database Reference'!F695"]
[794,474,"U3B Energy",null,null,null,"Database Reference'!F696"]
[795,584,"ESC Fitted",null,"esc_onboard",null,"Database Reference'!F697",null,"nodestring"]
[796,584,"SLD Fitted",null,"sld_onboard",null,"Database Reference'!F698",null,"nodestring"]
[797,584,"SBR Fitted",null,"sbr_onboard",null,"Database Reference'!F699",null,"nodestring"]
[798,584,"ESC comments",null,"esc_comments",null,"Database Reference'!F700",null,"nodestring"]
[799,584,"SLD comments",null,"sld_comments",null,"Database Reference'!F701",null,"nodestring"]
[800,584,"SBR comments",null,"sbr_comments",null,"Database Reference'!F702",null,"nodestring"]
[801,622,"Driver SBR Points",null,null,null,"Database Reference'!F703"]
[802,622,"Pass SBR Points",null,null,null,"Database Reference'!F704"]
[803,622,"Rear SBR Points",null,null,null,"Database Reference'!F705"]
[804,584,"ESC Test Result",null,"ESC_Pass",null,"Database Reference'!F706",null,"nodestring"]
[805,584,"SLD Test Result",null,"SLD_Pass",null,"Database Reference'!F707",null,"nodestring"]
[806,584,"Dr_SBR Test Result",null,"Dr_SBR_Pass",null,"Database Reference'!F708",null,"nodestring"]
[807,584,"Pass_SBR Test Result",null,"Pass_SBR_Pass",null,"Database Reference'!F709",null,"nodestring"]
[808,584,"Rear_SBR Test Result",null,"Rear_SBR_Pass",null,"Database Reference'!F710",null,"nodestring"]
[809,439,"Tall_Bumper_Score",null,null,null,"Database Reference'!F711"]
[810,439,"Tall L1 Score",null,null,null,"Database Reference'!F712"]
[811,439,"Tall L1A Nomination",null,"tall_l1a_nom",null,"Database Reference'!F713",null,"nodestring"]
[812,439,"Tall L1A Score",null,null,null,"Database Reference'!F714"]
[813,439,"Tall L1A Femur upper bending moment - Nm",null,null,null,"Database Reference'!F715"]
[814,439,"Tall L1A Femur centre bending moment - Nm",null,null,null,"Database Reference'!F716"]
[815,439,"Tall L1A Femur lower bending moment - Nm",null,null,null,"Database Reference'!F717"]
[816,439,"Tall L1A Femur: sum of forces - kN",null,null,null,"Database Reference'!F718"]
[817,439,"Tall L1B Nomination",null,"tall_l1b_nom",null,"Database Reference'!F719",null,"nodestring"]
[818,439,"Tall L1B Score",null,null,null,"Database Reference'!F720"]
[819,439,"Tall L1B Femur upper bending moment - Nm",null,null,null,"Database Reference'!F721"]
[820,439,"Tall L1B Femur centre bending moment - Nm",null,null,null,"Database Reference'!F722"]
[821,439,"Tall L1B Femur lower bending moment - Nm",null,null,null,"Database Reference'!F723"]
[822,439,"Tall L1B Femur: sum of forces - kN",null,null,null,"Database Reference'!F724"]
[823,439,"Tall L2 Score",null,null,null,"Database Reference'!F725"]
[824,439,"Tall L2A Nomination",null,"tall_l2a_nom",null,"Database Reference'!F726",null,"nodestring"]
[825,439,"Tall L2A Score",null,null,null,"Database Reference'!F727"]
[826,439,"Tall L2A Femur upper bending moment - Nm",null,null,null,"Database Reference'!F728"]
[827,439,"Tall L2A Femur centre bending moment - Nm",null,null,null,"Database Reference'!F729"]
[828,439,"Tall L2A Femur lower bending moment - Nm",null,null,null,"Database Reference'!F730"]
[829,439,"Tall L2A Femur: sum of forces - kN",null,null,null,"Database Reference'!F731"]
[830,439,"Tall L2B Nomination",null,"tall_l2b_nom",null,"Database Reference'!F732",null,"nodestring"]
[831,439,"Tall L2B Score",null,null,null,"Database Reference'!F733"]
[832,439,"Tall L2B Femur upper bending moment - Nm",null,null,null,"Database Reference'!F734"]
[833,439,"Tall L2B Femur centre bending moment - Nm",null,null,null,"Database Reference'!F735"]
[834,439,"Tall L2B Femur lower bending moment - Nm",null,null,null,"Database Reference'!F736"]
[835,439,"Tall L2B Femur: sum of forces - kN",null,null,null,"Database Reference'!F737"]
[836,439,"Tall L3 Score",null,null,null,"Database Reference'!F738"]
[837,439,"Tall L3A Nomination",null,"tall_l3a_nom",null,"Database Reference'!F739",null,"nodestring"]
[838,439,"Tall L3A Score",null,null,null,"Database Reference'!F740"]
[839,439,"Tall L3A Femur upper bending moment - Nm",null,null,null,"Database Reference'!F741"]
[840,439,"Tall L3A Femur centre bending moment - Nm",null,null,null,"Database Reference'!F742"]
[841,439,"Tall L3A Femur lower bending moment - Nm",null,null,null,"Database Reference'!F743"]
[842,439,"Tall L3A Femur: sum of forces - kN",null,null,null,"Database Reference'!F744"]
[843,439,"Tall L3B Nomination",null,"tall_l3b_nom",null,"Database Reference'!F745",null,"nodestring"]
[844,439,"Tall L3B Score",null,null,null,"Database Reference'!F746"]
[845,439,"Tall L3B Femur upper bending moment - Nm",null,null,null,"Database Reference'!F747"]
[846,439,"Tall L3B Femur centre bending moment - Nm",null,null,null,"Database Reference'!F748"]
[847,439,"Tall L3B Femur lower bending moment - Nm",null,null,null,"Database Reference'!F749"]
[848,439,"Tall L3B Femur: sum of forces - kN",null,null,null,"Database Reference'!F750"]
[849,584,"SLD Test Performed",null,"sld_test_performed",null,"Database Reference'!F751",null,"nodestring"]
[850,584,"ESC Test Performed",null,"esc_test_performed",null,"Database Reference'!F752",null,"nodestring"]
[851,617,"ESC Test Mass",null,null,null,"Database Reference'!F753"]
[852,617,"ESC Test Temp",null,null,null,"Database Reference'!F754"]
[853,617,"ESC Wind Speed",null,null,null,"Database Reference'!F755"]
[854,617,"COS100SAngle",null,null,null,"Database Reference'!F756"]
[855,617,"COS100Turn",null,"cos100_turn",null,"Database Reference'!F757",null,"nodestring"]
[856,617,"COS100PkYawVel",null,null,null,"Database Reference'!F758"]
[857,617,"COS100_100YawVel",null,null,null,"Database Reference'!F759"]
[858,617,"COS100_175YawVel",null,null,null,"Database Reference'!F760"]
[859,617,"COS100_BOSValid",null,"cos100_bosvalid",null,"Database Reference'!F761",null,"nodestring"]
[860,617,"COS100_LatDisp",null,null,null,"Database Reference'!F762"]
[861,617,"COS100_YRR",null,null,null,"Database Reference'!F763"]
[862,617,"COS175SAngle",null,null,null,"Database Reference'!F764"]
[863,617,"COS175Turn",null,"cos175_turn",null,"Database Reference'!F765",null,"nodestring"]
[864,617,"COS175PkYawVel",null,null,null,"Database Reference'!F766"]
[865,617,"COS175_100YawVel",null,null,null,"Database Reference'!F767"]
[866,617,"COS175_175YawVel",null,null,null,"Database Reference'!F768"]
[867,617,"COS175_BOSValid",null,"cos175_bosvalid",null,"Database Reference'!F769",null,"nodestring"]
[868,617,"COS175_LatDisp",null,null,null,"Database Reference'!F770"]
[869,617,"COS175_YRR",null,null,null,"Database Reference'!F771"]
[870,617,"BOS107SAngle",null,null,null,"Database Reference'!F772"]
[871,617,"BOS107Turn",null,"bos107_turn",null,"Database Reference'!F773",null,"nodestring"]
[872,617,"BOS107PkYawVel",null,null,null,"Database Reference'!F774"]
[873,617,"BOS107_100YawVel",null,null,null,"Database Reference'!F775"]
[874,617,"BOS107_175YawVel",null,null,null,"Database Reference'!F776"]
[875,617,"BOS107_BOSValid",null,"bos107_bosvalid",null,"Database Reference'!F777",null,"nodestring"]
[876,617,"BOS107_LatDisp",null,null,null,"Database Reference'!F778"]
[877,617,"SSF",null,null,null,"Database Reference'!F779"]
[878,617,"Outriggers",null,"outriggers",null,"Database Reference'!F780",null,"nodestring"]
[879,617,"COS100_Pass",null,"cos100_pass",null,"Database Reference'!F781",null,"nodestring"]
[880,617,"COS175_Pass",null,"cos175_pass",null,"Database Reference'!F782",null,"nodestring"]
[881,617,"BOS107_Pass",null,"bos107_pass",null,"Database Reference'!F783",null,"nodestring"]
[882,617,"ESC_A_Angle",null,null,null,"Database Reference'!F784"]
[883,617,"ESC_Track",null,"esc_track",null,"Database Reference'!F785",null,"nodestring"]
[884,617,"ESC_Name",null,"ESC_Name",null,"Database Reference'!F786",null,"nodestring"]
[885,584,"sbr_test_performed",null,"sbr_test_performed",null,"Database Reference'!F787",null,"nodestring"]
[886,617,"ESC_Switch",null,"ESC_Switch",null,"Database Reference'!F788",null,"nodestring"]
[887,294,"TP1_R1_C",null,"TP1_R1_C",null,"Database Reference'!F789"]
[888,294,"TP1_R1_P",null,"TP1_R1_P",null,"Database Reference'!F790"]
[889,294,"TP1_R2_D",null,"TP1_R2_D",null,"Database Reference'!F791"]
[890,294,"TP1_R2_C",null,"TP1_R2_C",null,"Database Reference'!F792"]
[891,294,"TP1_R2_P",null,"TP1_R2_P",null,"Database Reference'!F793"]
[892,294,"TP1_R3_D",null,"TP1_R3_D",null,"Database Reference'!F794"]
[893,294,"TP1_R3_C",null,"TP1_R3_C",null,"Database Reference'!F795"]
[894,294,"TP1_R3_P",null,"TP1_R3_P",null,"Database Reference'!F796"]
[895,294,"TP2_R1_C",null,"TP2_R1_C",null,"Database Reference'!F797"]
[896,294,"TP2_R1_P",null,"TP2_R1_P",null,"Database Reference'!F798"]
[897,294,"TP2_R2_D",null,"TP2_R2_D",null,"Database Reference'!F799"]
[898,294,"TP2_R2_C",null,"TP2_R2_C",null,"Database Reference'!F800"]
[899,294,"TP2_R2_P",null,"TP2_R2_P",null,"Database Reference'!F801"]
[900,294,"TP2_R3_D",null,"TP2_R3_D",null,"Database Reference'!F802"]
[901,294,"TP2_R3_C",null,"TP2_R3_C",null,"Database Reference'!F803"]
[902,294,"TP2_R3_P",null,"TP2_R3_P",null,"Database Reference'!F804"]
[903,294,"TP3_R1_C",null,"TP3_R1_C",null,"Database Reference'!F805"]
[904,294,"TP3_R1_P",null,"TP3_R1_P",null,"Database Reference'!F806"]
[905,294,"TP3_R2_D",null,"TP3_R2_D",null,"Database Reference'!F807"]
[906,294,"TP3_R2_C",null,"TP3_R2_C",null,"Database Reference'!F808"]
[907,294,"TP3_R2_P",null,"TP3_R2_P",null,"Database Reference'!F809"]
[908,294,"TP3_R3_D",null,"TP3_R3_D",null,"Database Reference'!F810"]
[909,294,"TP3_R3_C",null,"TP3_R3_C",null,"Database Reference'!F811"]
[910,294,"TP3_R3_P",null,"TP3_R3_P",null,"Database Reference'!F812"]
[911,294,"TP4_R1_C",null,"TP4_R1_C",null,"Database Reference'!F813"]
[912,294,"TP4_R1_P",null,"TP4_R1_P",null,"Database Reference'!F814"]
[913,294,"TP4_R2_D",null,"TP4_R2_D",null,"Database Reference'!F815"]
[914,294,"TP4_R2_C",null,"TP4_R2_C",null,"Database Reference'!F816"]
[915,294,"TP4_R2_P",null,"TP4_R2_P",null,"Database Reference'!F817"]
[916,294,"TP4_R3_D",null,"TP4_R3_D",null,"Database Reference'!F818"]
[917,294,"TP4_R3_C",null,"TP4_R3_C",null,"Database Reference'!F819"]
[918,294,"TP4_R3_P",null,"TP4_R3_P",null,"Database Reference'!F820"]
[919,294,"TP5_R1_C",null,"TP5_R1_C",null,"Database Reference'!F821"]
[920,294,"TP5_R1_P",null,"TP5_R1_P",null,"Database Reference'!F822"]
[921,294,"TP5_R2_D",null,"TP5_R2_D",null,"Database Reference'!F823"]
[922,294,"TP5_R2_C",null,"TP5_R2_C",null,"Database Reference'!F824"]
[923,294,"TP5_R2_P",null,"TP5_R2_P",null,"Database Reference'!F825"]
[924,294,"TP5_R3_D",null,"TP5_R3_D",null,"Database Reference'!F826"]
[925,294,"TP5_R3_C",null,"TP5_R3_C",null,"Database Reference'!F827"]
[926,294,"TP5_R3_P",null,"TP5_R3_P",null,"Database Reference'!F828"]
[927,294,"TP6_R1_C",null,"TP6_R1_C",null,"Database Reference'!F829"]
[928,294,"TP6_R1_P",null,"TP6_R1_P",null,"Database Reference'!F830"]
[929,294,"TP6_R2_D",null,"TP6_R2_D",null,"Database Reference'!F831"]
[930,294,"TP6_R2_C",null,"TP6_R2_C",null,"Database Reference'!F832"]
[931,294,"TP6_R2_P",null,"TP6_R2_P",null,"Database Reference'!F833"]
[932,294,"TP6_R3_D",null,"TP6_R3_D",null,"Database Reference'!F834"]
[933,294,"TP6_R3_C",null,"TP6_R3_C",null,"Database Reference'!F835"]
[934,294,"TP6_R3_P",null,"TP6_R3_P",null,"Database Reference'!F836"]
[935,294,"TP7_R1_C",null,"TP7_R1_C",null,"Database Reference'!F837"]
[936,294,"TP7_R1_P",null,"TP7_R1_P",null,"Database Reference'!F838"]
[937,294,"TP7_R2_D",null,"TP7_R2_D",null,"Database Reference'!F839"]
[938,294,"TP7_R2_C",null,"TP7_R2_C",null,"Database Reference'!F840"]
[939,294,"TP7_R2_P",null,"TP7_R2_P",null,"Database Reference'!F841"]
[940,294,"TP7_R3_D",null,"TP7_R3_D",null,"Database Reference'!F842"]
[941,294,"TP7_R3_C",null,"TP7_R3_C",null,"Database Reference'!F843"]
[942,294,"TP7_R3_P",null,"TP7_R3_P",null,"Database Reference'!F844"]
[943,294,"TP8_R1_C",null,"TP8_R1_C",null,"Database Reference'!F845"]
[944,294,"TP8_R1_P",null,"TP8_R1_P",null,"Database Reference'!F846"]
[945,294,"TP8_R2_D",null,"TP8_R2_D",null,"Database Reference'!F847"]
[946,294,"TP8_R2_C",null,"TP8_R2_C",null,"Database Reference'!F848"]
[947,294,"TP8_R2_P",null,"TP8_R2_P",null,"Database Reference'!F849"]
[948,294,"TP8_R3_D",null,"TP8_R3_D",null,"Database Reference'!F850"]
[949,294,"TP8_R3_C",null,"TP8_R3_C",null,"Database Reference'!F851"]
[950,294,"TP8_R3_P",null,"TP8_R3_P",null,"Database Reference'!F852"]
[951,294,"TP9_R1_C",null,"TP9_R1_C",null,"Database Reference'!F853"]
[952,294,"TP9_R1_P",null,"TP9_R1_P",null,"Database Reference'!F854"]
[953,294,"TP9_R2_D",null,"TP9_R2_D",null,"Database Reference'!F855"]
[954,294,"TP9_R2_C",null,"TP9_R2_C",null,"Database Reference'!F856"]
[955,294,"TP9_R2_P",null,"TP9_R2_P",null,"Database Reference'!F857"]
[956,294,"TP9_R3_D",null,"TP9_R3_D",null,"Database Reference'!F858"]
[957,294,"TP9_R3_C",null,"TP9_R3_C",null,"Database Reference'!F859"]
[958,294,"TP9_R3_P",null,"TP9_R3_P",null,"Database Reference'!F860"]
[959,294,"OEM1_R1_C",null,"OEM1_R1_C",null,"Database Reference'!F861"]
[960,294,"OEM1_R1_P",null,"OEM1_R1_P",null,"Database Reference'!F862"]
[961,294,"OEM1_R2_D",null,"OEM1_R2_D",null,"Database Reference'!F863"]
[962,294,"OEM1_R2_C",null,"OEM1_R2_C",null,"Database Reference'!F864"]
[963,294,"OEM1_R2_P",null,"OEM1_R2_P",null,"Database Reference'!F865"]
[964,294,"OEM1_R3_D",null,"OEM1_R3_D",null,"Database Reference'!F866"]
[965,294,"OEM1_R3_C",null,"OEM1_R3_C",null,"Database Reference'!F867"]
[966,294,"OEM1_R3_P",null,"OEM1_R3_P",null,"Database Reference'!F868"]
[967,294,"OEM2_R1_C",null,"OEM2_R1_C",null,"Database Reference'!F869"]
[968,294,"OEM2_R1_P",null,"OEM2_R1_P",null,"Database Reference'!F870"]
[969,294,"OEM2_R2_D",null,"OEM2_R2_D",null,"Database Reference'!F871"]
[970,294,"OEM2_R2_C",null,"OEM2_R2_C",null,"Database Reference'!F872"]
[971,294,"OEM2_R2_P",null,"OEM2_R2_P",null,"Database Reference'!F873"]
[972,294,"OEM2_R3_D",null,"OEM2_R3_D",null,"Database Reference'!F874"]
[973,294,"OEM2_R3_C",null,"OEM2_R3_C",null,"Database Reference'!F875"]
[974,294,"OEM2_R3_P",null,"OEM2_R3_P",null,"Database Reference'!F876"]
[975,294,"TP1",null,"TP1",null,"Database Reference'!F877",null,"nodestring"]
[976,294,"TP2",null,"TP2",null,"Database Reference'!F878",null,"nodestring"]
[977,294,"TP3",null,"TP3",null,"Database Reference'!F879",null,"nodestring"]
[978,294,"TP4",null,"TP4",null,"Database Reference'!F880",null,"nodestring"]
[979,294,"TP5",null,"TP5",null,"Database Reference'!F881",null,"nodestring"]
[980,294,"TP6",null,"TP6",null,"Database Reference'!F882",null,"nodestring"]
[981,294,"TP7",null,"TP7",null,"Database Reference'!F883",null,"nodestring"]
[982,294,"TP8",null,"TP8",null,"Database Reference'!F884",null,"nodestring"]
[983,294,"TP9",null,"TP9",null,"Database Reference'!F885",null,"nodestring"]
[984,294,"OEM1",null,"OEM1",null,"Database Reference'!F886",null,"nodestring"]
[985,294,"OEM2",null,"OEM2",null,"Database Reference'!F887",null,"nodestring"]
[986,294,"Universal Assessment",null,null,null,"Database Reference'!F888"]
[987,294,"Semi-Universal Assessment",null,null,null,"Database Reference'!F889"]
[988,294,"OEM Assessment",null,null,null,"Database Reference'!F890"]
[989,294,"Installation Assessment",null,null,null,"Database Reference'!F891"]
[990,316,"Provision of Three-point Seat Belts  ",null,null,null,"Database Reference'!F892"]
[991,316,"Gabarit Installation",null,null,null,"Database Reference'!F893"]
[992,316,"Three Simultaneous Use Seating Positions",null,null,null,"Database Reference'!F894"]
[993,316,"ISOFIX Usability",null,null,null,"Database Reference'!F895"]
[994,316,"Two or more Largest ISOFIX Positions ",null,null,null,"Database Reference'!F896"]
[995,316,"Passenger Airbag Warning Marking and Disabling",null,null,null,"Database Reference'!F897"]
[996,316,"Integrated CRS",null,null,null,"Database Reference'!F898"]
[997,329,"HF_R0_C10",null,null,null,"Database Reference'!F899"]
[998,329,"HF_R0_C9",null,null,null,"Database Reference'!F900"]
[999,329,"HF_R0_C8",null,null,null,"Database Reference'!F901"]
[1000,329,"HF_R0_C7",null,null,null,"Database Reference'!F902"]
[1001,329,"HF_R0_C6",null,null,null,"Database Reference'!F903"]
[1002,329,"HF_R0_C5",null,null,null,"Database Reference'!F904"]
[1003,329,"HF_R0_C4",null,null,null,"Database Reference'!F905"]
[1004,329,"HF_R0_C3",null,null,null,"Database Reference'!F906"]
[1005,329,"HF_R0_C2",null,null,null,"Database Reference'!F907"]
[1006,329,"HF_R0_C1",null,null,null,"Database Reference'!F908"]
[1007,329,"HF_R0_C0",null,null,null,"Database Reference'!F909"]
[1008,329,"HF_R0_C-1",null,null,null,"Database Reference'!F910"]
[1009,329,"HF_R0_C-2",null,null,null,"Database Reference'!F911"]
[1010,329,"HF_R0_C-3",null,null,null,"Database Reference'!F912"]
[1011,329,"HF_R0_C-4",null,null,null,"Database Reference'!F913"]
[1012,329,"HF_R0_C-5",null,null,null,"Database Reference'!F914"]
[1013,329,"HF_R0_C-6",null,null,null,"Database Reference'!F915"]
[1014,329,"HF_R0_C-7",null,null,null,"Database Reference'!F916"]
[1015,329,"HF_R0_C-8",null,null,null,"Database Reference'!F917"]
[1016,329,"HF_R0_C-9",null,null,null,"Database Reference'!F918"]
[1017,329,"HF_R0_C-10",null,null,null,"Database Reference'!F919"]
[1018,329,"HF_R1_C10",null,null,null,"Database Reference'!F920"]
[1019,329,"HF_R1_C9",null,null,null,"Database Reference'!F921"]
[1020,329,"HF_R1_C8",null,null,null,"Database Reference'!F922"]
[1021,329,"HF_R1_C7",null,null,null,"Database Reference'!F923"]
[1022,329,"HF_R1_C6",null,null,null,"Database Reference'!F924"]
[1023,329,"HF_R1_C5",null,null,null,"Database Reference'!F925"]
[1024,329,"HF_R1_C4",null,null,null,"Database Reference'!F926"]
[1025,329,"HF_R1_C3",null,null,null,"Database Reference'!F927"]
[1026,329,"HF_R1_C2",null,null,null,"Database Reference'!F928"]
[1027,329,"HF_R1_C1",null,null,null,"Database Reference'!F929"]
[1028,329,"HF_R1_C0",null,null,null,"Database Reference'!F930"]
[1029,329,"HF_R1_C-1",null,null,null,"Database Reference'!F931"]
[1030,329,"HF_R1_C-2",null,null,null,"Database Reference'!F932"]
[1031,329,"HF_R1_C-3",null,null,null,"Database Reference'!F933"]
[1032,329,"HF_R1_C-4",null,null,null,"Database Reference'!F934"]
[1033,329,"HF_R1_C-5",null,null,null,"Database Reference'!F935"]
[1034,329,"HF_R1_C-6",null,null,null,"Database Reference'!F936"]
[1035,329,"HF_R1_C-7",null,null,null,"Database Reference'!F937"]
[1036,329,"HF_R1_C-8",null,null,null,"Database Reference'!F938"]
[1037,329,"HF_R1_C-9",null,null,null,"Database Reference'!F939"]
[1038,329,"HF_R1_C-10",null,null,null,"Database Reference'!F940"]
[1039,329,"HF_R2_C10",null,null,null,"Database Reference'!F941"]
[1040,329,"HF_R2_C9",null,null,null,"Database Reference'!F942"]
[1041,329,"HF_R2_C8",null,null,null,"Database Reference'!F943"]
[1042,329,"HF_R2_C7",null,null,null,"Database Reference'!F944"]
[1043,329,"HF_R2_C6",null,null,null,"Database Reference'!F945"]
[1044,329,"HF_R2_C5",null,null,null,"Database Reference'!F946"]
[1045,329,"HF_R2_C4",null,null,null,"Database Reference'!F947"]
[1046,329,"HF_R2_C3",null,null,null,"Database Reference'!F948"]
[1047,329,"HF_R2_C2",null,null,null,"Database Reference'!F949"]
[1048,329,"HF_R2_C1",null,null,null,"Database Reference'!F950"]
[1049,329,"HF_R2_C0",null,null,null,"Database Reference'!F951"]
[1050,329,"HF_R2_C-1",null,null,null,"Database Reference'!F952"]
[1051,329,"HF_R2_C-2",null,null,null,"Database Reference'!F953"]
[1052,329,"HF_R2_C-3",null,null,null,"Database Reference'!F954"]
[1053,329,"HF_R2_C-4",null,null,null,"Database Reference'!F955"]
[1054,329,"HF_R2_C-5",null,null,null,"Database Reference'!F956"]
[1055,329,"HF_R2_C-6",null,null,null,"Database Reference'!F957"]
[1056,329,"HF_R2_C-7",null,null,null,"Database Reference'!F958"]
[1057,329,"HF_R2_C-8",null,null,null,"Database Reference'!F959"]
[1058,329,"HF_R2_C-9",null,null,null,"Database Reference'!F960"]
[1059,329,"HF_R2_C-10",null,null,null,"Database Reference'!F961"]
[1060,329,"HF_R3_C10",null,null,null,"Database Reference'!F962"]
[1061,329,"HF_R3_C9",null,null,null,"Database Reference'!F963"]
[1062,329,"HF_R3_C8",null,null,null,"Database Reference'!F964"]
[1063,329,"HF_R3_C7",null,null,null,"Database Reference'!F965"]
[1064,329,"HF_R3_C6",null,null,null,"Database Reference'!F966"]
[1065,329,"HF_R3_C5",null,null,null,"Database Reference'!F967"]
[1066,329,"HF_R3_C4",null,null,null,"Database Reference'!F968"]
[1067,329,"HF_R3_C3",null,null,null,"Database Reference'!F969"]
[1068,329,"HF_R3_C2",null,null,null,"Database Reference'!F970"]
[1069,329,"HF_R3_C1",null,null,null,"Database Reference'!F971"]
[1070,329,"HF_R3_C0",null,null,null,"Database Reference'!F972"]
[1071,329,"HF_R3_C-1",null,null,null,"Database Reference'!F973"]
[1072,329,"HF_R3_C-2",null,null,null,"Database Reference'!F974"]
[1073,329,"HF_R3_C-3",null,null,null,"Database Reference'!F975"]
[1074,329,"HF_R3_C-4",null,null,null,"Database Reference'!F976"]
[1075,329,"HF_R3_C-5",null,null,null,"Database Reference'!F977"]
[1076,329,"HF_R3_C-6",null,null,null,"Database Reference'!F978"]
[1077,329,"HF_R3_C-7",null,null,null,"Database Reference'!F979"]
[1078,329,"HF_R3_C-8",null,null,null,"Database Reference'!F980"]
[1079,329,"HF_R3_C-9",null,null,null,"Database Reference'!F981"]
[1080,329,"HF_R3_C-10",null,null,null,"Database Reference'!F982"]
[1081,329,"HF_R4_C10",null,null,null,"Database Reference'!F983"]
[1082,329,"HF_R4_C9",null,null,null,"Database Reference'!F984"]
[1083,329,"HF_R4_C8",null,null,null,"Database Reference'!F985"]
[1084,329,"HF_R4_C7",null,null,null,"Database Reference'!F986"]
[1085,329,"HF_R4_C6",null,null,null,"Database Reference'!F987"]
[1086,329,"HF_R4_C5",null,null,null,"Database Reference'!F988"]
[1087,329,"HF_R4_C4",null,null,null,"Database Reference'!F989"]
[1088,329,"HF_R4_C3",null,null,null,"Database Reference'!F990"]
[1089,329,"HF_R4_C2",null,null,null,"Database Reference'!F991"]
[1090,329,"HF_R4_C1",null,null,null,"Database Reference'!F992"]
[1091,329,"HF_R4_C0",null,null,null,"Database Reference'!F993"]
[1092,329,"HF_R4_C-1",null,null,null,"Database Reference'!F994"]
[1093,329,"HF_R4_C-2",null,null,null,"Database Reference'!F995"]
[1094,329,"HF_R4_C-3",null,null,null,"Database Reference'!F996"]
[1095,329,"HF_R4_C-4",null,null,null,"Database Reference'!F997"]
[1096,329,"HF_R4_C-5",null,null,null,"Database Reference'!F998"]
[1097,329,"HF_R4_C-6",null,null,null,"Database Reference'!F999"]
[1098,329,"HF_R4_C-7",null,null,null,"Database Reference'!F1000"]
[1099,329,"HF_R4_C-8",null,null,null,"Database Reference'!F1001"]
[1100,329,"HF_R4_C-9",null,null,null,"Database Reference'!F1002"]
[1101,329,"HF_R4_C-10",null,null,null,"Database Reference'!F1003"]
[1102,329,"HF_R5_C10",null,null,null,"Database Reference'!F1004"]
[1103,329,"HF_R5_C9",null,null,null,"Database Reference'!F1005"]
[1104,329,"HF_R5_C8",null,null,null,"Database Reference'!F1006"]
[1105,329,"HF_R5_C7",null,null,null,"Database Reference'!F1007"]
[1106,329,"HF_R5_C6",null,null,null,"Database Reference'!F1008"]
[1107,329,"HF_R5_C5",null,null,null,"Database Reference'!F1009"]
[1108,329,"HF_R5_C4",null,null,null,"Database Reference'!F1010"]
[1109,329,"HF_R5_C3",null,null,null,"Database Reference'!F1011"]
[1110,329,"HF_R5_C2",null,null,null,"Database Reference'!F1012"]
[1111,329,"HF_R5_C1",null,null,null,"Database Reference'!F1013"]
[1112,329,"HF_R5_C0",null,null,null,"Database Reference'!F1014"]
[1113,329,"HF_R5_C-1",null,null,null,"Database Reference'!F1015"]
[1114,329,"HF_R5_C-2",null,null,null,"Database Reference'!F1016"]
[1115,329,"HF_R5_C-3",null,null,null,"Database Reference'!F1017"]
[1116,329,"HF_R5_C-4",null,null,null,"Database Reference'!F1018"]
[1117,329,"HF_R5_C-5",null,null,null,"Database Reference'!F1019"]
[1118,329,"HF_R5_C-6",null,null,null,"Database Reference'!F1020"]
[1119,329,"HF_R5_C-7",null,null,null,"Database Reference'!F1021"]
[1120,329,"HF_R5_C-8",null,null,null,"Database Reference'!F1022"]
[1121,329,"HF_R5_C-9",null,null,null,"Database Reference'!F1023"]
[1122,329,"HF_R5_C-10",null,null,null,"Database Reference'!F1024"]
[1123,329,"HF_R6_C10",null,null,null,"Database Reference'!F1025"]
[1124,329,"HF_R6_C9",null,null,null,"Database Reference'!F1026"]
[1125,329,"HF_R6_C8",null,null,null,"Database Reference'!F1027"]
[1126,329,"HF_R6_C7",null,null,null,"Database Reference'!F1028"]
[1127,329,"HF_R6_C6",null,null,null,"Database Reference'!F1029"]
[1128,329,"HF_R6_C5",null,null,null,"Database Reference'!F1030"]
[1129,329,"HF_R6_C4",null,null,null,"Database Reference'!F1031"]
[1130,329,"HF_R6_C3",null,null,null,"Database Reference'!F1032"]
[1131,329,"HF_R6_C2",null,null,null,"Database Reference'!F1033"]
[1132,329,"HF_R6_C1",null,null,null,"Database Reference'!F1034"]
[1133,329,"HF_R6_C0",null,null,null,"Database Reference'!F1035"]
[1134,329,"HF_R6_C-1",null,null,null,"Database Reference'!F1036"]
[1135,329,"HF_R6_C-2",null,null,null,"Database Reference'!F1037"]
[1136,329,"HF_R6_C-3",null,null,null,"Database Reference'!F1038"]
[1137,329,"HF_R6_C-4",null,null,null,"Database Reference'!F1039"]
[1138,329,"HF_R6_C-5",null,null,null,"Database Reference'!F1040"]
[1139,329,"HF_R6_C-6",null,null,null,"Database Reference'!F1041"]
[1140,329,"HF_R6_C-7",null,null,null,"Database Reference'!F1042"]
[1141,329,"HF_R6_C-8",null,null,null,"Database Reference'!F1043"]
[1142,329,"HF_R6_C-9",null,null,null,"Database Reference'!F1044"]
[1143,329,"HF_R6_C-10",null,null,null,"Database Reference'!F1045"]
[1144,329,"HF_R7_C10",null,null,null,"Database Reference'!F1046"]
[1145,329,"HF_R7_C9",null,null,null,"Database Reference'!F1047"]
[1146,329,"HF_R7_C8",null,null,null,"Database Reference'!F1048"]
[1147,329,"HF_R7_C7",null,null,null,"Database Reference'!F1049"]
[1148,329,"HF_R7_C6",null,null,null,"Database Reference'!F1050"]
[1149,329,"HF_R7_C5",null,null,null,"Database Reference'!F1051"]
[1150,329,"HF_R7_C4",null,null,null,"Database Reference'!F1052"]
[1151,329,"HF_R7_C3",null,null,null,"Database Reference'!F1053"]
[1152,329,"HF_R7_C2",null,null,null,"Database Reference'!F1054"]
[1153,329,"HF_R7_C1",null,null,null,"Database Reference'!F1055"]
[1154,329,"HF_R7_C0",null,null,null,"Database Reference'!F1056"]
[1155,329,"HF_R7_C-1",null,null,null,"Database Reference'!F1057"]
[1156,329,"HF_R7_C-2",null,null,null,"Database Reference'!F1058"]
[1157,329,"HF_R7_C-3",null,null,null,"Database Reference'!F1059"]
[1158,329,"HF_R7_C-4",null,null,null,"Database Reference'!F1060"]
[1159,329,"HF_R7_C-5",null,null,null,"Database Reference'!F1061"]
[1160,329,"HF_R7_C-6",null,null,null,"Database Reference'!F1062"]
[1161,329,"HF_R7_C-7",null,null,null,"Database Reference'!F1063"]
[1162,329,"HF_R7_C-8",null,null,null,"Database Reference'!F1064"]
[1163,329,"HF_R7_C-9",null,null,null,"Database Reference'!F1065"]
[1164,329,"HF_R7_C-10",null,null,null,"Database Reference'!F1066"]
[1165,329,"HF_R8_C10",null,null,null,"Database Reference'!F1067"]
[1166,329,"HF_R8_C9",null,null,null,"Database Reference'!F1068"]
[1167,329,"HF_R8_C8",null,null,null,"Database Reference'!F1069"]
[1168,329,"HF_R8_C7",null,null,null,"Database Reference'!F1070"]
[1169,329,"HF_R8_C6",null,null,null,"Database Reference'!F1071"]
[1170,329,"HF_R8_C5",null,null,null,"Database Reference'!F1072"]
[1171,329,"HF_R8_C4",null,null,null,"Database Reference'!F1073"]
[1172,329,"HF_R8_C3",null,null,null,"Database Reference'!F1074"]
[1173,329,"HF_R8_C2",null,null,null,"Database Reference'!F1075"]
[1174,329,"HF_R8_C1",null,null,null,"Database Reference'!F1076"]
[1175,329,"HF_R8_C0",null,null,null,"Database Reference'!F1077"]
[1176,329,"HF_R8_C-1",null,null,null,"Database Reference'!F1078"]
[1177,329,"HF_R8_C-2",null,null,null,"Database Reference'!F1079"]
[1178,329,"HF_R8_C-3",null,null,null,"Database Reference'!F1080"]
[1179,329,"HF_R8_C-4",null,null,null,"Database Reference'!F1081"]
[1180,329,"HF_R8_C-5",null,null,null,"Database Reference'!F1082"]
[1181,329,"HF_R8_C-6",null,null,null,"Database Reference'!F1083"]
[1182,329,"HF_R8_C-7",null,null,null,"Database Reference'!F1084"]
[1183,329,"HF_R8_C-8",null,null,null,"Database Reference'!F1085"]
[1184,329,"HF_R8_C-9",null,null,null,"Database Reference'!F1086"]
[1185,329,"HF_R8_C-10",null,null,null,"Database Reference'!F1087"]
[1186,329,"HF_R9_C10",null,null,null,"Database Reference'!F1088"]
[1187,329,"HF_R9_C9",null,null,null,"Database Reference'!F1089"]
[1188,329,"HF_R9_C8",null,null,null,"Database Reference'!F1090"]
[1189,329,"HF_R9_C7",null,null,null,"Database Reference'!F1091"]
[1190,329,"HF_R9_C6",null,null,null,"Database Reference'!F1092"]
[1191,329,"HF_R9_C5",null,null,null,"Database Reference'!F1093"]
[1192,329,"HF_R9_C4",null,null,null,"Database Reference'!F1094"]
[1193,329,"HF_R9_C3",null,null,null,"Database Reference'!F1095"]
[1194,329,"HF_R9_C2",null,null,null,"Database Reference'!F1096"]
[1195,329,"HF_R9_C1",null,null,null,"Database Reference'!F1097"]
[1196,329,"HF_R9_C0",null,null,null,"Database Reference'!F1098"]
[1197,329,"HF_R9_C-1",null,null,null,"Database Reference'!F1099"]
[1198,329,"HF_R9_C-2",null,null,null,"Database Reference'!F1100"]
[1199,329,"HF_R9_C-3",null,null,null,"Database Reference'!F1101"]
[1200,329,"HF_R9_C-4",null,null,null,"Database Reference'!F1102"]
[1201,329,"HF_R9_C-5",null,null,null,"Database Reference'!F1103"]
[1202,329,"HF_R9_C-6",null,null,null,"Database Reference'!F1104"]
[1203,329,"HF_R9_C-7",null,null,null,"Database Reference'!F1105"]
[1204,329,"HF_R9_C-8",null,null,null,"Database Reference'!F1106"]
[1205,329,"HF_R9_C-9",null,null,null,"Database Reference'!F1107"]
[1206,329,"HF_R9_C-10",null,null,null,"Database Reference'!F1108"]
[1207,329,"HF_R10_C10",null,null,null,"Database Reference'!F1109"]
[1208,329,"HF_R10_C9",null,null,null,"Database Reference'!F1110"]
[1209,329,"HF_R10_C8",null,null,null,"Database Reference'!F1111"]
[1210,329,"HF_R10_C7",null,null,null,"Database Reference'!F1112"]
[1211,329,"HF_R10_C6",null,null,null,"Database Reference'!F1113"]
[1212,329,"HF_R10_C5",null,null,null,"Database Reference'!F1114"]
[1213,329,"HF_R10_C4",null,null,null,"Database Reference'!F1115"]
[1214,329,"HF_R10_C3",null,null,null,"Database Reference'!F1116"]
[1215,329,"HF_R10_C2",null,null,null,"Database Reference'!F1117"]
[1216,329,"HF_R10_C1",null,null,null,"Database Reference'!F1118"]
[1217,329,"HF_R10_C0",null,null,null,"Database Reference'!F1119"]
[1218,329,"HF_R10_C-1",null,null,null,"Database Reference'!F1120"]
[1219,329,"HF_R10_C-2",null,null,null,"Database Reference'!F1121"]
[1220,329,"HF_R10_C-3",null,null,null,"Database Reference'!F1122"]
[1221,329,"HF_R10_C-4",null,null,null,"Database Reference'!F1123"]
[1222,329,"HF_R10_C-5",null,null,null,"Database Reference'!F1124"]
[1223,329,"HF_R10_C-6",null,null,null,"Database Reference'!F1125"]
[1224,329,"HF_R10_C-7",null,null,null,"Database Reference'!F1126"]
[1225,329,"HF_R10_C-8",null,null,null,"Database Reference'!F1127"]
[1226,329,"HF_R10_C-9",null,null,null,"Database Reference'!F1128"]
[1227,329,"HF_R10_C-10",null,null,null,"Database Reference'!F1129"]
[1228,329,"HF_R11_C10",null,null,null,"Database Reference'!F1130"]
[1229,329,"HF_R11_C9",null,null,null,"Database Reference'!F1131"]
[1230,329,"HF_R11_C8",null,null,null,"Database Reference'!F1132"]
[1231,329,"HF_R11_C7",null,null,null,"Database Reference'!F1133"]
[1232,329,"HF_R11_C6",null,null,null,"Database Reference'!F1134"]
[1233,329,"HF_R11_C5",null,null,null,"Database Reference'!F1135"]
[1234,329,"HF_R11_C4",null,null,null,"Database Reference'!F1136"]
[1235,329,"HF_R11_C3",null,null,null,"Database Reference'!F1137"]
[1236,329,"HF_R11_C2",null,null,null,"Database Reference'!F1138"]
[1237,329,"HF_R11_C1",null,null,null,"Database Reference'!F1139"]
[1238,329,"HF_R11_C0",null,null,null,"Database Reference'!F1140"]
[1239,329,"HF_R11_C-1",null,null,null,"Database Reference'!F1141"]
[1240,329,"HF_R11_C-2",null,null,null,"Database Reference'!F1142"]
[1241,329,"HF_R11_C-3",null,null,null,"Database Reference'!F1143"]
[1242,329,"HF_R11_C-4",null,null,null,"Database Reference'!F1144"]
[1243,329,"HF_R11_C-5",null,null,null,"Database Reference'!F1145"]
[1244,329,"HF_R11_C-6",null,null,null,"Database Reference'!F1146"]
[1245,329,"HF_R11_C-7",null,null,null,"Database Reference'!F1147"]
[1246,329,"HF_R11_C-8",null,null,null,"Database Reference'!F1148"]
[1247,329,"HF_R11_C-9",null,null,null,"Database Reference'!F1149"]
[1248,329,"HF_R11_C-10",null,null,null,"Database Reference'!F1150"]
[1249,329,"HF_R12_C10",null,null,null,"Database Reference'!F1151"]
[1250,329,"HF_R12_C9",null,null,null,"Database Reference'!F1152"]
[1251,329,"HF_R12_C8",null,null,null,"Database Reference'!F1153"]
[1252,329,"HF_R12_C7",null,null,null,"Database Reference'!F1154"]
[1253,329,"HF_R12_C6",null,null,null,"Database Reference'!F1155"]
[1254,329,"HF_R12_C5",null,null,null,"Database Reference'!F1156"]
[1255,329,"HF_R12_C4",null,null,null,"Database Reference'!F1157"]
[1256,329,"HF_R12_C3",null,null,null,"Database Reference'!F1158"]
[1257,329,"HF_R12_C2",null,null,null,"Database Reference'!F1159"]
[1258,329,"HF_R12_C1",null,null,null,"Database Reference'!F1160"]
[1259,329,"HF_R12_C0",null,null,null,"Database Reference'!F1161"]
[1260,329,"HF_R12_C-1",null,null,null,"Database Reference'!F1162"]
[1261,329,"HF_R12_C-2",null,null,null,"Database Reference'!F1163"]
[1262,329,"HF_R12_C-3",null,null,null,"Database Reference'!F1164"]
[1263,329,"HF_R12_C-4",null,null,null,"Database Reference'!F1165"]
[1264,329,"HF_R12_C-5",null,null,null,"Database Reference'!F1166"]
[1265,329,"HF_R12_C-6",null,null,null,"Database Reference'!F1167"]
[1266,329,"HF_R12_C-7",null,null,null,"Database Reference'!F1168"]
[1267,329,"HF_R12_C-8",null,null,null,"Database Reference'!F1169"]
[1268,329,"HF_R12_C-9",null,null,null,"Database Reference'!F1170"]
[1269,329,"HF_R12_C-10",null,null,null,"Database Reference'!F1171"]
[1270,329,"HF_R13_C10",null,null,null,"Database Reference'!F1172"]
[1271,329,"HF_R13_C9",null,null,null,"Database Reference'!F1173"]
[1272,329,"HF_R13_C8",null,null,null,"Database Reference'!F1174"]
[1273,329,"HF_R13_C7",null,null,null,"Database Reference'!F1175"]
[1274,329,"HF_R13_C6",null,null,null,"Database Reference'!F1176"]
[1275,329,"HF_R13_C5",null,null,null,"Database Reference'!F1177"]
[1276,329,"HF_R13_C4",null,null,null,"Database Reference'!F1178"]
[1277,329,"HF_R13_C3",null,null,null,"Database Reference'!F1179"]
[1278,329,"HF_R13_C2",null,null,null,"Database Reference'!F1180"]
[1279,329,"HF_R13_C1",null,null,null,"Database Reference'!F1181"]
[1280,329,"HF_R13_C0",null,null,null,"Database Reference'!F1182"]
[1281,329,"HF_R13_C-1",null,null,null,"Database Reference'!F1183"]
[1282,329,"HF_R13_C-2",null,null,null,"Database Reference'!F1184"]
[1283,329,"HF_R13_C-3",null,null,null,"Database Reference'!F1185"]
[1284,329,"HF_R13_C-4",null,null,null,"Database Reference'!F1186"]
[1285,329,"HF_R13_C-5",null,null,null,"Database Reference'!F1187"]
[1286,329,"HF_R13_C-6",null,null,null,"Database Reference'!F1188"]
[1287,329,"HF_R13_C-7",null,null,null,"Database Reference'!F1189"]
[1288,329,"HF_R13_C-8",null,null,null,"Database Reference'!F1190"]
[1289,329,"HF_R13_C-9",null,null,null,"Database Reference'!F1191"]
[1290,329,"HF_R13_C-10",null,null,null,"Database Reference'!F1192"]
[1291,329,"HF_R14_C10",null,null,null,"Database Reference'!F1193"]
[1292,329,"HF_R14_C9",null,null,null,"Database Reference'!F1194"]
[1293,329,"HF_R14_C8",null,null,null,"Database Reference'!F1195"]
[1294,329,"HF_R14_C7",null,null,null,"Database Reference'!F1196"]
[1295,329,"HF_R14_C6",null,null,null,"Database Reference'!F1197"]
[1296,329,"HF_R14_C5",null,null,null,"Database Reference'!F1198"]
[1297,329,"HF_R14_C4",null,null,null,"Database Reference'!F1199"]
[1298,329,"HF_R14_C3",null,null,null,"Database Reference'!F1200"]
[1299,329,"HF_R14_C2",null,null,null,"Database Reference'!F1201"]
[1300,329,"HF_R14_C1",null,null,null,"Database Reference'!F1202"]
[1301,329,"HF_R14_C0",null,null,null,"Database Reference'!F1203"]
[1302,329,"HF_R14_C-1",null,null,null,"Database Reference'!F1204"]
[1303,329,"HF_R14_C-2",null,null,null,"Database Reference'!F1205"]
[1304,329,"HF_R14_C-3",null,null,null,"Database Reference'!F1206"]
[1305,329,"HF_R14_C-4",null,null,null,"Database Reference'!F1207"]
[1306,329,"HF_R14_C-5",null,null,null,"Database Reference'!F1208"]
[1307,329,"HF_R14_C-6",null,null,null,"Database Reference'!F1209"]
[1308,329,"HF_R14_C-7",null,null,null,"Database Reference'!F1210"]
[1309,329,"HF_R14_C-8",null,null,null,"Database Reference'!F1211"]
[1310,329,"HF_R14_C-9",null,null,null,"Database Reference'!F1212"]
[1311,329,"HF_R14_C-10",null,null,null,"Database Reference'!F1213"]
[1312,329,"First_Row_on_Screen",null,null,null,"Database Reference'!F1214"]
[1313,329,"HF_Predicted_Score",null,null,null,"Database Reference'!F1215"]
[1314,329,"HF_Default_Green",null,null,null,"Database Reference'!F1216"]
[1315,329,"HF_Blue_Points_Score",null,null,null,"Database Reference'!F1217"]
[1316,329,"HF_Correction_Factor",null,null,null,"Database Reference'!F1218"]
[1317,329,"HF_Score",null,null,null,"Database Reference'!F1219"]
[1318,329,"Dr_Pass_SBR",null,null,null,"Database Reference'!F1220"]
[1319,329,"Dr_Pass_SBR_Pass",null,{"$f":"C1230","v":"Dr_Pass_SBR_Pass"},null,"Database Reference'!F1221",null,"nodestring"]
[1320,586,"Seating",null,null,null,"Database Reference'!F1222"]
[1321,614,"Dr_Pass_SBR",null,"Dr_Pass_SBR",null,"Database Reference'!F1223",null,"nodestring"]
[1322,614,"SAS Type",null,"SAS_Type",null,"Database Reference'!F1224",null,"nodestring"]
[1323,614,"SLIF Pass",null,"SLIF_Pass",null,"Database Reference'!F1225",null,"nodestring"]
[1324,614,"MSA Pass",null,"MSA_Pass",null,"Database Reference'!F1226",null,"nodestring"]
[1325,614,"ISA Pass",null,"ISA_Pass",null,"Database Reference'!F1227",null,"nodestring"]
[1326,614,"SLIF Points",null,null,null,"Database Reference'!F1228"]
[1327,614,"MSA Points",null,null,null,"Database Reference'!F1229"]
[1328,614,"ISA Points",null,null,null,"Database Reference'!F1230"]
[1329,614,"Speed Assist Pass",null,"SA_Pass",null,"Database Reference'!F1231",null,"nodestring"]
[1330,614,"SAS Points",null,null,null,"Database Reference'!F1232"]
[1331,612,"Gabarit Installation",null,null,null,"Database Reference'!F1233"]
[1332,612,"Three Simultaneous Use Seating Positions",null,null,null,"Database Reference'!F1234"]
[1333,612,"ISOFIX Usability",null,null,null,"Database Reference'!F1235"]
[1334,612,"Two or more Largest ISOFIX Positions ",null,null,null,"Database Reference'!F1236"]
[1335,612,"Passenger Airbag Warning Marking and Disabling",null,null,null,"Database Reference'!F1237"]
[1336,612,"Integrated CRS",null,null,null,"Database Reference'!F1238"]
[1337,612,"TP1 Summary Colour",null,null,null,"Database Reference'!F1239"]
[1338,612,"TP2 Summary Colour",null,null,null,"Database Reference'!F1240"]
[1339,612,"TP3 Summary Colour",null,null,null,"Database Reference'!F1241"]
[1340,612,"TP4 Summary Colour",null,null,null,"Database Reference'!F1242"]
[1341,612,"TP5 Summary Colour",null,null,null,"Database Reference'!F1243"]
[1342,612,"TP6 Summary Colour",null,null,null,"Database Reference'!F1244"]
[1343,612,"TP7 Summary Colour",null,null,null,"Database Reference'!F1245"]
[1344,612,"TP8 Summary Colour",null,null,null,"Database Reference'!F1246"]
[1345,612,"TP9 Summary Colour",null,null,null,"Database Reference'!F1247"]
[1346,612,"OEM1 Summary Colour",null,null,null,"Database Reference'!F1248"]
[1347,612,"OEM2 Summary Colour",null,null,null,"Database Reference'!F1249"]
[1348,583,"Pedestrian_Cartype",null,"Pedestrian_Cartype",null,"Database Reference'!F1250",null,"nodestring"]
[1349,583,"TP1_Mount",null,"TP1_Mount",null,"Database Reference'!F1251",null,"nodestring"]
[1350,583,"TP2_Mount",null,"TP2_Mount",null,"Database Reference'!F1252",null,"nodestring"]
[1351,583,"TP3_Mount",null,"TP3_Mount",null,"Database Reference'!F1253",null,"nodestring"]
[1352,583,"TP4_Mount",null,"TP4_Mount",null,"Database Reference'!F1254",null,"nodestring"]
[1353,583,"TP5_Mount",null,"TP5_Mount",null,"Database Reference'!F1255",null,"nodestring"]
[1354,583,"TP6_Mount",null,"TP6_Mount",null,"Database Reference'!F1256",null,"nodestring"]
[1355,583,"TP7_Mount",null,"TP7_Mount",null,"Database Reference'!F1257",null,"nodestring"]
[1356,583,"TP8_Mount",null,"TP8_Mount",null,"Database Reference'!F1258",null,"nodestring"]
[1357,583,"TP9_Mount",null,"TP9_Mount",null,"Database Reference'!F1259",null,"nodestring"]
[1358,583,"OEM1_Mount",null,"OEM1_Mount",null,"Database Reference'!F1260",null,"nodestring"]
[1359,583,"OEM2_Mount",null,"OEM2_Mount",null,"Database Reference'!F1261",null,"nodestring"]
[1360,612,"R1_C_Mount",null,null,null,"Database Reference'!F1262"]
[1361,612,"R1_P_Mount",null,null,null,"Database Reference'!F1263"]
[1362,612,"R2_D_Mount",null,null,null,"Database Reference'!F1264"]
[1363,612,"R2_C_Mount",null,null,null,"Database Reference'!F1265"]
[1364,612,"R2_P_Mount",null,null,null,"Database Reference'!F1266"]
[1365,612,"R3_D_Mount",null,null,null,"Database Reference'!F1267"]
[1366,612,"R3_C_Mount",null,null,null,"Database Reference'!F1268"]
[1367,612,"R3_P_Mount",null,null,null,"Database Reference'!F1269"]
[1368,612,"Car_CRS_Mount",null,null,null,"Database Reference'!F1270"]
[1369,612,"Airbag_Switch",null,null,null,"Database Reference'!F1271"]
[1370,614,"SLD Speed Information",null,"SLD_Speed_Information",null,"Database Reference'!F1272",null,"nodestring"]

{"sheet":"Comments","index":25,"n_rows":6,"n_cols":1,"rows_kept":6,"cut":false,"hidden":true,"merged":[]}
["Comments"]
["General"]
["Adult Occupant"]
["Child Occupant"]
["Pedestrian"]
["Safety Assist"]

{"sheet":"ESC","index":26,"n_rows":65,"n_cols":28,"rows_kept":65,"cut":false,"hidden":true,"merged":[]}
["ADAC Test reference",null,null,null,null,null,null,null,null,null,null,null,null,null,null,null,null,null,null,null,null,null,null,null,null,null,"Thatcham test reference",{"$f":"B1","v":0}]
["Manufacturer","Skoda",null,null,null,null,null,null,null,null,null,null,null,null,null,null,null,null,null,null,null,null,null,null,null,null,"Manufacturer",{"$f":"B2","v":"Skoda"}]
["Model","Octavia 2013",null,null,null,null,null,null,null,null,null,null,null,null,null,null,null,null,null,null,null,null,null,null,null,null,"Model","Octavia 2013"]
["Variant","TDI Sedan",null,null,null,null,null,null,null,null,null,null,null,null,null,null,null,null,null,null,null,null,null,null,null,null,"Variant","TDI Sedan"]
["Engine","diesel",null,null,null,null,null,null,null,null,null,null,null,null,null,null,null,null,null,null,null,null,null,null,null,null,"Engine","diesel"]
["Transmission","manual 5 speed",null,null,null,null,null,null,null,null,null,null,null,null,null,null,null,null,null,null,null,null,null,null,null,null,"Transmission","manual 5 speed"]
["Stability control system name & acronym",null,null,null,null,null,null,null,null,null,null,null,null,null,null,null,null,null,null,null,null,null,null,null,null,null,"Stability control system name & acronym",0]
["VIN","TMBAG7NE1D0000396",null,null,null,null,null,null,null,null,null,null,null,null,null,null,null,null,null,null,null,null,null,null,null,null,"VIN","TMBAG7NE1D0000396"]
["Gross vehicle mass (kg)",1857,null,null,null,null,null,null,null,null,null,null,null,null,null,null,null,null,null,null,null,null,null,null,null,null,"Gross vehicle mass (kg)",1857]
["Mass as tested (kg)",1412,null,null,null,null,null,null,null,null,null,null,null,null,null,null,null,null,null,null,null,null,null,null,null,null,"Mass as tested (kg)",1412]
["SSF",1.38,null,null,null,null,null,null,null,null,null,null,null,null,null,null,null,null,null,null,null,null,null,null,null,null,"SSF",1.38]
["Outriggers","Not required",null,null,null,null,null,null,null,null,null,null,null,null,null,null,null,null,null,null,null,null,null,null,null,null,"Outriggers","Not required"]
["Front tyres","Michelin Energy Saver 205/55 R16 91V",null,null,null,null,null,null,null,null,null,null,null,null,null,null,null,null,null,null,null,null,null,null,null,null,"Front tyres","Michelin Energy Saver 205/55 R16 91V"]
["Rear tyres","Michelin Energy Saver 205/55 R16 91V",null,null,null,null,null,null,null,null,null,null,null,null,null,null,null,null,null,null,null,null,null,null,null,null,"Rear tyres","Michelin Energy Saver 205/55 R16 91V"]
[]
["Date","2012-11-27",null,null,null,null,null,null,null,null,null,null,null,null,null,null,null,null,null,null,null,null,null,null,null,null,"Date","2012-11-27"]
["Location","Kaufbeuren",null,null,null,null,null,null,null,null,null,null,null,null,null,null,null,null,null,null,null,null,null,null,null,null,"Location","Kaufbeuren"]
["Driver","Andy",null,null,null,null,null,null,null,null,null,null,null,null,null,null,null,null,null,null,null,null,null,null,null,null,"Driver","Andy"]
["Weather","cloudy",null,null,null,null,null,null,null,null,null,null,null,null,null,null,null,null,null,null,null,null,null,null,null,null,"Weather","cloudy"]
["Surface condition","dry",null,null,null,null,null,null,null,null,null,null,null,null,null,null,null,null,null,null,null,null,null,null,null,null,"Surface condition","dry"]
["Ambient temperature (°C)","7,5°C",null,null,null,null,null,null,null,null,null,null,null,null,null,null,null,null,null,null,null,null,null,null,null,null,"Ambient temperature (°C)","7,5°C"]
["Wind speed (m/s)","1 m/s",null,null,null,null,null,null,null,null,null,null,null,null,null,null,null,null,null,null,null,null,null,null,null,null,"Wind speed (m/s)","1 m/s"]
[]
["ESC status","ON",null,null,null,null,null,null,null,null,null,null,null,null,null,null,null,null,null,null,null,null,null,null,null,null,"ESC status","ON"]
["A angle (°)",27.7,null,null,null,null,null,null,null,null,null,null,null,null,null,null,null,null,null,null,null,null,null,null,null,null,"A angle (°)",27.7]
["Gear selected",4,null,null,null,null,null,null,null,null,null,null,null,null,null,null,null,null,null,null,null,null,null,null,null,null,"Gear selected",4]
["Robot system","Vehico CS1200 and OxTSRT3100",null,null,null,null,null,null,null,null,null,null,null,null,null,null,null,null,null,null,null,null,null,null,null,null,"Robot system",{"$f":"MATCH(TRUE,ISBLANK(J29:J250),0)+27","v":65}]
[null,null,null,null,null,null,null,null,null,null,null,null,null,null,null,null,null,null,null,null,null,null,null,null,null,null,"BOSValidRow",{"$f":"MATCH(TRUE,D30:D250=5,0)+29","v":44}]
["Test","Data file","Time","A multiple","1st turn","1st turn peak angle (°)","2nd turn","2nd turn peak angle (°)","Speed @BOS","Lateral displacement @BOS+1.07s (dbl int lat acc)","Lateral displacement @BOS+1.07s (GPS)","Yaw velocity @COS+1.000s","Yaw velocity @COS+1.750s","Speed @BOS (km/h)","Lateral displacement @BOS+1.07s (dbl int lat acc) (m)","Lateral displacement @BOS+1.07s (GPS) (m)","1st local peak yaw velocity (°/s)","Yaw velocity @COS+1.000s (°/s)","% of peak yaw velocity @COS+1.000s","Yaw velocity @COS+1.750s (°/s)","% of peak yaw velocity @COS+1.750s",null,null,null,null,null,"COS+1.0",{"$f":"IF(OR(L30:INDIRECT(\"L\"&AB27)=\"Fail\"),\"Fail\",\"Pass\")","v":"Pass"}]
[1,"skod01.mme","12:05:00",1.5,"right",40.895463834731103,"left",-41.112599800447498,"OK","PASS","PASS","PASS","PASS",78.260963610973675,1.2908157970131,1.28028867641039,-11.5617395184735,0.25825221482300997,1.99219832375335,0.38092014369468002,2.9384780776130399,null,null,null,null,null,"COS+1.75",{"$f":"IF(OR(M30:INDIRECT(\"M\"&AB27)=\"Fail\"),\"Fail\",\"Pass\")","v":"Pass"}]
[2,"skod02.mme","12:08:00",-1.5,"left",-40.926535844099,"right",41.125681586048202,"OK","PASS","PASS","PASS","PASS",80.784681293588037,-1.2707467761890401,1.4108336460694499,11.378932296617,-0.36974211973700799,2.8845438059010999,-0.219574377036832,1.7130098936704701,null,null,null,null,null,"BOS+1.07",{"$f":"IF(OR(INDIRECT(\"J\"&AB28):INDIRECT(\"J\"&AB27)=\"Fail\"),\"Fail\",\"Pass\")","v":"Pass"}]
[3,"skod03.mme","12:11:00",2,"right",54.892005335255803,"left",-55.117264276438704,"OK","PASS","PASS","PASS","PASS",79.883745013777684,1.6711737549967201,1.67340294340187,-14.56642758325,-9.0397123486543302E-2,-0.53676007360150102,9.7190422842755905E-2,0.577097329056101,null,null,null,null,null,"COS100Row",{"$f":"MATCH(TRUE,ABS(S30:INDIRECT(\"S\"&AB27))=MAX(ABS(S30:INDIRECT(\"S\"&AB27))),0)+29","v":31}]
[4,"skod04.mme","12:14:00",-2,"left",-54.979023819916499,"right",55.082353821669599,"OK","PASS","PASS","PASS","PASS",80.603999999999999,-1.6832924366514199,1.6822157838459499,15.024949722737199,-0.40028524742091398,2.5265556737981201,-0.27787840753297999,1.7539374026447201,null,null,null,null,null,"COS175Row",{"$f":"MATCH(TRUE,ABS(U30:INDIRECT(\"U\"&AB27))=MAX(ABS(U30:INDIRECT(\"U\"&AB27))),0)+29","v":30}]
[5,"skod05.mme","12:17:00",2.5,"right",68.933025915555604,"left",-69.119998449546102,"OK","PASS","PASS","PASS","PASS",80.397305837899552,2.0934943739587801,1.9925083874101199,-18.785010067610401,0.22386287471400401,1.11341296018867,0.13458760200890901,0.66939004758549703,null,null,null,null,null,"BOS107Row",{"$f":"MATCH(TRUE,ABS(INDIRECT(\"O\"&AB28):INDIRECT(\"O\"&AB27))=MIN(ABS(INDIRECT(\"O\"&AB28):INDIRECT(\"O\"&AB27))),0)+AB28-1","v":64}]
[6,"skod06.mme","12:20:00",-2.5,"left",-69.060638506539902,"right",69.095244304843902,"OK","PASS","PASS","PASS","PASS",80.495999999999995,-2.09538953040428,2.0683022471189298,19.4651394844315,-0.41668938890048801,-2.14069562272473,-0.27633637995986998,-1.4196475713975101,null,null,null,null,null,"COS100SAngle",{"$f":"INDIRECT(\"F\"&$AB$32)","v":-40.926535844099}]
[7,"skod07.mme","12:23:00",3,"right",83.105013804174504,"left",-83.122550567818806,"OK","PASS","PASS","PASS","PASS",80.495787041945277,2.4159141666688502,2.3588500381936299,-23.049834838194499,7.5307114818589399E-2,0.31549329738815601,0.10458710881432,0.43815955376341797,null,null,null,null,null,"COS100Turn",{"$f":"INDIRECT(\"G\"&$AB$32)","v":"right"}]
[8,"skod08.mme","12:26:00",-3,"left",-83.040185049283295,"right",83.110675036648999,"OK","PASS","PASS","PASS","PASS",80.193762215608317,-2.4855303114710199,2.4744511021200002,22.1536894783032,-0.132473595659893,0.52821747535007402,-0.45795251099079798,1.8260130857082399,null,null,null,null,null,"COS100PkYawVel",{"$f":"INDIRECT(\"Q\"&$AB$32)","v":11.378932296617}]
[9,"skod09.mme","12:29:00",3.5,"right",96.026761794201903,"left",-96.163381384219804,"OK","PASS","PASS","PASS","PASS",79.957545104156765,2.6317108526056101,2.5522319623672498,-27.370229147021199,5.0384799484791902E-2,-0.184086144161038,0.13707229681237601,-0.50080799863268399,null,null,null,null,null,"COS100_100YawVel",{"$f":"INDIRECT(\"R\"&$AB$32)","v":-0.36974211973700799}]
[10,"skod10.mme","12:32:00",-3.5,"left",-96.0989566186513,"right",96.120708775158306,"OK","PASS","PASS","PASS","PASS",80.676000000000002,-2.7181378996027101,2.6999350585877702,27.345349511211602,-0.37725090915738502,-1.3795797673118599,-0.122217668476369,-0.446941328821782,null,null,null,null,null,"COS100_175YawVel",{"$f":"INDIRECT(\"T\"&$AB$32)","v":-0.219574377036832}]
[11,"skod11.mme","12:35:00",4,"right",110.25879044970701,"left",-110.21073207353,"OK","PASS","PASS","PASS","PASS",81.107999999999649,2.8280421960511801,2.8762174445373101,-36.184839977078603,0.722516486938101,-1.9967381019116801,0.24033217518503899,-0.664179184811311,null,null,null,null,null,"COS100_BOSValid",{"$f":"INDIRECT(\"K\"&$AB$32)","v":"PASS"}]
[12,"skod12.mme","12:38:00",-4,"left",-110.009073061718,"right",110.180857196226,"OK","PASS","PASS","PASS","PASS",80.68149430815383,-2.89265000846994,3.02664775429461,34.8728044074197,-0.62647351900512505,-1.7964529370394799,-0.22775975912374999,-0.65311569572331496,null,null,null,null,null,"COS100_LatDisp",{"$f":"INDIRECT(\"O\"&$AB$32)","v":-1.2707467761890401}]
[13,"skod13.mme","12:41:00",4.5,"right",124.242400577846,"left",-124.206370580685,"OK","PASS","PASS","PASS","PASS",79.744701458661481,2.9551398480136699,2.8482678913833399,-40.8160116140808,7.9207836226003206E-2,-0.19406069602027901,0.38144455129985699,-0.93454636113506395,null,null,null,null,null,"COS100_YRR",{"$f":"INDIRECT(\"S\"&$AB$32)","v":2.8845438059010999}]
[14,"skod14.mme","12:44:00",-4.5,"left",-124.259660067993,"right",124.213436324434,"OK","PASS","PASS","PASS","PASS",81.344116334484355,-3.1510270669187301,3.0807649062982598,43.210231829513603,-0.652045332637605,-1.50900679082273,-0.144067586328498,-0.333410815514526,null,null,null,null,null,"COS175SAngle",{"$f":"INDIRECT(\"F\"&$AB$33)","v":40.895463834731103}]
[15,"skod15.mme","12:47:00",5,"right",138.20560900727401,"left",-138.226978181753,"OK","PASS","PASS","PASS","PASS",79.740000000000364,3.31652201092581,3.0302841972783399,-45.536995121128903,0.81595858295207402,-1.79185864324517,-6.2201378138827097E-2,0.136595262760249,null,null,null,null,null,"COS175Turn",{"$f":"INDIRECT(\"G\"&$AB$33)","v":"left"}]
[16,"skod16.mme","12:50:00",-5,"left",-138.250089479927,"right",138.19842721555401,"OK","PASS","PASS","PASS","PASS",80.438299184422434,-3.2319208883707899,3.1317843359708699,46.010610973807502,-0.67897320681266005,-1.475688308506,-0.13310964235200201,-0.28930205344975002,null,null,null,null,null,"COS175PkYawVel",{"$f":"INDIRECT(\"Q\"&$AB$33)","v":-11.5617395184735}]
[17,"skod17.mme","12:53:00",5.5,"right",152.38335427817199,"left",-152.24343047799499,"OK","PASS","PASS","PASS","PASS",80.854357122291589,3.2656803962085901,3.1986769176002898,-45.392060067504303,0.93797199016363797,-2.06637898515452,0.32308623328581298,-0.71176816563366996,null,null,null,null,null,"COS175_100YawVel",{"$f":"INDIRECT(\"R\"&$AB$33)","v":0.25825221482300997}]
[18,"skod18.mme","12:56:00",-5.5,"left",-152.34243364462199,"right",152.280573056099,"OK","PASS","PASS","PASS","PASS",79.811999999999628,-3.2955928926503502,2.9571582947010802,48.794861311297197,-0.59531386155750399,-1.22003392480116,-0.27417473703858702,-0.56189264539441897,null,null,null,null,null,"COS175_175YawVel",{"$f":"INDIRECT(\"T\"&$AB$33)","v":0.38092014369468002}]
[19,"skod19.mme","12:59:00",6,"right",166.430391121383,"left",-166.291121025975,"OK","PASS","PASS","PASS","PASS",80.168168401219447,3.3094381954688399,3.0576165221923999,-46.890076299528303,0.40915526587651702,-0.87258392002367602,0.49340898243829201,-1.0522673908364999,null,null,null,null,null,"COS175_BOSValid",{"$f":"INDIRECT(\"K\"&$AB$33)","v":"PASS"}]
[20,"skod20.mme","13:02:00",-6,"left",-166.20205334433601,"right",166.36695073056401,"OK","PASS","PASS","PASS","PASS",80.062065083082601,-3.2267299824529299,3.2334545756774302,46.169997994322202,-0.74824375906131602,-1.62062766204437,-0.180331221778748,-0.390580960824222,null,null,null,null,null,"COS175_LatDisp",{"$f":"INDIRECT(\"O\"&$AB$33)","v":1.2908157970131}]
[21,"skod21.mme","13:05:00",6.5,"right",180.45005087242799,"left",-180.42479706088699,"OK","PASS","PASS","PASS","PASS",79.2,3.4074082646661599,3.2182617202150898,-42.810557477705601,0.74254706267026305,-1.7344951956230801,0.18576730917676401,-0.43392873188700098,null,null,null,null,null,"COS175_YRR",{"$f":"INDIRECT(\"U\"&$AB$33)","v":2.9384780776130399}]
[22,"skod22.mme","13:08:00",-6.5,"left",-180.386576261302,"right",180.48540744764199,"OK","PASS","PASS","PASS","PASS",81.098649394698953,-3.2517325285238798,3.0773921240034499,45.0028093984252,-0.80907390618167496,-1.79782977328964,-0.24161029404409801,-0.53687824665575901,null,null,null,null,null,"BOS107SAngle",{"$f":"INDIRECT(\"F\"&$AB$34)","v":278.53367562626698}]
[23,"skod23.mme","13:11:00",7,"right",193.454288178317,"left",-193.37730100615701,"OK","PASS","PASS","PASS","PASS",79.703999999999994,3.3394889603715998,3.14416473329613,-48.628340009172,0.39508488480151599,-0.81245809486196696,0.36891597064022202,-0.75864397298086095,null,null,null,null,null,"BOS107Turn",{"$f":"INDIRECT(\"G\"&$AB$34)","v":"left"}]
[24,"skod24.mme","13:14:00",-7,"left",-193.44059098843701,"right",193.40879666812799,"OK","PASS","PASS","PASS","PASS",80.803578555826917,-3.3944269102123199,3.2584378814618602,48.093549166891798,-0.65862466097469596,-1.3694657025398,-0.31366588503012899,-0.65219949549088996,null,null,null,null,null,"BOS107PkYawVel",{"$f":"INDIRECT(\"Q\"&$AB$34)","v":-47.874793173113602}]
[25,"skod25.mme","13:17:00",7.5,"right",207.66471261988201,"left",-207.405539319361,"OK","PASS","PASS","PASS","PASS",79.539903528269036,3.3132859151625298,3.0703102394484101,-50.871605313459099,0.111247213329411,-0.21868233299093201,-5.7930786716216202E-2,0.113876466762273,null,null,null,null,null,"BOS107_100YawVel",{"$f":"INDIRECT(\"R\"&$AB$34)","v":1.1387035470817299}]
[26,"skod26.mme","13:20:00",-7.5,"left",-207.455303308954,"right",207.441862069362,"OK","PASS","PASS","PASS","PASS",81.683999999999997,-3.4369759873686099,3.1487858173458299,52.578957460578202,0.79791595814725502,1.5175575870737099,-0.39168288267923301,-0.74494227652365796,null,null,null,null,null,"BOS107_175YawVel",{"$f":"INDIRECT(\"T\"&$AB$34)","v":0.44308242205334297}]
[27,"skod27.mme","13:23:00",8,"right",221.359253974431,"left",-221.47021890783901,"OK","PASS","PASS","PASS","PASS",80.012115076223154,3.1727937182371999,2.97553242247794,-50.944298217557403,0.84573523770308601,-1.6601175544540401,0.297151101091088,-0.58328627832324997,null,null,null,null,null,"BOS107_BOSValid",{"$f":"INDIRECT(\"K\"&$AB$34)","v":"PASS"}]
[28,"skod28.mme","13:26:00",-8,"left",-221.41095084530201,"right",221.69274364133801,"OK","PASS","PASS","PASS","PASS",80.992711154027162,-3.2372196827264501,3.0493320920759701,47.924620695913703,-0.62060607224042597,-1.2949629297605301,-0.41750693192257099,-0.871174202027998,null,null,null,null,null,"BOS107_LatDisp",{"$f":"INDIRECT(\"O\"&$AB$34)","v":3.01156299635855}]
[29,"skod29.mme","13:29:00",8.5,"right",235.67351982557901,"left",-235.54640862868601,"OK","PASS","PASS","PASS","PASS",79.55575846979076,3.3989564782959301,2.9805685527505199,-50.468272484967102,0.96091069271046503,-1.9039896659761499,0.48965527838602502,-0.97022397295622698]
[30,"skod30.mme","13:32:00",-8.5,"left",-235.86142395141701,"right",235.44736916934801,"OK","PASS","PASS","PASS","PASS",80.420443512559189,-3.2893433061483002,3.1780213770997001,50.8853303008624,-0.93015177783689396,-1.8279369954706399,-0.40439559047127699,-0.79471939767368105]
[31,"skod31.mme","13:35:00",9,"right",249.80196956123299,"left",-249.80912640440201,"OK","PASS","PASS","PASS","PASS",78.980313385460519,3.2944368337345802,2.4257860424790998,-45.230955188685797,0.94534244016874902,-2.0900342171089501,0.33692164994137502,-0.74489174180795004]
[32,"skod32.mme","13:38:00",-9,"left",-249.85266950163501,"right",249.50276672468999,"OK","PASS","PASS","PASS","PASS",80.358622724981885,-3.3298040732421699,3.2222420965423302,56.115779403656902,-0.45868983597643298,-0.817399029027014,-0.43813203422483299,-0.78076441044010703]
[33,"skod33.mme","13:41:00",9.5,"right",264.10645155779503,"left",-263.869286631036,"OK","PASS","PASS","PASS","PASS",79.33341177457956,3.2322992719024901,3.2008335084044202,-44.967856026623501,0.93178159807862004,-2.0721059005502802,0.28219257480364002,-0.62754287114903995]
[34,"skod34.mme","13:44:00",-9.5,"left",-264.62278757085397,"right",263.75348342483102,"OK","PASS","PASS","PASS","PASS",80.299921075703637,-3.2366316014625398,3.1329537000310999,49.366268740414597,-0.790091040475151,-1.6004674054458601,-0.31684433482940999,-0.64182354249920803]
[35,"skod35.mme","13:47:00",10,"right",278.53367562626698,"left",-278.17150025751801,"OK","PASS","PASS","PASS","PASS",80.359596114436442,3.01156299635855,3.0366106911013202,-47.874793173113602,1.1387035470817299,-2.3785033242111702,0.44308242205334297,-0.92550253000816496]
[36,"skod36.mme","13:50:00",-10,"left",-278.92085136497502,"right",277.66583157377698,"OK","PASS","PASS","PASS","PASS",80.292465759886909,-3.2677454115577498,3.15797800374086,50.801798754742897,-0.68276934253812105,-1.3439865502289501,-0.198819389506632,-0.391362893401625]